Workbook

Sheet はじめに
B2: 大学ファクトブック2024 【大学個別シート検索】（国立大学）について
B4: 本ツールは、文部科学省が実施した「令和4年度大学等における産学連携等実施状況について」を基に作成しました。
B5: 大学ファクトブック2024に掲載している大学名から、大学個別シートを検索・取得する機能を提供しています。
B7: 検索の手順
B8: 1.「検索画面」シートのドロップダウンリストから大学名を選択し、検索ボタンを押してください
B9: 2.選択した大学個別シートが「検索画面」シートの右隣に表示されます。シートの選択で「検索画面」シートに戻り、再度検索することが可能です。
B11: 留意事項
B12: ・本ツールは企業や大学の産学連携担当者による利用を想定しています。
B13: ・本ツールの検索結果が残った状態でファイルを閉じる/終了する際、「上書き保存」を選択すると、その検索結果が残った状態で保存されますのでご注意ください。
B14: ・検索で表示される個別シートは、お使いのPC環境によっては印刷がずれる場合があります。印刷の「ページ設定」で横2×縦1に設定し直してください。
B16: お問い合わせ先
B17: 掲載情報等に係るご相談は、下記メールにてご連絡ください。
B18: メールアドレス：bzl-sangakurenkei-guideline&&meti.go.jp (&&を＠に変換) 必ず以下の項目・内容をご記載ください。 【件名】大学ファクトブック2024大学検索ツールお問い合わせ ①お名前 ②ご連絡先（メールアドレス・電話番号） ③機関・部署・役職 ④お問い合わせ内容（下記よりお選びください） ・本ツールに関するお問い合わせ ・掲載情報に関するお問い合わせ ・本ツールへのリンク等に関する問い合わせ ・その他

Sheet シートの見方

Sheet 検索画面
A1: 【大学個別シート検索】（国立大学） | V1: 大学 | W1: 研究者数 | X1: 大型共同研究数 | Y1: 特許保有数 | Z1: ベンチャー数 | AA1: インキュベーション施設 | AB1: クロアポ | AC1: 税
A2: 大学ファクトブック2024の大学個別シートが検索・取得できます。 | S2: =COUNTA(#REF!) -> 1
V3: 【国立】 | W3: 1,000人以上 | X3: 100件以上 | Y3: 1,000件以上 | Z3: 50社以上 | AA3: ある | AB3: 50社以上 | AC3: ある
V4: 検索してください | W4: 500人以上1,000人未満 | X4: 50件以上100件未満 | Y4: 500件以上1,000件未満 | Z4: 10社以上50社未満 | AA4: ない | AB4: 10社以上50社未満 | AC4: ない
A5: 大学名から探す | D5: 大学名をプルダウンから選択して検索します。 | V5: 愛知教育大学 | W5: 100人以上500人未満 | X5: 10件以上50件未満 | Y5: 100件以上500件未満 | Z5: 5社以上10社未満 | AB5: 5社以上10社未満
V6: 秋田大学 | W6: 100人未満 | X6: 10件未満 | Y6: 100件未満 | Z6: 5社未満 | AB6: 5社未満
B7: 検索してください | V7: 旭川医科大学
V8: 茨城大学
V9: 岩手大学
V10: 宇都宮大学
V11: 愛媛大学
V12: 大分大学
V13: 大阪大学
V14: 大阪教育大学
V15: 岡山大学
V16: 小樽商科大学 | AF16: 2021年度 | AN16: 2022年度
V17: お茶の水女子大学
V18: 帯広畜産大学
V19: 香川大学
V20: 鹿児島大学
V21: 金沢大学
V22: 鹿屋体育大学
V23: 北見工業大学
V24: 岐阜大学
V25: 九州大学
V26: 九州工業大学
V27: 京都大学
V28: 京都教育大学
V29: 京都工芸繊維大学
V30: 熊本大学
V31: 群馬大学
V32: 高知大学
V33: 神戸大学
V34: 埼玉大学 | AF34: 2021年度 | AN34: 2022年度
V35: 佐賀大学
V36: 滋賀大学
V37: 滋賀医科大学
V38: 静岡大学
V39: 島根大学
V40: 上越教育大学
V41: 信州大学
V42: 政策研究大学院大学
V43: 総合研究大学院大学
V44: 千葉大学
V45: 筑波大学
V46: 筑波技術大学
V47: 電気通信大学
V48: 東京大学
V49: 東京医科歯科大学
V50: 東京外国語大学
V51: 東京海洋大学
V52: 東京学芸大学
V53: 東京芸術大学
V54: 東京工業大学
V55: 東京農工大学
V56: 東北大学
V57: 徳島大学
V58: 鳥取大学
V59: 富山大学
V60: 豊橋技術科学大学
V61: 長岡技術科学大学
V62: 長崎大学
V63: 名古屋大学
V64: 名古屋工業大学
V65: 奈良教育大学
V66: 奈良女子大学
V67: 奈良先端科学技術大学院大学
V68: 鳴門教育大学
V69: 新潟大学
V70: 浜松医科大学
V71: 一橋大学
V72: 兵庫教育大学
V73: 弘前大学
V74: 広島大学
V75: 福井大学
V76: 福岡教育大学
V77: 福島大学
V78: 北陸先端科学技術大学院大学
V79: 北海道大学
V80: 北海道教育大学
V81: 三重大学
V82: 宮城教育大学
V83: 宮崎大学
V84: 室蘭工業大学
V85: 山形大学
V86: 山口大学
V87: 山梨大学
V88: 横浜国立大学
V89: 琉球大学
V90: 和歌山大学
V91: 【公立】
V92: 検索してください
V93: 愛知県立大学
V94: 愛知県立芸術大学
V95: 会津大学
V96: 青森県立保健大学
V97: 青森公立大学
V98: 秋田県立大学
V99: 秋田公立美術大学
V100: 石川県立大学
V101: 石川県立看護大学
V102: 茨城県立医療大学
V103: 岩手県立大学
V104: 叡啓大学
V105: 愛媛県立医療技術大学
V106: 大分県立看護科学大学
V107: 大阪公立大学
V108: 岡山県立大学
V109: 沖縄県立看護大学
V110: 沖縄県立芸術大学
V111: 尾道市立大学
V112: 香川県立保健医療大学
V113: 神奈川県立保健福祉大学
V114: 金沢美術工芸大学
V115: 川崎市立看護大学
V116: 北九州市立大学
V117: 岐阜県立看護大学
V118: 岐阜薬科大学
V119: 九州歯科大学
V120: 京都市立芸術大学
V121: 京都府立大学
V122: 京都府立医科大学
V123: 釧路公立大学
V124: 熊本県立大学
V125: 群馬県立県民健康科学大学
V126: 群馬県立女子大学
V127: 芸術文化観光専門職大学
V128: 県立広島大学
V129: 高知県立大学
V130: 高知工科大学
V131: 神戸市外国語大学
V132: 神戸市看護大学
V133: 公立小松大学
V134: 公立諏訪東京理科大学
V135: 公立千歳科学技術大学
V136: 公立鳥取環境大学
V137: 公立はこだて未来大学
V138: 国際教養大学
V139: 埼玉県立大学
V140: 札幌医科大学
V141: 札幌市立大学
V142: 三条市立大学
V143: 山陽小野田市立山口東京理科大学
V144: 滋賀県立大学
V145: 静岡県立大学
V146: 静岡県立農林環境専門職大学
V147: 静岡社会健康医学大学院大学
V148: 静岡文化芸術大学
V149: 島根県立大学
V150: 下関市立大学
V151: 周南公立大学
V152: 情報科学芸術大学院大学
V153: 高崎経済大学
V154: 千葉県立保健医療大学
V155: 敦賀市立看護大学
V156: 都留文科大学
V157: 東京都立大学
V158: 東京都立産業技術大学院大学
V159: 富山県立大学
V160: 長岡造形大学
V161: 長崎県立大学
V162: 長野大学
V163: 長野県看護大学
V164: 長野県立大学
V165: 名古屋市立大学
V166: 名寄市立大学
V167: 奈良県立大学
V168: 奈良県立医科大学
V169: 新潟県立大学
V170: 新潟県立看護大学
V171: 新見公立大学
V172: 兵庫県立大学
V173: 広島市立大学
V174: 福井県立大学
V175: 福岡県立大学
V176: 福岡女子大学
V177: 福島県立医科大学
V178: 福知山公立大学
V179: 福山市立大学
V180: 前橋工科大学
V181: 三重県立看護大学
V182: 宮城大学
V183: 宮崎県立看護大学
V184: 宮崎公立大学
V185: 名桜大学
V186: 山形県立保健医療大学
V187: 山形県立米沢栄養大学
V188: 山口県立大学
V189: 山梨県立大学
V190: 横浜市立大学
V191: 和歌山県立医科大学
V192: 【私立】
V193: 検索してください
V194: アール医療専門職大学
V195: 愛国学園大学
V196: 愛知大学
V197: 愛知医科大学
V198: 愛知学院大学
V199: 愛知学泉大学
V200: 愛知工科大学
... 589 more rows

Sheet 小樽商科大学 (hidden)
A1: 国立 | C1: 小樽商科大学 | X1: 大学全体の経営理念における産学官連携活動の取組方針 | CY1: 103 | CZ1: 104 | DA1: 105 | DB1: 106 | DC1: 107 | DD1: 108 | DE1: 109 | DF1: 110 | DG1: 111 | DH1: 112 | DI1: 113 | DJ1: 114 | DK1: 115 | DL1: 116 | DM1: 117 | DN1: 118 | DO1: 119 | DP1: 120 | DQ1: 121 | DR1: 122 | DS1: 123 | DT1: 124 | DU1: 125 | DV1: 126 | DW1: 127 | DX1: 128 | DY1: 129
X2: 全国唯一の国立商科系の単科大学として，自由な学風を尊び，優れた教育と研究並びにそれらの成果を活用した社会貢献を使命とし，地域社会および国際社会の付託に幅広く応える「知の創造」に努め，人類社会の福祉と発展に寄与する。産学官連携は，大学の知の成果を社会へ還元する重要な活動であり，本学は高い透明性と公平性をもって積極的に取り組む。
C3: (北海道) | BC3: ＵＲＡ | BO3: URA当たりの研究者数 | CB3: 戦略的産学官連携経費
BC4: 実務担当者数 | BI4: 0 | BN4: 名 | BO4: =IFERROR(K29/BI4,"") ->  | BX4: 名 | CB4: 戦略的産学官連携経費の設定 | CP4: 有 | CT4: 無 | CZ4: ある | DA4: 相談窓口
CB5: 戦略的産学官連携経費の費目 | CZ5: ない | DA5: 支援ファンド
A6: 基 礎 情 報 | BC6: 各種規程類の整備状況 | CB6: 戦略的産学官連携経費の直接経費に対する割合 | CZ6: ある | DA6: インキュベーション施設 | DI6: ◎ | DJ6: 産学官連携ポリシー
BC7: 産学官連携ポリシー | BN7: 職務発明規程（教職員のみ対象） | CZ7: ない | DA7: 知的財産戦略 | DI7: ◎ | DJ7: 知的財産ポリシー
B8: 大学の得意分野とその具体例 | BC8: 知的財産ポリシー | BN8: 職務発明規程（教職員、学生対象） | CB8: 人件費の企業負担 | DI8: ◎ | DJ8: 共同研究取扱規程
B9: 北海道の産業競争力を強化するため、産学官の連携や、北海道内の理工系大学との大学間連携事業を発展させる。また、地域の産業界や他大学、行政機関とより緊密な連携活動を行うため人的ネットワークを基盤とするビジネス開発プラットフォームを強化し、地域経済の活性化や地域人材の育成の取り組みを通じて、スタートアップ創出を推進する。 | AA9: 科研費 （千円） | AL9: その他政府系資金 (千円) | AS9: その他団体からの資金 (千円) | BC9: 共同研究取扱規程 | BN9: 発明補償関係規程（教職員のみ対象） | CB9: 教員人件費の企業負担に関する規程や制度 | CP9: 有 | CT9: 無 | DI9: ◎ | DJ9: 受託研究取扱規程
BC10: 受託研究取扱規程 | BN10: 発明補償関係規程（教職員、学生対象） | CB10: 教員人件費の企業負担の費目 | CP10: 間接経費 | DI10: ◎ | DJ10: 研究成果有体物取扱規程
AA11: 75920 | AL11: 0 | AS11: 3997 | BC11: 研究成果有体物取扱規程 | BN11: 守秘義務に係る規程（教職員のみ対象） | CB11: 学生人件費の企業負担に関する規程や制度 | CP11: 有 | CT11: 無 | DI11: × | DJ11: 営業秘密管理に関する規程
BC12: 営業秘密管理に関する規程 | BN12: 守秘義務に係る規程（教職員、学生対象） | CB12: 学生人件費の企業負担の費目 | DI12: ◎ | DJ12: 株式の取扱等規程、ポリシー
AA13: 共同研究における間接経費割合 | AN13: 株式の保有 | AT13: 新株予約権の保有 | BC13: 株式の取扱等規程、ポリシー | BN13: 学術指導に関する規程 | DA13: × | DB13: 株式 | DI13: ◎ | DJ13: 職務発明規程（教職員のみ対象）
AA14: 0 | AN14: 有 | AQ14: 無 | AT14: 有 | AW14: 無 | BK14: ※各種規定類を整備している場合は、赤色で表示されます。 | CB14: 特別試験研究費税額控除制度 | DA14: × | DB14: 新株予約権 | DI14: × | DJ14: 職務発明規程（教職員、学生対象）
B15: 産学官連携活動において今後重点化したい事項 | CB15: 特別試験研究費税額控除制度の活用 | CP15: 有 | CT15: 無 | DI15: ◎ | DJ15: 発明補償関係規程（教職員のみ対象）
B16: 北海道の産業競争力を強化するため、産学官の連携や、北海道内の理工系大学との大学間連携事業を発展させる。また、地域の産業界や他大学、行政機関とより緊密な連携活動を行うため人的ネットワークを基盤とするビジネス開発プラットフォームを強化し、地域経済の活性化や地域人材の育成の取り組みを通じて、スタートアップ創出を推進する。 | AA16: 共同研究 | AG16: 2021年度 | AO16: 2022年度 | AW16: 順位※ | BC16: クロスアポイントメントの実績 | BK16: 大学等 | BN16: 公的機関 | BQ16: 民間企業 | BU16: その他機関 | DI16: × | DJ16: 発明補償関係規程（教職員、学生対象）
AG17: 受入額（千円） | AL17: 件数 | AO17: 受入額（千円） | AT17: 件数 | BH17: 受入数(名) | BK17: 0 | BN17: 0 | BQ17: 1 | BU17: 0 | DB17: 順位 | DI17: ◎ | DJ17: 守秘義務に係る規程（教職員のみ対象）
AA18: 全体 | AG18: 24041 | AL18: 6 | AO18: 10689 | AT18: 6 | AW18: =IF(DB18<50,DB18,"") ->  | AY18: 位 | BH18: 派遣数(名) | BK18: 0 | BN18: 0 | BQ18: 0 | BU18: 0 | DB18: 252 | DI18: × | DJ18: 守秘義務に係る規程（教職員、学生対象）
AB19: 民間企業 のみ | AG19: 19641 | AL19: 5 | AO19: 10689 | AT19: 6 | AW19: =IF(DB19<50,DB19,"") ->  | AY19: 位 | DB19: 235 | DI19: ◎ | DJ19: 学術指導に係る規定
AC20: 大企業 | AG20: 14740 | AL20: 1 | AO20: 6581 | AT20: 4 | AY20: 位 | BB20: ■組織的産学官連携活動の取組事例 | DB20: 232 | DI20: ない | DJ20: 戦略的産学官連携経費の設定
AC21: 中小企業 | AG21: 4901 | AL21: 4 | AO21: 4108 | AT21: 2 | AY21: 位 | DB21: 204 | DI21: ある | DJ21: 教員人件費の企業負担に関する規程や制度
AK22: ※順位は2022年度の受入額を比較したものです。 | DI22: ない | DJ22: 学生人件費の企業負担に関する規程や制度
AK23: ※順位は50位までを記載。51位以下の場合は空欄となります。 | DB23: 0 | DC23: 2 | DI23: ある | DJ23: 特別試験研究費税額控除制度の活用
DB24: ～100万 | DC24: 1
DB25: ～300万 | DC25: 1
DB26: ～500万 | DC26: 2
C27: 産学官連携本部等組織名 | K27: グローカル戦略推進センター産学官連携推進部門 | DB27: ～1000万
C28: 産学官連携本部等URL | K28: https://www.otaru-uc.ac.jp/cgs/iag/ | DB28: ～5000万
C29: 研究者数 | K29: 124 | O29: 名 | DB29: ～1億 | DJ29: 共同研究等の企画・提案
C30: 実務担当者数 | K30: 6 | O30: 名 | DB30: 1億以上 | DJ30: 契約書での成果目標、達成時の明記
C31: 実務者当たり研究者数 | K31: =IFERROR(K29/K30,"") -> 20.66666667 | O31: 名 | DJ31: 共同研究契約の締結/判断（契約権限の集中）
C32: 専門家の配置 | I32: 弁護士 | L32: 弁理士 | O32: 税理士 | R32: 公認会計士 | V32: その他 | DJ32: 共同研究の進捗管理とフィードバック
L33: ※専門家を配置している場合は、赤色で表示されます。 | DJ33: 企業ニーズに適応した技術移転・事業化提案
AA34: 受託研究 | AG34: 2021年度 | AO34: 2022年度 | AW34: 順位※ | DJ34: 共同研究等の企画・提案
AG35: 受入額（千円） | AL35: 件数 | AO35: 受入額（千円） | AT35: 件数 | DB35: 順位 | DJ35: 契約書での成果目標、達成時の明記
AA36: 全体 | AG36: 23058 | AL36: 3 | AO36: 56548 | AT36: 4 | AW36: =IF(DB36<50,DB36,"") ->  | AY36: 位 | DB36: 172 | DJ36: 共同研究契約の締結/判断（契約権限の集中）
AA37: 民間企業 のみ | AG37: 0 | AL37: 0 | AO37: 3300 | AT37: 1 | AW37: =IF(DB37<50,DB37,"") ->  | AY37: 位 | DB37: 222 | DJ37: 共同研究の進捗管理とフィードバック
C38: 産学官連携本部が関与した共同研究 | P38: 1 | T38: 件 | AA38: 大企業 | AG38: 0 | AL38: 0 | AO38: 3300 | AT38: 1 | AY38: 位 | DB38: 188 | DJ38: 企業ニーズに適応した技術移転・事業化提案
D39: 内、マッチングを行い、契約締結した件数 | P39: 0 | T39: 件 | AA39: 中小企業 | AG39: 0 | AL39: 0 | AO39: 0 | AT39: 0 | AY39: 位 | DB39: 311 | DJ39: 共同研究等の企画・提案
I40: ※1,000万円以上の共同研究 | AK40: ※順位は2022年度の受入額を比較したもの | DB40: 弁護士 | DG40: 0 | DJ40: 契約書での成果目標、達成時の明記
AK41: ※順位は50位までを記載。51位以下の場合は空欄となります。 | BB41: ■産学官連携活動の主な実用化事例 | DB41: 弁理士 | DG41: ～100万 | DJ41: 共同研究契約の締結/判断（契約権限の集中）
C42: 組織対組織による包括連携契約の締結数 | P42: 1 | T42: 件 | DB42: 税理士 | DG42: ～300万 | DJ42: 共同研究の進捗管理とフィードバック
D43: 内、1,000万円以上の実績がある相手方数 | P43: 1 | T43: 件 | DB43: 公認会計士 | DG43: ～500万 | DH43: 1 | DJ43: 企業ニーズに適応した技術移転・事業化提案
DB44: その他 | DG44: ～1000万
C45: 寄附講座・寄附研究部門の受入件数 | P45: 0 | V45: 件 | DG45: ～5000万
C46: 寄附講座・寄附研究部門の受入金額（千円） | P46: 0 | DG46: ～1億
C47: 共同研究講座・共同研究部門の受入件数 | P47: 0 | V47: 件 | DG47: 1億以上
C48: 共同研究講座・共同研究部門の受入金額（千円） | P48: 0
CZ51: 大学 | DA51: 大学・発明者・未設定
C52: 職務発明の帰属 | I52: 大学 | M52: 発明者 | Q52: 未設定 | DA52: 職務発明
AD53: 特許権実施等件数 | AL53: 0 | AQ53: 件 | AS53: 実施等件数当たり | DA53: 不実施
I54: 国内 | K54: 外国 | M54: PCT | O54: EPC | AD54: 特許権実施等収入（千円） | AL54: 0 | AS54: =IF(OR(AL53="",AL54=""),"",IFERROR(AL54/AL53,"")) ->  | CZ54: 0 | DA54: 特許権収入
C55: 特許出願件数（件） | I55: 0 | K55: 0 | M55: 0 | O55: 0
C56: 特許保有件数（件） | I56: 0 | K56: 0
C61: 大学発ベンチャー数 | J61: 14 | O61: 社
C62: Exit件数（IPO） | J62: 0 | O62: 社 | P62: Exit件数（M&A） | W62: 0 | Z62: 社
C63: 相談窓口 | K63: 支援ファンド | S63: インキュベーション施設
C64: 有 | G64: 無 | K64: 有 | O64: 無 | S64: 有 | W64: 無
C65: 知的財産戦略方針 | K65: 支援総額（千円） | S65: 面積 | W65: 42 | Z65: m2
C66: 有 | G66: 無 | K66: 0 | S66: 契約企業数 | W66: 0 | Z66: 社
CY69: 103 | CZ69: 104 | DA69: 105 | DB69: 106 | DC69: 107 | DD69: 108 | DE69: 109 | DF69: 110 | DG69: 111 | DH69: 112 | DI69: 113 | DJ69: 114 | DK69: 115 | DL69: 116 | DM69: 117 | DN69: 118 | DO69: 119 | DP69: 120 | DQ69: 121 | DR69: 122 | DS69: 123 | DT69: 124 | DU69: 125
B70: 東京大学 | C70: 4924 | D70: 613188710 | I70: 148
B71: 東京大学 | C71: 4924 | D71: 613188710 | K71: 0
B72: 東北大学 | C72: 3805 | D72: 208066000
B73: 大阪大学 | C73: 3557 | D73: 414288000
B74: 京都大学 | C74: 3026 | D74: 1119118168
B75: 東京工業大学 | C75: 2084 | D75: 99801000
B76: 九州大学 | C76: 1797 | D76: 164182000
B77: 名古屋大学 | C77: 1604 | D77: 90749000
B78: 北海道大学 | C78: 1314 | D78: 183435000
B79: 信州大学 | C79: 1038 | D79: 37096000
B80: 大阪公立大学 | C80: 975 | D80: 9345000
B81: 筑波大学 | C81: 967 | D81: 36213000
B82: 広島大学 | C82: 919 | D82: 34166000
B83: 千葉大学 | C83: 916 | D83: 16779000
B84: 慶應義塾大学 | C84: 869 | D84: 86996000
B85: 山口大学 | C85: 756 | D85: 29295000
B86: 東京理科大学 | C86: 698 | D86: 23087000
B87: 東京農工大学 | C87: 671 | D87: 60497000
B88: 早稲田大学 | C88: 671 | D88: 27622000
B89: 神戸大学 | C89: 668 | D89: 33659000
B90: 岡山大学 | C90: 624 | D90: 24747000
B91: 名古屋工業大学 | C91: 618 | D91: 32295000
B92: 九州工業大学 | C92: 591 | D92: 8115000
B93: 群馬大学 | C93: 563 | D93: 3087000
B94: 横浜国立大学 | C94: 553 | D94: 15639000
B95: 静岡大学 | C95: 543 | D95: 4244000
B96: 熊本大学 | C96: 539 | D96: 28442000
B97: 近畿大学 | C97: 507 | D97: 22970000
B98: 鹿児島大学 | C98: 475 | D98: 16446000
B99: 山梨大学 | C99: 473 | D99: 8206000
B100: 香川大学 | C100: 469 | D100: 19447000
B101: 長岡技術科学大学 | C101: 465 | D101: 3690000
B102: 東京医科歯科大学 | C102: 461 | D102: 28044000
B103: 東京都立大学 | C103: 447 | D103: 2416000
B104: 関西大学 | C104: 445 | D104: 3261000
B105: 三重大学 | C105: 443 | D105: 28808000
B106: 豊橋技術科学大学 | C106: 435 | D106: 6864000
B107: 電気通信大学 | C107: 421 | D107: 7030000
B108: 鳥取大学 | C108: 405 | D108: 137372000
B109: 金沢大学 | C109: 391 | D109: 18050000
B110: 徳島大学 | C110: 390 | D110: 20264000
B111: 奈良先端科学技術大学院大学 | C111: 382 | D111: 39711000
B112: 新潟大学 | C112: 373 | D112: 9369000
B113: 山形大学 | C113: 363 | D113: 2866000
B114: 北里大学 | C114: 346 | D114: 66133000
B115: 立命館大学 | C115: 330 | D115: 9311000
B116: 富山大学 | C116: 328 | D116: 10861000
B117: 埼玉大学 | C117: 320 | D117: 3578000
B118: 同志社大学 | C118: 317 | D118: 4884000
B119: 高知大学 | C119: 314 | D119: 20578000
B120: 弘前大学 | C120: 294 | D120: 8072000
B121: 日本大学 | C121: 283 | D121: 36278000
B122: 兵庫県立大学 | C122: 279 | D122: 1051000
B123: 名城大学 | C123: 276 | D123: 28093000
B124: 岐阜大学 | C124: 274 | D124: 10679000
B125: 横浜市立大学 | C125: 260 | D125: 37933000
B126: 札幌医科大学 | C126: 258 | D126: 19373000
B127: 京都府立医科大学 | C127: 258 | D127: 12241000
B128: 佐賀大学 | C128: 257 | D128: 8596000
B129: 京都工芸繊維大学 | C129: 252 | D129: 368000
B130: 福井大学 | C130: 245 | D130: 8596000
B131: 宮崎大学 | C131: 244 | D131: 1648000
B132: 神奈川大学 | C132: 243 | D132: 5675000
B133: 東海大学 | C133: 232 | D133: 1120000
B134: 岩手大学 | C134: 227 | D134: 6652000
B135: 秋田大学 | C135: 224 | D135: 1688000
B136: 愛媛大学 | C136: 203 | D136: 26470000
B137: 長崎大学 | C137: 203 | D137: 33702000
B138: 東京海洋大学 | C138: 199 | D138: 4576000
B139: 北陸先端科学技術大学院大学 | C139: 192 | D139: 1763000
B140: 沖縄科学技術大学院大学 | C140: 190 | D140: 1460000
B141: 福岡大学 | C141: 189 | D141: 875000
B142: 関西学院大学 | C142: 186 | D142: 25624000
B143: 東京女子医科大学 | C143: 185 | D143: 2817000
B144: 宇都宮大学 | C144: 179 | D144: 1976000
B145: 中央大学 | C145: 170 | D145: 3131000
B146: 上智大学 | C146: 167 | D146: 0
B147: 高知工科大学 | C147: 167 | D147: 45000
B148: 茨城大学 | C148: 155 | D148: 1545000
B149: 金沢工業大学 | C149: 149 | D149: 2786000
B150: 大分大学 | C150: 148 | D150: 4155000
B151: 千葉工業大学 | C151: 147 | D151: 2134000
B152: 浜松医科大学 | C152: 146 | D152: 1429000
B153: 順天堂大学 | C153: 142 | D153: 4289000
B154: 滋賀医科大学 | C154: 141 | D154: 5567000
B155: 中部大学 | C155: 135 | D155: 675000
B156: 島根大学 | C156: 134 | D156: 1585000
B157: 名古屋市立大学 | C157: 124 | D157: 17845000
B158: 豊田工業大学 | C158: 123 | D158: 50000
B159: 芝浦工業大学 | C159: 120 | D159: 441000
B160: 東京電機大学 | C160: 116 | D160: 5765000
B161: 琉球大学 | C161: 109 | D161: 955000
B162: 久留米大学 | C162: 107 | D162: 3189000
B163: 埼玉医科大学 | C163: 98 | D163: 9046000
B164: 富山県立大学 | C164: 94 | D164: 1681000
B165: 藤田医科大学 | C165: 94 | D165: 0
B166: 明治大学 | C166: 92 | D166: 4567000
B167: 北見工業大学 | C167: 89 | D167: 729000
B168: 静岡県立大学 | C168: 88 | D168: 0
B169: 和歌山大学 | C169: 88 | D169: 4976000
B170: 関東学院大学 | C170: 85 | D170: 10815000
B171: 神奈川工科大学 | C171: 77 | D171: 356000
B172: 帝京大学 | C172: 75 | D172: 3411000
B173: 昭和大学 | C173: 73 | D173: 36130000
B174: 奈良県立医科大学 | C174: 72 | D174: 643000
B175: 福岡工業大学 | C175: 70 | D175: 200000
B176: 法政大学 | C176: 68 | D176: 1375000
B177: 東亜大学 | C177: 67 | D177: 0
B178: 兵庫医科大学 | C178: 65 | D178: 909000
B179: 聖マリアンナ医科大学 | C179: 61 | D179: 9075000
B180: 室蘭工業大学 | C180: 60 | D180: 14000
B181: 秋田県立大学 | C181: 60 | D181: 1505000
B182: 福島大学 | C182: 60 | D182: 48000
B183: 日本医科大学 | C183: 60 | D183: 5693000
B184: 岡山理科大学 | C184: 58 | D184: 2541000
B185: 産業医科大学 | C185: 57 | D185: 2114000
B186: 東洋大学 | C186: 56 | D186: 1565000
B187: 帯広畜産大学 | C187: 55 | D187: 2369000
B188: 会津大学 | C188: 55 | D188: 220000
B189: 立教大学 | C189: 55 | D189: 18000
B190: 北九州市立大学 | C190: 55 | D190: 9601000
B191: 旭川医科大学 | C191: 53 | D191: 11185000
B192: お茶の水女子大学 | C192: 53 | D192: 0
B193: 工学院大学 | C193: 53 | D193: 1312000
B194: 大阪工業大学 | C194: 53 | D194: 0
B195: 玉川大学 | C195: 50 | D195: 335000
B196: 関西医科大学 | C196: 50 | D196: 3255000
B197: 熊本保健科学大学 | C197: 49 | D197: 7000
B198: 東京農業大学 | C198: 48 | D198: 0
B199: 甲南大学 | C199: 47 | D199: 1103000
B200: 東邦大学 | C200: 46 | D200: 1329000
B201: 龍谷大学 | C201: 44 | D201: 930000
B202: 広島市立大学 | C202: 44 | D202: 84000
B203: 大同大学 | C203: 42 | D203: 0
B204: 麻布大学 | C204: 39 | D204: 2179000
B205: 岩手県立大学 | C205: 37 | D205: 54000
B206: 東京薬科大学 | C206: 35 | D206: 2478000
B207: 青山学院大学 | C207: 34 | D207: 0
B208: 岩手医科大学 | C208: 33 | D208: 15000
... 643 more rows

Sheet 帯広畜産大学 (hidden)
A1: 国立 | C1: 帯広畜産大学 | X1: 大学全体の経営理念における産学官連携活動の取組方針 | CY1: 103 | CZ1: 104 | DA1: 105 | DB1: 106 | DC1: 107 | DD1: 108 | DE1: 109 | DF1: 110 | DG1: 111 | DH1: 112 | DI1: 113 | DJ1: 114 | DK1: 115 | DL1: 116 | DM1: 117 | DN1: 118 | DO1: 119 | DP1: 120 | DQ1: 121 | DR1: 122 | DS1: 123 | DT1: 124 | DU1: 125 | DV1: 126 | DW1: 127 | DX1: 128 | DY1: 129
X2: 教育・研究成果を地域及び国際社会に還元するため、産学官連携活動により「知」の創造サイクルを充実させ、「知的財産の創出及び社会還元」と「地域及び国際社会の産業振興に貢献する人材育成」を目標としている。
C3: (北海道) | BC3: ＵＲＡ | BO3: URA当たりの研究者数 | CB3: 戦略的産学官連携経費
BC4: 実務担当者数 | BI4: 4 | BN4: 名 | BO4: =IFERROR(K29/BI4,"") -> 49.5 | BX4: 名 | CB4: 戦略的産学官連携経費の設定 | CP4: 有 | CT4: 無 | CZ4: ある | DA4: 相談窓口
CB5: 戦略的産学官連携経費の費目 | CP5: 間接経費 | CZ5: ない | DA5: 支援ファンド
A6: 基 礎 情 報 | BC6: 各種規程類の整備状況 | CB6: 戦略的産学官連携経費の直接経費に対する割合 | CP6: 0.1 | CZ6: ある | DA6: インキュベーション施設 | DI6: ◎ | DJ6: 産学官連携ポリシー
BC7: 産学官連携ポリシー | BN7: 職務発明規程（教職員のみ対象） | CZ7: ある | DA7: 知的財産戦略 | DI7: ◎ | DJ7: 知的財産ポリシー
B8: 大学の得意分野とその具体例 | BC8: 知的財産ポリシー | BN8: 職務発明規程（教職員、学生対象） | CB8: 人件費の企業負担 | DI8: ◎ | DJ8: 共同研究取扱規程
B9: 日本の食料基地である北海道十勝地域において、「農場から食卓まで」の幅広い領域で獣医・農畜産に関する教育研究活動を行っている。例えば、画像による肉質評価の大学発ベンチャー企業の設立、乳牛の異常検知等ICTの研究や現場実証に取り組んでいる。 | AA9: 科研費 （千円） | AL9: その他政府系資金 (千円) | AS9: その他団体からの資金 (千円) | BC9: 共同研究取扱規程 | BN9: 発明補償関係規程（教職員のみ対象） | CB9: 教員人件費の企業負担に関する規程や制度 | CP9: 有 | CT9: 無 | DI9: ◎ | DJ9: 受託研究取扱規程
BC10: 受託研究取扱規程 | BN10: 発明補償関係規程（教職員、学生対象） | CB10: 教員人件費の企業負担の費目 | DI10: ◎ | DJ10: 研究成果有体物取扱規程
AA11: 181200 | AL11: 25563 | AS11: 81009 | BC11: 研究成果有体物取扱規程 | BN11: 守秘義務に係る規程（教職員のみ対象） | CB11: 学生人件費の企業負担に関する規程や制度 | CP11: 有 | CT11: 無 | DI11: × | DJ11: 営業秘密管理に関する規程
BC12: 営業秘密管理に関する規程 | BN12: 守秘義務に係る規程（教職員、学生対象） | CB12: 学生人件費の企業負担の費目 | DI12: ◎ | DJ12: 株式の取扱等規程、ポリシー
AA13: 共同研究における間接経費割合 | AN13: 株式の保有 | AT13: 新株予約権の保有 | BC13: 株式の取扱等規程、ポリシー | BN13: 学術指導に関する規程 | DA13: × | DB13: 株式 | DI13: ◎ | DJ13: 職務発明規程（教職員のみ対象）
AA14: 0.1 | AN14: 有 | AQ14: 無 | AT14: 有 | AW14: 無 | BK14: ※各種規定類を整備している場合は、赤色で表示されます。 | CB14: 特別試験研究費税額控除制度 | DA14: × | DB14: 新株予約権 | DI14: × | DJ14: 職務発明規程（教職員、学生対象）
B15: 産学官連携活動において今後重点化したい事項 | CB15: 特別試験研究費税額控除制度の活用 | CP15: 有 | CT15: 無 | DI15: ◎ | DJ15: 発明補償関係規程（教職員のみ対象）
B16: ①「組織」対「組織」による連携や地域のステークホルダーとの関係強化による、地域ニーズに応じた課題解決型共同研究の推進、②商農工の分野融合型研究による持続可能な社会の実現。 | AA16: 共同研究 | AG16: 2021年度 | AO16: 2022年度 | AW16: 順位※ | BC16: クロスアポイントメントの実績 | BK16: 大学等 | BN16: 公的機関 | BQ16: 民間企業 | BU16: その他機関 | DI16: × | DJ16: 発明補償関係規程（教職員、学生対象）
AG17: 受入額（千円） | AL17: 件数 | AO17: 受入額（千円） | AT17: 件数 | BH17: 受入数(名) | BK17: 0 | BN17: 0 | BQ17: 0 | BU17: 0 | DB17: 順位 | DI17: × | DJ17: 守秘義務に係る規程（教職員のみ対象）
AA18: 全体 | AG18: 117753 | AL18: 143 | AO18: 113077 | AT18: 126 | AW18: =IF(DB18<50,DB18,"") ->  | AY18: 位 | BH18: 派遣数(名) | BK18: 1 | BN18: 0 | BQ18: 0 | BU18: 0 | DB18: 103 | DI18: × | DJ18: 守秘義務に係る規程（教職員、学生対象）
AB19: 民間企業 のみ | AG19: 75668 | AL19: 106 | AO19: 62862 | AT19: 93 | AW19: =IF(DB19<50,DB19,"") ->  | AY19: 位 | DB19: 117 | DI19: ◎ | DJ19: 学術指導に係る規定
AC20: 大企業 | AG20: 44484 | AL20: 48 | AO20: 34636 | AT20: 40 | AY20: 位 | BB20: ■組織的産学官連携活動の取組事例 | DB20: 133 | DI20: ある | DJ20: 戦略的産学官連携経費の設定
AC21: 中小企業 | AG21: 31184 | AL21: 58 | AO21: 28226 | AT21: 53 | AY21: 位 | DB21: 93 | DI21: ない | DJ21: 教員人件費の企業負担に関する規程や制度
AK22: ※順位は2022年度の受入額を比較したものです。 | DI22: ない | DJ22: 学生人件費の企業負担に関する規程や制度
AK23: ※順位は50位までを記載。51位以下の場合は空欄となります。 | DB23: 0 | DC23: 26 | DI23: ある | DJ23: 特別試験研究費税額控除制度の活用
DB24: ～100万 | DC24: 39
DB25: ～300万 | DC25: 26
DB26: ～500万 | DC26: 2
C27: 産学官連携本部等組織名 | K27: 産学連携センター | DB27: ～1000万
C28: 産学官連携本部等URL | K28: https://www.obihiro.ac.jp/facility/crcenter/ | DB28: ～5000万
C29: 研究者数 | K29: 198 | O29: 名 | DB29: ～1億 | DJ29: 共同研究等の企画・提案
C30: 実務担当者数 | K30: 8 | O30: 名 | DB30: 1億以上 | DJ30: 契約書での成果目標、達成時の明記
C31: 実務者当たり研究者数 | K31: =IFERROR(K29/K30,"") -> 24.75 | O31: 名 | DJ31: 共同研究契約の締結/判断（契約権限の集中）
C32: 専門家の配置 | I32: 弁護士 | L32: 弁理士 | O32: 税理士 | R32: 公認会計士 | V32: その他 | DJ32: 共同研究の進捗管理とフィードバック
L33: ※専門家を配置している場合は、赤色で表示されます。 | DJ33: 企業ニーズに適応した技術移転・事業化提案
AA34: 受託研究 | AG34: 2021年度 | AO34: 2022年度 | AW34: 順位※ | DJ34: 共同研究等の企画・提案
AG35: 受入額（千円） | AL35: 件数 | AO35: 受入額（千円） | AT35: 件数 | DB35: 順位 | DJ35: 契約書での成果目標、達成時の明記
AA36: 全体 | AG36: 51296 | AL36: 30 | AO36: 94766 | AT36: 32 | AW36: =IF(DB36<50,DB36,"") ->  | AY36: 位 | DB36: 148 | DJ36: 共同研究契約の締結/判断（契約権限の集中）
AA37: 民間企業 のみ | AG37: 10390 | AL37: 5 | AO37: 4630 | AT37: 4 | AW37: =IF(DB37<50,DB37,"") ->  | AY37: 位 | DB37: 197 | DJ37: 共同研究の進捗管理とフィードバック
C38: 産学官連携本部が関与した共同研究 | P38: 0 | T38: 件 | AA38: 大企業 | AG38: 10390 | AL38: 5 | AO38: 3330 | AT38: 3 | AY38: 位 | DB38: 185 | DJ38: 企業ニーズに適応した技術移転・事業化提案
D39: 内、マッチングを行い、契約締結した件数 | P39: 0 | T39: 件 | AA39: 中小企業 | AG39: 0 | AL39: 0 | AO39: 1300 | AT39: 1 | AY39: 位 | DB39: 194 | DJ39: 共同研究等の企画・提案
I40: ※1,000万円以上の共同研究 | AK40: ※順位は2022年度の受入額を比較したもの | DB40: 弁護士 | DG40: 0 | DJ40: 契約書での成果目標、達成時の明記
AK41: ※順位は50位までを記載。51位以下の場合は空欄となります。 | BB41: ■産学官連携活動の主な実用化事例 | DB41: 弁理士 | DG41: ～100万 | DH41: 1 | DJ41: 共同研究契約の締結/判断（契約権限の集中）
C42: 組織対組織による包括連携契約の締結数 | P42: 7 | T42: 件 | DB42: 税理士 | DG42: ～300万 | DH42: 3 | DJ42: 共同研究の進捗管理とフィードバック
D43: 内、1,000万円以上の実績がある相手方数 | P43: 0 | T43: 件 | DB43: 公認会計士 | DG43: ～500万 | DJ43: 企業ニーズに適応した技術移転・事業化提案
DA44: ○ | DB44: その他 | DG44: ～1000万
C45: 寄附講座・寄附研究部門の受入件数 | P45: 3 | V45: 件 | DG45: ～5000万
C46: 寄附講座・寄附研究部門の受入金額（千円） | P46: 29560 | DG46: ～1億
C47: 共同研究講座・共同研究部門の受入件数 | P47: 1 | V47: 件 | DG47: 1億以上
C48: 共同研究講座・共同研究部門の受入金額（千円） | P48: 2200
CZ51: 大学 | DA51: 大学・発明者・未設定
C52: 職務発明の帰属 | I52: 大学 | M52: 発明者 | Q52: 未設定 | DA52: 職務発明
AD53: 特許権実施等件数 | AL53: 23 | AQ53: 件 | AS53: 実施等件数当たり | DA53: 不実施
I54: 国内 | K54: 外国 | M54: PCT | O54: EPC | AD54: 特許権実施等収入（千円） | AL54: 2369 | AS54: =IF(OR(AL53="",AL54=""),"",IFERROR(AL54/AL53,"")) -> 103 | CZ54: 2369000 | DA54: 特許権収入
C55: 特許出願件数（件） | I55: 7 | K55: 0 | M55: 0 | O55: 0
C56: 特許保有件数（件） | I56: 43 | K56: 12
C61: 大学発ベンチャー数 | J61: 1 | O61: 社
C62: Exit件数（IPO） | J62: 0 | O62: 社 | P62: Exit件数（M&A） | W62: 0 | Z62: 社
C63: 相談窓口 | K63: 支援ファンド | S63: インキュベーション施設
C64: 有 | G64: 無 | K64: 有 | O64: 無 | S64: 有 | W64: 無
C65: 知的財産戦略方針 | K65: 支援総額（千円） | S65: 面積 | W65: 38 | Z65: m2
C66: 有 | G66: 無 | K66: 0 | S66: 契約企業数 | W66: 1 | Z66: 社
CY69: 103 | CZ69: 104 | DA69: 105 | DB69: 106 | DC69: 107 | DD69: 108 | DE69: 109 | DF69: 110 | DG69: 111 | DH69: 112 | DI69: 113 | DJ69: 114 | DK69: 115 | DL69: 116 | DM69: 117 | DN69: 118 | DO69: 119 | DP69: 120 | DQ69: 121 | DR69: 122 | DS69: 123 | DT69: 124 | DU69: 125
B70: 東京大学 | C70: 4924 | D70: 613188710 | I70: 148
B71: 東京大学 | C71: 4924 | D71: 613188710 | K71: 55
B72: 東北大学 | C72: 3805 | D72: 208066000
B73: 大阪大学 | C73: 3557 | D73: 414288000
B74: 京都大学 | C74: 3026 | D74: 1119118168
B75: 東京工業大学 | C75: 2084 | D75: 99801000
B76: 九州大学 | C76: 1797 | D76: 164182000
B77: 名古屋大学 | C77: 1604 | D77: 90749000
B78: 北海道大学 | C78: 1314 | D78: 183435000
B79: 信州大学 | C79: 1038 | D79: 37096000
B80: 大阪公立大学 | C80: 975 | D80: 9345000
B81: 筑波大学 | C81: 967 | D81: 36213000
B82: 広島大学 | C82: 919 | D82: 34166000
B83: 千葉大学 | C83: 916 | D83: 16779000
B84: 慶應義塾大学 | C84: 869 | D84: 86996000
B85: 山口大学 | C85: 756 | D85: 29295000
B86: 東京理科大学 | C86: 698 | D86: 23087000
B87: 東京農工大学 | C87: 671 | D87: 60497000
B88: 早稲田大学 | C88: 671 | D88: 27622000
B89: 神戸大学 | C89: 668 | D89: 33659000
B90: 岡山大学 | C90: 624 | D90: 24747000
B91: 名古屋工業大学 | C91: 618 | D91: 32295000
B92: 九州工業大学 | C92: 591 | D92: 8115000
B93: 群馬大学 | C93: 563 | D93: 3087000
B94: 横浜国立大学 | C94: 553 | D94: 15639000
B95: 静岡大学 | C95: 543 | D95: 4244000
B96: 熊本大学 | C96: 539 | D96: 28442000
B97: 近畿大学 | C97: 507 | D97: 22970000
B98: 鹿児島大学 | C98: 475 | D98: 16446000
B99: 山梨大学 | C99: 473 | D99: 8206000
B100: 香川大学 | C100: 469 | D100: 19447000
B101: 長岡技術科学大学 | C101: 465 | D101: 3690000
B102: 東京医科歯科大学 | C102: 461 | D102: 28044000
B103: 東京都立大学 | C103: 447 | D103: 2416000
B104: 関西大学 | C104: 445 | D104: 3261000
B105: 三重大学 | C105: 443 | D105: 28808000
B106: 豊橋技術科学大学 | C106: 435 | D106: 6864000
B107: 電気通信大学 | C107: 421 | D107: 7030000
B108: 鳥取大学 | C108: 405 | D108: 137372000
B109: 金沢大学 | C109: 391 | D109: 18050000
B110: 徳島大学 | C110: 390 | D110: 20264000
B111: 奈良先端科学技術大学院大学 | C111: 382 | D111: 39711000
B112: 新潟大学 | C112: 373 | D112: 9369000
B113: 山形大学 | C113: 363 | D113: 2866000
B114: 北里大学 | C114: 346 | D114: 66133000
B115: 立命館大学 | C115: 330 | D115: 9311000
B116: 富山大学 | C116: 328 | D116: 10861000
B117: 埼玉大学 | C117: 320 | D117: 3578000
B118: 同志社大学 | C118: 317 | D118: 4884000
B119: 高知大学 | C119: 314 | D119: 20578000
B120: 弘前大学 | C120: 294 | D120: 8072000
B121: 日本大学 | C121: 283 | D121: 36278000
B122: 兵庫県立大学 | C122: 279 | D122: 1051000
B123: 名城大学 | C123: 276 | D123: 28093000
B124: 岐阜大学 | C124: 274 | D124: 10679000
B125: 横浜市立大学 | C125: 260 | D125: 37933000
B126: 札幌医科大学 | C126: 258 | D126: 19373000
B127: 京都府立医科大学 | C127: 258 | D127: 12241000
B128: 佐賀大学 | C128: 257 | D128: 8596000
B129: 京都工芸繊維大学 | C129: 252 | D129: 368000
B130: 福井大学 | C130: 245 | D130: 8596000
B131: 宮崎大学 | C131: 244 | D131: 1648000
B132: 神奈川大学 | C132: 243 | D132: 5675000
B133: 東海大学 | C133: 232 | D133: 1120000
B134: 岩手大学 | C134: 227 | D134: 6652000
B135: 秋田大学 | C135: 224 | D135: 1688000
B136: 愛媛大学 | C136: 203 | D136: 26470000
B137: 長崎大学 | C137: 203 | D137: 33702000
B138: 東京海洋大学 | C138: 199 | D138: 4576000
B139: 北陸先端科学技術大学院大学 | C139: 192 | D139: 1763000
B140: 沖縄科学技術大学院大学 | C140: 190 | D140: 1460000
B141: 福岡大学 | C141: 189 | D141: 875000
B142: 関西学院大学 | C142: 186 | D142: 25624000
B143: 東京女子医科大学 | C143: 185 | D143: 2817000
B144: 宇都宮大学 | C144: 179 | D144: 1976000
B145: 中央大学 | C145: 170 | D145: 3131000
B146: 上智大学 | C146: 167 | D146: 0
B147: 高知工科大学 | C147: 167 | D147: 45000
B148: 茨城大学 | C148: 155 | D148: 1545000
B149: 金沢工業大学 | C149: 149 | D149: 2786000
B150: 大分大学 | C150: 148 | D150: 4155000
B151: 千葉工業大学 | C151: 147 | D151: 2134000
B152: 浜松医科大学 | C152: 146 | D152: 1429000
B153: 順天堂大学 | C153: 142 | D153: 4289000
B154: 滋賀医科大学 | C154: 141 | D154: 5567000
B155: 中部大学 | C155: 135 | D155: 675000
B156: 島根大学 | C156: 134 | D156: 1585000
B157: 名古屋市立大学 | C157: 124 | D157: 17845000
B158: 豊田工業大学 | C158: 123 | D158: 50000
B159: 芝浦工業大学 | C159: 120 | D159: 441000
B160: 東京電機大学 | C160: 116 | D160: 5765000
B161: 琉球大学 | C161: 109 | D161: 955000
B162: 久留米大学 | C162: 107 | D162: 3189000
B163: 埼玉医科大学 | C163: 98 | D163: 9046000
B164: 富山県立大学 | C164: 94 | D164: 1681000
B165: 藤田医科大学 | C165: 94 | D165: 0
B166: 明治大学 | C166: 92 | D166: 4567000
B167: 北見工業大学 | C167: 89 | D167: 729000
B168: 静岡県立大学 | C168: 88 | D168: 0
B169: 和歌山大学 | C169: 88 | D169: 4976000
B170: 関東学院大学 | C170: 85 | D170: 10815000
B171: 神奈川工科大学 | C171: 77 | D171: 356000
B172: 帝京大学 | C172: 75 | D172: 3411000
B173: 昭和大学 | C173: 73 | D173: 36130000
B174: 奈良県立医科大学 | C174: 72 | D174: 643000
B175: 福岡工業大学 | C175: 70 | D175: 200000
B176: 法政大学 | C176: 68 | D176: 1375000
B177: 東亜大学 | C177: 67 | D177: 0
B178: 兵庫医科大学 | C178: 65 | D178: 909000
B179: 聖マリアンナ医科大学 | C179: 61 | D179: 9075000
B180: 室蘭工業大学 | C180: 60 | D180: 14000
B181: 秋田県立大学 | C181: 60 | D181: 1505000
B182: 福島大学 | C182: 60 | D182: 48000
B183: 日本医科大学 | C183: 60 | D183: 5693000
B184: 岡山理科大学 | C184: 58 | D184: 2541000
B185: 産業医科大学 | C185: 57 | D185: 2114000
B186: 東洋大学 | C186: 56 | D186: 1565000
B187: 帯広畜産大学 | C187: 55 | D187: 2369000
B188: 会津大学 | C188: 55 | D188: 220000
B189: 立教大学 | C189: 55 | D189: 18000
B190: 北九州市立大学 | C190: 55 | D190: 9601000
B191: 旭川医科大学 | C191: 53 | D191: 11185000
B192: お茶の水女子大学 | C192: 53 | D192: 0
B193: 工学院大学 | C193: 53 | D193: 1312000
B194: 大阪工業大学 | C194: 53 | D194: 0
B195: 玉川大学 | C195: 50 | D195: 335000
B196: 関西医科大学 | C196: 50 | D196: 3255000
B197: 熊本保健科学大学 | C197: 49 | D197: 7000
B198: 東京農業大学 | C198: 48 | D198: 0
B199: 甲南大学 | C199: 47 | D199: 1103000
B200: 東邦大学 | C200: 46 | D200: 1329000
B201: 龍谷大学 | C201: 44 | D201: 930000
B202: 広島市立大学 | C202: 44 | D202: 84000
B203: 大同大学 | C203: 42 | D203: 0
B204: 麻布大学 | C204: 39 | D204: 2179000
B205: 岩手県立大学 | C205: 37 | D205: 54000
B206: 東京薬科大学 | C206: 35 | D206: 2478000
B207: 青山学院大学 | C207: 34 | D207: 0
B208: 岩手医科大学 | C208: 33 | D208: 15000
... 643 more rows

Sheet 北見工業大学 (hidden)
A1: 国立 | C1: 北見工業大学 | X1: 大学全体の経営理念における産学官連携活動の取組方針 | CY1: 103 | CZ1: 104 | DA1: 105 | DB1: 106 | DC1: 107 | DD1: 108 | DE1: 109 | DF1: 110 | DG1: 111 | DH1: 112 | DI1: 113 | DJ1: 114 | DK1: 115 | DL1: 116 | DM1: 117 | DN1: 118 | DO1: 119 | DP1: 120 | DQ1: 121 | DR1: 122 | DS1: 123 | DT1: 124 | DU1: 125 | DV1: 126 | DW1: 127 | DX1: 128 | DY1: 129
X2: 本学は、大学の使命である教育、研究および社会貢献に取り組み社会の発展に寄与します。また、産学官連携が社会との相互作用の原点であることを強く認識し、地域における知の拠点としての役割を果たします。
C3: (北海道) | BC3: ＵＲＡ | BO3: URA当たりの研究者数 | CB3: 戦略的産学官連携経費
BC4: 実務担当者数 | BI4: 2 | BN4: 名 | BO4: =IFERROR(K29/BI4,"") -> 68 | BX4: 名 | CB4: 戦略的産学官連携経費の設定 | CP4: 有 | CT4: 無 | CZ4: ある | DA4: 相談窓口
CB5: 戦略的産学官連携経費の費目 | CZ5: ない | DA5: 支援ファンド
A6: 基 礎 情 報 | BC6: 各種規程類の整備状況 | CB6: 戦略的産学官連携経費の直接経費に対する割合 | CZ6: ある | DA6: インキュベーション施設 | DI6: ◎ | DJ6: 産学官連携ポリシー
BC7: 産学官連携ポリシー | BN7: 職務発明規程（教職員のみ対象） | CZ7: ある | DA7: 知的財産戦略 | DI7: ◎ | DJ7: 知的財産ポリシー
B8: 大学の得意分野とその具体例 | BC8: 知的財産ポリシー | BN8: 職務発明規程（教職員、学生対象） | CB8: 人件費の企業負担 | DI8: ◎ | DJ8: 共同研究取扱規程
B9: ・地域の自治体・公組織との連携 ・貝殻粉末を用いた粒状酸土矯正剤及びその製造方法（特許第6781426号） ・内閣府 戦略的イノベーションプログラム(SIP) 第２期(H30～R4) 「スマートバイオ産業・農業基盤技術」参画 ・農林水産省 令和３年度 スマート農業実証プロジェクト(R3.4～R4.3) 「高収益作物普及をめざした 5Gスマートトラクターおよびドローン画像認識技術による中山間地超省力化・リモート化推進実証」 参画 ・農林水産研究推進事業委託プロジェクト研究―現場ニーズ対応型プロジェクト(R2.4～) 「大規模飼料生産体系における収穫作業の人手不足に対応する技術開発」参画 | AA9: 科研費 （千円） | AL9: その他政府系資金 (千円) | AS9: その他団体からの資金 (千円) | BC9: 共同研究取扱規程 | BN9: 発明補償関係規程（教職員のみ対象） | CB9: 教員人件費の企業負担に関する規程や制度 | CP9: 有 | CT9: 無 | DI9: ◎ | DJ9: 受託研究取扱規程
BC10: 受託研究取扱規程 | BN10: 発明補償関係規程（教職員、学生対象） | CB10: 教員人件費の企業負担の費目 | DI10: ◎ | DJ10: 研究成果有体物取扱規程
AA11: 111575 | AL11: 131045 | AS11: 53450 | BC11: 研究成果有体物取扱規程 | BN11: 守秘義務に係る規程（教職員のみ対象） | CB11: 学生人件費の企業負担に関する規程や制度 | CP11: 有 | CT11: 無 | DI11: × | DJ11: 営業秘密管理に関する規程
BC12: 営業秘密管理に関する規程 | BN12: 守秘義務に係る規程（教職員、学生対象） | CB12: 学生人件費の企業負担の費目 | DI12: ◎ | DJ12: 株式の取扱等規程、ポリシー
AA13: 共同研究における間接経費割合 | AN13: 株式の保有 | AT13: 新株予約権の保有 | BC13: 株式の取扱等規程、ポリシー | BN13: 学術指導に関する規程 | DA13: × | DB13: 株式 | DI13: × | DJ13: 職務発明規程（教職員のみ対象）
AA14: 0.3 | AN14: 有 | AQ14: 無 | AT14: 有 | AW14: 無 | BK14: ※各種規定類を整備している場合は、赤色で表示されます。 | CB14: 特別試験研究費税額控除制度 | DA14: × | DB14: 新株予約権 | DI14: ◎ | DJ14: 職務発明規程（教職員、学生対象）
B15: 産学官連携活動において今後重点化したい事項 | CB15: 特別試験研究費税額控除制度の活用 | CP15: 有 | CT15: 無 | DI15: × | DJ15: 発明補償関係規程（教職員のみ対象）
B16: ・産業振興に向けたさらなる地域との連携 ・地域との連携による人材の育成と定着 ・一次産業に関連する知識・情報・技術のオホーツク地域における集積拠点の形成 | AA16: 共同研究 | AG16: 2021年度 | AO16: 2022年度 | AW16: 順位※ | BC16: クロスアポイントメントの実績 | BK16: 大学等 | BN16: 公的機関 | BQ16: 民間企業 | BU16: その他機関 | DI16: ◎ | DJ16: 発明補償関係規程（教職員、学生対象）
AG17: 受入額（千円） | AL17: 件数 | AO17: 受入額（千円） | AT17: 件数 | BH17: 受入数(名) | BK17: 0 | BN17: 0 | BQ17: 2 | BU17: 0 | DB17: 順位 | DI17: × | DJ17: 守秘義務に係る規程（教職員のみ対象）
AA18: 全体 | AG18: 110303 | AL18: 102 | AO18: 107743 | AT18: 115 | AW18: =IF(DB18<50,DB18,"") ->  | AY18: 位 | BH18: 派遣数(名) | BK18: 1 | BN18: 0 | BQ18: 0 | BU18: 0 | DB18: 106 | DI18: × | DJ18: 守秘義務に係る規程（教職員、学生対象）
AB19: 民間企業 のみ | AG19: 63815 | AL19: 71 | AO19: 54288 | AT19: 72 | AW19: =IF(DB19<50,DB19,"") ->  | AY19: 位 | DB19: 125 | DI19: × | DJ19: 学術指導に係る規定
AC20: 大企業 | AG20: 51612 | AL20: 45 | AO20: 41100 | AT20: 41 | AY20: 位 | BB20: ■組織的産学官連携活動の取組事例 | DB20: 123 | DI20: ない | DJ20: 戦略的産学官連携経費の設定
AC21: 中小企業 | AG21: 12203 | AL21: 26 | AO21: 13188 | AT21: 31 | AY21: 位 | DB21: 125 | DI21: ない | DJ21: 教員人件費の企業負担に関する規程や制度
AK22: ※順位は2022年度の受入額を比較したものです。 | DI22: ない | DJ22: 学生人件費の企業負担に関する規程や制度
AK23: ※順位は50位までを記載。51位以下の場合は空欄となります。 | DB23: 0 | DC23: 24 | DI23: ある | DJ23: 特別試験研究費税額控除制度の活用
DB24: ～100万 | DC24: 21
DB25: ～300万 | DC25: 25
DB26: ～500万 | DC26: 2
C27: 産学官連携本部等組織名 | K27: 社会連携推進センター | DB27: ～1000万
C28: 産学官連携本部等URL | K28: https://www.crc.kitami-it.ac.jp/ | DB28: ～5000万
C29: 研究者数 | K29: 136 | O29: 名 | DB29: ～1億 | DJ29: 共同研究等の企画・提案
C30: 実務担当者数 | K30: 7 | O30: 名 | DB30: 1億以上 | DJ30: 契約書での成果目標、達成時の明記
C31: 実務者当たり研究者数 | K31: =IFERROR(K29/K30,"") -> 19.42857143 | O31: 名 | DJ31: 共同研究契約の締結/判断（契約権限の集中）
C32: 専門家の配置 | I32: 弁護士 | L32: 弁理士 | O32: 税理士 | R32: 公認会計士 | V32: その他 | DJ32: 共同研究の進捗管理とフィードバック
L33: ※専門家を配置している場合は、赤色で表示されます。 | DJ33: 企業ニーズに適応した技術移転・事業化提案
AA34: 受託研究 | AG34: 2021年度 | AO34: 2022年度 | AW34: 順位※ | DJ34: 共同研究等の企画・提案
AG35: 受入額（千円） | AL35: 件数 | AO35: 受入額（千円） | AT35: 件数 | DB35: 順位 | DJ35: 契約書での成果目標、達成時の明記
AA36: 全体 | AG36: 113622 | AL36: 19 | AO36: 33192 | AT36: 14 | AW36: =IF(DB36<50,DB36,"") ->  | AY36: 位 | DB36: 206 | DJ36: 共同研究契約の締結/判断（契約権限の集中）
AA37: 民間企業 のみ | AG37: 260 | AL37: 1 | AO37: 2938 | AT37: 4 | AW37: =IF(DB37<50,DB37,"") ->  | AY37: 位 | DB37: 229 | DJ37: 共同研究の進捗管理とフィードバック
C38: 産学官連携本部が関与した共同研究 | P38: 0 | T38: 件 | AA38: 大企業 | AG38: 260 | AL38: 1 | AO38: 1938 | AT38: 3 | AY38: 位 | DB38: 217 | DJ38: 企業ニーズに適応した技術移転・事業化提案
D39: 内、マッチングを行い、契約締結した件数 | P39: 0 | T39: 件 | AA39: 中小企業 | AG39: 0 | AL39: 0 | AO39: 1000 | AT39: 1 | AY39: 位 | DB39: 215 | DJ39: 共同研究等の企画・提案
I40: ※1,000万円以上の共同研究 | AK40: ※順位は2022年度の受入額を比較したもの | DB40: 弁護士 | DG40: 0 | DJ40: 契約書での成果目標、達成時の明記
AK41: ※順位は50位までを記載。51位以下の場合は空欄となります。 | BB41: ■産学官連携活動の主な実用化事例 | DB41: 弁理士 | DG41: ～100万 | DH41: 2 | DJ41: 共同研究契約の締結/判断（契約権限の集中）
C42: 組織対組織による包括連携契約の締結数 | P42: 0 | T42: 件 | DB42: 税理士 | DG42: ～300万 | DH42: 2 | DJ42: 共同研究の進捗管理とフィードバック
D43: 内、1,000万円以上の実績がある相手方数 | P43: 0 | T43: 件 | DB43: 公認会計士 | DG43: ～500万 | DJ43: 企業ニーズに適応した技術移転・事業化提案
DA44: ○ | DB44: その他 | DG44: ～1000万
C45: 寄附講座・寄附研究部門の受入件数 | P45: 0 | V45: 件 | DG45: ～5000万
C46: 寄附講座・寄附研究部門の受入金額（千円） | P46: 0 | DG46: ～1億
C47: 共同研究講座・共同研究部門の受入件数 | P47: 2 | V47: 件 | DG47: 1億以上
C48: 共同研究講座・共同研究部門の受入金額（千円） | P48: 4100
CZ51: 大学 | DA51: 大学・発明者・未設定
C52: 職務発明の帰属 | I52: 大学 | M52: 発明者 | Q52: 未設定 | DA52: 職務発明
AD53: 特許権実施等件数 | AL53: 11 | AQ53: 件 | AS53: 実施等件数当たり | DA53: 不実施
I54: 国内 | K54: 外国 | M54: PCT | O54: EPC | AD54: 特許権実施等収入（千円） | AL54: 729 | AS54: =IF(OR(AL53="",AL54=""),"",IFERROR(AL54/AL53,"")) -> 66.27272727 | CZ54: 729000 | DA54: 特許権収入
C55: 特許出願件数（件） | I55: 16 | K55: 0 | M55: 0 | O55: 0
C56: 特許保有件数（件） | I56: 65 | K56: 24
C61: 大学発ベンチャー数 | J61: 4 | O61: 社
C62: Exit件数（IPO） | J62: 0 | O62: 社 | P62: Exit件数（M&A） | W62: 1 | Z62: 社
C63: 相談窓口 | K63: 支援ファンド | S63: インキュベーション施設
C64: 有 | G64: 無 | K64: 有 | O64: 無 | S64: 有 | W64: 無
C65: 知的財産戦略方針 | K65: 支援総額（千円） | S65: 面積 | W65: 80 | Z65: m2
C66: 有 | G66: 無 | K66: 0 | S66: 契約企業数 | W66: 0 | Z66: 社
CY69: 103 | CZ69: 104 | DA69: 105 | DB69: 106 | DC69: 107 | DD69: 108 | DE69: 109 | DF69: 110 | DG69: 111 | DH69: 112 | DI69: 113 | DJ69: 114 | DK69: 115 | DL69: 116 | DM69: 117 | DN69: 118 | DO69: 119 | DP69: 120 | DQ69: 121 | DR69: 122 | DS69: 123 | DT69: 124 | DU69: 125
B70: 東京大学 | C70: 4924 | D70: 613188710 | I70: 148
B71: 東京大学 | C71: 4924 | D71: 613188710 | K71: 89
B72: 東北大学 | C72: 3805 | D72: 208066000
B73: 大阪大学 | C73: 3557 | D73: 414288000
B74: 京都大学 | C74: 3026 | D74: 1119118168
B75: 東京工業大学 | C75: 2084 | D75: 99801000
B76: 九州大学 | C76: 1797 | D76: 164182000
B77: 名古屋大学 | C77: 1604 | D77: 90749000
B78: 北海道大学 | C78: 1314 | D78: 183435000
B79: 信州大学 | C79: 1038 | D79: 37096000
B80: 大阪公立大学 | C80: 975 | D80: 9345000
B81: 筑波大学 | C81: 967 | D81: 36213000
B82: 広島大学 | C82: 919 | D82: 34166000
B83: 千葉大学 | C83: 916 | D83: 16779000
B84: 慶應義塾大学 | C84: 869 | D84: 86996000
B85: 山口大学 | C85: 756 | D85: 29295000
B86: 東京理科大学 | C86: 698 | D86: 23087000
B87: 東京農工大学 | C87: 671 | D87: 60497000
B88: 早稲田大学 | C88: 671 | D88: 27622000
B89: 神戸大学 | C89: 668 | D89: 33659000
B90: 岡山大学 | C90: 624 | D90: 24747000
B91: 名古屋工業大学 | C91: 618 | D91: 32295000
B92: 九州工業大学 | C92: 591 | D92: 8115000
B93: 群馬大学 | C93: 563 | D93: 3087000
B94: 横浜国立大学 | C94: 553 | D94: 15639000
B95: 静岡大学 | C95: 543 | D95: 4244000
B96: 熊本大学 | C96: 539 | D96: 28442000
B97: 近畿大学 | C97: 507 | D97: 22970000
B98: 鹿児島大学 | C98: 475 | D98: 16446000
B99: 山梨大学 | C99: 473 | D99: 8206000
B100: 香川大学 | C100: 469 | D100: 19447000
B101: 長岡技術科学大学 | C101: 465 | D101: 3690000
B102: 東京医科歯科大学 | C102: 461 | D102: 28044000
B103: 東京都立大学 | C103: 447 | D103: 2416000
B104: 関西大学 | C104: 445 | D104: 3261000
B105: 三重大学 | C105: 443 | D105: 28808000
B106: 豊橋技術科学大学 | C106: 435 | D106: 6864000
B107: 電気通信大学 | C107: 421 | D107: 7030000
B108: 鳥取大学 | C108: 405 | D108: 137372000
B109: 金沢大学 | C109: 391 | D109: 18050000
B110: 徳島大学 | C110: 390 | D110: 20264000
B111: 奈良先端科学技術大学院大学 | C111: 382 | D111: 39711000
B112: 新潟大学 | C112: 373 | D112: 9369000
B113: 山形大学 | C113: 363 | D113: 2866000
B114: 北里大学 | C114: 346 | D114: 66133000
B115: 立命館大学 | C115: 330 | D115: 9311000
B116: 富山大学 | C116: 328 | D116: 10861000
B117: 埼玉大学 | C117: 320 | D117: 3578000
B118: 同志社大学 | C118: 317 | D118: 4884000
B119: 高知大学 | C119: 314 | D119: 20578000
B120: 弘前大学 | C120: 294 | D120: 8072000
B121: 日本大学 | C121: 283 | D121: 36278000
B122: 兵庫県立大学 | C122: 279 | D122: 1051000
B123: 名城大学 | C123: 276 | D123: 28093000
B124: 岐阜大学 | C124: 274 | D124: 10679000
B125: 横浜市立大学 | C125: 260 | D125: 37933000
B126: 札幌医科大学 | C126: 258 | D126: 19373000
B127: 京都府立医科大学 | C127: 258 | D127: 12241000
B128: 佐賀大学 | C128: 257 | D128: 8596000
B129: 京都工芸繊維大学 | C129: 252 | D129: 368000
B130: 福井大学 | C130: 245 | D130: 8596000
B131: 宮崎大学 | C131: 244 | D131: 1648000
B132: 神奈川大学 | C132: 243 | D132: 5675000
B133: 東海大学 | C133: 232 | D133: 1120000
B134: 岩手大学 | C134: 227 | D134: 6652000
B135: 秋田大学 | C135: 224 | D135: 1688000
B136: 愛媛大学 | C136: 203 | D136: 26470000
B137: 長崎大学 | C137: 203 | D137: 33702000
B138: 東京海洋大学 | C138: 199 | D138: 4576000
B139: 北陸先端科学技術大学院大学 | C139: 192 | D139: 1763000
B140: 沖縄科学技術大学院大学 | C140: 190 | D140: 1460000
B141: 福岡大学 | C141: 189 | D141: 875000
B142: 関西学院大学 | C142: 186 | D142: 25624000
B143: 東京女子医科大学 | C143: 185 | D143: 2817000
B144: 宇都宮大学 | C144: 179 | D144: 1976000
B145: 中央大学 | C145: 170 | D145: 3131000
B146: 上智大学 | C146: 167 | D146: 0
B147: 高知工科大学 | C147: 167 | D147: 45000
B148: 茨城大学 | C148: 155 | D148: 1545000
B149: 金沢工業大学 | C149: 149 | D149: 2786000
B150: 大分大学 | C150: 148 | D150: 4155000
B151: 千葉工業大学 | C151: 147 | D151: 2134000
B152: 浜松医科大学 | C152: 146 | D152: 1429000
B153: 順天堂大学 | C153: 142 | D153: 4289000
B154: 滋賀医科大学 | C154: 141 | D154: 5567000
B155: 中部大学 | C155: 135 | D155: 675000
B156: 島根大学 | C156: 134 | D156: 1585000
B157: 名古屋市立大学 | C157: 124 | D157: 17845000
B158: 豊田工業大学 | C158: 123 | D158: 50000
B159: 芝浦工業大学 | C159: 120 | D159: 441000
B160: 東京電機大学 | C160: 116 | D160: 5765000
B161: 琉球大学 | C161: 109 | D161: 955000
B162: 久留米大学 | C162: 107 | D162: 3189000
B163: 埼玉医科大学 | C163: 98 | D163: 9046000
B164: 富山県立大学 | C164: 94 | D164: 1681000
B165: 藤田医科大学 | C165: 94 | D165: 0
B166: 明治大学 | C166: 92 | D166: 4567000
B167: 北見工業大学 | C167: 89 | D167: 729000
B168: 静岡県立大学 | C168: 88 | D168: 0
B169: 和歌山大学 | C169: 88 | D169: 4976000
B170: 関東学院大学 | C170: 85 | D170: 10815000
B171: 神奈川工科大学 | C171: 77 | D171: 356000
B172: 帝京大学 | C172: 75 | D172: 3411000
B173: 昭和大学 | C173: 73 | D173: 36130000
B174: 奈良県立医科大学 | C174: 72 | D174: 643000
B175: 福岡工業大学 | C175: 70 | D175: 200000
B176: 法政大学 | C176: 68 | D176: 1375000
B177: 東亜大学 | C177: 67 | D177: 0
B178: 兵庫医科大学 | C178: 65 | D178: 909000
B179: 聖マリアンナ医科大学 | C179: 61 | D179: 9075000
B180: 室蘭工業大学 | C180: 60 | D180: 14000
B181: 秋田県立大学 | C181: 60 | D181: 1505000
B182: 福島大学 | C182: 60 | D182: 48000
B183: 日本医科大学 | C183: 60 | D183: 5693000
B184: 岡山理科大学 | C184: 58 | D184: 2541000
B185: 産業医科大学 | C185: 57 | D185: 2114000
B186: 東洋大学 | C186: 56 | D186: 1565000
B187: 帯広畜産大学 | C187: 55 | D187: 2369000
B188: 会津大学 | C188: 55 | D188: 220000
B189: 立教大学 | C189: 55 | D189: 18000
B190: 北九州市立大学 | C190: 55 | D190: 9601000
B191: 旭川医科大学 | C191: 53 | D191: 11185000
B192: お茶の水女子大学 | C192: 53 | D192: 0
B193: 工学院大学 | C193: 53 | D193: 1312000
B194: 大阪工業大学 | C194: 53 | D194: 0
B195: 玉川大学 | C195: 50 | D195: 335000
B196: 関西医科大学 | C196: 50 | D196: 3255000
B197: 熊本保健科学大学 | C197: 49 | D197: 7000
B198: 東京農業大学 | C198: 48 | D198: 0
B199: 甲南大学 | C199: 47 | D199: 1103000
B200: 東邦大学 | C200: 46 | D200: 1329000
B201: 龍谷大学 | C201: 44 | D201: 930000
B202: 広島市立大学 | C202: 44 | D202: 84000
B203: 大同大学 | C203: 42 | D203: 0
B204: 麻布大学 | C204: 39 | D204: 2179000
B205: 岩手県立大学 | C205: 37 | D205: 54000
B206: 東京薬科大学 | C206: 35 | D206: 2478000
B207: 青山学院大学 | C207: 34 | D207: 0
B208: 岩手医科大学 | C208: 33 | D208: 15000
... 643 more rows

Sheet 旭川医科大学 (hidden)
A1: 国立 | C1: 旭川医科大学 | X1: 大学全体の経営理念における産学官連携活動の取組方針 | CY1: 103 | CZ1: 104 | DA1: 105 | DB1: 106 | DC1: 107 | DD1: 108 | DE1: 109 | DF1: 110 | DG1: 111 | DH1: 112 | DI1: 113 | DJ1: 114 | DK1: 115 | DL1: 116 | DM1: 117 | DN1: 118 | DO1: 119 | DP1: 120 | DQ1: 121 | DR1: 122 | DS1: 123 | DT1: 124 | DU1: 125 | DV1: 126 | DW1: 127 | DX1: 128 | DY1: 129
C3: (北海道) | BC3: ＵＲＡ | BO3: URA当たりの研究者数 | CB3: 戦略的産学官連携経費
BC4: 実務担当者数 | BI4: 0 | BN4: 名 | BO4: =IFERROR(K29/BI4,"") ->  | BX4: 名 | CB4: 戦略的産学官連携経費の設定 | CP4: 有 | CT4: 無 | CZ4: ない | DA4: 相談窓口
CB5: 戦略的産学官連携経費の費目 | CZ5: ない | DA5: 支援ファンド
A6: 基 礎 情 報 | BC6: 各種規程類の整備状況 | CB6: 戦略的産学官連携経費の直接経費に対する割合 | CZ6: ない | DA6: インキュベーション施設 | DI6: × | DJ6: 産学官連携ポリシー
BC7: 産学官連携ポリシー | BN7: 職務発明規程（教職員のみ対象） | CZ7: ある | DA7: 知的財産戦略 | DI7: ◎ | DJ7: 知的財産ポリシー
B8: 大学の得意分野とその具体例 | BC8: 知的財産ポリシー | BN8: 職務発明規程（教職員、学生対象） | CB8: 人件費の企業負担 | DI8: ◎ | DJ8: 共同研究取扱規程
AA9: 科研費 （千円） | AL9: その他政府系資金 (千円) | AS9: その他団体からの資金 (千円) | BC9: 共同研究取扱規程 | BN9: 発明補償関係規程（教職員のみ対象） | CB9: 教員人件費の企業負担に関する規程や制度 | CP9: 有 | CT9: 無 | DI9: ◎ | DJ9: 受託研究取扱規程
BC10: 受託研究取扱規程 | BN10: 発明補償関係規程（教職員、学生対象） | CB10: 教員人件費の企業負担の費目 | DI10: ◎ | DJ10: 研究成果有体物取扱規程
AA11: 305380 | AL11: 130899 | AS11: 53000 | BC11: 研究成果有体物取扱規程 | BN11: 守秘義務に係る規程（教職員のみ対象） | CB11: 学生人件費の企業負担に関する規程や制度 | CP11: 有 | CT11: 無 | DI11: × | DJ11: 営業秘密管理に関する規程
BC12: 営業秘密管理に関する規程 | BN12: 守秘義務に係る規程（教職員、学生対象） | CB12: 学生人件費の企業負担の費目 | DI12: × | DJ12: 株式の取扱等規程、ポリシー
AA13: 共同研究における間接経費割合 | AN13: 株式の保有 | AT13: 新株予約権の保有 | BC13: 株式の取扱等規程、ポリシー | BN13: 学術指導に関する規程 | DA13: ○ | DB13: 株式 | DI13: ◎ | DJ13: 職務発明規程（教職員のみ対象）
AA14: 0.1 | AN14: 有 | AQ14: 無 | AT14: 有 | AW14: 無 | BK14: ※各種規定類を整備している場合は、赤色で表示されます。 | CB14: 特別試験研究費税額控除制度 | DA14: × | DB14: 新株予約権 | DI14: × | DJ14: 職務発明規程（教職員、学生対象）
B15: 産学官連携活動において今後重点化したい事項 | CB15: 特別試験研究費税額控除制度の活用 | CP15: 有 | CT15: 無 | DI15: ◎ | DJ15: 発明補償関係規程（教職員のみ対象）
AA16: 共同研究 | AG16: 2021年度 | AO16: 2022年度 | AW16: 順位※ | BC16: クロスアポイントメントの実績 | BK16: 大学等 | BN16: 公的機関 | BQ16: 民間企業 | BU16: その他機関 | DI16: × | DJ16: 発明補償関係規程（教職員、学生対象）
AG17: 受入額（千円） | AL17: 件数 | AO17: 受入額（千円） | AT17: 件数 | BH17: 受入数(名) | BK17: 0 | BN17: 0 | BQ17: 0 | BU17: 0 | DB17: 順位 | DI17: ◎ | DJ17: 守秘義務に係る規程（教職員のみ対象）
AA18: 全体 | AG18: 65095 | AL18: 25 | AO18: 119483 | AT18: 26 | AW18: =IF(DB18<50,DB18,"") ->  | AY18: 位 | BH18: 派遣数(名) | BK18: 0 | BN18: 0 | BQ18: 0 | BU18: 0 | DB18: 99 | DI18: × | DJ18: 守秘義務に係る規程（教職員、学生対象）
AB19: 民間企業 のみ | AG19: 61845 | AL19: 23 | AO19: 113259 | AT19: 22 | AW19: =IF(DB19<50,DB19,"") ->  | AY19: 位 | DB19: 97 | DI19: × | DJ19: 学術指導に係る規定
AC20: 大企業 | AG20: 43935 | AL20: 15 | AO20: 73768 | AT20: 14 | AY20: 位 | BB20: ■組織的産学官連携活動の取組事例 | DB20: 99 | DI20: ない | DJ20: 戦略的産学官連携経費の設定
AC21: 中小企業 | AG21: 17910 | AL21: 8 | AO21: 39491 | AT21: 8 | AY21: 位 | DB21: 81 | DI21: ない | DJ21: 教員人件費の企業負担に関する規程や制度
AK22: ※順位は2022年度の受入額を比較したものです。 | DI22: ない | DJ22: 学生人件費の企業負担に関する規程や制度
AK23: ※順位は50位までを記載。51位以下の場合は空欄となります。 | DB23: 0 | DC23: 10 | DI23: ない | DJ23: 特別試験研究費税額控除制度の活用
DB24: ～100万 | DC24: 2
DB25: ～300万 | DC25: 3
DB26: ～500万 | DC26: 2
C27: 産学官連携本部等組織名 | DB27: ～1000万 | DC27: 2
C28: 産学官連携本部等URL | DB28: ～5000万 | DC28: 2
C29: 研究者数 | K29: 485 | O29: 名 | DB29: ～1億 | DC29: 1 | DJ29: 共同研究等の企画・提案
C30: 実務担当者数 | K30: 1 | O30: 名 | DB30: 1億以上 | DJ30: 契約書での成果目標、達成時の明記
C31: 実務者当たり研究者数 | K31: =IFERROR(K29/K30,"") -> 485 | O31: 名 | DJ31: 共同研究契約の締結/判断（契約権限の集中）
C32: 専門家の配置 | I32: 弁護士 | L32: 弁理士 | O32: 税理士 | R32: 公認会計士 | V32: その他 | DJ32: 共同研究の進捗管理とフィードバック
L33: ※専門家を配置している場合は、赤色で表示されます。 | DJ33: 企業ニーズに適応した技術移転・事業化提案
AA34: 受託研究 | AG34: 2021年度 | AO34: 2022年度 | AW34: 順位※ | DJ34: 共同研究等の企画・提案
AG35: 受入額（千円） | AL35: 件数 | AO35: 受入額（千円） | AT35: 件数 | DB35: 順位 | DJ35: 契約書での成果目標、達成時の明記
AA36: 全体 | AG36: 36432 | AL36: 75 | AO36: 31942 | AT36: 78 | AW36: =IF(DB36<50,DB36,"") ->  | AY36: 位 | DB36: 211 | DJ36: 共同研究契約の締結/判断（契約権限の集中）
AA37: 民間企業 のみ | AG37: 13790 | AL37: 31 | AO37: 8545 | AT37: 34 | AW37: =IF(DB37<50,DB37,"") ->  | AY37: 位 | DB37: 155 | DJ37: 共同研究の進捗管理とフィードバック
C38: 産学官連携本部が関与した共同研究 | P38: 0 | T38: 件 | AA38: 大企業 | AG38: 8347 | AL38: 23 | AO38: 8380 | AT38: 28 | AY38: 位 | DB38: 133 | DJ38: 企業ニーズに適応した技術移転・事業化提案
D39: 内、マッチングを行い、契約締結した件数 | P39: 0 | T39: 件 | AA39: 中小企業 | AG39: 5443 | AL39: 8 | AO39: 165 | AT39: 6 | AY39: 位 | DB39: 300 | DJ39: 共同研究等の企画・提案
I40: ※1,000万円以上の共同研究 | AK40: ※順位は2022年度の受入額を比較したもの | DB40: 弁護士 | DG40: 0 | DH40: 23 | DJ40: 契約書での成果目標、達成時の明記
AK41: ※順位は50位までを記載。51位以下の場合は空欄となります。 | BB41: ■産学官連携活動の主な実用化事例 | DB41: 弁理士 | DG41: ～100万 | DH41: 7 | DJ41: 共同研究契約の締結/判断（契約権限の集中）
C42: 組織対組織による包括連携契約の締結数 | P42: 0 | T42: 件 | DB42: 税理士 | DG42: ～300万 | DH42: 4 | DJ42: 共同研究の進捗管理とフィードバック
D43: 内、1,000万円以上の実績がある相手方数 | P43: 0 | T43: 件 | DB43: 公認会計士 | DG43: ～500万 | DJ43: 企業ニーズに適応した技術移転・事業化提案
DB44: その他 | DG44: ～1000万
C45: 寄附講座・寄附研究部門の受入件数 | P45: 4 | V45: 件 | DG45: ～5000万
C46: 寄附講座・寄附研究部門の受入金額（千円） | P46: 61100 | DG46: ～1億
C47: 共同研究講座・共同研究部門の受入件数 | P47: 1 | V47: 件 | DG47: 1億以上
C48: 共同研究講座・共同研究部門の受入金額（千円） | P48: 18786
CZ51: 大学 | DA51: 大学・発明者・未設定
C52: 職務発明の帰属 | I52: 大学 | M52: 発明者 | Q52: 未設定 | DA52: 職務発明
AD53: 特許権実施等件数 | AL53: 7 | AQ53: 件 | AS53: 実施等件数当たり | DA53: 不実施
I54: 国内 | K54: 外国 | M54: PCT | O54: EPC | AD54: 特許権実施等収入（千円） | AL54: 11185 | AS54: =IF(OR(AL53="",AL54=""),"",IFERROR(AL54/AL53,"")) -> 1597.857143 | CZ54: 11185000 | DA54: 特許権収入
C55: 特許出願件数（件） | I55: 8 | K55: 4 | M55: 3 | O55: 0
C56: 特許保有件数（件） | I56: 26 | K56: 27
C61: 大学発ベンチャー数 | J61: 1 | O61: 社
C62: Exit件数（IPO） | J62: 0 | O62: 社 | P62: Exit件数（M&A） | W62: 0 | Z62: 社
C63: 相談窓口 | K63: 支援ファンド | S63: インキュベーション施設
C64: 有 | G64: 無 | K64: 有 | O64: 無 | S64: 有 | W64: 無
C65: 知的財産戦略方針 | K65: 支援総額（千円） | S65: 面積 | W65: 0 | Z65: m2
C66: 有 | G66: 無 | K66: 0 | S66: 契約企業数 | W66: 0 | Z66: 社
CY69: 103 | CZ69: 104 | DA69: 105 | DB69: 106 | DC69: 107 | DD69: 108 | DE69: 109 | DF69: 110 | DG69: 111 | DH69: 112 | DI69: 113 | DJ69: 114 | DK69: 115 | DL69: 116 | DM69: 117 | DN69: 118 | DO69: 119 | DP69: 120 | DQ69: 121 | DR69: 122 | DS69: 123 | DT69: 124 | DU69: 125
B70: 東京大学 | C70: 4924 | D70: 613188710 | I70: 148
B71: 東京大学 | C71: 4924 | D71: 613188710 | K71: 53
B72: 東北大学 | C72: 3805 | D72: 208066000
B73: 大阪大学 | C73: 3557 | D73: 414288000
B74: 京都大学 | C74: 3026 | D74: 1119118168
B75: 東京工業大学 | C75: 2084 | D75: 99801000
B76: 九州大学 | C76: 1797 | D76: 164182000
B77: 名古屋大学 | C77: 1604 | D77: 90749000
B78: 北海道大学 | C78: 1314 | D78: 183435000
B79: 信州大学 | C79: 1038 | D79: 37096000
B80: 大阪公立大学 | C80: 975 | D80: 9345000
B81: 筑波大学 | C81: 967 | D81: 36213000
B82: 広島大学 | C82: 919 | D82: 34166000
B83: 千葉大学 | C83: 916 | D83: 16779000
B84: 慶應義塾大学 | C84: 869 | D84: 86996000
B85: 山口大学 | C85: 756 | D85: 29295000
B86: 東京理科大学 | C86: 698 | D86: 23087000
B87: 東京農工大学 | C87: 671 | D87: 60497000
B88: 早稲田大学 | C88: 671 | D88: 27622000
B89: 神戸大学 | C89: 668 | D89: 33659000
B90: 岡山大学 | C90: 624 | D90: 24747000
B91: 名古屋工業大学 | C91: 618 | D91: 32295000
B92: 九州工業大学 | C92: 591 | D92: 8115000
B93: 群馬大学 | C93: 563 | D93: 3087000
B94: 横浜国立大学 | C94: 553 | D94: 15639000
B95: 静岡大学 | C95: 543 | D95: 4244000
B96: 熊本大学 | C96: 539 | D96: 28442000
B97: 近畿大学 | C97: 507 | D97: 22970000
B98: 鹿児島大学 | C98: 475 | D98: 16446000
B99: 山梨大学 | C99: 473 | D99: 8206000
B100: 香川大学 | C100: 469 | D100: 19447000
B101: 長岡技術科学大学 | C101: 465 | D101: 3690000
B102: 東京医科歯科大学 | C102: 461 | D102: 28044000
B103: 東京都立大学 | C103: 447 | D103: 2416000
B104: 関西大学 | C104: 445 | D104: 3261000
B105: 三重大学 | C105: 443 | D105: 28808000
B106: 豊橋技術科学大学 | C106: 435 | D106: 6864000
B107: 電気通信大学 | C107: 421 | D107: 7030000
B108: 鳥取大学 | C108: 405 | D108: 137372000
B109: 金沢大学 | C109: 391 | D109: 18050000
B110: 徳島大学 | C110: 390 | D110: 20264000
B111: 奈良先端科学技術大学院大学 | C111: 382 | D111: 39711000
B112: 新潟大学 | C112: 373 | D112: 9369000
B113: 山形大学 | C113: 363 | D113: 2866000
B114: 北里大学 | C114: 346 | D114: 66133000
B115: 立命館大学 | C115: 330 | D115: 9311000
B116: 富山大学 | C116: 328 | D116: 10861000
B117: 埼玉大学 | C117: 320 | D117: 3578000
B118: 同志社大学 | C118: 317 | D118: 4884000
B119: 高知大学 | C119: 314 | D119: 20578000
B120: 弘前大学 | C120: 294 | D120: 8072000
B121: 日本大学 | C121: 283 | D121: 36278000
B122: 兵庫県立大学 | C122: 279 | D122: 1051000
B123: 名城大学 | C123: 276 | D123: 28093000
B124: 岐阜大学 | C124: 274 | D124: 10679000
B125: 横浜市立大学 | C125: 260 | D125: 37933000
B126: 札幌医科大学 | C126: 258 | D126: 19373000
B127: 京都府立医科大学 | C127: 258 | D127: 12241000
B128: 佐賀大学 | C128: 257 | D128: 8596000
B129: 京都工芸繊維大学 | C129: 252 | D129: 368000
B130: 福井大学 | C130: 245 | D130: 8596000
B131: 宮崎大学 | C131: 244 | D131: 1648000
B132: 神奈川大学 | C132: 243 | D132: 5675000
B133: 東海大学 | C133: 232 | D133: 1120000
B134: 岩手大学 | C134: 227 | D134: 6652000
B135: 秋田大学 | C135: 224 | D135: 1688000
B136: 愛媛大学 | C136: 203 | D136: 26470000
B137: 長崎大学 | C137: 203 | D137: 33702000
B138: 東京海洋大学 | C138: 199 | D138: 4576000
B139: 北陸先端科学技術大学院大学 | C139: 192 | D139: 1763000
B140: 沖縄科学技術大学院大学 | C140: 190 | D140: 1460000
B141: 福岡大学 | C141: 189 | D141: 875000
B142: 関西学院大学 | C142: 186 | D142: 25624000
B143: 東京女子医科大学 | C143: 185 | D143: 2817000
B144: 宇都宮大学 | C144: 179 | D144: 1976000
B145: 中央大学 | C145: 170 | D145: 3131000
B146: 上智大学 | C146: 167 | D146: 0
B147: 高知工科大学 | C147: 167 | D147: 45000
B148: 茨城大学 | C148: 155 | D148: 1545000
B149: 金沢工業大学 | C149: 149 | D149: 2786000
B150: 大分大学 | C150: 148 | D150: 4155000
B151: 千葉工業大学 | C151: 147 | D151: 2134000
B152: 浜松医科大学 | C152: 146 | D152: 1429000
B153: 順天堂大学 | C153: 142 | D153: 4289000
B154: 滋賀医科大学 | C154: 141 | D154: 5567000
B155: 中部大学 | C155: 135 | D155: 675000
B156: 島根大学 | C156: 134 | D156: 1585000
B157: 名古屋市立大学 | C157: 124 | D157: 17845000
B158: 豊田工業大学 | C158: 123 | D158: 50000
B159: 芝浦工業大学 | C159: 120 | D159: 441000
B160: 東京電機大学 | C160: 116 | D160: 5765000
B161: 琉球大学 | C161: 109 | D161: 955000
B162: 久留米大学 | C162: 107 | D162: 3189000
B163: 埼玉医科大学 | C163: 98 | D163: 9046000
B164: 富山県立大学 | C164: 94 | D164: 1681000
B165: 藤田医科大学 | C165: 94 | D165: 0
B166: 明治大学 | C166: 92 | D166: 4567000
B167: 北見工業大学 | C167: 89 | D167: 729000
B168: 静岡県立大学 | C168: 88 | D168: 0
B169: 和歌山大学 | C169: 88 | D169: 4976000
B170: 関東学院大学 | C170: 85 | D170: 10815000
B171: 神奈川工科大学 | C171: 77 | D171: 356000
B172: 帝京大学 | C172: 75 | D172: 3411000
B173: 昭和大学 | C173: 73 | D173: 36130000
B174: 奈良県立医科大学 | C174: 72 | D174: 643000
B175: 福岡工業大学 | C175: 70 | D175: 200000
B176: 法政大学 | C176: 68 | D176: 1375000
B177: 東亜大学 | C177: 67 | D177: 0
B178: 兵庫医科大学 | C178: 65 | D178: 909000
B179: 聖マリアンナ医科大学 | C179: 61 | D179: 9075000
B180: 室蘭工業大学 | C180: 60 | D180: 14000
B181: 秋田県立大学 | C181: 60 | D181: 1505000
B182: 福島大学 | C182: 60 | D182: 48000
B183: 日本医科大学 | C183: 60 | D183: 5693000
B184: 岡山理科大学 | C184: 58 | D184: 2541000
B185: 産業医科大学 | C185: 57 | D185: 2114000
B186: 東洋大学 | C186: 56 | D186: 1565000
B187: 帯広畜産大学 | C187: 55 | D187: 2369000
B188: 会津大学 | C188: 55 | D188: 220000
B189: 立教大学 | C189: 55 | D189: 18000
B190: 北九州市立大学 | C190: 55 | D190: 9601000
B191: 旭川医科大学 | C191: 53 | D191: 11185000
B192: お茶の水女子大学 | C192: 53 | D192: 0
B193: 工学院大学 | C193: 53 | D193: 1312000
B194: 大阪工業大学 | C194: 53 | D194: 0
B195: 玉川大学 | C195: 50 | D195: 335000
B196: 関西医科大学 | C196: 50 | D196: 3255000
B197: 熊本保健科学大学 | C197: 49 | D197: 7000
B198: 東京農業大学 | C198: 48 | D198: 0
B199: 甲南大学 | C199: 47 | D199: 1103000
B200: 東邦大学 | C200: 46 | D200: 1329000
B201: 龍谷大学 | C201: 44 | D201: 930000
B202: 広島市立大学 | C202: 44 | D202: 84000
B203: 大同大学 | C203: 42 | D203: 0
B204: 麻布大学 | C204: 39 | D204: 2179000
B205: 岩手県立大学 | C205: 37 | D205: 54000
B206: 東京薬科大学 | C206: 35 | D206: 2478000
B207: 青山学院大学 | C207: 34 | D207: 0
B208: 岩手医科大学 | C208: 33 | D208: 15000
B209: 愛知工業大学 | C209: 32 | D209: 165000
... 642 more rows

Sheet 岩手大学 (hidden)
A1: 国立 | C1: 岩手大学 | X1: 大学全体の経営理念における産学官連携活動の取組方針 | CY1: 103 | CZ1: 104 | DA1: 105 | DB1: 106 | DC1: 107 | DD1: 108 | DE1: 109 | DF1: 110 | DG1: 111 | DH1: 112 | DI1: 113 | DJ1: 114 | DK1: 115 | DL1: 116 | DM1: 117 | DN1: 118 | DO1: 119 | DP1: 120 | DQ1: 121 | DR1: 122 | DS1: 123 | DT1: 124 | DU1: 125 | DV1: 126 | DW1: 127 | DX1: 128 | DY1: 129
X2: 地域社会に開かれた大学として、その教育研究の成果をもとに地域社会の文化の向上と国際社会の発展に貢献することを目指す。このため、地域社会との連携による新たな研究分野の創出を進める。
C3: (岩手県) | BC3: ＵＲＡ | BO3: URA当たりの研究者数 | CB3: 戦略的産学官連携経費
BC4: 実務担当者数 | BI4: 12 | BN4: 名 | BO4: =IFERROR(K29/BI4,"") -> 36.58333333 | BX4: 名 | CB4: 戦略的産学官連携経費の設定 | CP4: 有 | CT4: 無 | CZ4: ある | DA4: 相談窓口
CB5: 戦略的産学官連携経費の費目 | CZ5: ない | DA5: 支援ファンド
A6: 基 礎 情 報 | BC6: 各種規程類の整備状況 | CB6: 戦略的産学官連携経費の直接経費に対する割合 | CZ6: ある | DA6: インキュベーション施設 | DI6: ◎ | DJ6: 産学官連携ポリシー
BC7: 産学官連携ポリシー | BN7: 職務発明規程（教職員のみ対象） | CZ7: ある | DA7: 知的財産戦略 | DI7: ◎ | DJ7: 知的財産ポリシー
B8: 大学の得意分野とその具体例 | BC8: 知的財産ポリシー | BN8: 職務発明規程（教職員、学生対象） | CB8: 人件費の企業負担 | DI8: ◎ | DJ8: 共同研究取扱規程
B9: 数々の実績のあるINS等産学官金ネットワークを基盤に、特徴的な研究シーズを活かした産学官連携を実施 ・次世代アグリイノベーション ・パルスパワーによる植物等の革新的機能性制御技術 ・分子接合技術によるエレクトロニクス実装技術 等 | AA9: 科研費 （千円） | AL9: その他政府系資金 (千円) | AS9: その他団体からの資金 (千円) | BC9: 共同研究取扱規程 | BN9: 発明補償関係規程（教職員のみ対象） | CB9: 教員人件費の企業負担に関する規程や制度 | CP9: 有 | CT9: 無 | DI9: ◎ | DJ9: 受託研究取扱規程
BC10: 受託研究取扱規程 | BN10: 発明補償関係規程（教職員、学生対象） | CB10: 教員人件費の企業負担の費目 | DI10: ◎ | DJ10: 研究成果有体物取扱規程
AA11: 375747 | AL11: 37952 | AS11: 16164 | BC11: 研究成果有体物取扱規程 | BN11: 守秘義務に係る規程（教職員のみ対象） | CB11: 学生人件費の企業負担に関する規程や制度 | CP11: 有 | CT11: 無 | DI11: ◎ | DJ11: 営業秘密管理に関する規程
BC12: 営業秘密管理に関する規程 | BN12: 守秘義務に係る規程（教職員、学生対象） | CB12: 学生人件費の企業負担の費目 | DI12: ◎ | DJ12: 株式の取扱等規程、ポリシー
AA13: 共同研究における間接経費割合 | AN13: 株式の保有 | AT13: 新株予約権の保有 | BC13: 株式の取扱等規程、ポリシー | BN13: 学術指導に関する規程 | DA13: × | DB13: 株式 | DI13: ◎ | DJ13: 職務発明規程（教職員のみ対象）
AA14: 0.3 | AN14: 有 | AQ14: 無 | AT14: 有 | AW14: 無 | BK14: ※各種規定類を整備している場合は、赤色で表示されます。 | CB14: 特別試験研究費税額控除制度 | DA14: ○ | DB14: 新株予約権 | DI14: × | DJ14: 職務発明規程（教職員、学生対象）
B15: 産学官連携活動において今後重点化したい事項 | CB15: 特別試験研究費税額控除制度の活用 | CP15: 有 | CT15: 無 | DI15: ◎ | DJ15: 発明補償関係規程（教職員のみ対象）
B16: ・地域企業との共同研究数・金額の増加。 ・オープンイノベーション拠点である「銀河オープンラボ」のプロジェクトを中心に、大型プロジェクトの創出と支援を行う。 ・地域の水産業をはじめ1次産業との連携を更に進める。 | AA16: 共同研究 | AG16: 2021年度 | AO16: 2022年度 | AW16: 順位※ | BC16: クロスアポイントメントの実績 | BK16: 大学等 | BN16: 公的機関 | BQ16: 民間企業 | BU16: その他機関 | DI16: × | DJ16: 発明補償関係規程（教職員、学生対象）
AG17: 受入額（千円） | AL17: 件数 | AO17: 受入額（千円） | AT17: 件数 | BH17: 受入数(名) | BK17: 0 | BN17: 0 | BQ17: 0 | BU17: 0 | DB17: 順位 | DI17: ◎ | DJ17: 守秘義務に係る規程（教職員のみ対象）
AA18: 全体 | AG18: 223908 | AL18: 213 | AO18: 208842 | AT18: 184 | AW18: =IF(DB18<50,DB18,"") ->  | AY18: 位 | BH18: 派遣数(名) | BK18: 0 | BN18: 0 | BQ18: 0 | BU18: 0 | DB18: 71 | DI18: × | DJ18: 守秘義務に係る規程（教職員、学生対象）
AB19: 民間企業 のみ | AG19: 183981 | AL19: 179 | AO19: 179267 | AT19: 165 | AW19: =IF(DB19<50,DB19,"") ->  | AY19: 位 | DB19: 73 | DI19: × | DJ19: 学術指導に係る規定
AC20: 大企業 | AG20: 114359 | AL20: 85 | AO20: 106889 | AT20: 86 | AY20: 位 | BB20: ■組織的産学官連携活動の取組事例 | DB20: 87 | DI20: ない | DJ20: 戦略的産学官連携経費の設定
AC21: 中小企業 | AG21: 69622 | AL21: 94 | AO21: 72378 | AT21: 79 | AY21: 位 | DB21: 50 | DI21: ない | DJ21: 教員人件費の企業負担に関する規程や制度
AK22: ※順位は2022年度の受入額を比較したものです。 | DI22: ない | DJ22: 学生人件費の企業負担に関する規程や制度
AK23: ※順位は50位までを記載。51位以下の場合は空欄となります。 | DB23: 0 | DC23: 54 | DI23: ある | DJ23: 特別試験研究費税額控除制度の活用
DB24: ～100万 | DC24: 42
DB25: ～300万 | DC25: 55
DB26: ～500万 | DC26: 9
C27: 産学官連携本部等組織名 | K27: 研究支援・産学連携センター | DB27: ～1000万 | DC27: 5
C28: 産学官連携本部等URL | K28: https://www.ccrd.iwate-u.ac.jp/ | DB28: ～5000万
C29: 研究者数 | K29: 439 | O29: 名 | DB29: ～1億 | DJ29: 共同研究等の企画・提案
C30: 実務担当者数 | K30: 10 | O30: 名 | DB30: 1億以上 | DJ30: 契約書での成果目標、達成時の明記
C31: 実務者当たり研究者数 | K31: =IFERROR(K29/K30,"") -> 43.9 | O31: 名 | DJ31: 共同研究契約の締結/判断（契約権限の集中）
C32: 専門家の配置 | I32: 弁護士 | L32: 弁理士 | O32: 税理士 | R32: 公認会計士 | V32: その他 | DJ32: 共同研究の進捗管理とフィードバック
L33: ※専門家を配置している場合は、赤色で表示されます。 | DJ33: 企業ニーズに適応した技術移転・事業化提案
AA34: 受託研究 | AG34: 2021年度 | AO34: 2022年度 | AW34: 順位※ | DJ34: 共同研究等の企画・提案
AG35: 受入額（千円） | AL35: 件数 | AO35: 受入額（千円） | AT35: 件数 | DB35: 順位 | DJ35: 契約書での成果目標、達成時の明記
AA36: 全体 | AG36: 252211 | AL36: 49 | AO36: 263465 | AT36: 44 | AW36: =IF(DB36<50,DB36,"") ->  | AY36: 位 | DB36: 104 | DJ36: 共同研究契約の締結/判断（契約権限の集中）
AA37: 民間企業 のみ | AG37: 14718 | AL37: 6 | AO37: 500 | AT37: 3 | AW37: =IF(DB37<50,DB37,"") ->  | AY37: 位 | DB37: 346 | DJ37: 共同研究の進捗管理とフィードバック
C38: 産学官連携本部が関与した共同研究 | P38: 0 | T38: 件 | AA38: 大企業 | AG38: 12378 | AL38: 4 | AO38: 0 | AT38: 1 | AY38: 位 | DB38: 309 | DJ38: 企業ニーズに適応した技術移転・事業化提案
D39: 内、マッチングを行い、契約締結した件数 | P39: 0 | T39: 件 | AA39: 中小企業 | AG39: 2340 | AL39: 2 | AO39: 500 | AT39: 2 | AY39: 位 | DB39: 257 | DJ39: 共同研究等の企画・提案
I40: ※1,000万円以上の共同研究 | AK40: ※順位は2022年度の受入額を比較したもの | DB40: 弁護士 | DG40: 0 | DH40: 2 | DJ40: 契約書での成果目標、達成時の明記
AK41: ※順位は50位までを記載。51位以下の場合は空欄となります。 | BB41: ■産学官連携活動の主な実用化事例 | DB41: 弁理士 | DG41: ～100万 | DH41: 1 | DJ41: 共同研究契約の締結/判断（契約権限の集中）
C42: 組織対組織による包括連携契約の締結数 | P42: 0 | T42: 件 | DB42: 税理士 | DG42: ～300万 | DJ42: 共同研究の進捗管理とフィードバック
D43: 内、1,000万円以上の実績がある相手方数 | P43: 0 | T43: 件 | DB43: 公認会計士 | DG43: ～500万 | DJ43: 企業ニーズに適応した技術移転・事業化提案
DA44: ○ | DB44: その他 | DG44: ～1000万
C45: 寄附講座・寄附研究部門の受入件数 | P45: 0 | V45: 件 | DG45: ～5000万
C46: 寄附講座・寄附研究部門の受入金額（千円） | P46: 0 | DG46: ～1億
C47: 共同研究講座・共同研究部門の受入件数 | P47: 0 | V47: 件 | DG47: 1億以上
C48: 共同研究講座・共同研究部門の受入金額（千円） | P48: 0
CZ51: 大学 | DA51: 大学・発明者・未設定
C52: 職務発明の帰属 | I52: 大学 | M52: 発明者 | Q52: 未設定 | DA52: 職務発明
AD53: 特許権実施等件数 | AL53: 52 | AQ53: 件 | AS53: 実施等件数当たり | DA53: 不実施
I54: 国内 | K54: 外国 | M54: PCT | O54: EPC | AD54: 特許権実施等収入（千円） | AL54: 6652 | AS54: =IF(OR(AL53="",AL54=""),"",IFERROR(AL54/AL53,"")) -> 127.9230769 | CZ54: 6652000 | DA54: 特許権収入
C55: 特許出願件数（件） | I55: 36 | K55: 29 | M55: 12 | O55: 4
C56: 特許保有件数（件） | I56: 176 | K56: 51
C61: 大学発ベンチャー数 | J61: 17 | O61: 社
C62: Exit件数（IPO） | J62: 0 | O62: 社 | P62: Exit件数（M&A） | W62: 1 | Z62: 社
C63: 相談窓口 | K63: 支援ファンド | S63: インキュベーション施設
C64: 有 | G64: 無 | K64: 有 | O64: 無 | S64: 有 | W64: 無
C65: 知的財産戦略方針 | K65: 支援総額（千円） | S65: 面積 | W65: 636 | Z65: m2
C66: 有 | G66: 無 | K66: 0 | S66: 契約企業数 | W66: 4 | Z66: 社
CY69: 103 | CZ69: 104 | DA69: 105 | DB69: 106 | DC69: 107 | DD69: 108 | DE69: 109 | DF69: 110 | DG69: 111 | DH69: 112 | DI69: 113 | DJ69: 114 | DK69: 115 | DL69: 116 | DM69: 117 | DN69: 118 | DO69: 119 | DP69: 120 | DQ69: 121 | DR69: 122 | DS69: 123 | DT69: 124 | DU69: 125
B70: 東京大学 | C70: 4924 | D70: 613188710 | I70: 148
B71: 東京大学 | C71: 4924 | D71: 613188710 | K71: 227
B72: 東北大学 | C72: 3805 | D72: 208066000
B73: 大阪大学 | C73: 3557 | D73: 414288000
B74: 京都大学 | C74: 3026 | D74: 1119118168
B75: 東京工業大学 | C75: 2084 | D75: 99801000
B76: 九州大学 | C76: 1797 | D76: 164182000
B77: 名古屋大学 | C77: 1604 | D77: 90749000
B78: 北海道大学 | C78: 1314 | D78: 183435000
B79: 信州大学 | C79: 1038 | D79: 37096000
B80: 大阪公立大学 | C80: 975 | D80: 9345000
B81: 筑波大学 | C81: 967 | D81: 36213000
B82: 広島大学 | C82: 919 | D82: 34166000
B83: 千葉大学 | C83: 916 | D83: 16779000
B84: 慶應義塾大学 | C84: 869 | D84: 86996000
B85: 山口大学 | C85: 756 | D85: 29295000
B86: 東京理科大学 | C86: 698 | D86: 23087000
B87: 東京農工大学 | C87: 671 | D87: 60497000
B88: 早稲田大学 | C88: 671 | D88: 27622000
B89: 神戸大学 | C89: 668 | D89: 33659000
B90: 岡山大学 | C90: 624 | D90: 24747000
B91: 名古屋工業大学 | C91: 618 | D91: 32295000
B92: 九州工業大学 | C92: 591 | D92: 8115000
B93: 群馬大学 | C93: 563 | D93: 3087000
B94: 横浜国立大学 | C94: 553 | D94: 15639000
B95: 静岡大学 | C95: 543 | D95: 4244000
B96: 熊本大学 | C96: 539 | D96: 28442000
B97: 近畿大学 | C97: 507 | D97: 22970000
B98: 鹿児島大学 | C98: 475 | D98: 16446000
B99: 山梨大学 | C99: 473 | D99: 8206000
B100: 香川大学 | C100: 469 | D100: 19447000
B101: 長岡技術科学大学 | C101: 465 | D101: 3690000
B102: 東京医科歯科大学 | C102: 461 | D102: 28044000
B103: 東京都立大学 | C103: 447 | D103: 2416000
B104: 関西大学 | C104: 445 | D104: 3261000
B105: 三重大学 | C105: 443 | D105: 28808000
B106: 豊橋技術科学大学 | C106: 435 | D106: 6864000
B107: 電気通信大学 | C107: 421 | D107: 7030000
B108: 鳥取大学 | C108: 405 | D108: 137372000
B109: 金沢大学 | C109: 391 | D109: 18050000
B110: 徳島大学 | C110: 390 | D110: 20264000
B111: 奈良先端科学技術大学院大学 | C111: 382 | D111: 39711000
B112: 新潟大学 | C112: 373 | D112: 9369000
B113: 山形大学 | C113: 363 | D113: 2866000
B114: 北里大学 | C114: 346 | D114: 66133000
B115: 立命館大学 | C115: 330 | D115: 9311000
B116: 富山大学 | C116: 328 | D116: 10861000
B117: 埼玉大学 | C117: 320 | D117: 3578000
B118: 同志社大学 | C118: 317 | D118: 4884000
B119: 高知大学 | C119: 314 | D119: 20578000
B120: 弘前大学 | C120: 294 | D120: 8072000
B121: 日本大学 | C121: 283 | D121: 36278000
B122: 兵庫県立大学 | C122: 279 | D122: 1051000
B123: 名城大学 | C123: 276 | D123: 28093000
B124: 岐阜大学 | C124: 274 | D124: 10679000
B125: 横浜市立大学 | C125: 260 | D125: 37933000
B126: 札幌医科大学 | C126: 258 | D126: 19373000
B127: 京都府立医科大学 | C127: 258 | D127: 12241000
B128: 佐賀大学 | C128: 257 | D128: 8596000
B129: 京都工芸繊維大学 | C129: 252 | D129: 368000
B130: 福井大学 | C130: 245 | D130: 8596000
B131: 宮崎大学 | C131: 244 | D131: 1648000
B132: 神奈川大学 | C132: 243 | D132: 5675000
B133: 東海大学 | C133: 232 | D133: 1120000
B134: 岩手大学 | C134: 227 | D134: 6652000
B135: 秋田大学 | C135: 224 | D135: 1688000
B136: 愛媛大学 | C136: 203 | D136: 26470000
B137: 長崎大学 | C137: 203 | D137: 33702000
B138: 東京海洋大学 | C138: 199 | D138: 4576000
B139: 北陸先端科学技術大学院大学 | C139: 192 | D139: 1763000
B140: 沖縄科学技術大学院大学 | C140: 190 | D140: 1460000
B141: 福岡大学 | C141: 189 | D141: 875000
B142: 関西学院大学 | C142: 186 | D142: 25624000
B143: 東京女子医科大学 | C143: 185 | D143: 2817000
B144: 宇都宮大学 | C144: 179 | D144: 1976000
B145: 中央大学 | C145: 170 | D145: 3131000
B146: 上智大学 | C146: 167 | D146: 0
B147: 高知工科大学 | C147: 167 | D147: 45000
B148: 茨城大学 | C148: 155 | D148: 1545000
B149: 金沢工業大学 | C149: 149 | D149: 2786000
B150: 大分大学 | C150: 148 | D150: 4155000
B151: 千葉工業大学 | C151: 147 | D151: 2134000
B152: 浜松医科大学 | C152: 146 | D152: 1429000
B153: 順天堂大学 | C153: 142 | D153: 4289000
B154: 滋賀医科大学 | C154: 141 | D154: 5567000
B155: 中部大学 | C155: 135 | D155: 675000
B156: 島根大学 | C156: 134 | D156: 1585000
B157: 名古屋市立大学 | C157: 124 | D157: 17845000
B158: 豊田工業大学 | C158: 123 | D158: 50000
B159: 芝浦工業大学 | C159: 120 | D159: 441000
B160: 東京電機大学 | C160: 116 | D160: 5765000
B161: 琉球大学 | C161: 109 | D161: 955000
B162: 久留米大学 | C162: 107 | D162: 3189000
B163: 埼玉医科大学 | C163: 98 | D163: 9046000
B164: 富山県立大学 | C164: 94 | D164: 1681000
B165: 藤田医科大学 | C165: 94 | D165: 0
B166: 明治大学 | C166: 92 | D166: 4567000
B167: 北見工業大学 | C167: 89 | D167: 729000
B168: 静岡県立大学 | C168: 88 | D168: 0
B169: 和歌山大学 | C169: 88 | D169: 4976000
B170: 関東学院大学 | C170: 85 | D170: 10815000
B171: 神奈川工科大学 | C171: 77 | D171: 356000
B172: 帝京大学 | C172: 75 | D172: 3411000
B173: 昭和大学 | C173: 73 | D173: 36130000
B174: 奈良県立医科大学 | C174: 72 | D174: 643000
B175: 福岡工業大学 | C175: 70 | D175: 200000
B176: 法政大学 | C176: 68 | D176: 1375000
B177: 東亜大学 | C177: 67 | D177: 0
B178: 兵庫医科大学 | C178: 65 | D178: 909000
B179: 聖マリアンナ医科大学 | C179: 61 | D179: 9075000
B180: 室蘭工業大学 | C180: 60 | D180: 14000
B181: 秋田県立大学 | C181: 60 | D181: 1505000
B182: 福島大学 | C182: 60 | D182: 48000
B183: 日本医科大学 | C183: 60 | D183: 5693000
B184: 岡山理科大学 | C184: 58 | D184: 2541000
B185: 産業医科大学 | C185: 57 | D185: 2114000
B186: 東洋大学 | C186: 56 | D186: 1565000
B187: 帯広畜産大学 | C187: 55 | D187: 2369000
B188: 会津大学 | C188: 55 | D188: 220000
B189: 立教大学 | C189: 55 | D189: 18000
B190: 北九州市立大学 | C190: 55 | D190: 9601000
B191: 旭川医科大学 | C191: 53 | D191: 11185000
B192: お茶の水女子大学 | C192: 53 | D192: 0
B193: 工学院大学 | C193: 53 | D193: 1312000
B194: 大阪工業大学 | C194: 53 | D194: 0
B195: 玉川大学 | C195: 50 | D195: 335000
B196: 関西医科大学 | C196: 50 | D196: 3255000
B197: 熊本保健科学大学 | C197: 49 | D197: 7000
B198: 東京農業大学 | C198: 48 | D198: 0
B199: 甲南大学 | C199: 47 | D199: 1103000
B200: 東邦大学 | C200: 46 | D200: 1329000
B201: 龍谷大学 | C201: 44 | D201: 930000
B202: 広島市立大学 | C202: 44 | D202: 84000
B203: 大同大学 | C203: 42 | D203: 0
B204: 麻布大学 | C204: 39 | D204: 2179000
B205: 岩手県立大学 | C205: 37 | D205: 54000
B206: 東京薬科大学 | C206: 35 | D206: 2478000
B207: 青山学院大学 | C207: 34 | D207: 0
B208: 岩手医科大学 | C208: 33 | D208: 15000
... 643 more rows

Sheet 秋田大学 (hidden)
A1: 国立 | C1: 秋田大学 | X1: 大学全体の経営理念における産学官連携活動の取組方針 | CY1: 103 | CZ1: 104 | DA1: 105 | DB1: 106 | DC1: 107 | DD1: 108 | DE1: 109 | DF1: 110 | DG1: 111 | DH1: 112 | DI1: 113 | DJ1: 114 | DK1: 115 | DL1: 116 | DM1: 117 | DN1: 118 | DO1: 119 | DP1: 120 | DQ1: 121 | DR1: 122 | DS1: 123 | DT1: 124 | DU1: 125 | DV1: 126 | DW1: 127 | DX1: 128 | DY1: 129
X2: 第４期中期計画の中で「地方公共団体や地元企業等との産学官連携として、地域社会や産業を牽引するため、府省・地方公共団体等の競争的資金を活用したプロジェクト事業、各種セミナーや研修会等を実施し、地域の課題解決のための共同研究等を推進する。」として全学的に実行している。
C3: (秋田県) | BC3: ＵＲＡ | BO3: URA当たりの研究者数 | CB3: 戦略的産学官連携経費
BC4: 実務担当者数 | BI4: 2 | BN4: 名 | BO4: =IFERROR(K29/BI4,"") -> 352.5 | BX4: 名 | CB4: 戦略的産学官連携経費の設定 | CP4: 有 | CT4: 無 | CZ4: ある | DA4: 相談窓口
CB5: 戦略的産学官連携経費の費目 | CZ5: ない | DA5: 支援ファンド
A6: 基 礎 情 報 | BC6: 各種規程類の整備状況 | CB6: 戦略的産学官連携経費の直接経費に対する割合 | CZ6: ある | DA6: インキュベーション施設 | DI6: × | DJ6: 産学官連携ポリシー
BC7: 産学官連携ポリシー | BN7: 職務発明規程（教職員のみ対象） | CZ7: ある | DA7: 知的財産戦略 | DI7: ◎ | DJ7: 知的財産ポリシー
B8: 大学の得意分野とその具体例 | BC8: 知的財産ポリシー | BN8: 職務発明規程（教職員、学生対象） | CB8: 人件費の企業負担 | DI8: ◎ | DJ8: 共同研究取扱規程
B9: 創設以来の実績がある資源探査、リサイクル技術開発の実績を踏まえ、地球・資源分野の国際的研究、津波や雪害に関する地域防災の研究などを推進し、その社会実装を目指している。 | AA9: 科研費 （千円） | AL9: その他政府系資金 (千円) | AS9: その他団体からの資金 (千円) | BC9: 共同研究取扱規程 | BN9: 発明補償関係規程（教職員のみ対象） | CB9: 教員人件費の企業負担に関する規程や制度 | CP9: 有 | CT9: 無 | DI9: ◎ | DJ9: 受託研究取扱規程
BC10: 受託研究取扱規程 | BN10: 発明補償関係規程（教職員、学生対象） | CB10: 教員人件費の企業負担の費目 | DI10: ◎ | DJ10: 研究成果有体物取扱規程
AA11: 464100 | AL11: 184159 | AS11: 7116 | BC11: 研究成果有体物取扱規程 | BN11: 守秘義務に係る規程（教職員のみ対象） | CB11: 学生人件費の企業負担に関する規程や制度 | CP11: 有 | CT11: 無 | DI11: × | DJ11: 営業秘密管理に関する規程
BC12: 営業秘密管理に関する規程 | BN12: 守秘義務に係る規程（教職員、学生対象） | CB12: 学生人件費の企業負担の費目 | DI12: △ | DJ12: 株式の取扱等規程、ポリシー
AA13: 共同研究における間接経費割合 | AN13: 株式の保有 | AT13: 新株予約権の保有 | BC13: 株式の取扱等規程、ポリシー | BN13: 学術指導に関する規程 | DA13: × | DB13: 株式 | DI13: ◎ | DJ13: 職務発明規程（教職員のみ対象）
AA14: 0.3 | AN14: 有 | AQ14: 無 | AT14: 有 | AW14: 無 | BK14: ※各種規定類を整備している場合は、赤色で表示されます。 | CB14: 特別試験研究費税額控除制度 | DA14: × | DB14: 新株予約権 | DI14: × | DJ14: 職務発明規程（教職員、学生対象）
B15: 産学官連携活動において今後重点化したい事項 | CB15: 特別試験研究費税額控除制度の活用 | CP15: 有 | CT15: 無 | DI15: ◎ | DJ15: 発明補償関係規程（教職員のみ対象）
B16: 高齢化先進県として、超スマート社会、地域包括ケアの確立を目指した産学官金のオール秋田による体制整備を行うとともに、オープンイノベーションの構築と推進を目標としている。 | AA16: 共同研究 | AG16: 2021年度 | AO16: 2022年度 | AW16: 順位※ | BC16: クロスアポイントメントの実績 | BK16: 大学等 | BN16: 公的機関 | BQ16: 民間企業 | BU16: その他機関 | DI16: × | DJ16: 発明補償関係規程（教職員、学生対象）
AG17: 受入額（千円） | AL17: 件数 | AO17: 受入額（千円） | AT17: 件数 | BH17: 受入数(名) | BK17: 1 | BN17: 0 | BQ17: 1 | BU17: 0 | DB17: 順位 | DI17: ◎ | DJ17: 守秘義務に係る規程（教職員のみ対象）
AA18: 全体 | AG18: 160370 | AL18: 98 | AO18: 194068 | AT18: 110 | AW18: =IF(DB18<50,DB18,"") ->  | AY18: 位 | BH18: 派遣数(名) | BK18: 0 | BN18: 0 | BQ18: 0 | BU18: 0 | DB18: 76 | DI18: × | DJ18: 守秘義務に係る規程（教職員、学生対象）
AB19: 民間企業 のみ | AG19: 134765 | AL19: 85 | AO19: 178720 | AT19: 98 | AW19: =IF(DB19<50,DB19,"") ->  | AY19: 位 | DB19: 75 | DI19: × | DJ19: 学術指導に係る規定
AC20: 大企業 | AG20: 115963 | AL20: 59 | AO20: 160045 | AT20: 66 | AY20: 位 | BB20: ■組織的産学官連携活動の取組事例 | DB20: 66 | DI20: ない | DJ20: 戦略的産学官連携経費の設定
AC21: 中小企業 | AG21: 18802 | AL21: 26 | AO21: 18675 | AT21: 32 | AY21: 位 | DB21: 108 | DI21: ない | DJ21: 教員人件費の企業負担に関する規程や制度
AK22: ※順位は2022年度の受入額を比較したものです。 | DI22: ない | DJ22: 学生人件費の企業負担に関する規程や制度
AK23: ※順位は50位までを記載。51位以下の場合は空欄となります。 | DB23: 0 | DC23: 21 | DI23: ある | DJ23: 特別試験研究費税額控除制度の活用
DB24: ～100万 | DC24: 25
DB25: ～300万 | DC25: 37
DB26: ～500万 | DC26: 8
C27: 産学官連携本部等組織名 | K27: 産学連携推進機構 | DB27: ～1000万 | DC27: 5
C28: 産学官連携本部等URL | K28: https://www.akita-u.ac.jp/crc/ | DB28: ～5000万 | DC28: 2
C29: 研究者数 | K29: 705 | O29: 名 | DB29: ～1億 | DJ29: 共同研究等の企画・提案
C30: 実務担当者数 | K30: 11 | O30: 名 | DB30: 1億以上 | DJ30: 契約書での成果目標、達成時の明記
C31: 実務者当たり研究者数 | K31: =IFERROR(K29/K30,"") -> 64.09090909 | O31: 名 | DJ31: 共同研究契約の締結/判断（契約権限の集中）
C32: 専門家の配置 | I32: 弁護士 | L32: 弁理士 | O32: 税理士 | R32: 公認会計士 | V32: その他 | DJ32: 共同研究の進捗管理とフィードバック
L33: ※専門家を配置している場合は、赤色で表示されます。 | DJ33: 企業ニーズに適応した技術移転・事業化提案
AA34: 受託研究 | AG34: 2021年度 | AO34: 2022年度 | AW34: 順位※ | DJ34: 共同研究等の企画・提案
AG35: 受入額（千円） | AL35: 件数 | AO35: 受入額（千円） | AT35: 件数 | DB35: 順位 | DJ35: 契約書での成果目標、達成時の明記
AA36: 全体 | AG36: 319672 | AL36: 144 | AO36: 321555 | AT36: 143 | AW36: =IF(DB36<50,DB36,"") ->  | AY36: 位 | DB36: 93 | DJ36: 共同研究契約の締結/判断（契約権限の集中）
AA37: 民間企業 のみ | AG37: 38346 | AL37: 50 | AO37: 28631 | AT37: 49 | AW37: =IF(DB37<50,DB37,"") ->  | AY37: 位 | DB37: 90 | DJ37: 共同研究の進捗管理とフィードバック
C38: 産学官連携本部が関与した共同研究 | P38: 2 | T38: 件 | AA38: 大企業 | AG38: 29052 | AL38: 39 | AO38: 22109 | AT38: 41 | AY38: 位 | DB38: 89 | DJ38: 企業ニーズに適応した技術移転・事業化提案
D39: 内、マッチングを行い、契約締結した件数 | P39: 0 | T39: 件 | AA39: 中小企業 | AG39: 9294 | AL39: 11 | AO39: 6522 | AT39: 8 | AY39: 位 | DB39: 84 | DJ39: 共同研究等の企画・提案
I40: ※1,000万円以上の共同研究 | AK40: ※順位は2022年度の受入額を比較したもの | DB40: 弁護士 | DG40: 0 | DH40: 21 | DJ40: 契約書での成果目標、達成時の明記
AK41: ※順位は50位までを記載。51位以下の場合は空欄となります。 | BB41: ■産学官連携活動の主な実用化事例 | DB41: 弁理士 | DG41: ～100万 | DH41: 18 | DJ41: 共同研究契約の締結/判断（契約権限の集中）
C42: 組織対組織による包括連携契約の締結数 | P42: 0 | T42: 件 | DB42: 税理士 | DG42: ～300万 | DH42: 8 | DJ42: 共同研究の進捗管理とフィードバック
D43: 内、1,000万円以上の実績がある相手方数 | P43: 0 | T43: 件 | DB43: 公認会計士 | DG43: ～500万 | DH43: 2 | DJ43: 企業ニーズに適応した技術移転・事業化提案
DB44: その他 | DG44: ～1000万
C45: 寄附講座・寄附研究部門の受入件数 | P45: 3 | V45: 件 | DG45: ～5000万
C46: 寄附講座・寄附研究部門の受入金額（千円） | P46: 43000 | DG46: ～1億
C47: 共同研究講座・共同研究部門の受入件数 | P47: 0 | V47: 件 | DG47: 1億以上
C48: 共同研究講座・共同研究部門の受入金額（千円） | P48: 0
CZ51: 大学 | DA51: 大学・発明者・未設定
C52: 職務発明の帰属 | I52: 大学 | M52: 発明者 | Q52: 未設定 | DA52: 職務発明
AD53: 特許権実施等件数 | AL53: 26 | AQ53: 件 | AS53: 実施等件数当たり | DA53: 不実施
I54: 国内 | K54: 外国 | M54: PCT | O54: EPC | AD54: 特許権実施等収入（千円） | AL54: 1688 | AS54: =IF(OR(AL53="",AL54=""),"",IFERROR(AL54/AL53,"")) -> 64.92307692 | CZ54: 1688000 | DA54: 特許権収入
C55: 特許出願件数（件） | I55: 25 | K55: 5 | M55: 5 | O55: 0
C56: 特許保有件数（件） | I56: 184 | K56: 40
C61: 大学発ベンチャー数 | J61: 11 | O61: 社
C62: Exit件数（IPO） | J62: 0 | O62: 社 | P62: Exit件数（M&A） | W62: 0 | Z62: 社
C63: 相談窓口 | K63: 支援ファンド | S63: インキュベーション施設
C64: 有 | G64: 無 | K64: 有 | O64: 無 | S64: 有 | W64: 無
C65: 知的財産戦略方針 | K65: 支援総額（千円） | S65: 面積 | W65: 80 | Z65: m2
C66: 有 | G66: 無 | K66: 0 | S66: 契約企業数 | W66: 1 | Z66: 社
CY69: 103 | CZ69: 104 | DA69: 105 | DB69: 106 | DC69: 107 | DD69: 108 | DE69: 109 | DF69: 110 | DG69: 111 | DH69: 112 | DI69: 113 | DJ69: 114 | DK69: 115 | DL69: 116 | DM69: 117 | DN69: 118 | DO69: 119 | DP69: 120 | DQ69: 121 | DR69: 122 | DS69: 123 | DT69: 124 | DU69: 125
B70: 東京大学 | C70: 4924 | D70: 613188710 | I70: 148
B71: 東京大学 | C71: 4924 | D71: 613188710 | K71: 224
B72: 東北大学 | C72: 3805 | D72: 208066000
B73: 大阪大学 | C73: 3557 | D73: 414288000
B74: 京都大学 | C74: 3026 | D74: 1119118168
B75: 東京工業大学 | C75: 2084 | D75: 99801000
B76: 九州大学 | C76: 1797 | D76: 164182000
B77: 名古屋大学 | C77: 1604 | D77: 90749000
B78: 北海道大学 | C78: 1314 | D78: 183435000
B79: 信州大学 | C79: 1038 | D79: 37096000
B80: 大阪公立大学 | C80: 975 | D80: 9345000
B81: 筑波大学 | C81: 967 | D81: 36213000
B82: 広島大学 | C82: 919 | D82: 34166000
B83: 千葉大学 | C83: 916 | D83: 16779000
B84: 慶應義塾大学 | C84: 869 | D84: 86996000
B85: 山口大学 | C85: 756 | D85: 29295000
B86: 東京理科大学 | C86: 698 | D86: 23087000
B87: 東京農工大学 | C87: 671 | D87: 60497000
B88: 早稲田大学 | C88: 671 | D88: 27622000
B89: 神戸大学 | C89: 668 | D89: 33659000
B90: 岡山大学 | C90: 624 | D90: 24747000
B91: 名古屋工業大学 | C91: 618 | D91: 32295000
B92: 九州工業大学 | C92: 591 | D92: 8115000
B93: 群馬大学 | C93: 563 | D93: 3087000
B94: 横浜国立大学 | C94: 553 | D94: 15639000
B95: 静岡大学 | C95: 543 | D95: 4244000
B96: 熊本大学 | C96: 539 | D96: 28442000
B97: 近畿大学 | C97: 507 | D97: 22970000
B98: 鹿児島大学 | C98: 475 | D98: 16446000
B99: 山梨大学 | C99: 473 | D99: 8206000
B100: 香川大学 | C100: 469 | D100: 19447000
B101: 長岡技術科学大学 | C101: 465 | D101: 3690000
B102: 東京医科歯科大学 | C102: 461 | D102: 28044000
B103: 東京都立大学 | C103: 447 | D103: 2416000
B104: 関西大学 | C104: 445 | D104: 3261000
B105: 三重大学 | C105: 443 | D105: 28808000
B106: 豊橋技術科学大学 | C106: 435 | D106: 6864000
B107: 電気通信大学 | C107: 421 | D107: 7030000
B108: 鳥取大学 | C108: 405 | D108: 137372000
B109: 金沢大学 | C109: 391 | D109: 18050000
B110: 徳島大学 | C110: 390 | D110: 20264000
B111: 奈良先端科学技術大学院大学 | C111: 382 | D111: 39711000
B112: 新潟大学 | C112: 373 | D112: 9369000
B113: 山形大学 | C113: 363 | D113: 2866000
B114: 北里大学 | C114: 346 | D114: 66133000
B115: 立命館大学 | C115: 330 | D115: 9311000
B116: 富山大学 | C116: 328 | D116: 10861000
B117: 埼玉大学 | C117: 320 | D117: 3578000
B118: 同志社大学 | C118: 317 | D118: 4884000
B119: 高知大学 | C119: 314 | D119: 20578000
B120: 弘前大学 | C120: 294 | D120: 8072000
B121: 日本大学 | C121: 283 | D121: 36278000
B122: 兵庫県立大学 | C122: 279 | D122: 1051000
B123: 名城大学 | C123: 276 | D123: 28093000
B124: 岐阜大学 | C124: 274 | D124: 10679000
B125: 横浜市立大学 | C125: 260 | D125: 37933000
B126: 札幌医科大学 | C126: 258 | D126: 19373000
B127: 京都府立医科大学 | C127: 258 | D127: 12241000
B128: 佐賀大学 | C128: 257 | D128: 8596000
B129: 京都工芸繊維大学 | C129: 252 | D129: 368000
B130: 福井大学 | C130: 245 | D130: 8596000
B131: 宮崎大学 | C131: 244 | D131: 1648000
B132: 神奈川大学 | C132: 243 | D132: 5675000
B133: 東海大学 | C133: 232 | D133: 1120000
B134: 岩手大学 | C134: 227 | D134: 6652000
B135: 秋田大学 | C135: 224 | D135: 1688000
B136: 愛媛大学 | C136: 203 | D136: 26470000
B137: 長崎大学 | C137: 203 | D137: 33702000
B138: 東京海洋大学 | C138: 199 | D138: 4576000
B139: 北陸先端科学技術大学院大学 | C139: 192 | D139: 1763000
B140: 沖縄科学技術大学院大学 | C140: 190 | D140: 1460000
B141: 福岡大学 | C141: 189 | D141: 875000
B142: 関西学院大学 | C142: 186 | D142: 25624000
B143: 東京女子医科大学 | C143: 185 | D143: 2817000
B144: 宇都宮大学 | C144: 179 | D144: 1976000
B145: 中央大学 | C145: 170 | D145: 3131000
B146: 上智大学 | C146: 167 | D146: 0
B147: 高知工科大学 | C147: 167 | D147: 45000
B148: 茨城大学 | C148: 155 | D148: 1545000
B149: 金沢工業大学 | C149: 149 | D149: 2786000
B150: 大分大学 | C150: 148 | D150: 4155000
B151: 千葉工業大学 | C151: 147 | D151: 2134000
B152: 浜松医科大学 | C152: 146 | D152: 1429000
B153: 順天堂大学 | C153: 142 | D153: 4289000
B154: 滋賀医科大学 | C154: 141 | D154: 5567000
B155: 中部大学 | C155: 135 | D155: 675000
B156: 島根大学 | C156: 134 | D156: 1585000
B157: 名古屋市立大学 | C157: 124 | D157: 17845000
B158: 豊田工業大学 | C158: 123 | D158: 50000
B159: 芝浦工業大学 | C159: 120 | D159: 441000
B160: 東京電機大学 | C160: 116 | D160: 5765000
B161: 琉球大学 | C161: 109 | D161: 955000
B162: 久留米大学 | C162: 107 | D162: 3189000
B163: 埼玉医科大学 | C163: 98 | D163: 9046000
B164: 富山県立大学 | C164: 94 | D164: 1681000
B165: 藤田医科大学 | C165: 94 | D165: 0
B166: 明治大学 | C166: 92 | D166: 4567000
B167: 北見工業大学 | C167: 89 | D167: 729000
B168: 静岡県立大学 | C168: 88 | D168: 0
B169: 和歌山大学 | C169: 88 | D169: 4976000
B170: 関東学院大学 | C170: 85 | D170: 10815000
B171: 神奈川工科大学 | C171: 77 | D171: 356000
B172: 帝京大学 | C172: 75 | D172: 3411000
B173: 昭和大学 | C173: 73 | D173: 36130000
B174: 奈良県立医科大学 | C174: 72 | D174: 643000
B175: 福岡工業大学 | C175: 70 | D175: 200000
B176: 法政大学 | C176: 68 | D176: 1375000
B177: 東亜大学 | C177: 67 | D177: 0
B178: 兵庫医科大学 | C178: 65 | D178: 909000
B179: 聖マリアンナ医科大学 | C179: 61 | D179: 9075000
B180: 室蘭工業大学 | C180: 60 | D180: 14000
B181: 秋田県立大学 | C181: 60 | D181: 1505000
B182: 福島大学 | C182: 60 | D182: 48000
B183: 日本医科大学 | C183: 60 | D183: 5693000
B184: 岡山理科大学 | C184: 58 | D184: 2541000
B185: 産業医科大学 | C185: 57 | D185: 2114000
B186: 東洋大学 | C186: 56 | D186: 1565000
B187: 帯広畜産大学 | C187: 55 | D187: 2369000
B188: 会津大学 | C188: 55 | D188: 220000
B189: 立教大学 | C189: 55 | D189: 18000
B190: 北九州市立大学 | C190: 55 | D190: 9601000
B191: 旭川医科大学 | C191: 53 | D191: 11185000
B192: お茶の水女子大学 | C192: 53 | D192: 0
B193: 工学院大学 | C193: 53 | D193: 1312000
B194: 大阪工業大学 | C194: 53 | D194: 0
B195: 玉川大学 | C195: 50 | D195: 335000
B196: 関西医科大学 | C196: 50 | D196: 3255000
B197: 熊本保健科学大学 | C197: 49 | D197: 7000
B198: 東京農業大学 | C198: 48 | D198: 0
B199: 甲南大学 | C199: 47 | D199: 1103000
B200: 東邦大学 | C200: 46 | D200: 1329000
B201: 龍谷大学 | C201: 44 | D201: 930000
B202: 広島市立大学 | C202: 44 | D202: 84000
B203: 大同大学 | C203: 42 | D203: 0
B204: 麻布大学 | C204: 39 | D204: 2179000
B205: 岩手県立大学 | C205: 37 | D205: 54000
B206: 東京薬科大学 | C206: 35 | D206: 2478000
B207: 青山学院大学 | C207: 34 | D207: 0
B208: 岩手医科大学 | C208: 33 | D208: 15000
... 643 more rows

Sheet 茨城大学 (hidden)
A1: 国立 | C1: 茨城大学 | X1: 大学全体の経営理念における産学官連携活動の取組方針 | CY1: 103 | CZ1: 104 | DA1: 105 | DB1: 106 | DC1: 107 | DD1: 108 | DE1: 109 | DF1: 110 | DG1: 111 | DH1: 112 | DI1: 113 | DJ1: 114 | DK1: 115 | DL1: 116 | DM1: 117 | DN1: 118 | DO1: 119 | DP1: 120 | DQ1: 121 | DR1: 122 | DS1: 123 | DT1: 124 | DU1: 125 | DV1: 126 | DW1: 127 | DX1: 128 | DY1: 129
C3: (茨城県) | BC3: ＵＲＡ | BO3: URA当たりの研究者数 | CB3: 戦略的産学官連携経費
BC4: 実務担当者数 | BI4: 9 | BN4: 名 | BO4: =IFERROR(K29/BI4,"") -> 68.77777778 | BX4: 名 | CB4: 戦略的産学官連携経費の設定 | CP4: 有 | CT4: 無 | CZ4: ある | DA4: 相談窓口
CB5: 戦略的産学官連携経費の費目 | CZ5: ない | DA5: 支援ファンド
A6: 基 礎 情 報 | BC6: 各種規程類の整備状況 | CB6: 戦略的産学官連携経費の直接経費に対する割合 | CZ6: ない | DA6: インキュベーション施設 | DI6: ◎ | DJ6: 産学官連携ポリシー
BC7: 産学官連携ポリシー | BN7: 職務発明規程（教職員のみ対象） | CZ7: ある | DA7: 知的財産戦略 | DI7: ◎ | DJ7: 知的財産ポリシー
B8: 大学の得意分野とその具体例 | BC8: 知的財産ポリシー | BN8: 職務発明規程（教職員、学生対象） | CB8: 人件費の企業負担 | DI8: ◎ | DJ8: 共同研究取扱規程
AA9: 科研費 （千円） | AL9: その他政府系資金 (千円) | AS9: その他団体からの資金 (千円) | BC9: 共同研究取扱規程 | BN9: 発明補償関係規程（教職員のみ対象） | CB9: 教員人件費の企業負担に関する規程や制度 | CP9: 有 | CT9: 無 | DI9: ◎ | DJ9: 受託研究取扱規程
BC10: 受託研究取扱規程 | BN10: 発明補償関係規程（教職員、学生対象） | CB10: 教員人件費の企業負担の費目 | DI10: ◎ | DJ10: 研究成果有体物取扱規程
AA11: 378234 | AL11: 47749 | AS11: 0 | BC11: 研究成果有体物取扱規程 | BN11: 守秘義務に係る規程（教職員のみ対象） | CB11: 学生人件費の企業負担に関する規程や制度 | CP11: 有 | CT11: 無 | DI11: × | DJ11: 営業秘密管理に関する規程
BC12: 営業秘密管理に関する規程 | BN12: 守秘義務に係る規程（教職員、学生対象） | CB12: 学生人件費の企業負担の費目 | CP12: 直接経費 | DI12: △ | DJ12: 株式の取扱等規程、ポリシー
AA13: 共同研究における間接経費割合 | AN13: 株式の保有 | AT13: 新株予約権の保有 | BC13: 株式の取扱等規程、ポリシー | BN13: 学術指導に関する規程 | DA13: × | DB13: 株式 | DI13: × | DJ13: 職務発明規程（教職員のみ対象）
AA14: 0.3 | AN14: 有 | AQ14: 無 | AT14: 有 | AW14: 無 | BK14: ※各種規定類を整備している場合は、赤色で表示されます。 | CB14: 特別試験研究費税額控除制度 | DA14: × | DB14: 新株予約権 | DI14: ◎ | DJ14: 職務発明規程（教職員、学生対象）
B15: 産学官連携活動において今後重点化したい事項 | CB15: 特別試験研究費税額控除制度の活用 | CP15: 有 | CT15: 無 | DI15: × | DJ15: 発明補償関係規程（教職員のみ対象）
AA16: 共同研究 | AG16: 2021年度 | AO16: 2022年度 | AW16: 順位※ | BC16: クロスアポイントメントの実績 | BK16: 大学等 | BN16: 公的機関 | BQ16: 民間企業 | BU16: その他機関 | DI16: ◎ | DJ16: 発明補償関係規程（教職員、学生対象）
AG17: 受入額（千円） | AL17: 件数 | AO17: 受入額（千円） | AT17: 件数 | BH17: 受入数(名) | BK17: 2 | BN17: 4 | BQ17: 2 | BU17: 0 | DB17: 順位 | DI17: × | DJ17: 守秘義務に係る規程（教職員のみ対象）
AA18: 全体 | AG18: 238745 | AL18: 272 | AO18: 308518 | AT18: 250 | AW18: =IF(DB18<50,DB18,"") ->  | AY18: 位 | BH18: 派遣数(名) | BK18: 0 | BN18: 1 | BQ18: 1 | BU18: 0 | DB18: 55 | DI18: ◎ | DJ18: 守秘義務に係る規程（教職員、学生対象）
AB19: 民間企業 のみ | AG19: 180109 | AL19: 204 | AO19: 250321 | AT19: 188 | AW19: =IF(DB19<50,DB19,"") ->  | AY19: 位 | DB19: 59 | DI19: ◎ | DJ19: 学術指導に係る規定
AC20: 大企業 | AG20: 152428 | AL20: 134 | AO20: 216762 | AT20: 122 | AY20: 位 | BB20: ■組織的産学官連携活動の取組事例 | DB20: 51 | DI20: ない | DJ20: 戦略的産学官連携経費の設定
AC21: 中小企業 | AG21: 27681 | AL21: 70 | AO21: 33559 | AT21: 66 | AY21: 位 | DB21: 84 | DI21: ない | DJ21: 教員人件費の企業負担に関する規程や制度
AK22: ※順位は2022年度の受入額を比較したものです。 | DI22: ある | DJ22: 学生人件費の企業負担に関する規程や制度
AK23: ※順位は50位までを記載。51位以下の場合は空欄となります。 | DB23: 0 | DC23: 21 | DI23: ある | DJ23: 特別試験研究費税額控除制度の活用
DB24: ～100万 | DC24: 79
DB25: ～300万 | DC25: 67
DB26: ～500万 | DC26: 11
C27: 産学官連携本部等組織名 | K27: 研究・産学官連携機構 | DB27: ～1000万 | DC27: 8
C28: 産学官連携本部等URL | K28: https://www.iric.ibaraki.ac.jp/ | DB28: ～5000万 | DC28: 2
C29: 研究者数 | K29: 619 | O29: 名 | DB29: ～1億 | DJ29: 共同研究等の企画・提案
C30: 実務担当者数 | K30: 17 | O30: 名 | DB30: 1億以上 | DJ30: 契約書での成果目標、達成時の明記
C31: 実務者当たり研究者数 | K31: =IFERROR(K29/K30,"") -> 36.41176471 | O31: 名 | DJ31: 共同研究契約の締結/判断（契約権限の集中）
C32: 専門家の配置 | I32: 弁護士 | L32: 弁理士 | O32: 税理士 | R32: 公認会計士 | V32: その他 | DJ32: 共同研究の進捗管理とフィードバック
L33: ※専門家を配置している場合は、赤色で表示されます。 | DJ33: 企業ニーズに適応した技術移転・事業化提案
AA34: 受託研究 | AG34: 2021年度 | AO34: 2022年度 | AW34: 順位※ | DJ34: 共同研究等の企画・提案
AG35: 受入額（千円） | AL35: 件数 | AO35: 受入額（千円） | AT35: 件数 | DB35: 順位 | DJ35: 契約書での成果目標、達成時の明記
AA36: 全体 | AG36: 708294 | AL36: 59 | AO36: 599273 | AT36: 61 | AW36: =IF(DB36<50,DB36,"") ->  | AY36: 位 | DB36: 64 | DJ36: 共同研究契約の締結/判断（契約権限の集中）
AA37: 民間企業 のみ | AG37: 11853 | AL37: 10 | AO37: 8647 | AT37: 9 | AW37: =IF(DB37<50,DB37,"") ->  | AY37: 位 | DB37: 154 | DJ37: 共同研究の進捗管理とフィードバック
C38: 産学官連携本部が関与した共同研究 | P38: 0 | T38: 件 | AA38: 大企業 | AG38: 6353 | AL38: 7 | AO38: 8302 | AT38: 8 | AY38: 位 | DB38: 134 | DJ38: 企業ニーズに適応した技術移転・事業化提案
D39: 内、マッチングを行い、契約締結した件数 | P39: 0 | T39: 件 | AA39: 中小企業 | AG39: 5500 | AL39: 3 | AO39: 345 | AT39: 1 | AY39: 位 | DB39: 280 | DJ39: 共同研究等の企画・提案
I40: ※1,000万円以上の共同研究 | AK40: ※順位は2022年度の受入額を比較したもの | DB40: 弁護士 | DG40: 0 | DJ40: 契約書での成果目標、達成時の明記
AK41: ※順位は50位までを記載。51位以下の場合は空欄となります。 | BB41: ■産学官連携活動の主な実用化事例 | DB41: 弁理士 | DG41: ～100万 | DH41: 5 | DJ41: 共同研究契約の締結/判断（契約権限の集中）
C42: 組織対組織による包括連携契約の締結数 | P42: 0 | T42: 件 | DB42: 税理士 | DG42: ～300万 | DH42: 4 | DJ42: 共同研究の進捗管理とフィードバック
D43: 内、1,000万円以上の実績がある相手方数 | P43: 0 | T43: 件 | DB43: 公認会計士 | DG43: ～500万 | DJ43: 企業ニーズに適応した技術移転・事業化提案
DA44: ○ | DB44: その他 | DG44: ～1000万
C45: 寄附講座・寄附研究部門の受入件数 | P45: 0 | V45: 件 | DG45: ～5000万
C46: 寄附講座・寄附研究部門の受入金額（千円） | P46: 0 | DG46: ～1億
C47: 共同研究講座・共同研究部門の受入件数 | P47: 0 | V47: 件 | DG47: 1億以上
C48: 共同研究講座・共同研究部門の受入金額（千円） | P48: 0
CZ51: 大学 | DA51: 大学・発明者・未設定
C52: 職務発明の帰属 | I52: 大学 | M52: 発明者 | Q52: 未設定 | DA52: 職務発明
AD53: 特許権実施等件数 | AL53: 9 | AQ53: 件 | AS53: 実施等件数当たり | DA53: 不実施
I54: 国内 | K54: 外国 | M54: PCT | O54: EPC | AD54: 特許権実施等収入（千円） | AL54: 1545 | AS54: =IF(OR(AL53="",AL54=""),"",IFERROR(AL54/AL53,"")) -> 171.6666667 | CZ54: 1545000 | DA54: 特許権収入
C55: 特許出願件数（件） | I55: 28 | K55: 3 | M55: 5 | O55: 2
C56: 特許保有件数（件） | I56: 146 | K56: 9
C61: 大学発ベンチャー数 | J61: 6 | O61: 社
C62: Exit件数（IPO） | J62: 0 | O62: 社 | P62: Exit件数（M&A） | W62: 0 | Z62: 社
C63: 相談窓口 | K63: 支援ファンド | S63: インキュベーション施設
C64: 有 | G64: 無 | K64: 有 | O64: 無 | S64: 有 | W64: 無
C65: 知的財産戦略方針 | K65: 支援総額（千円） | S65: 面積 | W65: 0 | Z65: m2
C66: 有 | G66: 無 | K66: 0 | S66: 契約企業数 | W66: 0 | Z66: 社
CY69: 103 | CZ69: 104 | DA69: 105 | DB69: 106 | DC69: 107 | DD69: 108 | DE69: 109 | DF69: 110 | DG69: 111 | DH69: 112 | DI69: 113 | DJ69: 114 | DK69: 115 | DL69: 116 | DM69: 117 | DN69: 118 | DO69: 119 | DP69: 120 | DQ69: 121 | DR69: 122 | DS69: 123 | DT69: 124 | DU69: 125
B70: 東京大学 | C70: 4924 | D70: 613188710 | I70: 148
B71: 東京大学 | C71: 4924 | D71: 613188710 | K71: 155
B72: 東北大学 | C72: 3805 | D72: 208066000
B73: 大阪大学 | C73: 3557 | D73: 414288000
B74: 京都大学 | C74: 3026 | D74: 1119118168
B75: 東京工業大学 | C75: 2084 | D75: 99801000
B76: 九州大学 | C76: 1797 | D76: 164182000
B77: 名古屋大学 | C77: 1604 | D77: 90749000
B78: 北海道大学 | C78: 1314 | D78: 183435000
B79: 信州大学 | C79: 1038 | D79: 37096000
B80: 大阪公立大学 | C80: 975 | D80: 9345000
B81: 筑波大学 | C81: 967 | D81: 36213000
B82: 広島大学 | C82: 919 | D82: 34166000
B83: 千葉大学 | C83: 916 | D83: 16779000
B84: 慶應義塾大学 | C84: 869 | D84: 86996000
B85: 山口大学 | C85: 756 | D85: 29295000
B86: 東京理科大学 | C86: 698 | D86: 23087000
B87: 東京農工大学 | C87: 671 | D87: 60497000
B88: 早稲田大学 | C88: 671 | D88: 27622000
B89: 神戸大学 | C89: 668 | D89: 33659000
B90: 岡山大学 | C90: 624 | D90: 24747000
B91: 名古屋工業大学 | C91: 618 | D91: 32295000
B92: 九州工業大学 | C92: 591 | D92: 8115000
B93: 群馬大学 | C93: 563 | D93: 3087000
B94: 横浜国立大学 | C94: 553 | D94: 15639000
B95: 静岡大学 | C95: 543 | D95: 4244000
B96: 熊本大学 | C96: 539 | D96: 28442000
B97: 近畿大学 | C97: 507 | D97: 22970000
B98: 鹿児島大学 | C98: 475 | D98: 16446000
B99: 山梨大学 | C99: 473 | D99: 8206000
B100: 香川大学 | C100: 469 | D100: 19447000
B101: 長岡技術科学大学 | C101: 465 | D101: 3690000
B102: 東京医科歯科大学 | C102: 461 | D102: 28044000
B103: 東京都立大学 | C103: 447 | D103: 2416000
B104: 関西大学 | C104: 445 | D104: 3261000
B105: 三重大学 | C105: 443 | D105: 28808000
B106: 豊橋技術科学大学 | C106: 435 | D106: 6864000
B107: 電気通信大学 | C107: 421 | D107: 7030000
B108: 鳥取大学 | C108: 405 | D108: 137372000
B109: 金沢大学 | C109: 391 | D109: 18050000
B110: 徳島大学 | C110: 390 | D110: 20264000
B111: 奈良先端科学技術大学院大学 | C111: 382 | D111: 39711000
B112: 新潟大学 | C112: 373 | D112: 9369000
B113: 山形大学 | C113: 363 | D113: 2866000
B114: 北里大学 | C114: 346 | D114: 66133000
B115: 立命館大学 | C115: 330 | D115: 9311000
B116: 富山大学 | C116: 328 | D116: 10861000
B117: 埼玉大学 | C117: 320 | D117: 3578000
B118: 同志社大学 | C118: 317 | D118: 4884000
B119: 高知大学 | C119: 314 | D119: 20578000
B120: 弘前大学 | C120: 294 | D120: 8072000
B121: 日本大学 | C121: 283 | D121: 36278000
B122: 兵庫県立大学 | C122: 279 | D122: 1051000
B123: 名城大学 | C123: 276 | D123: 28093000
B124: 岐阜大学 | C124: 274 | D124: 10679000
B125: 横浜市立大学 | C125: 260 | D125: 37933000
B126: 札幌医科大学 | C126: 258 | D126: 19373000
B127: 京都府立医科大学 | C127: 258 | D127: 12241000
B128: 佐賀大学 | C128: 257 | D128: 8596000
B129: 京都工芸繊維大学 | C129: 252 | D129: 368000
B130: 福井大学 | C130: 245 | D130: 8596000
B131: 宮崎大学 | C131: 244 | D131: 1648000
B132: 神奈川大学 | C132: 243 | D132: 5675000
B133: 東海大学 | C133: 232 | D133: 1120000
B134: 岩手大学 | C134: 227 | D134: 6652000
B135: 秋田大学 | C135: 224 | D135: 1688000
B136: 愛媛大学 | C136: 203 | D136: 26470000
B137: 長崎大学 | C137: 203 | D137: 33702000
B138: 東京海洋大学 | C138: 199 | D138: 4576000
B139: 北陸先端科学技術大学院大学 | C139: 192 | D139: 1763000
B140: 沖縄科学技術大学院大学 | C140: 190 | D140: 1460000
B141: 福岡大学 | C141: 189 | D141: 875000
B142: 関西学院大学 | C142: 186 | D142: 25624000
B143: 東京女子医科大学 | C143: 185 | D143: 2817000
B144: 宇都宮大学 | C144: 179 | D144: 1976000
B145: 中央大学 | C145: 170 | D145: 3131000
B146: 上智大学 | C146: 167 | D146: 0
B147: 高知工科大学 | C147: 167 | D147: 45000
B148: 茨城大学 | C148: 155 | D148: 1545000
B149: 金沢工業大学 | C149: 149 | D149: 2786000
B150: 大分大学 | C150: 148 | D150: 4155000
B151: 千葉工業大学 | C151: 147 | D151: 2134000
B152: 浜松医科大学 | C152: 146 | D152: 1429000
B153: 順天堂大学 | C153: 142 | D153: 4289000
B154: 滋賀医科大学 | C154: 141 | D154: 5567000
B155: 中部大学 | C155: 135 | D155: 675000
B156: 島根大学 | C156: 134 | D156: 1585000
B157: 名古屋市立大学 | C157: 124 | D157: 17845000
B158: 豊田工業大学 | C158: 123 | D158: 50000
B159: 芝浦工業大学 | C159: 120 | D159: 441000
B160: 東京電機大学 | C160: 116 | D160: 5765000
B161: 琉球大学 | C161: 109 | D161: 955000
B162: 久留米大学 | C162: 107 | D162: 3189000
B163: 埼玉医科大学 | C163: 98 | D163: 9046000
B164: 富山県立大学 | C164: 94 | D164: 1681000
B165: 藤田医科大学 | C165: 94 | D165: 0
B166: 明治大学 | C166: 92 | D166: 4567000
B167: 北見工業大学 | C167: 89 | D167: 729000
B168: 静岡県立大学 | C168: 88 | D168: 0
B169: 和歌山大学 | C169: 88 | D169: 4976000
B170: 関東学院大学 | C170: 85 | D170: 10815000
B171: 神奈川工科大学 | C171: 77 | D171: 356000
B172: 帝京大学 | C172: 75 | D172: 3411000
B173: 昭和大学 | C173: 73 | D173: 36130000
B174: 奈良県立医科大学 | C174: 72 | D174: 643000
B175: 福岡工業大学 | C175: 70 | D175: 200000
B176: 法政大学 | C176: 68 | D176: 1375000
B177: 東亜大学 | C177: 67 | D177: 0
B178: 兵庫医科大学 | C178: 65 | D178: 909000
B179: 聖マリアンナ医科大学 | C179: 61 | D179: 9075000
B180: 室蘭工業大学 | C180: 60 | D180: 14000
B181: 秋田県立大学 | C181: 60 | D181: 1505000
B182: 福島大学 | C182: 60 | D182: 48000
B183: 日本医科大学 | C183: 60 | D183: 5693000
B184: 岡山理科大学 | C184: 58 | D184: 2541000
B185: 産業医科大学 | C185: 57 | D185: 2114000
B186: 東洋大学 | C186: 56 | D186: 1565000
B187: 帯広畜産大学 | C187: 55 | D187: 2369000
B188: 会津大学 | C188: 55 | D188: 220000
B189: 立教大学 | C189: 55 | D189: 18000
B190: 北九州市立大学 | C190: 55 | D190: 9601000
B191: 旭川医科大学 | C191: 53 | D191: 11185000
B192: お茶の水女子大学 | C192: 53 | D192: 0
B193: 工学院大学 | C193: 53 | D193: 1312000
B194: 大阪工業大学 | C194: 53 | D194: 0
B195: 玉川大学 | C195: 50 | D195: 335000
B196: 関西医科大学 | C196: 50 | D196: 3255000
B197: 熊本保健科学大学 | C197: 49 | D197: 7000
B198: 東京農業大学 | C198: 48 | D198: 0
B199: 甲南大学 | C199: 47 | D199: 1103000
B200: 東邦大学 | C200: 46 | D200: 1329000
B201: 龍谷大学 | C201: 44 | D201: 930000
B202: 広島市立大学 | C202: 44 | D202: 84000
B203: 大同大学 | C203: 42 | D203: 0
B204: 麻布大学 | C204: 39 | D204: 2179000
B205: 岩手県立大学 | C205: 37 | D205: 54000
B206: 東京薬科大学 | C206: 35 | D206: 2478000
B207: 青山学院大学 | C207: 34 | D207: 0
B208: 岩手医科大学 | C208: 33 | D208: 15000
B209: 愛知工業大学 | C209: 32 | D209: 165000
... 642 more rows

Sheet 筑波大学 (hidden)
A1: 国立 | C1: 筑波大学 | X1: 大学全体の経営理念における産学官連携活動の取組方針 | CY1: 103 | CZ1: 104 | DA1: 105 | DB1: 106 | DC1: 107 | DD1: 108 | DE1: 109 | DF1: 110 | DG1: 111 | DH1: 112 | DI1: 113 | DJ1: 114 | DK1: 115 | DL1: 116 | DM1: 117 | DN1: 118 | DO1: 119 | DP1: 120 | DQ1: 121 | DR1: 122 | DS1: 123 | DT1: 124 | DU1: 125 | DV1: 126 | DW1: 127 | DX1: 128 | DY1: 129
X2: 大学経営に資する産学官連携の強化
C3: (茨城県) | BC3: ＵＲＡ | BO3: URA当たりの研究者数 | CB3: 戦略的産学官連携経費
BC4: 実務担当者数 | BI4: 41 | BN4: 名 | BO4: =IFERROR(K29/BI4,"") -> 60.14634146 | BX4: 名 | CB4: 戦略的産学官連携経費の設定 | CP4: 有 | CT4: 無 | CZ4: ある | DA4: 相談窓口
CB5: 戦略的産学官連携経費の費目 | CP5: 間接経費 | CZ5: ない | DA5: 支援ファンド
A6: 基 礎 情 報 | BC6: 各種規程類の整備状況 | CB6: 戦略的産学官連携経費の直接経費に対する割合 | CP6: 0.3 | CZ6: ある | DA6: インキュベーション施設 | DI6: ◎ | DJ6: 産学官連携ポリシー
BC7: 産学官連携ポリシー | BN7: 職務発明規程（教職員のみ対象） | CZ7: ある | DA7: 知的財産戦略 | DI7: ◎ | DJ7: 知的財産ポリシー
B8: 大学の得意分野とその具体例 | BC8: 知的財産ポリシー | BN8: 職務発明規程（教職員、学生対象） | CB8: 人件費の企業負担 | DI8: ◎ | DJ8: 共同研究取扱規程
B9: (1)系（研究領域）の垣根がない学際性を活かした産学官融合拠点（12の開発研究センター） | AA9: 科研費 （千円） | AL9: その他政府系資金 (千円) | AS9: その他団体からの資金 (千円) | BC9: 共同研究取扱規程 | BN9: 発明補償関係規程（教職員のみ対象） | CB9: 教員人件費の企業負担に関する規程や制度 | CP9: 有 | CT9: 無 | DI9: ◎ | DJ9: 受託研究取扱規程
BC10: 受託研究取扱規程 | BN10: 発明補償関係規程（教職員、学生対象） | CB10: 教員人件費の企業負担の費目 | DI10: ◎ | DJ10: 研究成果有体物取扱規程
AA11: 4522106.531 | AL11: 225929 | AS11: 379497 | BC11: 研究成果有体物取扱規程 | BN11: 守秘義務に係る規程（教職員のみ対象） | CB11: 学生人件費の企業負担に関する規程や制度 | CP11: 有 | CT11: 無 | DI11: ◎ | DJ11: 営業秘密管理に関する規程
BC12: 営業秘密管理に関する規程 | BN12: 守秘義務に係る規程（教職員、学生対象） | CB12: 学生人件費の企業負担の費目 | DI12: ◎ | DJ12: 株式の取扱等規程、ポリシー
AA13: 共同研究における間接経費割合 | AN13: 株式の保有 | AT13: 新株予約権の保有 | BC13: 株式の取扱等規程、ポリシー | BN13: 学術指導に関する規程 | DA13: × | DB13: 株式 | DI13: × | DJ13: 職務発明規程（教職員のみ対象）
AA14: 0.3 | AN14: 有 | AQ14: 無 | AT14: 有 | AW14: 無 | BK14: ※各種規定類を整備している場合は、赤色で表示されます。 | CB14: 特別試験研究費税額控除制度 | DA14: ○ | DB14: 新株予約権 | DI14: ◎ | DJ14: 職務発明規程（教職員、学生対象）
B15: 産学官連携活動において今後重点化したい事項 | CB15: 特別試験研究費税額控除制度の活用 | CP15: 有 | CT15: 無 | DI15: × | DJ15: 発明補償関係規程（教職員のみ対象）
B16: (1)組織対組織の連携、オープンイノベーションによる大型共同研究の拡大 | AA16: 共同研究 | AG16: 2021年度 | AO16: 2022年度 | AW16: 順位※ | BC16: クロスアポイントメントの実績 | BK16: 大学等 | BN16: 公的機関 | BQ16: 民間企業 | BU16: その他機関 | DI16: ◎ | DJ16: 発明補償関係規程（教職員、学生対象）
AG17: 受入額（千円） | AL17: 件数 | AO17: 受入額（千円） | AT17: 件数 | BH17: 受入数(名) | BK17: 7 | BN17: 6 | BQ17: 1 | BU17: 4 | DB17: 順位 | DI17: × | DJ17: 守秘義務に係る規程（教職員のみ対象）
AA18: 全体 | AG18: 2129650 | AL18: 635 | AO18: 1980832 | AT18: 649 | AW18: =IF(DB18<50,DB18,"") -> 12 | AY18: 位 | BH18: 派遣数(名) | BK18: 1 | BN18: 1 | BQ18: 3 | BU18: 0 | DB18: 12 | DI18: ◎ | DJ18: 守秘義務に係る規程（教職員、学生対象）
AB19: 民間企業 のみ | AG19: 1836088 | AL19: 546 | AO19: 1703420 | AT19: 561 | AW19: =IF(DB19<50,DB19,"") -> 12 | AY19: 位 | DB19: 12 | DI19: ◎ | DJ19: 学術指導に係る規定
AC20: 大企業 | AG20: 1450706 | AL20: 362 | AO20: 1212061 | AT20: 357 | AW20: 12 | AY20: 位 | BB20: ■組織的産学官連携活動の取組事例 | DB20: 12 | DI20: ある | DJ20: 戦略的産学官連携経費の設定
AC21: 中小企業 | AG21: 385382 | AL21: 184 | AO21: 491359 | AT21: 204 | AW21: 9 | AY21: 位 | DB21: 9 | DI21: ない | DJ21: 教員人件費の企業負担に関する規程や制度
AK22: ※順位は2022年度の受入額を比較したものです。 | DI22: ない | DJ22: 学生人件費の企業負担に関する規程や制度
AK23: ※順位は50位までを記載。51位以下の場合は空欄となります。 | DB23: 0 | DC23: 174 | DI23: ある | DJ23: 特別試験研究費税額控除制度の活用
DB24: ～100万 | DC24: 103
DB25: ～300万 | DC25: 167
DB26: ～500万 | DC26: 50
C27: 産学官連携本部等組織名 | K27: 国際産学連携本部 | DB27: ～1000万 | DC27: 35
C28: 産学官連携本部等URL | K28: https://www.sanrenhonbu.tsukuba.ac.jp/ | DB28: ～5000万 | DC28: 28
C29: 研究者数 | K29: 2466 | O29: 名 | DB29: ～1億 | DC29: 3 | DJ29: 共同研究等の企画・提案
C30: 実務担当者数 | K30: 58 | O30: 名 | DB30: 1億以上 | DC30: 1 | DJ30: 契約書での成果目標、達成時の明記
C31: 実務者当たり研究者数 | K31: =IFERROR(K29/K30,"") -> 42.51724138 | O31: 名 | DJ31: 共同研究契約の締結/判断（契約権限の集中）
C32: 専門家の配置 | I32: 弁護士 | L32: 弁理士 | O32: 税理士 | R32: 公認会計士 | V32: その他 | DJ32: 共同研究の進捗管理とフィードバック
L33: ※専門家を配置している場合は、赤色で表示されます。 | DJ33: 企業ニーズに適応した技術移転・事業化提案
AA34: 受託研究 | AG34: 2021年度 | AO34: 2022年度 | AW34: 順位※ | DJ34: 共同研究等の企画・提案
AG35: 受入額（千円） | AL35: 件数 | AO35: 受入額（千円） | AT35: 件数 | DB35: 順位 | DJ35: 契約書での成果目標、達成時の明記
AA36: 全体 | AG36: 5848576 | AL36: 501 | AO36: 5847525 | AT36: 476 | AW36: =IF(DB36<50,DB36,"") -> 11 | AY36: 位 | DB36: 11 | DJ36: 共同研究契約の締結/判断（契約権限の集中）
AA37: 民間企業 のみ | AG37: 146482 | AL37: 73 | AO37: 123508 | AT37: 61 | AW37: =IF(DB37<50,DB37,"") -> 29 | AY37: 位 | DB37: 29 | DJ37: 共同研究の進捗管理とフィードバック
C38: 産学官連携本部が関与した共同研究 | P38: 34 | T38: 件 | AA38: 大企業 | AG38: 125165 | AL38: 55 | AO38: 101202 | AT38: 49 | AW38: 27 | AY38: 位 | DB38: 27 | DJ38: 企業ニーズに適応した技術移転・事業化提案
D39: 内、マッチングを行い、契約締結した件数 | P39: 3 | T39: 件 | AA39: 中小企業 | AG39: 21317 | AL39: 18 | AO39: 22306 | AT39: 12 | AW39: 36 | AY39: 位 | DB39: 36 | DJ39: 共同研究等の企画・提案
I40: ※1,000万円以上の共同研究 | AK40: ※順位は2022年度の受入額を比較したもの | DB40: 弁護士 | DG40: 0 | DH40: 33 | DJ40: 契約書での成果目標、達成時の明記
AK41: ※順位は50位までを記載。51位以下の場合は空欄となります。 | BB41: ■産学官連携活動の主な実用化事例 | DA41: ○ | DB41: 弁理士 | DG41: ～100万 | DH41: 13 | DJ41: 共同研究契約の締結/判断（契約権限の集中）
C42: 組織対組織による包括連携契約の締結数 | P42: 0 | T42: 件 | DB42: 税理士 | DG42: ～300万 | DH42: 5 | DJ42: 共同研究の進捗管理とフィードバック
D43: 内、1,000万円以上の実績がある相手方数 | P43: 0 | T43: 件 | DB43: 公認会計士 | DG43: ～500万 | DH43: 5 | DJ43: 企業ニーズに適応した技術移転・事業化提案
DA44: ○ | DB44: その他 | DG44: ～1000万 | DH44: 2
C45: 寄附講座・寄附研究部門の受入件数 | P45: 23 | V45: 件 | DG45: ～5000万 | DH45: 3
C46: 寄附講座・寄附研究部門の受入金額（千円） | P46: 1543100 | DG46: ～1億
C47: 共同研究講座・共同研究部門の受入件数 | P47: 0 | V47: 件 | DG47: 1億以上
C48: 共同研究講座・共同研究部門の受入金額（千円） | P48: 0
CZ51: 発明者 | DA51: 大学・発明者・未設定
C52: 職務発明の帰属 | I52: 大学 | M52: 発明者 | Q52: 未設定 | DA52: 職務発明
AD53: 特許権実施等件数 | AL53: 463 | AQ53: 件 | AS53: 実施等件数当たり | DA53: 不実施
I54: 国内 | K54: 外国 | M54: PCT | O54: EPC | AD54: 特許権実施等収入（千円） | AL54: 36213 | AS54: =IF(OR(AL53="",AL54=""),"",IFERROR(AL54/AL53,"")) -> 78.21382289 | CZ54: 36213000 | DA54: 特許権収入
C55: 特許出願件数（件） | I55: 108 | K55: 6 | M55: 37 | O55: 0
C56: 特許保有件数（件） | I56: 572 | K56: 395
C61: 大学発ベンチャー数 | J61: 178 | O61: 社
C62: Exit件数（IPO） | J62: 4 | O62: 社 | P62: Exit件数（M&A） | W62: 0 | Z62: 社
C63: 相談窓口 | K63: 支援ファンド | S63: インキュベーション施設
C64: 有 | G64: 無 | K64: 有 | O64: 無 | S64: 有 | W64: 無
C65: 知的財産戦略方針 | K65: 支援総額（千円） | S65: 面積 | W65: 1233 | Z65: m2
C66: 有 | G66: 無 | K66: 0 | S66: 契約企業数 | W66: 5 | Z66: 社
CY69: 103 | CZ69: 104 | DA69: 105 | DB69: 106 | DC69: 107 | DD69: 108 | DE69: 109 | DF69: 110 | DG69: 111 | DH69: 112 | DI69: 113 | DJ69: 114 | DK69: 115 | DL69: 116 | DM69: 117 | DN69: 118 | DO69: 119 | DP69: 120 | DQ69: 121 | DR69: 122 | DS69: 123 | DT69: 124 | DU69: 125
B70: 東京大学 | C70: 4924 | D70: 613188710 | I70: 148
B71: 東京大学 | C71: 4924 | D71: 613188710 | K71: 967
B72: 東北大学 | C72: 3805 | D72: 208066000
B73: 大阪大学 | C73: 3557 | D73: 414288000
B74: 京都大学 | C74: 3026 | D74: 1119118168
B75: 東京工業大学 | C75: 2084 | D75: 99801000
B76: 九州大学 | C76: 1797 | D76: 164182000
B77: 名古屋大学 | C77: 1604 | D77: 90749000
B78: 北海道大学 | C78: 1314 | D78: 183435000
B79: 信州大学 | C79: 1038 | D79: 37096000
B80: 大阪公立大学 | C80: 975 | D80: 9345000
B81: 筑波大学 | C81: 967 | D81: 36213000
B82: 広島大学 | C82: 919 | D82: 34166000
B83: 千葉大学 | C83: 916 | D83: 16779000
B84: 慶應義塾大学 | C84: 869 | D84: 86996000
B85: 山口大学 | C85: 756 | D85: 29295000
B86: 東京理科大学 | C86: 698 | D86: 23087000
B87: 東京農工大学 | C87: 671 | D87: 60497000
B88: 早稲田大学 | C88: 671 | D88: 27622000
B89: 神戸大学 | C89: 668 | D89: 33659000
B90: 岡山大学 | C90: 624 | D90: 24747000
B91: 名古屋工業大学 | C91: 618 | D91: 32295000
B92: 九州工業大学 | C92: 591 | D92: 8115000
B93: 群馬大学 | C93: 563 | D93: 3087000
B94: 横浜国立大学 | C94: 553 | D94: 15639000
B95: 静岡大学 | C95: 543 | D95: 4244000
B96: 熊本大学 | C96: 539 | D96: 28442000
B97: 近畿大学 | C97: 507 | D97: 22970000
B98: 鹿児島大学 | C98: 475 | D98: 16446000
B99: 山梨大学 | C99: 473 | D99: 8206000
B100: 香川大学 | C100: 469 | D100: 19447000
B101: 長岡技術科学大学 | C101: 465 | D101: 3690000
B102: 東京医科歯科大学 | C102: 461 | D102: 28044000
B103: 東京都立大学 | C103: 447 | D103: 2416000
B104: 関西大学 | C104: 445 | D104: 3261000
B105: 三重大学 | C105: 443 | D105: 28808000
B106: 豊橋技術科学大学 | C106: 435 | D106: 6864000
B107: 電気通信大学 | C107: 421 | D107: 7030000
B108: 鳥取大学 | C108: 405 | D108: 137372000
B109: 金沢大学 | C109: 391 | D109: 18050000
B110: 徳島大学 | C110: 390 | D110: 20264000
B111: 奈良先端科学技術大学院大学 | C111: 382 | D111: 39711000
B112: 新潟大学 | C112: 373 | D112: 9369000
B113: 山形大学 | C113: 363 | D113: 2866000
B114: 北里大学 | C114: 346 | D114: 66133000
B115: 立命館大学 | C115: 330 | D115: 9311000
B116: 富山大学 | C116: 328 | D116: 10861000
B117: 埼玉大学 | C117: 320 | D117: 3578000
B118: 同志社大学 | C118: 317 | D118: 4884000
B119: 高知大学 | C119: 314 | D119: 20578000
B120: 弘前大学 | C120: 294 | D120: 8072000
B121: 日本大学 | C121: 283 | D121: 36278000
B122: 兵庫県立大学 | C122: 279 | D122: 1051000
B123: 名城大学 | C123: 276 | D123: 28093000
B124: 岐阜大学 | C124: 274 | D124: 10679000
B125: 横浜市立大学 | C125: 260 | D125: 37933000
B126: 札幌医科大学 | C126: 258 | D126: 19373000
B127: 京都府立医科大学 | C127: 258 | D127: 12241000
B128: 佐賀大学 | C128: 257 | D128: 8596000
B129: 京都工芸繊維大学 | C129: 252 | D129: 368000
B130: 福井大学 | C130: 245 | D130: 8596000
B131: 宮崎大学 | C131: 244 | D131: 1648000
B132: 神奈川大学 | C132: 243 | D132: 5675000
B133: 東海大学 | C133: 232 | D133: 1120000
B134: 岩手大学 | C134: 227 | D134: 6652000
B135: 秋田大学 | C135: 224 | D135: 1688000
B136: 愛媛大学 | C136: 203 | D136: 26470000
B137: 長崎大学 | C137: 203 | D137: 33702000
B138: 東京海洋大学 | C138: 199 | D138: 4576000
B139: 北陸先端科学技術大学院大学 | C139: 192 | D139: 1763000
B140: 沖縄科学技術大学院大学 | C140: 190 | D140: 1460000
B141: 福岡大学 | C141: 189 | D141: 875000
B142: 関西学院大学 | C142: 186 | D142: 25624000
B143: 東京女子医科大学 | C143: 185 | D143: 2817000
B144: 宇都宮大学 | C144: 179 | D144: 1976000
B145: 中央大学 | C145: 170 | D145: 3131000
B146: 上智大学 | C146: 167 | D146: 0
B147: 高知工科大学 | C147: 167 | D147: 45000
B148: 茨城大学 | C148: 155 | D148: 1545000
B149: 金沢工業大学 | C149: 149 | D149: 2786000
B150: 大分大学 | C150: 148 | D150: 4155000
B151: 千葉工業大学 | C151: 147 | D151: 2134000
B152: 浜松医科大学 | C152: 146 | D152: 1429000
B153: 順天堂大学 | C153: 142 | D153: 4289000
B154: 滋賀医科大学 | C154: 141 | D154: 5567000
B155: 中部大学 | C155: 135 | D155: 675000
B156: 島根大学 | C156: 134 | D156: 1585000
B157: 名古屋市立大学 | C157: 124 | D157: 17845000
B158: 豊田工業大学 | C158: 123 | D158: 50000
B159: 芝浦工業大学 | C159: 120 | D159: 441000
B160: 東京電機大学 | C160: 116 | D160: 5765000
B161: 琉球大学 | C161: 109 | D161: 955000
B162: 久留米大学 | C162: 107 | D162: 3189000
B163: 埼玉医科大学 | C163: 98 | D163: 9046000
B164: 富山県立大学 | C164: 94 | D164: 1681000
B165: 藤田医科大学 | C165: 94 | D165: 0
B166: 明治大学 | C166: 92 | D166: 4567000
B167: 北見工業大学 | C167: 89 | D167: 729000
B168: 静岡県立大学 | C168: 88 | D168: 0
B169: 和歌山大学 | C169: 88 | D169: 4976000
B170: 関東学院大学 | C170: 85 | D170: 10815000
B171: 神奈川工科大学 | C171: 77 | D171: 356000
B172: 帝京大学 | C172: 75 | D172: 3411000
B173: 昭和大学 | C173: 73 | D173: 36130000
B174: 奈良県立医科大学 | C174: 72 | D174: 643000
B175: 福岡工業大学 | C175: 70 | D175: 200000
B176: 法政大学 | C176: 68 | D176: 1375000
B177: 東亜大学 | C177: 67 | D177: 0
B178: 兵庫医科大学 | C178: 65 | D178: 909000
B179: 聖マリアンナ医科大学 | C179: 61 | D179: 9075000
B180: 室蘭工業大学 | C180: 60 | D180: 14000
B181: 秋田県立大学 | C181: 60 | D181: 1505000
B182: 福島大学 | C182: 60 | D182: 48000
B183: 日本医科大学 | C183: 60 | D183: 5693000
B184: 岡山理科大学 | C184: 58 | D184: 2541000
B185: 産業医科大学 | C185: 57 | D185: 2114000
B186: 東洋大学 | C186: 56 | D186: 1565000
B187: 帯広畜産大学 | C187: 55 | D187: 2369000
B188: 会津大学 | C188: 55 | D188: 220000
B189: 立教大学 | C189: 55 | D189: 18000
B190: 北九州市立大学 | C190: 55 | D190: 9601000
B191: 旭川医科大学 | C191: 53 | D191: 11185000
B192: お茶の水女子大学 | C192: 53 | D192: 0
B193: 工学院大学 | C193: 53 | D193: 1312000
B194: 大阪工業大学 | C194: 53 | D194: 0
B195: 玉川大学 | C195: 50 | D195: 335000
B196: 関西医科大学 | C196: 50 | D196: 3255000
B197: 熊本保健科学大学 | C197: 49 | D197: 7000
B198: 東京農業大学 | C198: 48 | D198: 0
B199: 甲南大学 | C199: 47 | D199: 1103000
B200: 東邦大学 | C200: 46 | D200: 1329000
B201: 龍谷大学 | C201: 44 | D201: 930000
B202: 広島市立大学 | C202: 44 | D202: 84000
B203: 大同大学 | C203: 42 | D203: 0
B204: 麻布大学 | C204: 39 | D204: 2179000
B205: 岩手県立大学 | C205: 37 | D205: 54000
B206: 東京薬科大学 | C206: 35 | D206: 2478000
B207: 青山学院大学 | C207: 34 | D207: 0
B208: 岩手医科大学 | C208: 33 | D208: 15000
... 643 more rows

Sheet 筑波技術大学 (hidden)
A1: 国立 | C1: 筑波技術大学 | X1: 大学全体の経営理念における産学官連携活動の取組方針 | CY1: 103 | CZ1: 104 | DA1: 105 | DB1: 106 | DC1: 107 | DD1: 108 | DE1: 109 | DF1: 110 | DG1: 111 | DH1: 112 | DI1: 113 | DJ1: 114 | DK1: 115 | DL1: 116 | DM1: 117 | DN1: 118 | DO1: 119 | DP1: 120 | DQ1: 121 | DR1: 122 | DS1: 123 | DT1: 124 | DU1: 125 | DV1: 126 | DW1: 127 | DX1: 128 | DY1: 129
C3: (茨城県) | BC3: ＵＲＡ | BO3: URA当たりの研究者数 | CB3: 戦略的産学官連携経費
BC4: 実務担当者数 | BI4: 0 | BN4: 名 | BO4: =IFERROR(K29/BI4,"") ->  | BX4: 名 | CB4: 戦略的産学官連携経費の設定 | CP4: 有 | CT4: 無 | CZ4: ある | DA4: 相談窓口
CB5: 戦略的産学官連携経費の費目 | CZ5: ない | DA5: 支援ファンド
A6: 基 礎 情 報 | BC6: 各種規程類の整備状況 | CB6: 戦略的産学官連携経費の直接経費に対する割合 | CZ6: ある | DA6: インキュベーション施設 | DI6: ◎ | DJ6: 産学官連携ポリシー
BC7: 産学官連携ポリシー | BN7: 職務発明規程（教職員のみ対象） | CZ7: ない | DA7: 知的財産戦略 | DI7: × | DJ7: 知的財産ポリシー
B8: 大学の得意分野とその具体例 | BC8: 知的財産ポリシー | BN8: 職務発明規程（教職員、学生対象） | CB8: 人件費の企業負担 | DI8: ◎ | DJ8: 共同研究取扱規程
AA9: 科研費 （千円） | AL9: その他政府系資金 (千円) | AS9: その他団体からの資金 (千円) | BC9: 共同研究取扱規程 | BN9: 発明補償関係規程（教職員のみ対象） | CB9: 教員人件費の企業負担に関する規程や制度 | CP9: 有 | CT9: 無 | DI9: ◎ | DJ9: 受託研究取扱規程
BC10: 受託研究取扱規程 | BN10: 発明補償関係規程（教職員、学生対象） | CB10: 教員人件費の企業負担の費目 | DI10: ◎ | DJ10: 研究成果有体物取扱規程
AA11: 83163 | AL11: 1000 | AS11: 25133 | BC11: 研究成果有体物取扱規程 | BN11: 守秘義務に係る規程（教職員のみ対象） | CB11: 学生人件費の企業負担に関する規程や制度 | CP11: 有 | CT11: 無 | DI11: × | DJ11: 営業秘密管理に関する規程
BC12: 営業秘密管理に関する規程 | BN12: 守秘義務に係る規程（教職員、学生対象） | CB12: 学生人件費の企業負担の費目 | DI12: × | DJ12: 株式の取扱等規程、ポリシー
AA13: 共同研究における間接経費割合 | AN13: 株式の保有 | AT13: 新株予約権の保有 | BC13: 株式の取扱等規程、ポリシー | BN13: 学術指導に関する規程 | DA13: × | DB13: 株式 | DI13: × | DJ13: 職務発明規程（教職員のみ対象）
AA14: 0 | AN14: 有 | AQ14: 無 | AT14: 有 | AW14: 無 | BK14: ※各種規定類を整備している場合は、赤色で表示されます。 | CB14: 特別試験研究費税額控除制度 | DA14: × | DB14: 新株予約権 | DI14: ◎ | DJ14: 職務発明規程（教職員、学生対象）
B15: 産学官連携活動において今後重点化したい事項 | CB15: 特別試験研究費税額控除制度の活用 | CP15: 有 | CT15: 無 | DI15: × | DJ15: 発明補償関係規程（教職員のみ対象）
AA16: 共同研究 | AG16: 2021年度 | AO16: 2022年度 | AW16: 順位※ | BC16: クロスアポイントメントの実績 | BK16: 大学等 | BN16: 公的機関 | BQ16: 民間企業 | BU16: その他機関 | DI16: ◎ | DJ16: 発明補償関係規程（教職員、学生対象）
AG17: 受入額（千円） | AL17: 件数 | AO17: 受入額（千円） | AT17: 件数 | BH17: 受入数(名) | BK17: 0 | BN17: 0 | BQ17: 0 | BU17: 0 | DB17: 順位 | DI17: × | DJ17: 守秘義務に係る規程（教職員のみ対象）
AA18: 全体 | AG18: 2018 | AL18: 2 | AO18: 1150 | AT18: 2 | AW18: =IF(DB18<50,DB18,"") ->  | AY18: 位 | BH18: 派遣数(名) | BK18: 0 | BN18: 0 | BQ18: 0 | BU18: 0 | DB18: 401 | DI18: ◎ | DJ18: 守秘義務に係る規程（教職員、学生対象）
AB19: 民間企業 のみ | AG19: 2018 | AL19: 2 | AO19: 1150 | AT19: 2 | AW19: =IF(DB19<50,DB19,"") ->  | AY19: 位 | DB19: 376 | DI19: △ | DJ19: 学術指導に係る規定
AC20: 大企業 | AG20: 440 | AL20: 1 | AO20: 1000 | AT20: 1 | AY20: 位 | BB20: ■組織的産学官連携活動の取組事例 | DB20: 350 | DI20: ない | DJ20: 戦略的産学官連携経費の設定
AC21: 中小企業 | AG21: 1578 | AL21: 1 | AO21: 150 | AT21: 1 | AY21: 位 | DB21: 347 | DI21: ない | DJ21: 教員人件費の企業負担に関する規程や制度
AK22: ※順位は2022年度の受入額を比較したものです。 | DI22: ない | DJ22: 学生人件費の企業負担に関する規程や制度
AK23: ※順位は50位までを記載。51位以下の場合は空欄となります。 | DB23: 0 | DI23: ない | DJ23: 特別試験研究費税額控除制度の活用
DB24: ～100万 | DC24: 1
DB25: ～300万 | DC25: 1
DB26: ～500万
C27: 産学官連携本部等組織名 | DB27: ～1000万
C28: 産学官連携本部等URL | DB28: ～5000万
C29: 研究者数 | K29: 228 | O29: 名 | DB29: ～1億 | DJ29: 共同研究等の企画・提案
C30: 実務担当者数 | K30: 2 | O30: 名 | DB30: 1億以上 | DJ30: 契約書での成果目標、達成時の明記
C31: 実務者当たり研究者数 | K31: =IFERROR(K29/K30,"") -> 114 | O31: 名 | DJ31: 共同研究契約の締結/判断（契約権限の集中）
C32: 専門家の配置 | I32: 弁護士 | L32: 弁理士 | O32: 税理士 | R32: 公認会計士 | V32: その他 | DJ32: 共同研究の進捗管理とフィードバック
L33: ※専門家を配置している場合は、赤色で表示されます。 | DJ33: 企業ニーズに適応した技術移転・事業化提案
AA34: 受託研究 | AG34: 2021年度 | AO34: 2022年度 | AW34: 順位※ | DJ34: 共同研究等の企画・提案
AG35: 受入額（千円） | AL35: 件数 | AO35: 受入額（千円） | AT35: 件数 | DB35: 順位 | DJ35: 契約書での成果目標、達成時の明記
AA36: 全体 | AG36: 7388 | AL36: 9 | AO36: 6415 | AT36: 6 | AW36: =IF(DB36<50,DB36,"") ->  | AY36: 位 | DB36: 330 | DJ36: 共同研究契約の締結/判断（契約権限の集中）
AA37: 民間企業 のみ | AG37: 708 | AL37: 3 | AO37: 3380 | AT37: 2 | AW37: =IF(DB37<50,DB37,"") ->  | AY37: 位 | DB37: 220 | DJ37: 共同研究の進捗管理とフィードバック
C38: 産学官連携本部が関与した共同研究 | P38: 0 | T38: 件 | AA38: 大企業 | AG38: 500 | AL38: 2 | AO38: 3380 | AT38: 2 | AY38: 位 | DB38: 184 | DJ38: 企業ニーズに適応した技術移転・事業化提案
D39: 内、マッチングを行い、契約締結した件数 | P39: 0 | T39: 件 | AA39: 中小企業 | AG39: 208 | AL39: 1 | AO39: 0 | AT39: 0 | AY39: 位 | DB39: 311 | DJ39: 共同研究等の企画・提案
I40: ※1,000万円以上の共同研究 | AK40: ※順位は2022年度の受入額を比較したもの | DB40: 弁護士 | DG40: 0 | DJ40: 契約書での成果目標、達成時の明記
AK41: ※順位は50位までを記載。51位以下の場合は空欄となります。 | BB41: ■産学官連携活動の主な実用化事例 | DB41: 弁理士 | DG41: ～100万 | DJ41: 共同研究契約の締結/判断（契約権限の集中）
C42: 組織対組織による包括連携契約の締結数 | P42: 0 | T42: 件 | DB42: 税理士 | DG42: ～300万 | DH42: 2 | DJ42: 共同研究の進捗管理とフィードバック
D43: 内、1,000万円以上の実績がある相手方数 | P43: 0 | T43: 件 | DB43: 公認会計士 | DG43: ～500万 | DJ43: 企業ニーズに適応した技術移転・事業化提案
DB44: その他 | DG44: ～1000万
C45: 寄附講座・寄附研究部門の受入件数 | P45: 0 | V45: 件 | DG45: ～5000万
C46: 寄附講座・寄附研究部門の受入金額（千円） | P46: 0 | DG46: ～1億
C47: 共同研究講座・共同研究部門の受入件数 | P47: 0 | V47: 件 | DG47: 1億以上
C48: 共同研究講座・共同研究部門の受入金額（千円） | P48: 0
CZ51: 大学 | DA51: 大学・発明者・未設定
C52: 職務発明の帰属 | I52: 大学 | M52: 発明者 | Q52: 未設定 | DA52: 職務発明
AD53: 特許権実施等件数 | AL53: 0 | AQ53: 件 | AS53: 実施等件数当たり | DA53: 不実施
I54: 国内 | K54: 外国 | M54: PCT | O54: EPC | AD54: 特許権実施等収入（千円） | AL54: 0 | AS54: =IF(OR(AL53="",AL54=""),"",IFERROR(AL54/AL53,"")) ->  | CZ54: 0 | DA54: 特許権収入
C55: 特許出願件数（件） | I55: 1 | K55: 0 | M55: 0 | O55: 0
C56: 特許保有件数（件） | I56: 4 | K56: 0
C61: 大学発ベンチャー数 | J61: 0 | O61: 社
C62: Exit件数（IPO） | J62: 0 | O62: 社 | P62: Exit件数（M&A） | W62: 0 | Z62: 社
C63: 相談窓口 | K63: 支援ファンド | S63: インキュベーション施設
C64: 有 | G64: 無 | K64: 有 | O64: 無 | S64: 有 | W64: 無
C65: 知的財産戦略方針 | K65: 支援総額（千円） | S65: 面積 | W65: 212 | Z65: m2
C66: 有 | G66: 無 | K66: 0 | S66: 契約企業数 | W66: 0 | Z66: 社
CY69: 103 | CZ69: 104 | DA69: 105 | DB69: 106 | DC69: 107 | DD69: 108 | DE69: 109 | DF69: 110 | DG69: 111 | DH69: 112 | DI69: 113 | DJ69: 114 | DK69: 115 | DL69: 116 | DM69: 117 | DN69: 118 | DO69: 119 | DP69: 120 | DQ69: 121 | DR69: 122 | DS69: 123 | DT69: 124 | DU69: 125
B70: 東京大学 | C70: 4924 | D70: 613188710 | I70: 148
B71: 東京大学 | C71: 4924 | D71: 613188710 | K71: 4
B72: 東北大学 | C72: 3805 | D72: 208066000
B73: 大阪大学 | C73: 3557 | D73: 414288000
B74: 京都大学 | C74: 3026 | D74: 1119118168
B75: 東京工業大学 | C75: 2084 | D75: 99801000
B76: 九州大学 | C76: 1797 | D76: 164182000
B77: 名古屋大学 | C77: 1604 | D77: 90749000
B78: 北海道大学 | C78: 1314 | D78: 183435000
B79: 信州大学 | C79: 1038 | D79: 37096000
B80: 大阪公立大学 | C80: 975 | D80: 9345000
B81: 筑波大学 | C81: 967 | D81: 36213000
B82: 広島大学 | C82: 919 | D82: 34166000
B83: 千葉大学 | C83: 916 | D83: 16779000
B84: 慶應義塾大学 | C84: 869 | D84: 86996000
B85: 山口大学 | C85: 756 | D85: 29295000
B86: 東京理科大学 | C86: 698 | D86: 23087000
B87: 東京農工大学 | C87: 671 | D87: 60497000
B88: 早稲田大学 | C88: 671 | D88: 27622000
B89: 神戸大学 | C89: 668 | D89: 33659000
B90: 岡山大学 | C90: 624 | D90: 24747000
B91: 名古屋工業大学 | C91: 618 | D91: 32295000
B92: 九州工業大学 | C92: 591 | D92: 8115000
B93: 群馬大学 | C93: 563 | D93: 3087000
B94: 横浜国立大学 | C94: 553 | D94: 15639000
B95: 静岡大学 | C95: 543 | D95: 4244000
B96: 熊本大学 | C96: 539 | D96: 28442000
B97: 近畿大学 | C97: 507 | D97: 22970000
B98: 鹿児島大学 | C98: 475 | D98: 16446000
B99: 山梨大学 | C99: 473 | D99: 8206000
B100: 香川大学 | C100: 469 | D100: 19447000
B101: 長岡技術科学大学 | C101: 465 | D101: 3690000
B102: 東京医科歯科大学 | C102: 461 | D102: 28044000
B103: 東京都立大学 | C103: 447 | D103: 2416000
B104: 関西大学 | C104: 445 | D104: 3261000
B105: 三重大学 | C105: 443 | D105: 28808000
B106: 豊橋技術科学大学 | C106: 435 | D106: 6864000
B107: 電気通信大学 | C107: 421 | D107: 7030000
B108: 鳥取大学 | C108: 405 | D108: 137372000
B109: 金沢大学 | C109: 391 | D109: 18050000
B110: 徳島大学 | C110: 390 | D110: 20264000
B111: 奈良先端科学技術大学院大学 | C111: 382 | D111: 39711000
B112: 新潟大学 | C112: 373 | D112: 9369000
B113: 山形大学 | C113: 363 | D113: 2866000
B114: 北里大学 | C114: 346 | D114: 66133000
B115: 立命館大学 | C115: 330 | D115: 9311000
B116: 富山大学 | C116: 328 | D116: 10861000
B117: 埼玉大学 | C117: 320 | D117: 3578000
B118: 同志社大学 | C118: 317 | D118: 4884000
B119: 高知大学 | C119: 314 | D119: 20578000
B120: 弘前大学 | C120: 294 | D120: 8072000
B121: 日本大学 | C121: 283 | D121: 36278000
B122: 兵庫県立大学 | C122: 279 | D122: 1051000
B123: 名城大学 | C123: 276 | D123: 28093000
B124: 岐阜大学 | C124: 274 | D124: 10679000
B125: 横浜市立大学 | C125: 260 | D125: 37933000
B126: 札幌医科大学 | C126: 258 | D126: 19373000
B127: 京都府立医科大学 | C127: 258 | D127: 12241000
B128: 佐賀大学 | C128: 257 | D128: 8596000
B129: 京都工芸繊維大学 | C129: 252 | D129: 368000
B130: 福井大学 | C130: 245 | D130: 8596000
B131: 宮崎大学 | C131: 244 | D131: 1648000
B132: 神奈川大学 | C132: 243 | D132: 5675000
B133: 東海大学 | C133: 232 | D133: 1120000
B134: 岩手大学 | C134: 227 | D134: 6652000
B135: 秋田大学 | C135: 224 | D135: 1688000
B136: 愛媛大学 | C136: 203 | D136: 26470000
B137: 長崎大学 | C137: 203 | D137: 33702000
B138: 東京海洋大学 | C138: 199 | D138: 4576000
B139: 北陸先端科学技術大学院大学 | C139: 192 | D139: 1763000
B140: 沖縄科学技術大学院大学 | C140: 190 | D140: 1460000
B141: 福岡大学 | C141: 189 | D141: 875000
B142: 関西学院大学 | C142: 186 | D142: 25624000
B143: 東京女子医科大学 | C143: 185 | D143: 2817000
B144: 宇都宮大学 | C144: 179 | D144: 1976000
B145: 中央大学 | C145: 170 | D145: 3131000
B146: 上智大学 | C146: 167 | D146: 0
B147: 高知工科大学 | C147: 167 | D147: 45000
B148: 茨城大学 | C148: 155 | D148: 1545000
B149: 金沢工業大学 | C149: 149 | D149: 2786000
B150: 大分大学 | C150: 148 | D150: 4155000
B151: 千葉工業大学 | C151: 147 | D151: 2134000
B152: 浜松医科大学 | C152: 146 | D152: 1429000
B153: 順天堂大学 | C153: 142 | D153: 4289000
B154: 滋賀医科大学 | C154: 141 | D154: 5567000
B155: 中部大学 | C155: 135 | D155: 675000
B156: 島根大学 | C156: 134 | D156: 1585000
B157: 名古屋市立大学 | C157: 124 | D157: 17845000
B158: 豊田工業大学 | C158: 123 | D158: 50000
B159: 芝浦工業大学 | C159: 120 | D159: 441000
B160: 東京電機大学 | C160: 116 | D160: 5765000
B161: 琉球大学 | C161: 109 | D161: 955000
B162: 久留米大学 | C162: 107 | D162: 3189000
B163: 埼玉医科大学 | C163: 98 | D163: 9046000
B164: 富山県立大学 | C164: 94 | D164: 1681000
B165: 藤田医科大学 | C165: 94 | D165: 0
B166: 明治大学 | C166: 92 | D166: 4567000
B167: 北見工業大学 | C167: 89 | D167: 729000
B168: 静岡県立大学 | C168: 88 | D168: 0
B169: 和歌山大学 | C169: 88 | D169: 4976000
B170: 関東学院大学 | C170: 85 | D170: 10815000
B171: 神奈川工科大学 | C171: 77 | D171: 356000
B172: 帝京大学 | C172: 75 | D172: 3411000
B173: 昭和大学 | C173: 73 | D173: 36130000
B174: 奈良県立医科大学 | C174: 72 | D174: 643000
B175: 福岡工業大学 | C175: 70 | D175: 200000
B176: 法政大学 | C176: 68 | D176: 1375000
B177: 東亜大学 | C177: 67 | D177: 0
B178: 兵庫医科大学 | C178: 65 | D178: 909000
B179: 聖マリアンナ医科大学 | C179: 61 | D179: 9075000
B180: 室蘭工業大学 | C180: 60 | D180: 14000
B181: 秋田県立大学 | C181: 60 | D181: 1505000
B182: 福島大学 | C182: 60 | D182: 48000
B183: 日本医科大学 | C183: 60 | D183: 5693000
B184: 岡山理科大学 | C184: 58 | D184: 2541000
B185: 産業医科大学 | C185: 57 | D185: 2114000
B186: 東洋大学 | C186: 56 | D186: 1565000
B187: 帯広畜産大学 | C187: 55 | D187: 2369000
B188: 会津大学 | C188: 55 | D188: 220000
B189: 立教大学 | C189: 55 | D189: 18000
B190: 北九州市立大学 | C190: 55 | D190: 9601000
B191: 旭川医科大学 | C191: 53 | D191: 11185000
B192: お茶の水女子大学 | C192: 53 | D192: 0
B193: 工学院大学 | C193: 53 | D193: 1312000
B194: 大阪工業大学 | C194: 53 | D194: 0
B195: 玉川大学 | C195: 50 | D195: 335000
B196: 関西医科大学 | C196: 50 | D196: 3255000
B197: 熊本保健科学大学 | C197: 49 | D197: 7000
B198: 東京農業大学 | C198: 48 | D198: 0
B199: 甲南大学 | C199: 47 | D199: 1103000
B200: 東邦大学 | C200: 46 | D200: 1329000
B201: 龍谷大学 | C201: 44 | D201: 930000
B202: 広島市立大学 | C202: 44 | D202: 84000
B203: 大同大学 | C203: 42 | D203: 0
B204: 麻布大学 | C204: 39 | D204: 2179000
B205: 岩手県立大学 | C205: 37 | D205: 54000
B206: 東京薬科大学 | C206: 35 | D206: 2478000
B207: 青山学院大学 | C207: 34 | D207: 0
B208: 岩手医科大学 | C208: 33 | D208: 15000
B209: 愛知工業大学 | C209: 32 | D209: 165000
... 642 more rows

Sheet 宇都宮大学 (hidden)
A1: 国立 | C1: 宇都宮大学 | X1: 大学全体の経営理念における産学官連携活動の取組方針 | CY1: 103 | CZ1: 104 | DA1: 105 | DB1: 106 | DC1: 107 | DD1: 108 | DE1: 109 | DF1: 110 | DG1: 111 | DH1: 112 | DI1: 113 | DJ1: 114 | DK1: 115 | DL1: 116 | DM1: 117 | DN1: 118 | DO1: 119 | DP1: 120 | DQ1: 121 | DR1: 122 | DS1: 123 | DT1: 124 | DU1: 125 | DV1: 126 | DW1: 127 | DX1: 128 | DY1: 129
C3: (栃木県) | BC3: ＵＲＡ | BO3: URA当たりの研究者数 | CB3: 戦略的産学官連携経費
BC4: 実務担当者数 | BI4: 4 | BN4: 名 | BO4: =IFERROR(K29/BI4,"") -> 99 | BX4: 名 | CB4: 戦略的産学官連携経費の設定 | CP4: 有 | CT4: 無 | CZ4: ある | DA4: 相談窓口
CB5: 戦略的産学官連携経費の費目 | CP5: 戦略の産学連携経費 | CZ5: ない | DA5: 支援ファンド
A6: 基 礎 情 報 | BC6: 各種規程類の整備状況 | CB6: 戦略的産学官連携経費の直接経費に対する割合 | CZ6: ある | DA6: インキュベーション施設 | DI6: ◎ | DJ6: 産学官連携ポリシー
BC7: 産学官連携ポリシー | BN7: 職務発明規程（教職員のみ対象） | CZ7: ない | DA7: 知的財産戦略 | DI7: × | DJ7: 知的財産ポリシー
B8: 大学の得意分野とその具体例 | BC8: 知的財産ポリシー | BN8: 職務発明規程（教職員、学生対象） | CB8: 人件費の企業負担 | DI8: ◎ | DJ8: 共同研究取扱規程
AA9: 科研費 （千円） | AL9: その他政府系資金 (千円) | AS9: その他団体からの資金 (千円) | BC9: 共同研究取扱規程 | BN9: 発明補償関係規程（教職員のみ対象） | CB9: 教員人件費の企業負担に関する規程や制度 | CP9: 有 | CT9: 無 | DI9: ◎ | DJ9: 受託研究取扱規程
BC10: 受託研究取扱規程 | BN10: 発明補償関係規程（教職員、学生対象） | CB10: 教員人件費の企業負担の費目 | DI10: × | DJ10: 研究成果有体物取扱規程
AA11: 405343 | AL11: 121669 | AS11: 0 | BC11: 研究成果有体物取扱規程 | BN11: 守秘義務に係る規程（教職員のみ対象） | CB11: 学生人件費の企業負担に関する規程や制度 | CP11: 有 | CT11: 無 | DI11: × | DJ11: 営業秘密管理に関する規程
BC12: 営業秘密管理に関する規程 | BN12: 守秘義務に係る規程（教職員、学生対象） | CB12: 学生人件費の企業負担の費目 | DI12: × | DJ12: 株式の取扱等規程、ポリシー
AA13: 共同研究における間接経費割合 | AN13: 株式の保有 | AT13: 新株予約権の保有 | BC13: 株式の取扱等規程、ポリシー | BN13: 学術指導に関する規程 | DA13: × | DB13: 株式 | DI13: × | DJ13: 職務発明規程（教職員のみ対象）
AA14: 0.3 | AN14: 有 | AQ14: 無 | AT14: 有 | AW14: 無 | BK14: ※各種規定類を整備している場合は、赤色で表示されます。 | CB14: 特別試験研究費税額控除制度 | DA14: × | DB14: 新株予約権 | DI14: ◇ | DJ14: 職務発明規程（教職員、学生対象）
B15: 産学官連携活動において今後重点化したい事項 | CB15: 特別試験研究費税額控除制度の活用 | CP15: 有 | CT15: 無 | DI15: × | DJ15: 発明補償関係規程（教職員のみ対象）
AA16: 共同研究 | AG16: 2021年度 | AO16: 2022年度 | AW16: 順位※ | BC16: クロスアポイントメントの実績 | BK16: 大学等 | BN16: 公的機関 | BQ16: 民間企業 | BU16: その他機関 | DI16: × | DJ16: 発明補償関係規程（教職員、学生対象）
AG17: 受入額（千円） | AL17: 件数 | AO17: 受入額（千円） | AT17: 件数 | BH17: 受入数(名) | BK17: 1 | BN17: 0 | BQ17: 1 | BU17: 0 | DB17: 順位 | DI17: × | DJ17: 守秘義務に係る規程（教職員のみ対象）
AA18: 全体 | AG18: 188682 | AL18: 166 | AO18: 221055 | AT18: 134 | AW18: =IF(DB18<50,DB18,"") ->  | AY18: 位 | BH18: 派遣数(名) | BK18: 0 | BN18: 0 | BQ18: 0 | BU18: 0 | DB18: 69 | DI18: × | DJ18: 守秘義務に係る規程（教職員、学生対象）
AB19: 民間企業 のみ | AG19: 171516 | AL19: 142 | AO19: 208980 | AT19: 113 | AW19: =IF(DB19<50,DB19,"") ->  | AY19: 位 | DB19: 67 | DI19: ◎ | DJ19: 学術指導に係る規定
AC20: 大企業 | AG20: 102118 | AL20: 75 | AO20: 154553 | AT20: 66 | AY20: 位 | BB20: ■組織的産学官連携活動の取組事例 | DB20: 69 | DI20: ある | DJ20: 戦略的産学官連携経費の設定
AC21: 中小企業 | AG21: 69398 | AL21: 67 | AO21: 54427 | AT21: 47 | AY21: 位 | DB21: 66 | DI21: ない | DJ21: 教員人件費の企業負担に関する規程や制度
AK22: ※順位は2022年度の受入額を比較したものです。 | DI22: ない | DJ22: 学生人件費の企業負担に関する規程や制度
AK23: ※順位は50位までを記載。51位以下の場合は空欄となります。 | DB23: 0 | DI23: ある | DJ23: 特別試験研究費税額控除制度の活用
DB24: ～100万 | DC24: 44
DB25: ～300万 | DC25: 58
DB26: ～500万 | DC26: 5
C27: 産学官連携本部等組織名 | K27: イノベーション支援センター | DB27: ～1000万 | DC27: 4
C28: 産学官連携本部等URL | K28: https://www.sic.utsunomiya-u.ac.jp/innov | DB28: ～5000万 | DC28: 2
C29: 研究者数 | K29: 396 | O29: 名 | DB29: ～1億 | DJ29: 共同研究等の企画・提案
C30: 実務担当者数 | K30: 16 | O30: 名 | DB30: 1億以上 | DJ30: 契約書での成果目標、達成時の明記
C31: 実務者当たり研究者数 | K31: =IFERROR(K29/K30,"") -> 24.75 | O31: 名 | DJ31: 共同研究契約の締結/判断（契約権限の集中）
C32: 専門家の配置 | I32: 弁護士 | L32: 弁理士 | O32: 税理士 | R32: 公認会計士 | V32: その他 | DJ32: 共同研究の進捗管理とフィードバック
L33: ※専門家を配置している場合は、赤色で表示されます。 | DJ33: 企業ニーズに適応した技術移転・事業化提案
AA34: 受託研究 | AG34: 2021年度 | AO34: 2022年度 | AW34: 順位※ | DJ34: 共同研究等の企画・提案
AG35: 受入額（千円） | AL35: 件数 | AO35: 受入額（千円） | AT35: 件数 | DB35: 順位 | DJ35: 契約書での成果目標、達成時の明記
AA36: 全体 | AG36: 357650 | AL36: 69 | AO36: 284560 | AT36: 62 | AW36: =IF(DB36<50,DB36,"") ->  | AY36: 位 | DB36: 96 | DJ36: 共同研究契約の締結/判断（契約権限の集中）
AA37: 民間企業 のみ | AG37: 39771 | AL37: 17 | AO37: 45167 | AT37: 19 | AW37: =IF(DB37<50,DB37,"") ->  | AY37: 位 | DB37: 68 | DJ37: 共同研究の進捗管理とフィードバック
C38: 産学官連携本部が関与した共同研究 | P38: 1 | T38: 件 | AA38: 大企業 | AG38: 36377 | AL38: 10 | AO38: 43822 | AT38: 17 | AY38: 位 | DB38: 56 | DJ38: 企業ニーズに適応した技術移転・事業化提案
D39: 内、マッチングを行い、契約締結した件数 | P39: 1 | T39: 件 | AA39: 中小企業 | AG39: 3394 | AL39: 7 | AO39: 1345 | AT39: 2 | AY39: 位 | DB39: 192 | DJ39: 共同研究等の企画・提案
I40: ※1,000万円以上の共同研究 | AK40: ※順位は2022年度の受入額を比較したもの | DB40: 弁護士 | DG40: 0 | DJ40: 契約書での成果目標、達成時の明記
AK41: ※順位は50位までを記載。51位以下の場合は空欄となります。 | BB41: ■産学官連携活動の主な実用化事例 | DB41: 弁理士 | DG41: ～100万 | DH41: 8 | DJ41: 共同研究契約の締結/判断（契約権限の集中）
C42: 組織対組織による包括連携契約の締結数 | P42: 0 | T42: 件 | DB42: 税理士 | DG42: ～300万 | DH42: 10 | DJ42: 共同研究の進捗管理とフィードバック
D43: 内、1,000万円以上の実績がある相手方数 | P43: 0 | T43: 件 | DB43: 公認会計士 | DG43: ～500万 | DJ43: 企業ニーズに適応した技術移転・事業化提案
DA44: ○ | DB44: その他 | DG44: ～1000万
C45: 寄附講座・寄附研究部門の受入件数 | P45: 0 | V45: 件 | DG45: ～5000万 | DH45: 1
C46: 寄附講座・寄附研究部門の受入金額（千円） | P46: 0 | DG46: ～1億
C47: 共同研究講座・共同研究部門の受入件数 | P47: 1 | V47: 件 | DG47: 1億以上
C48: 共同研究講座・共同研究部門の受入金額（千円） | P48: 33880
CZ51: 大学 | DA51: 大学・発明者・未設定
C52: 職務発明の帰属 | I52: 大学 | M52: 発明者 | Q52: 未設定 | DA52: 職務発明
AD53: 特許権実施等件数 | AL53: 7 | AQ53: 件 | AS53: 実施等件数当たり | DA53: 不実施
I54: 国内 | K54: 外国 | M54: PCT | O54: EPC | AD54: 特許権実施等収入（千円） | AL54: 1976 | AS54: =IF(OR(AL53="",AL54=""),"",IFERROR(AL54/AL53,"")) -> 282.2857143 | CZ54: 1976000 | DA54: 特許権収入
C55: 特許出願件数（件） | I55: 25 | K55: 1 | M55: 1 | O55: 0
C56: 特許保有件数（件） | I56: 146 | K56: 33
C61: 大学発ベンチャー数 | J61: 6 | O61: 社
C62: Exit件数（IPO） | J62: 0 | O62: 社 | P62: Exit件数（M&A） | W62: 0 | Z62: 社
C63: 相談窓口 | K63: 支援ファンド | S63: インキュベーション施設
C64: 有 | G64: 無 | K64: 有 | O64: 無 | S64: 有 | W64: 無
C65: 知的財産戦略方針 | K65: 支援総額（千円） | S65: 面積 | W65: 151 | Z65: m2
C66: 有 | G66: 無 | K66: 0 | S66: 契約企業数 | W66: 3 | Z66: 社
CY69: 103 | CZ69: 104 | DA69: 105 | DB69: 106 | DC69: 107 | DD69: 108 | DE69: 109 | DF69: 110 | DG69: 111 | DH69: 112 | DI69: 113 | DJ69: 114 | DK69: 115 | DL69: 116 | DM69: 117 | DN69: 118 | DO69: 119 | DP69: 120 | DQ69: 121 | DR69: 122 | DS69: 123 | DT69: 124 | DU69: 125
B70: 東京大学 | C70: 4924 | D70: 613188710 | I70: 148
B71: 東京大学 | C71: 4924 | D71: 613188710 | K71: 179
B72: 東北大学 | C72: 3805 | D72: 208066000
B73: 大阪大学 | C73: 3557 | D73: 414288000
B74: 京都大学 | C74: 3026 | D74: 1119118168
B75: 東京工業大学 | C75: 2084 | D75: 99801000
B76: 九州大学 | C76: 1797 | D76: 164182000
B77: 名古屋大学 | C77: 1604 | D77: 90749000
B78: 北海道大学 | C78: 1314 | D78: 183435000
B79: 信州大学 | C79: 1038 | D79: 37096000
B80: 大阪公立大学 | C80: 975 | D80: 9345000
B81: 筑波大学 | C81: 967 | D81: 36213000
B82: 広島大学 | C82: 919 | D82: 34166000
B83: 千葉大学 | C83: 916 | D83: 16779000
B84: 慶應義塾大学 | C84: 869 | D84: 86996000
B85: 山口大学 | C85: 756 | D85: 29295000
B86: 東京理科大学 | C86: 698 | D86: 23087000
B87: 東京農工大学 | C87: 671 | D87: 60497000
B88: 早稲田大学 | C88: 671 | D88: 27622000
B89: 神戸大学 | C89: 668 | D89: 33659000
B90: 岡山大学 | C90: 624 | D90: 24747000
B91: 名古屋工業大学 | C91: 618 | D91: 32295000
B92: 九州工業大学 | C92: 591 | D92: 8115000
B93: 群馬大学 | C93: 563 | D93: 3087000
B94: 横浜国立大学 | C94: 553 | D94: 15639000
B95: 静岡大学 | C95: 543 | D95: 4244000
B96: 熊本大学 | C96: 539 | D96: 28442000
B97: 近畿大学 | C97: 507 | D97: 22970000
B98: 鹿児島大学 | C98: 475 | D98: 16446000
B99: 山梨大学 | C99: 473 | D99: 8206000
B100: 香川大学 | C100: 469 | D100: 19447000
B101: 長岡技術科学大学 | C101: 465 | D101: 3690000
B102: 東京医科歯科大学 | C102: 461 | D102: 28044000
B103: 東京都立大学 | C103: 447 | D103: 2416000
B104: 関西大学 | C104: 445 | D104: 3261000
B105: 三重大学 | C105: 443 | D105: 28808000
B106: 豊橋技術科学大学 | C106: 435 | D106: 6864000
B107: 電気通信大学 | C107: 421 | D107: 7030000
B108: 鳥取大学 | C108: 405 | D108: 137372000
B109: 金沢大学 | C109: 391 | D109: 18050000
B110: 徳島大学 | C110: 390 | D110: 20264000
B111: 奈良先端科学技術大学院大学 | C111: 382 | D111: 39711000
B112: 新潟大学 | C112: 373 | D112: 9369000
B113: 山形大学 | C113: 363 | D113: 2866000
B114: 北里大学 | C114: 346 | D114: 66133000
B115: 立命館大学 | C115: 330 | D115: 9311000
B116: 富山大学 | C116: 328 | D116: 10861000
B117: 埼玉大学 | C117: 320 | D117: 3578000
B118: 同志社大学 | C118: 317 | D118: 4884000
B119: 高知大学 | C119: 314 | D119: 20578000
B120: 弘前大学 | C120: 294 | D120: 8072000
B121: 日本大学 | C121: 283 | D121: 36278000
B122: 兵庫県立大学 | C122: 279 | D122: 1051000
B123: 名城大学 | C123: 276 | D123: 28093000
B124: 岐阜大学 | C124: 274 | D124: 10679000
B125: 横浜市立大学 | C125: 260 | D125: 37933000
B126: 札幌医科大学 | C126: 258 | D126: 19373000
B127: 京都府立医科大学 | C127: 258 | D127: 12241000
B128: 佐賀大学 | C128: 257 | D128: 8596000
B129: 京都工芸繊維大学 | C129: 252 | D129: 368000
B130: 福井大学 | C130: 245 | D130: 8596000
B131: 宮崎大学 | C131: 244 | D131: 1648000
B132: 神奈川大学 | C132: 243 | D132: 5675000
B133: 東海大学 | C133: 232 | D133: 1120000
B134: 岩手大学 | C134: 227 | D134: 6652000
B135: 秋田大学 | C135: 224 | D135: 1688000
B136: 愛媛大学 | C136: 203 | D136: 26470000
B137: 長崎大学 | C137: 203 | D137: 33702000
B138: 東京海洋大学 | C138: 199 | D138: 4576000
B139: 北陸先端科学技術大学院大学 | C139: 192 | D139: 1763000
B140: 沖縄科学技術大学院大学 | C140: 190 | D140: 1460000
B141: 福岡大学 | C141: 189 | D141: 875000
B142: 関西学院大学 | C142: 186 | D142: 25624000
B143: 東京女子医科大学 | C143: 185 | D143: 2817000
B144: 宇都宮大学 | C144: 179 | D144: 1976000
B145: 中央大学 | C145: 170 | D145: 3131000
B146: 上智大学 | C146: 167 | D146: 0
B147: 高知工科大学 | C147: 167 | D147: 45000
B148: 茨城大学 | C148: 155 | D148: 1545000
B149: 金沢工業大学 | C149: 149 | D149: 2786000
B150: 大分大学 | C150: 148 | D150: 4155000
B151: 千葉工業大学 | C151: 147 | D151: 2134000
B152: 浜松医科大学 | C152: 146 | D152: 1429000
B153: 順天堂大学 | C153: 142 | D153: 4289000
B154: 滋賀医科大学 | C154: 141 | D154: 5567000
B155: 中部大学 | C155: 135 | D155: 675000
B156: 島根大学 | C156: 134 | D156: 1585000
B157: 名古屋市立大学 | C157: 124 | D157: 17845000
B158: 豊田工業大学 | C158: 123 | D158: 50000
B159: 芝浦工業大学 | C159: 120 | D159: 441000
B160: 東京電機大学 | C160: 116 | D160: 5765000
B161: 琉球大学 | C161: 109 | D161: 955000
B162: 久留米大学 | C162: 107 | D162: 3189000
B163: 埼玉医科大学 | C163: 98 | D163: 9046000
B164: 富山県立大学 | C164: 94 | D164: 1681000
B165: 藤田医科大学 | C165: 94 | D165: 0
B166: 明治大学 | C166: 92 | D166: 4567000
B167: 北見工業大学 | C167: 89 | D167: 729000
B168: 静岡県立大学 | C168: 88 | D168: 0
B169: 和歌山大学 | C169: 88 | D169: 4976000
B170: 関東学院大学 | C170: 85 | D170: 10815000
B171: 神奈川工科大学 | C171: 77 | D171: 356000
B172: 帝京大学 | C172: 75 | D172: 3411000
B173: 昭和大学 | C173: 73 | D173: 36130000
B174: 奈良県立医科大学 | C174: 72 | D174: 643000
B175: 福岡工業大学 | C175: 70 | D175: 200000
B176: 法政大学 | C176: 68 | D176: 1375000
B177: 東亜大学 | C177: 67 | D177: 0
B178: 兵庫医科大学 | C178: 65 | D178: 909000
B179: 聖マリアンナ医科大学 | C179: 61 | D179: 9075000
B180: 室蘭工業大学 | C180: 60 | D180: 14000
B181: 秋田県立大学 | C181: 60 | D181: 1505000
B182: 福島大学 | C182: 60 | D182: 48000
B183: 日本医科大学 | C183: 60 | D183: 5693000
B184: 岡山理科大学 | C184: 58 | D184: 2541000
B185: 産業医科大学 | C185: 57 | D185: 2114000
B186: 東洋大学 | C186: 56 | D186: 1565000
B187: 帯広畜産大学 | C187: 55 | D187: 2369000
B188: 会津大学 | C188: 55 | D188: 220000
B189: 立教大学 | C189: 55 | D189: 18000
B190: 北九州市立大学 | C190: 55 | D190: 9601000
B191: 旭川医科大学 | C191: 53 | D191: 11185000
B192: お茶の水女子大学 | C192: 53 | D192: 0
B193: 工学院大学 | C193: 53 | D193: 1312000
B194: 大阪工業大学 | C194: 53 | D194: 0
B195: 玉川大学 | C195: 50 | D195: 335000
B196: 関西医科大学 | C196: 50 | D196: 3255000
B197: 熊本保健科学大学 | C197: 49 | D197: 7000
B198: 東京農業大学 | C198: 48 | D198: 0
B199: 甲南大学 | C199: 47 | D199: 1103000
B200: 東邦大学 | C200: 46 | D200: 1329000
B201: 龍谷大学 | C201: 44 | D201: 930000
B202: 広島市立大学 | C202: 44 | D202: 84000
B203: 大同大学 | C203: 42 | D203: 0
B204: 麻布大学 | C204: 39 | D204: 2179000
B205: 岩手県立大学 | C205: 37 | D205: 54000
B206: 東京薬科大学 | C206: 35 | D206: 2478000
B207: 青山学院大学 | C207: 34 | D207: 0
B208: 岩手医科大学 | C208: 33 | D208: 15000
B209: 愛知工業大学 | C209: 32 | D209: 165000
... 642 more rows

Sheet 群馬大学 (hidden)
A1: 国立 | C1: 群馬大学 | X1: 大学全体の経営理念における産学官連携活動の取組方針 | CY1: 103 | CZ1: 104 | DA1: 105 | DB1: 106 | DC1: 107 | DD1: 108 | DE1: 109 | DF1: 110 | DG1: 111 | DH1: 112 | DI1: 113 | DJ1: 114 | DK1: 115 | DL1: 116 | DM1: 117 | DN1: 118 | DO1: 119 | DP1: 120 | DQ1: 121 | DR1: 122 | DS1: 123 | DT1: 124 | DU1: 125 | DV1: 126 | DW1: 127 | DX1: 128 | DY1: 129
X2: 地域の知の拠点として学内外の関係機関と連携した活動を通じて、地域の文化及び伝統を育み、豊かな地域社会を創造する活動を行うとともに、知の地域社会への還元を推進し、産業の発展に貢献する。
C3: (群馬県) | BC3: ＵＲＡ | BO3: URA当たりの研究者数 | CB3: 戦略的産学官連携経費
BC4: 実務担当者数 | BI4: 5 | BN4: 名 | BO4: =IFERROR(K29/BI4,"") -> 215.4 | BX4: 名 | CB4: 戦略的産学官連携経費の設定 | CP4: 有 | CT4: 無 | CZ4: ある | DA4: 相談窓口
CB5: 戦略的産学官連携経費の費目 | CZ5: ない | DA5: 支援ファンド
A6: 基 礎 情 報 | BC6: 各種規程類の整備状況 | CB6: 戦略的産学官連携経費の直接経費に対する割合 | CZ6: ある | DA6: インキュベーション施設 | DI6: ◎ | DJ6: 産学官連携ポリシー
BC7: 産学官連携ポリシー | BN7: 職務発明規程（教職員のみ対象） | CZ7: ある | DA7: 知的財産戦略 | DI7: ◎ | DJ7: 知的財産ポリシー
B8: 大学の得意分野とその具体例 | BC8: 知的財産ポリシー | BN8: 職務発明規程（教職員、学生対象） | CB8: 人件費の企業負担 | DI8: ◎ | DJ8: 共同研究取扱規程
B9: 学内共同研究教育施設として、食健康科学教育研究センター及び数理データ科学教育研究センターを設置し、ニーズを元にした研究成果を地域産業界等へ還元する環境を整備している。両センターとも複数の学部の教員が構成員となっており、研究課題や企業からの相談事項に対して様々な視点から検討し、協力して対応することができる。 | AA9: 科研費 （千円） | AL9: その他政府系資金 (千円) | AS9: その他団体からの資金 (千円) | BC9: 共同研究取扱規程 | BN9: 発明補償関係規程（教職員のみ対象） | CB9: 教員人件費の企業負担に関する規程や制度 | CP9: 有 | CT9: 無 | DI9: ◎ | DJ9: 受託研究取扱規程
BC10: 受託研究取扱規程 | BN10: 発明補償関係規程（教職員、学生対象） | CB10: 教員人件費の企業負担の費目 | DI10: ◎ | DJ10: 研究成果有体物取扱規程
AA11: 909099 | AL11: 55354 | AS11: 0 | BC11: 研究成果有体物取扱規程 | BN11: 守秘義務に係る規程（教職員のみ対象） | CB11: 学生人件費の企業負担に関する規程や制度 | CP11: 有 | CT11: 無 | DI11: ◎ | DJ11: 営業秘密管理に関する規程
BC12: 営業秘密管理に関する規程 | BN12: 守秘義務に係る規程（教職員、学生対象） | CB12: 学生人件費の企業負担の費目 | DI12: ◎ | DJ12: 株式の取扱等規程、ポリシー
AA13: 共同研究における間接経費割合 | AN13: 株式の保有 | AT13: 新株予約権の保有 | BC13: 株式の取扱等規程、ポリシー | BN13: 学術指導に関する規程 | DA13: × | DB13: 株式 | DI13: × | DJ13: 職務発明規程（教職員のみ対象）
AA14: 0.3 | AN14: 有 | AQ14: 無 | AT14: 有 | AW14: 無 | BK14: ※各種規定類を整備している場合は、赤色で表示されます。 | CB14: 特別試験研究費税額控除制度 | DA14: × | DB14: 新株予約権 | DI14: ◎ | DJ14: 職務発明規程（教職員、学生対象）
B15: 産学官連携活動において今後重点化したい事項 | CB15: 特別試験研究費税額控除制度の活用 | CP15: 有 | CT15: 無 | DI15: × | DJ15: 発明補償関係規程（教職員のみ対象）
B16: 「重点支援プロジェクト」制度等を通じて強み・特色のある研究の創出を進め、研究の高度化による社会貢献機能の強化を目指す。同時に、学外からの総合的な相談窓口である産学連携ワンストップサービスオフィスの活用などを通じて、産業界・地域自治体・金融界とより緊密な連携を進めていく。 | AA16: 共同研究 | AG16: 2021年度 | AO16: 2022年度 | AW16: 順位※ | BC16: クロスアポイントメントの実績 | BK16: 大学等 | BN16: 公的機関 | BQ16: 民間企業 | BU16: その他機関 | DI16: ◎ | DJ16: 発明補償関係規程（教職員、学生対象）
AG17: 受入額（千円） | AL17: 件数 | AO17: 受入額（千円） | AT17: 件数 | BH17: 受入数(名) | BK17: 0 | BN17: 0 | BQ17: 2 | BU17: 0 | DB17: 順位 | DI17: × | DJ17: 守秘義務に係る規程（教職員のみ対象）
AA18: 全体 | AG18: 579332 | AL18: 278 | AO18: 506823 | AT18: 276 | AW18: =IF(DB18<50,DB18,"") -> 36 | AY18: 位 | BH18: 派遣数(名) | BK18: 1 | BN18: 0 | BQ18: 0 | BU18: 0 | DB18: 36 | DI18: ◎ | DJ18: 守秘義務に係る規程（教職員、学生対象）
AB19: 民間企業 のみ | AG19: 465569 | AL19: 257 | AO19: 465835 | AT19: 254 | AW19: =IF(DB19<50,DB19,"") -> 33 | AY19: 位 | DB19: 33 | DI19: △ | DJ19: 学術指導に係る規定
AC20: 大企業 | AG20: 374090 | AL20: 162 | AO20: 398996 | AT20: 167 | AW20: 30 | AY20: 位 | BB20: ■組織的産学官連携活動の取組事例 | DB20: 30 | DI20: ない | DJ20: 戦略的産学官連携経費の設定
AC21: 中小企業 | AG21: 91479 | AL21: 95 | AO21: 66839 | AT21: 87 | AY21: 位 | DB21: 55 | DI21: ない | DJ21: 教員人件費の企業負担に関する規程や制度
AK22: ※順位は2022年度の受入額を比較したものです。 | DI22: ない | DJ22: 学生人件費の企業負担に関する規程や制度
AK23: ※順位は50位までを記載。51位以下の場合は空欄となります。 | DB23: 0 | DC23: 67 | DI23: ある | DJ23: 特別試験研究費税額控除制度の活用
DB24: ～100万 | DC24: 68
DB25: ～300万 | DC25: 90
DB26: ～500万 | DC26: 12
C27: 産学官連携本部等組織名 | K27: 研究・産学連携推進機構 | DB27: ～1000万 | DC27: 11
C28: 産学官連携本部等URL | K28: https://research.opric.gunma-u.ac.jp/ | DB28: ～5000万 | DC28: 5
C29: 研究者数 | K29: 1077 | O29: 名 | DB29: ～1億 | DC29: 1 | DJ29: 共同研究等の企画・提案
C30: 実務担当者数 | K30: 14 | O30: 名 | DB30: 1億以上 | DJ30: 契約書での成果目標、達成時の明記
C31: 実務者当たり研究者数 | K31: =IFERROR(K29/K30,"") -> 76.92857143 | O31: 名 | DJ31: 共同研究契約の締結/判断（契約権限の集中）
C32: 専門家の配置 | I32: 弁護士 | L32: 弁理士 | O32: 税理士 | R32: 公認会計士 | V32: その他 | DJ32: 共同研究の進捗管理とフィードバック
L33: ※専門家を配置している場合は、赤色で表示されます。 | DJ33: 企業ニーズに適応した技術移転・事業化提案
AA34: 受託研究 | AG34: 2021年度 | AO34: 2022年度 | AW34: 順位※ | DJ34: 共同研究等の企画・提案
AG35: 受入額（千円） | AL35: 件数 | AO35: 受入額（千円） | AT35: 件数 | DB35: 順位 | DJ35: 契約書での成果目標、達成時の明記
AA36: 全体 | AG36: 751792 | AL36: 153 | AO36: 865706 | AT36: 147 | AW36: =IF(DB36<50,DB36,"") -> 48 | AY36: 位 | DB36: 48 | DJ36: 共同研究契約の締結/判断（契約権限の集中）
AA37: 民間企業 のみ | AG37: 15394 | AL37: 25 | AO37: 28508 | AT37: 24 | AW37: =IF(DB37<50,DB37,"") ->  | AY37: 位 | DB37: 91 | DJ37: 共同研究の進捗管理とフィードバック
C38: 産学官連携本部が関与した共同研究 | P38: 4 | T38: 件 | AA38: 大企業 | AG38: 10822 | AL38: 18 | AO38: 19426 | AT38: 15 | AY38: 位 | DB38: 96 | DJ38: 企業ニーズに適応した技術移転・事業化提案
D39: 内、マッチングを行い、契約締結した件数 | P39: 4 | T39: 件 | AA39: 中小企業 | AG39: 4572 | AL39: 7 | AO39: 9082 | AT39: 9 | AY39: 位 | DB39: 73 | DJ39: 共同研究等の企画・提案
I40: ※1,000万円以上の共同研究 | AK40: ※順位は2022年度の受入額を比較したもの | DB40: 弁護士 | DG40: 0 | DH40: 9 | DJ40: 契約書での成果目標、達成時の明記
AK41: ※順位は50位までを記載。51位以下の場合は空欄となります。 | BB41: ■産学官連携活動の主な実用化事例 | DB41: 弁理士 | DG41: ～100万 | DH41: 9 | DJ41: 共同研究契約の締結/判断（契約権限の集中）
C42: 組織対組織による包括連携契約の締結数 | P42: 3 | T42: 件 | DB42: 税理士 | DG42: ～300万 | DH42: 1 | DJ42: 共同研究の進捗管理とフィードバック
D43: 内、1,000万円以上の実績がある相手方数 | P43: 0 | T43: 件 | DB43: 公認会計士 | DG43: ～500万 | DH43: 3 | DJ43: 企業ニーズに適応した技術移転・事業化提案
DA44: ○ | DB44: その他 | DG44: ～1000万 | DH44: 2
C45: 寄附講座・寄附研究部門の受入件数 | P45: 1 | V45: 件 | DG45: ～5000万
C46: 寄附講座・寄附研究部門の受入金額（千円） | P46: 9000 | DG46: ～1億
C47: 共同研究講座・共同研究部門の受入件数 | P47: 4 | V47: 件 | DG47: 1億以上
C48: 共同研究講座・共同研究部門の受入金額（千円） | P48: 142000
CZ51: 大学 | DA51: 大学・発明者・未設定
C52: 職務発明の帰属 | I52: 大学 | M52: 発明者 | Q52: 未設定 | DA52: 職務発明
AD53: 特許権実施等件数 | AL53: 168 | AQ53: 件 | AS53: 実施等件数当たり | DA53: 不実施
I54: 国内 | K54: 外国 | M54: PCT | O54: EPC | AD54: 特許権実施等収入（千円） | AL54: 3087 | AS54: =IF(OR(AL53="",AL54=""),"",IFERROR(AL54/AL53,"")) -> 18.375 | CZ54: 3087000 | DA54: 特許権収入
C55: 特許出願件数（件） | I55: 24 | K55: 22 | M55: 13 | O55: 3
C56: 特許保有件数（件） | I56: 351 | K56: 212
C61: 大学発ベンチャー数 | J61: 11 | O61: 社
C62: Exit件数（IPO） | J62: 0 | O62: 社 | P62: Exit件数（M&A） | W62: 0 | Z62: 社
C63: 相談窓口 | K63: 支援ファンド | S63: インキュベーション施設
C64: 有 | G64: 無 | K64: 有 | O64: 無 | S64: 有 | W64: 無
C65: 知的財産戦略方針 | K65: 支援総額（千円） | S65: 面積 | W65: 184 | Z65: m2
C66: 有 | G66: 無 | K66: 0 | S66: 契約企業数 | W66: 2 | Z66: 社
CY69: 103 | CZ69: 104 | DA69: 105 | DB69: 106 | DC69: 107 | DD69: 108 | DE69: 109 | DF69: 110 | DG69: 111 | DH69: 112 | DI69: 113 | DJ69: 114 | DK69: 115 | DL69: 116 | DM69: 117 | DN69: 118 | DO69: 119 | DP69: 120 | DQ69: 121 | DR69: 122 | DS69: 123 | DT69: 124 | DU69: 125
B70: 東京大学 | C70: 4924 | D70: 613188710 | I70: 148
B71: 東京大学 | C71: 4924 | D71: 613188710 | K71: 563
B72: 東北大学 | C72: 3805 | D72: 208066000
B73: 大阪大学 | C73: 3557 | D73: 414288000
B74: 京都大学 | C74: 3026 | D74: 1119118168
B75: 東京工業大学 | C75: 2084 | D75: 99801000
B76: 九州大学 | C76: 1797 | D76: 164182000
B77: 名古屋大学 | C77: 1604 | D77: 90749000
B78: 北海道大学 | C78: 1314 | D78: 183435000
B79: 信州大学 | C79: 1038 | D79: 37096000
B80: 大阪公立大学 | C80: 975 | D80: 9345000
B81: 筑波大学 | C81: 967 | D81: 36213000
B82: 広島大学 | C82: 919 | D82: 34166000
B83: 千葉大学 | C83: 916 | D83: 16779000
B84: 慶應義塾大学 | C84: 869 | D84: 86996000
B85: 山口大学 | C85: 756 | D85: 29295000
B86: 東京理科大学 | C86: 698 | D86: 23087000
B87: 東京農工大学 | C87: 671 | D87: 60497000
B88: 早稲田大学 | C88: 671 | D88: 27622000
B89: 神戸大学 | C89: 668 | D89: 33659000
B90: 岡山大学 | C90: 624 | D90: 24747000
B91: 名古屋工業大学 | C91: 618 | D91: 32295000
B92: 九州工業大学 | C92: 591 | D92: 8115000
B93: 群馬大学 | C93: 563 | D93: 3087000
B94: 横浜国立大学 | C94: 553 | D94: 15639000
B95: 静岡大学 | C95: 543 | D95: 4244000
B96: 熊本大学 | C96: 539 | D96: 28442000
B97: 近畿大学 | C97: 507 | D97: 22970000
B98: 鹿児島大学 | C98: 475 | D98: 16446000
B99: 山梨大学 | C99: 473 | D99: 8206000
B100: 香川大学 | C100: 469 | D100: 19447000
B101: 長岡技術科学大学 | C101: 465 | D101: 3690000
B102: 東京医科歯科大学 | C102: 461 | D102: 28044000
B103: 東京都立大学 | C103: 447 | D103: 2416000
B104: 関西大学 | C104: 445 | D104: 3261000
B105: 三重大学 | C105: 443 | D105: 28808000
B106: 豊橋技術科学大学 | C106: 435 | D106: 6864000
B107: 電気通信大学 | C107: 421 | D107: 7030000
B108: 鳥取大学 | C108: 405 | D108: 137372000
B109: 金沢大学 | C109: 391 | D109: 18050000
B110: 徳島大学 | C110: 390 | D110: 20264000
B111: 奈良先端科学技術大学院大学 | C111: 382 | D111: 39711000
B112: 新潟大学 | C112: 373 | D112: 9369000
B113: 山形大学 | C113: 363 | D113: 2866000
B114: 北里大学 | C114: 346 | D114: 66133000
B115: 立命館大学 | C115: 330 | D115: 9311000
B116: 富山大学 | C116: 328 | D116: 10861000
B117: 埼玉大学 | C117: 320 | D117: 3578000
B118: 同志社大学 | C118: 317 | D118: 4884000
B119: 高知大学 | C119: 314 | D119: 20578000
B120: 弘前大学 | C120: 294 | D120: 8072000
B121: 日本大学 | C121: 283 | D121: 36278000
B122: 兵庫県立大学 | C122: 279 | D122: 1051000
B123: 名城大学 | C123: 276 | D123: 28093000
B124: 岐阜大学 | C124: 274 | D124: 10679000
B125: 横浜市立大学 | C125: 260 | D125: 37933000
B126: 札幌医科大学 | C126: 258 | D126: 19373000
B127: 京都府立医科大学 | C127: 258 | D127: 12241000
B128: 佐賀大学 | C128: 257 | D128: 8596000
B129: 京都工芸繊維大学 | C129: 252 | D129: 368000
B130: 福井大学 | C130: 245 | D130: 8596000
B131: 宮崎大学 | C131: 244 | D131: 1648000
B132: 神奈川大学 | C132: 243 | D132: 5675000
B133: 東海大学 | C133: 232 | D133: 1120000
B134: 岩手大学 | C134: 227 | D134: 6652000
B135: 秋田大学 | C135: 224 | D135: 1688000
B136: 愛媛大学 | C136: 203 | D136: 26470000
B137: 長崎大学 | C137: 203 | D137: 33702000
B138: 東京海洋大学 | C138: 199 | D138: 4576000
B139: 北陸先端科学技術大学院大学 | C139: 192 | D139: 1763000
B140: 沖縄科学技術大学院大学 | C140: 190 | D140: 1460000
B141: 福岡大学 | C141: 189 | D141: 875000
B142: 関西学院大学 | C142: 186 | D142: 25624000
B143: 東京女子医科大学 | C143: 185 | D143: 2817000
B144: 宇都宮大学 | C144: 179 | D144: 1976000
B145: 中央大学 | C145: 170 | D145: 3131000
B146: 上智大学 | C146: 167 | D146: 0
B147: 高知工科大学 | C147: 167 | D147: 45000
B148: 茨城大学 | C148: 155 | D148: 1545000
B149: 金沢工業大学 | C149: 149 | D149: 2786000
B150: 大分大学 | C150: 148 | D150: 4155000
B151: 千葉工業大学 | C151: 147 | D151: 2134000
B152: 浜松医科大学 | C152: 146 | D152: 1429000
B153: 順天堂大学 | C153: 142 | D153: 4289000
B154: 滋賀医科大学 | C154: 141 | D154: 5567000
B155: 中部大学 | C155: 135 | D155: 675000
B156: 島根大学 | C156: 134 | D156: 1585000
B157: 名古屋市立大学 | C157: 124 | D157: 17845000
B158: 豊田工業大学 | C158: 123 | D158: 50000
B159: 芝浦工業大学 | C159: 120 | D159: 441000
B160: 東京電機大学 | C160: 116 | D160: 5765000
B161: 琉球大学 | C161: 109 | D161: 955000
B162: 久留米大学 | C162: 107 | D162: 3189000
B163: 埼玉医科大学 | C163: 98 | D163: 9046000
B164: 富山県立大学 | C164: 94 | D164: 1681000
B165: 藤田医科大学 | C165: 94 | D165: 0
B166: 明治大学 | C166: 92 | D166: 4567000
B167: 北見工業大学 | C167: 89 | D167: 729000
B168: 静岡県立大学 | C168: 88 | D168: 0
B169: 和歌山大学 | C169: 88 | D169: 4976000
B170: 関東学院大学 | C170: 85 | D170: 10815000
B171: 神奈川工科大学 | C171: 77 | D171: 356000
B172: 帝京大学 | C172: 75 | D172: 3411000
B173: 昭和大学 | C173: 73 | D173: 36130000
B174: 奈良県立医科大学 | C174: 72 | D174: 643000
B175: 福岡工業大学 | C175: 70 | D175: 200000
B176: 法政大学 | C176: 68 | D176: 1375000
B177: 東亜大学 | C177: 67 | D177: 0
B178: 兵庫医科大学 | C178: 65 | D178: 909000
B179: 聖マリアンナ医科大学 | C179: 61 | D179: 9075000
B180: 室蘭工業大学 | C180: 60 | D180: 14000
B181: 秋田県立大学 | C181: 60 | D181: 1505000
B182: 福島大学 | C182: 60 | D182: 48000
B183: 日本医科大学 | C183: 60 | D183: 5693000
B184: 岡山理科大学 | C184: 58 | D184: 2541000
B185: 産業医科大学 | C185: 57 | D185: 2114000
B186: 東洋大学 | C186: 56 | D186: 1565000
B187: 帯広畜産大学 | C187: 55 | D187: 2369000
B188: 会津大学 | C188: 55 | D188: 220000
B189: 立教大学 | C189: 55 | D189: 18000
B190: 北九州市立大学 | C190: 55 | D190: 9601000
B191: 旭川医科大学 | C191: 53 | D191: 11185000
B192: お茶の水女子大学 | C192: 53 | D192: 0
B193: 工学院大学 | C193: 53 | D193: 1312000
B194: 大阪工業大学 | C194: 53 | D194: 0
B195: 玉川大学 | C195: 50 | D195: 335000
B196: 関西医科大学 | C196: 50 | D196: 3255000
B197: 熊本保健科学大学 | C197: 49 | D197: 7000
B198: 東京農業大学 | C198: 48 | D198: 0
B199: 甲南大学 | C199: 47 | D199: 1103000
B200: 東邦大学 | C200: 46 | D200: 1329000
B201: 龍谷大学 | C201: 44 | D201: 930000
B202: 広島市立大学 | C202: 44 | D202: 84000
B203: 大同大学 | C203: 42 | D203: 0
B204: 麻布大学 | C204: 39 | D204: 2179000
B205: 岩手県立大学 | C205: 37 | D205: 54000
B206: 東京薬科大学 | C206: 35 | D206: 2478000
B207: 青山学院大学 | C207: 34 | D207: 0
B208: 岩手医科大学 | C208: 33 | D208: 15000
... 643 more rows

Sheet 埼玉大学 (hidden)
A1: 国立 | C1: 埼玉大学 | X1: 大学全体の経営理念における産学官連携活動の取組方針 | CY1: 103 | CZ1: 104 | DA1: 105 | DB1: 106 | DC1: 107 | DD1: 108 | DE1: 109 | DF1: 110 | DG1: 111 | DH1: 112 | DI1: 113 | DJ1: 114 | DK1: 115 | DL1: 116 | DM1: 117 | DN1: 118 | DO1: 119 | DP1: 120 | DQ1: 121 | DR1: 122 | DS1: 123 | DT1: 124 | DU1: 125 | DV1: 126 | DW1: 127 | DX1: 128 | DY1: 129
C3: (埼玉県) | BC3: ＵＲＡ | BO3: URA当たりの研究者数 | CB3: 戦略的産学官連携経費
BC4: 実務担当者数 | BI4: 3 | BN4: 名 | BO4: =IFERROR(K29/BI4,"") -> 163.3333333 | BX4: 名 | CB4: 戦略的産学官連携経費の設定 | CP4: 有 | CT4: 無 | CZ4: ある | DA4: 相談窓口
CB5: 戦略的産学官連携経費の費目 | CZ5: ない | DA5: 支援ファンド
A6: 基 礎 情 報 | BC6: 各種規程類の整備状況 | CB6: 戦略的産学官連携経費の直接経費に対する割合 | CZ6: ある | DA6: インキュベーション施設 | DI6: ◎ | DJ6: 産学官連携ポリシー
BC7: 産学官連携ポリシー | BN7: 職務発明規程（教職員のみ対象） | CZ7: ある | DA7: 知的財産戦略 | DI7: ◎ | DJ7: 知的財産ポリシー
B8: 大学の得意分野とその具体例 | BC8: 知的財産ポリシー | BN8: 職務発明規程（教職員、学生対象） | CB8: 人件費の企業負担 | DI8: ◎ | DJ8: 共同研究取扱規程
AA9: 科研費 （千円） | AL9: その他政府系資金 (千円) | AS9: その他団体からの資金 (千円) | BC9: 共同研究取扱規程 | BN9: 発明補償関係規程（教職員のみ対象） | CB9: 教員人件費の企業負担に関する規程や制度 | CP9: 有 | CT9: 無 | DI9: ◎ | DJ9: 受託研究取扱規程
BC10: 受託研究取扱規程 | BN10: 発明補償関係規程（教職員、学生対象） | CB10: 教員人件費の企業負担の費目 | CP10: 直接経費 | DI10: ◎ | DJ10: 研究成果有体物取扱規程
AA11: 706030 | AL11: 274953 | AS11: 42151 | BC11: 研究成果有体物取扱規程 | BN11: 守秘義務に係る規程（教職員のみ対象） | CB11: 学生人件費の企業負担に関する規程や制度 | CP11: 有 | CT11: 無 | DI11: × | DJ11: 営業秘密管理に関する規程
BC12: 営業秘密管理に関する規程 | BN12: 守秘義務に係る規程（教職員、学生対象） | CB12: 学生人件費の企業負担の費目 | CP12: 直接経費 | DI12: × | DJ12: 株式の取扱等規程、ポリシー
AA13: 共同研究における間接経費割合 | AN13: 株式の保有 | AT13: 新株予約権の保有 | BC13: 株式の取扱等規程、ポリシー | BN13: 学術指導に関する規程 | DA13: × | DB13: 株式 | DI13: × | DJ13: 職務発明規程（教職員のみ対象）
AA14: 0.3 | AN14: 有 | AQ14: 無 | AT14: 有 | AW14: 無 | BK14: ※各種規定類を整備している場合は、赤色で表示されます。 | CB14: 特別試験研究費税額控除制度 | DA14: × | DB14: 新株予約権 | DI14: ◎ | DJ14: 職務発明規程（教職員、学生対象）
B15: 産学官連携活動において今後重点化したい事項 | CB15: 特別試験研究費税額控除制度の活用 | CP15: 有 | CT15: 無 | DI15: × | DJ15: 発明補償関係規程（教職員のみ対象）
AA16: 共同研究 | AG16: 2021年度 | AO16: 2022年度 | AW16: 順位※ | BC16: クロスアポイントメントの実績 | BK16: 大学等 | BN16: 公的機関 | BQ16: 民間企業 | BU16: その他機関 | DI16: ◎ | DJ16: 発明補償関係規程（教職員、学生対象）
AG17: 受入額（千円） | AL17: 件数 | AO17: 受入額（千円） | AT17: 件数 | BH17: 受入数(名) | BK17: 0 | BN17: 0 | BQ17: 4 | BU17: 0 | DB17: 順位 | DI17: × | DJ17: 守秘義務に係る規程（教職員のみ対象）
AA18: 全体 | AG18: 243600 | AL18: 148 | AO18: 269451 | AT18: 158 | AW18: =IF(DB18<50,DB18,"") ->  | AY18: 位 | BH18: 派遣数(名) | BK18: 2 | BN18: 2 | BQ18: 0 | BU18: 0 | DB18: 61 | DI18: ◎ | DJ18: 守秘義務に係る規程（教職員、学生対象）
AB19: 民間企業 のみ | AG19: 241279 | AL19: 144 | AO19: 265505 | AT19: 152 | AW19: =IF(DB19<50,DB19,"") ->  | AY19: 位 | DB19: 53 | DI19: △ | DJ19: 学術指導に係る規定
AC20: 大企業 | AG20: 164756 | AL20: 89 | AO20: 200725 | AT20: 93 | AY20: 位 | BB20: ■組織的産学官連携活動の取組事例 | DB20: 55 | DI20: ない | DJ20: 戦略的産学官連携経費の設定
AC21: 中小企業 | AG21: 76523 | AL21: 55 | AO21: 64780 | AT21: 59 | AY21: 位 | DB21: 58 | DI21: ある | DJ21: 教員人件費の企業負担に関する規程や制度
AK22: ※順位は2022年度の受入額を比較したものです。 | DI22: ある | DJ22: 学生人件費の企業負担に関する規程や制度
AK23: ※順位は50位までを記載。51位以下の場合は空欄となります。 | DB23: 0 | DC23: 26 | DI23: ある | DJ23: 特別試験研究費税額控除制度の活用
DB24: ～100万 | DC24: 35
DB25: ～300万 | DC25: 71
DB26: ～500万 | DC26: 9
C27: 産学官連携本部等組織名 | K27: 研究機構オープンイノベーションセンター | DB27: ～1000万 | DC27: 10
C28: 産学官連携本部等URL | K28: http://www.saitama-u.ac.jp/coalition/ | DB28: ～5000万 | DC28: 1
C29: 研究者数 | K29: 490 | O29: 名 | DB29: ～1億 | DJ29: 共同研究等の企画・提案
C30: 実務担当者数 | K30: 12 | O30: 名 | DB30: 1億以上 | DJ30: 契約書での成果目標、達成時の明記
C31: 実務者当たり研究者数 | K31: =IFERROR(K29/K30,"") -> 40.83333333 | O31: 名 | DJ31: 共同研究契約の締結/判断（契約権限の集中）
C32: 専門家の配置 | I32: 弁護士 | L32: 弁理士 | O32: 税理士 | R32: 公認会計士 | V32: その他 | DJ32: 共同研究の進捗管理とフィードバック
L33: ※専門家を配置している場合は、赤色で表示されます。 | DJ33: 企業ニーズに適応した技術移転・事業化提案
AA34: 受託研究 | AG34: 2021年度 | AO34: 2022年度 | AW34: 順位※ | DJ34: 共同研究等の企画・提案
AG35: 受入額（千円） | AL35: 件数 | AO35: 受入額（千円） | AT35: 件数 | DB35: 順位 | DJ35: 契約書での成果目標、達成時の明記
AA36: 全体 | AG36: 401386 | AL36: 46 | AO36: 366532 | AT36: 48 | AW36: =IF(DB36<50,DB36,"") ->  | AY36: 位 | DB36: 86 | DJ36: 共同研究契約の締結/判断（契約権限の集中）
AA37: 民間企業 のみ | AG37: 5392 | AL37: 3 | AO37: 13815 | AT37: 8 | AW37: =IF(DB37<50,DB37,"") ->  | AY37: 位 | DB37: 129 | DJ37: 共同研究の進捗管理とフィードバック
C38: 産学官連携本部が関与した共同研究 | P38: 0 | T38: 件 | AA38: 大企業 | AG38: 5392 | AL38: 3 | AO38: 11254 | AT38: 5 | AY38: 位 | DB38: 122 | DJ38: 企業ニーズに適応した技術移転・事業化提案
D39: 内、マッチングを行い、契約締結した件数 | P39: 0 | T39: 件 | AA39: 中小企業 | AG39: 0 | AL39: 0 | AO39: 2561 | AT39: 3 | AY39: 位 | DB39: 141 | DJ39: 共同研究等の企画・提案
I40: ※1,000万円以上の共同研究 | AK40: ※順位は2022年度の受入額を比較したもの | DB40: 弁護士 | DG40: 0 | DJ40: 契約書での成果目標、達成時の明記
AK41: ※順位は50位までを記載。51位以下の場合は空欄となります。 | BB41: ■産学官連携活動の主な実用化事例 | DA41: ○ | DB41: 弁理士 | DG41: ～100万 | DH41: 4 | DJ41: 共同研究契約の締結/判断（契約権限の集中）
C42: 組織対組織による包括連携契約の締結数 | P42: 2 | T42: 件 | DB42: 税理士 | DG42: ～300万 | DH42: 2 | DJ42: 共同研究の進捗管理とフィードバック
D43: 内、1,000万円以上の実績がある相手方数 | P43: 0 | T43: 件 | DB43: 公認会計士 | DG43: ～500万 | DH43: 1 | DJ43: 企業ニーズに適応した技術移転・事業化提案
DA44: ○ | DB44: その他 | DG44: ～1000万 | DH44: 1
C45: 寄附講座・寄附研究部門の受入件数 | P45: 0 | V45: 件 | DG45: ～5000万
C46: 寄附講座・寄附研究部門の受入金額（千円） | P46: 0 | DG46: ～1億
C47: 共同研究講座・共同研究部門の受入件数 | P47: 0 | V47: 件 | DG47: 1億以上
C48: 共同研究講座・共同研究部門の受入金額（千円） | P48: 0
CZ51: 大学 | DA51: 大学・発明者・未設定
C52: 職務発明の帰属 | I52: 大学 | M52: 発明者 | Q52: 未設定 | DA52: 職務発明
AD53: 特許権実施等件数 | AL53: 65 | AQ53: 件 | AS53: 実施等件数当たり | DA53: 不実施
I54: 国内 | K54: 外国 | M54: PCT | O54: EPC | AD54: 特許権実施等収入（千円） | AL54: 3578 | AS54: =IF(OR(AL53="",AL54=""),"",IFERROR(AL54/AL53,"")) -> 55.04615385 | CZ54: 3578000 | DA54: 特許権収入
C55: 特許出願件数（件） | I55: 24 | K55: 27 | M55: 4 | O55: 7
C56: 特許保有件数（件） | I56: 263 | K56: 57
C61: 大学発ベンチャー数 | J61: 3 | O61: 社
C62: Exit件数（IPO） | J62: 0 | O62: 社 | P62: Exit件数（M&A） | W62: 0 | Z62: 社
C63: 相談窓口 | K63: 支援ファンド | S63: インキュベーション施設
C64: 有 | G64: 無 | K64: 有 | O64: 無 | S64: 有 | W64: 無
C65: 知的財産戦略方針 | K65: 支援総額（千円） | S65: 面積 | W65: 201 | Z65: m2
C66: 有 | G66: 無 | K66: 0 | S66: 契約企業数 | W66: 1 | Z66: 社
CY69: 103 | CZ69: 104 | DA69: 105 | DB69: 106 | DC69: 107 | DD69: 108 | DE69: 109 | DF69: 110 | DG69: 111 | DH69: 112 | DI69: 113 | DJ69: 114 | DK69: 115 | DL69: 116 | DM69: 117 | DN69: 118 | DO69: 119 | DP69: 120 | DQ69: 121 | DR69: 122 | DS69: 123 | DT69: 124 | DU69: 125
B70: 東京大学 | C70: 4924 | D70: 613188710 | I70: 148
B71: 東京大学 | C71: 4924 | D71: 613188710 | K71: 320
B72: 東北大学 | C72: 3805 | D72: 208066000
B73: 大阪大学 | C73: 3557 | D73: 414288000
B74: 京都大学 | C74: 3026 | D74: 1119118168
B75: 東京工業大学 | C75: 2084 | D75: 99801000
B76: 九州大学 | C76: 1797 | D76: 164182000
B77: 名古屋大学 | C77: 1604 | D77: 90749000
B78: 北海道大学 | C78: 1314 | D78: 183435000
B79: 信州大学 | C79: 1038 | D79: 37096000
B80: 大阪公立大学 | C80: 975 | D80: 9345000
B81: 筑波大学 | C81: 967 | D81: 36213000
B82: 広島大学 | C82: 919 | D82: 34166000
B83: 千葉大学 | C83: 916 | D83: 16779000
B84: 慶應義塾大学 | C84: 869 | D84: 86996000
B85: 山口大学 | C85: 756 | D85: 29295000
B86: 東京理科大学 | C86: 698 | D86: 23087000
B87: 東京農工大学 | C87: 671 | D87: 60497000
B88: 早稲田大学 | C88: 671 | D88: 27622000
B89: 神戸大学 | C89: 668 | D89: 33659000
B90: 岡山大学 | C90: 624 | D90: 24747000
B91: 名古屋工業大学 | C91: 618 | D91: 32295000
B92: 九州工業大学 | C92: 591 | D92: 8115000
B93: 群馬大学 | C93: 563 | D93: 3087000
B94: 横浜国立大学 | C94: 553 | D94: 15639000
B95: 静岡大学 | C95: 543 | D95: 4244000
B96: 熊本大学 | C96: 539 | D96: 28442000
B97: 近畿大学 | C97: 507 | D97: 22970000
B98: 鹿児島大学 | C98: 475 | D98: 16446000
B99: 山梨大学 | C99: 473 | D99: 8206000
B100: 香川大学 | C100: 469 | D100: 19447000
B101: 長岡技術科学大学 | C101: 465 | D101: 3690000
B102: 東京医科歯科大学 | C102: 461 | D102: 28044000
B103: 東京都立大学 | C103: 447 | D103: 2416000
B104: 関西大学 | C104: 445 | D104: 3261000
B105: 三重大学 | C105: 443 | D105: 28808000
B106: 豊橋技術科学大学 | C106: 435 | D106: 6864000
B107: 電気通信大学 | C107: 421 | D107: 7030000
B108: 鳥取大学 | C108: 405 | D108: 137372000
B109: 金沢大学 | C109: 391 | D109: 18050000
B110: 徳島大学 | C110: 390 | D110: 20264000
B111: 奈良先端科学技術大学院大学 | C111: 382 | D111: 39711000
B112: 新潟大学 | C112: 373 | D112: 9369000
B113: 山形大学 | C113: 363 | D113: 2866000
B114: 北里大学 | C114: 346 | D114: 66133000
B115: 立命館大学 | C115: 330 | D115: 9311000
B116: 富山大学 | C116: 328 | D116: 10861000
B117: 埼玉大学 | C117: 320 | D117: 3578000
B118: 同志社大学 | C118: 317 | D118: 4884000
B119: 高知大学 | C119: 314 | D119: 20578000
B120: 弘前大学 | C120: 294 | D120: 8072000
B121: 日本大学 | C121: 283 | D121: 36278000
B122: 兵庫県立大学 | C122: 279 | D122: 1051000
B123: 名城大学 | C123: 276 | D123: 28093000
B124: 岐阜大学 | C124: 274 | D124: 10679000
B125: 横浜市立大学 | C125: 260 | D125: 37933000
B126: 札幌医科大学 | C126: 258 | D126: 19373000
B127: 京都府立医科大学 | C127: 258 | D127: 12241000
B128: 佐賀大学 | C128: 257 | D128: 8596000
B129: 京都工芸繊維大学 | C129: 252 | D129: 368000
B130: 福井大学 | C130: 245 | D130: 8596000
B131: 宮崎大学 | C131: 244 | D131: 1648000
B132: 神奈川大学 | C132: 243 | D132: 5675000
B133: 東海大学 | C133: 232 | D133: 1120000
B134: 岩手大学 | C134: 227 | D134: 6652000
B135: 秋田大学 | C135: 224 | D135: 1688000
B136: 愛媛大学 | C136: 203 | D136: 26470000
B137: 長崎大学 | C137: 203 | D137: 33702000
B138: 東京海洋大学 | C138: 199 | D138: 4576000
B139: 北陸先端科学技術大学院大学 | C139: 192 | D139: 1763000
B140: 沖縄科学技術大学院大学 | C140: 190 | D140: 1460000
B141: 福岡大学 | C141: 189 | D141: 875000
B142: 関西学院大学 | C142: 186 | D142: 25624000
B143: 東京女子医科大学 | C143: 185 | D143: 2817000
B144: 宇都宮大学 | C144: 179 | D144: 1976000
B145: 中央大学 | C145: 170 | D145: 3131000
B146: 上智大学 | C146: 167 | D146: 0
B147: 高知工科大学 | C147: 167 | D147: 45000
B148: 茨城大学 | C148: 155 | D148: 1545000
B149: 金沢工業大学 | C149: 149 | D149: 2786000
B150: 大分大学 | C150: 148 | D150: 4155000
B151: 千葉工業大学 | C151: 147 | D151: 2134000
B152: 浜松医科大学 | C152: 146 | D152: 1429000
B153: 順天堂大学 | C153: 142 | D153: 4289000
B154: 滋賀医科大学 | C154: 141 | D154: 5567000
B155: 中部大学 | C155: 135 | D155: 675000
B156: 島根大学 | C156: 134 | D156: 1585000
B157: 名古屋市立大学 | C157: 124 | D157: 17845000
B158: 豊田工業大学 | C158: 123 | D158: 50000
B159: 芝浦工業大学 | C159: 120 | D159: 441000
B160: 東京電機大学 | C160: 116 | D160: 5765000
B161: 琉球大学 | C161: 109 | D161: 955000
B162: 久留米大学 | C162: 107 | D162: 3189000
B163: 埼玉医科大学 | C163: 98 | D163: 9046000
B164: 富山県立大学 | C164: 94 | D164: 1681000
B165: 藤田医科大学 | C165: 94 | D165: 0
B166: 明治大学 | C166: 92 | D166: 4567000
B167: 北見工業大学 | C167: 89 | D167: 729000
B168: 静岡県立大学 | C168: 88 | D168: 0
B169: 和歌山大学 | C169: 88 | D169: 4976000
B170: 関東学院大学 | C170: 85 | D170: 10815000
B171: 神奈川工科大学 | C171: 77 | D171: 356000
B172: 帝京大学 | C172: 75 | D172: 3411000
B173: 昭和大学 | C173: 73 | D173: 36130000
B174: 奈良県立医科大学 | C174: 72 | D174: 643000
B175: 福岡工業大学 | C175: 70 | D175: 200000
B176: 法政大学 | C176: 68 | D176: 1375000
B177: 東亜大学 | C177: 67 | D177: 0
B178: 兵庫医科大学 | C178: 65 | D178: 909000
B179: 聖マリアンナ医科大学 | C179: 61 | D179: 9075000
B180: 室蘭工業大学 | C180: 60 | D180: 14000
B181: 秋田県立大学 | C181: 60 | D181: 1505000
B182: 福島大学 | C182: 60 | D182: 48000
B183: 日本医科大学 | C183: 60 | D183: 5693000
B184: 岡山理科大学 | C184: 58 | D184: 2541000
B185: 産業医科大学 | C185: 57 | D185: 2114000
B186: 東洋大学 | C186: 56 | D186: 1565000
B187: 帯広畜産大学 | C187: 55 | D187: 2369000
B188: 会津大学 | C188: 55 | D188: 220000
B189: 立教大学 | C189: 55 | D189: 18000
B190: 北九州市立大学 | C190: 55 | D190: 9601000
B191: 旭川医科大学 | C191: 53 | D191: 11185000
B192: お茶の水女子大学 | C192: 53 | D192: 0
B193: 工学院大学 | C193: 53 | D193: 1312000
B194: 大阪工業大学 | C194: 53 | D194: 0
B195: 玉川大学 | C195: 50 | D195: 335000
B196: 関西医科大学 | C196: 50 | D196: 3255000
B197: 熊本保健科学大学 | C197: 49 | D197: 7000
B198: 東京農業大学 | C198: 48 | D198: 0
B199: 甲南大学 | C199: 47 | D199: 1103000
B200: 東邦大学 | C200: 46 | D200: 1329000
B201: 龍谷大学 | C201: 44 | D201: 930000
B202: 広島市立大学 | C202: 44 | D202: 84000
B203: 大同大学 | C203: 42 | D203: 0
B204: 麻布大学 | C204: 39 | D204: 2179000
B205: 岩手県立大学 | C205: 37 | D205: 54000
B206: 東京薬科大学 | C206: 35 | D206: 2478000
B207: 青山学院大学 | C207: 34 | D207: 0
B208: 岩手医科大学 | C208: 33 | D208: 15000
B209: 愛知工業大学 | C209: 32 | D209: 165000
... 642 more rows

Sheet 千葉大学 (hidden)
A1: 国立 | C1: 千葉大学 | X1: 大学全体の経営理念における産学官連携活動の取組方針 | CY1: 103 | CZ1: 104 | DA1: 105 | DB1: 106 | DC1: 107 | DD1: 108 | DE1: 109 | DF1: 110 | DG1: 111 | DH1: 112 | DI1: 113 | DJ1: 114 | DK1: 115 | DL1: 116 | DM1: 117 | DN1: 118 | DO1: 119 | DP1: 120 | DQ1: 121 | DR1: 122 | DS1: 123 | DT1: 124 | DU1: 125 | DV1: 126 | DW1: 127 | DX1: 128 | DY1: 129
X2: イノベーションの創出活動の強化。具体的には地域連携・産学連携活動、知的財産の確保・活用、アントレプレナーシップ教育、スタートアップ創出支援の強化と組織改革。
C3: (千葉県) | BC3: ＵＲＡ | BO3: URA当たりの研究者数 | CB3: 戦略的産学官連携経費
BC4: 実務担当者数 | BI4: 12 | BN4: 名 | BO4: =IFERROR(K29/BI4,"") -> 158.6666667 | BX4: 名 | CB4: 戦略的産学官連携経費の設定 | CP4: 有 | CT4: 無 | CZ4: ある | DA4: 相談窓口
CB5: 戦略的産学官連携経費の費目 | CZ5: ない | DA5: 支援ファンド
A6: 基 礎 情 報 | BC6: 各種規程類の整備状況 | CB6: 戦略的産学官連携経費の直接経費に対する割合 | CZ6: ある | DA6: インキュベーション施設 | DI6: ◎ | DJ6: 産学官連携ポリシー
BC7: 産学官連携ポリシー | BN7: 職務発明規程（教職員のみ対象） | CZ7: ある | DA7: 知的財産戦略 | DI7: ◎ | DJ7: 知的財産ポリシー
B8: 大学の得意分野とその具体例 | BC8: 知的財産ポリシー | BN8: 職務発明規程（教職員、学生対象） | CB8: 人件費の企業負担 | DI8: ◎ | DJ8: 共同研究取扱規程
B9: 2018年に「WACo共創コンソーシアム」を設立し、ゼロ次予防の観点から「暮らしているだけで健康・活動的になるコミュニティ（WACo）」の実現を目指して企業23社と共同研究を推進してきた。今後は「西千葉well-beingリサーチパーク（仮称）」を実証フィールドにさらなる研究の発展を目指す。 | AA9: 科研費 （千円） | AL9: その他政府系資金 (千円) | AS9: その他団体からの資金 (千円) | BC9: 共同研究取扱規程 | BN9: 発明補償関係規程（教職員のみ対象） | CB9: 教員人件費の企業負担に関する規程や制度 | CP9: 有 | CT9: 無 | DI9: ◎ | DJ9: 受託研究取扱規程
BC10: 受託研究取扱規程 | BN10: 発明補償関係規程（教職員、学生対象） | CB10: 教員人件費の企業負担の費目 | DI10: ◎ | DJ10: 研究成果有体物取扱規程
AA11: 2657146 | AL11: 400896 | AS11: 0 | BC11: 研究成果有体物取扱規程 | BN11: 守秘義務に係る規程（教職員のみ対象） | CB11: 学生人件費の企業負担に関する規程や制度 | CP11: 有 | CT11: 無 | DI11: ◎ | DJ11: 営業秘密管理に関する規程
BC12: 営業秘密管理に関する規程 | BN12: 守秘義務に係る規程（教職員、学生対象） | CB12: 学生人件費の企業負担の費目 | DI12: ◎ | DJ12: 株式の取扱等規程、ポリシー
AA13: 共同研究における間接経費割合 | AN13: 株式の保有 | AT13: 新株予約権の保有 | BC13: 株式の取扱等規程、ポリシー | BN13: 学術指導に関する規程 | DA13: × | DB13: 株式 | DI13: ◎ | DJ13: 職務発明規程（教職員のみ対象）
AA14: 0.3 | AN14: 有 | AQ14: 無 | AT14: 有 | AW14: 無 | BK14: ※各種規定類を整備している場合は、赤色で表示されます。 | CB14: 特別試験研究費税額控除制度 | DA14: ○ | DB14: 新株予約権 | DI14: × | DJ14: 職務発明規程（教職員、学生対象）
B15: 産学官連携活動において今後重点化したい事項 | CB15: 特別試験研究費税額控除制度の活用 | CP15: 有 | CT15: 無 | DI15: × | DJ15: 発明補償関係規程（教職員のみ対象）
B16: 大学発スタートアップ創出支援を加速、重点化したい。地域の多様なプレーヤー（自治体、アクセラレーター、地域金融（VC等含む）、大手・中小企業）と連携しながら、大学の研究成果の社会実装を担う主体者＝地域のアントレプレナーの創出を産学官連携で取り組みたい。 | AA16: 共同研究 | AG16: 2021年度 | AO16: 2022年度 | AW16: 順位※ | BC16: クロスアポイントメントの実績 | BK16: 大学等 | BN16: 公的機関 | BQ16: 民間企業 | BU16: その他機関 | DI16: ◎ | DJ16: 発明補償関係規程（教職員、学生対象）
AG17: 受入額（千円） | AL17: 件数 | AO17: 受入額（千円） | AT17: 件数 | BH17: 受入数(名) | BK17: 1 | BN17: 3 | BQ17: 4 | BU17: 0 | DB17: 順位 | DI17: ◎ | DJ17: 守秘義務に係る規程（教職員のみ対象）
AA18: 全体 | AG18: 1040556 | AL18: 414 | AO18: 942991 | AT18: 436 | AW18: =IF(DB18<50,DB18,"") -> 18 | AY18: 位 | BH18: 派遣数(名) | BK18: 2 | BN18: 3 | BQ18: 0 | BU18: 0 | DB18: 18 | DI18: × | DJ18: 守秘義務に係る規程（教職員、学生対象）
AB19: 民間企業 のみ | AG19: 800780 | AL19: 361 | AO19: 791117 | AT19: 376 | AW19: =IF(DB19<50,DB19,"") -> 20 | AY19: 位 | DB19: 20 | DI19: △ | DJ19: 学術指導に係る規定
AC20: 大企業 | AG20: 636489 | AL20: 263 | AO20: 620976 | AT20: 272 | AW20: 19 | AY20: 位 | BB20: ■組織的産学官連携活動の取組事例 | DB20: 19 | DI20: ない | DJ20: 戦略的産学官連携経費の設定
AC21: 中小企業 | AG21: 164291 | AL21: 98 | AO21: 170141 | AT21: 104 | AW21: 22 | AY21: 位 | DB21: 22 | DI21: ない | DJ21: 教員人件費の企業負担に関する規程や制度
AK22: ※順位は2022年度の受入額を比較したものです。 | DI22: ない | DJ22: 学生人件費の企業負担に関する規程や制度
AK23: ※順位は50位までを記載。51位以下の場合は空欄となります。 | DB23: 0 | DC23: 103 | DI23: ある | DJ23: 特別試験研究費税額控除制度の活用
DB24: ～100万 | DC24: 74
DB25: ～300万 | DC25: 124
DB26: ～500万 | DC26: 35
C27: 産学官連携本部等組織名 | K27: 学術研究・イノベーション推進機構 | DB27: ～1000万 | DC27: 27
C28: 産学官連携本部等URL | K28: https://imo.chiba-u.jp/index.html | DB28: ～5000万 | DC28: 13
C29: 研究者数 | K29: 1904 | O29: 名 | DB29: ～1億 | DJ29: 共同研究等の企画・提案
C30: 実務担当者数 | K30: 24 | O30: 名 | DB30: 1億以上 | DJ30: 契約書での成果目標、達成時の明記
C31: 実務者当たり研究者数 | K31: =IFERROR(K29/K30,"") -> 79.33333333 | O31: 名 | DJ31: 共同研究契約の締結/判断（契約権限の集中）
C32: 専門家の配置 | I32: 弁護士 | L32: 弁理士 | O32: 税理士 | R32: 公認会計士 | V32: その他 | DJ32: 共同研究の進捗管理とフィードバック
L33: ※専門家を配置している場合は、赤色で表示されます。 | DJ33: 企業ニーズに適応した技術移転・事業化提案
AA34: 受託研究 | AG34: 2021年度 | AO34: 2022年度 | AW34: 順位※ | DJ34: 共同研究等の企画・提案
AG35: 受入額（千円） | AL35: 件数 | AO35: 受入額（千円） | AT35: 件数 | DB35: 順位 | DJ35: 契約書での成果目標、達成時の明記
AA36: 全体 | AG36: 2980286 | AL36: 423 | AO36: 3244129 | AT36: 406 | AW36: =IF(DB36<50,DB36,"") -> 16 | AY36: 位 | DB36: 16 | DJ36: 共同研究契約の締結/判断（契約権限の集中）
AA37: 民間企業 のみ | AG37: 184774 | AL37: 100 | AO37: 135368 | AT37: 94 | AW37: =IF(DB37<50,DB37,"") -> 28 | AY37: 位 | DB37: 28 | DJ37: 共同研究の進捗管理とフィードバック
C38: 産学官連携本部が関与した共同研究 | P38: 3 | T38: 件 | AA38: 大企業 | AG38: 137878 | AL38: 79 | AO38: 100209 | AT38: 85 | AW38: 28 | AY38: 位 | DB38: 28 | DJ38: 企業ニーズに適応した技術移転・事業化提案
D39: 内、マッチングを行い、契約締結した件数 | P39: 3 | T39: 件 | AA39: 中小企業 | AG39: 46896 | AL39: 21 | AO39: 35159 | AT39: 9 | AW39: 23 | AY39: 位 | DB39: 23 | DJ39: 共同研究等の企画・提案
I40: ※1,000万円以上の共同研究 | AK40: ※順位は2022年度の受入額を比較したもの | DB40: 弁護士 | DG40: 0 | DH40: 51 | DJ40: 契約書での成果目標、達成時の明記
AK41: ※順位は50位までを記載。51位以下の場合は空欄となります。 | BB41: ■産学官連携活動の主な実用化事例 | DA41: ○ | DB41: 弁理士 | DG41: ～100万 | DH41: 15 | DJ41: 共同研究契約の締結/判断（契約権限の集中）
C42: 組織対組織による包括連携契約の締結数 | P42: 14 | T42: 件 | DB42: 税理士 | DG42: ～300万 | DH42: 15 | DJ42: 共同研究の進捗管理とフィードバック
D43: 内、1,000万円以上の実績がある相手方数 | P43: 0 | T43: 件 | DB43: 公認会計士 | DG43: ～500万 | DH43: 7 | DJ43: 企業ニーズに適応した技術移転・事業化提案
DA44: ○ | DB44: その他 | DG44: ～1000万 | DH44: 4
C45: 寄附講座・寄附研究部門の受入件数 | P45: 17 | V45: 件 | DG45: ～5000万 | DH45: 2
C46: 寄附講座・寄附研究部門の受入金額（千円） | P46: 342655 | DG46: ～1億
C47: 共同研究講座・共同研究部門の受入件数 | P47: 4 | V47: 件 | DG47: 1億以上
C48: 共同研究講座・共同研究部門の受入金額（千円） | P48: 256119
CZ51: 大学 | DA51: 大学・発明者・未設定
C52: 職務発明の帰属 | I52: 大学 | M52: 発明者 | Q52: 未設定 | DA52: 職務発明
AD53: 特許権実施等件数 | AL53: 448 | AQ53: 件 | AS53: 実施等件数当たり | DA53: 不実施
I54: 国内 | K54: 外国 | M54: PCT | O54: EPC | AD54: 特許権実施等収入（千円） | AL54: 16779 | AS54: =IF(OR(AL53="",AL54=""),"",IFERROR(AL54/AL53,"")) -> 37.453125 | CZ54: 16779000 | DA54: 特許権収入
C55: 特許出願件数（件） | I55: 69 | K55: 19 | M55: 18 | O55: 4
C56: 特許保有件数（件） | I56: 611 | K56: 305
C61: 大学発ベンチャー数 | J61: 50 | O61: 社
C62: Exit件数（IPO） | J62: 1 | O62: 社 | P62: Exit件数（M&A） | W62: 0 | Z62: 社
C63: 相談窓口 | K63: 支援ファンド | S63: インキュベーション施設
C64: 有 | G64: 無 | K64: 有 | O64: 無 | S64: 有 | W64: 無
C65: 知的財産戦略方針 | K65: 支援総額（千円） | S65: 面積 | W65: 880 | Z65: m2
C66: 有 | G66: 無 | K66: 0 | S66: 契約企業数 | W66: 4 | Z66: 社
CY69: 103 | CZ69: 104 | DA69: 105 | DB69: 106 | DC69: 107 | DD69: 108 | DE69: 109 | DF69: 110 | DG69: 111 | DH69: 112 | DI69: 113 | DJ69: 114 | DK69: 115 | DL69: 116 | DM69: 117 | DN69: 118 | DO69: 119 | DP69: 120 | DQ69: 121 | DR69: 122 | DS69: 123 | DT69: 124 | DU69: 125
B70: 東京大学 | C70: 4924 | D70: 613188710 | I70: 148
B71: 東京大学 | C71: 4924 | D71: 613188710 | K71: 916
B72: 東北大学 | C72: 3805 | D72: 208066000
B73: 大阪大学 | C73: 3557 | D73: 414288000
B74: 京都大学 | C74: 3026 | D74: 1119118168
B75: 東京工業大学 | C75: 2084 | D75: 99801000
B76: 九州大学 | C76: 1797 | D76: 164182000
B77: 名古屋大学 | C77: 1604 | D77: 90749000
B78: 北海道大学 | C78: 1314 | D78: 183435000
B79: 信州大学 | C79: 1038 | D79: 37096000
B80: 大阪公立大学 | C80: 975 | D80: 9345000
B81: 筑波大学 | C81: 967 | D81: 36213000
B82: 広島大学 | C82: 919 | D82: 34166000
B83: 千葉大学 | C83: 916 | D83: 16779000
B84: 慶應義塾大学 | C84: 869 | D84: 86996000
B85: 山口大学 | C85: 756 | D85: 29295000
B86: 東京理科大学 | C86: 698 | D86: 23087000
B87: 東京農工大学 | C87: 671 | D87: 60497000
B88: 早稲田大学 | C88: 671 | D88: 27622000
B89: 神戸大学 | C89: 668 | D89: 33659000
B90: 岡山大学 | C90: 624 | D90: 24747000
B91: 名古屋工業大学 | C91: 618 | D91: 32295000
B92: 九州工業大学 | C92: 591 | D92: 8115000
B93: 群馬大学 | C93: 563 | D93: 3087000
B94: 横浜国立大学 | C94: 553 | D94: 15639000
B95: 静岡大学 | C95: 543 | D95: 4244000
B96: 熊本大学 | C96: 539 | D96: 28442000
B97: 近畿大学 | C97: 507 | D97: 22970000
B98: 鹿児島大学 | C98: 475 | D98: 16446000
B99: 山梨大学 | C99: 473 | D99: 8206000
B100: 香川大学 | C100: 469 | D100: 19447000
B101: 長岡技術科学大学 | C101: 465 | D101: 3690000
B102: 東京医科歯科大学 | C102: 461 | D102: 28044000
B103: 東京都立大学 | C103: 447 | D103: 2416000
B104: 関西大学 | C104: 445 | D104: 3261000
B105: 三重大学 | C105: 443 | D105: 28808000
B106: 豊橋技術科学大学 | C106: 435 | D106: 6864000
B107: 電気通信大学 | C107: 421 | D107: 7030000
B108: 鳥取大学 | C108: 405 | D108: 137372000
B109: 金沢大学 | C109: 391 | D109: 18050000
B110: 徳島大学 | C110: 390 | D110: 20264000
B111: 奈良先端科学技術大学院大学 | C111: 382 | D111: 39711000
B112: 新潟大学 | C112: 373 | D112: 9369000
B113: 山形大学 | C113: 363 | D113: 2866000
B114: 北里大学 | C114: 346 | D114: 66133000
B115: 立命館大学 | C115: 330 | D115: 9311000
B116: 富山大学 | C116: 328 | D116: 10861000
B117: 埼玉大学 | C117: 320 | D117: 3578000
B118: 同志社大学 | C118: 317 | D118: 4884000
B119: 高知大学 | C119: 314 | D119: 20578000
B120: 弘前大学 | C120: 294 | D120: 8072000
B121: 日本大学 | C121: 283 | D121: 36278000
B122: 兵庫県立大学 | C122: 279 | D122: 1051000
B123: 名城大学 | C123: 276 | D123: 28093000
B124: 岐阜大学 | C124: 274 | D124: 10679000
B125: 横浜市立大学 | C125: 260 | D125: 37933000
B126: 札幌医科大学 | C126: 258 | D126: 19373000
B127: 京都府立医科大学 | C127: 258 | D127: 12241000
B128: 佐賀大学 | C128: 257 | D128: 8596000
B129: 京都工芸繊維大学 | C129: 252 | D129: 368000
B130: 福井大学 | C130: 245 | D130: 8596000
B131: 宮崎大学 | C131: 244 | D131: 1648000
B132: 神奈川大学 | C132: 243 | D132: 5675000
B133: 東海大学 | C133: 232 | D133: 1120000
B134: 岩手大学 | C134: 227 | D134: 6652000
B135: 秋田大学 | C135: 224 | D135: 1688000
B136: 愛媛大学 | C136: 203 | D136: 26470000
B137: 長崎大学 | C137: 203 | D137: 33702000
B138: 東京海洋大学 | C138: 199 | D138: 4576000
B139: 北陸先端科学技術大学院大学 | C139: 192 | D139: 1763000
B140: 沖縄科学技術大学院大学 | C140: 190 | D140: 1460000
B141: 福岡大学 | C141: 189 | D141: 875000
B142: 関西学院大学 | C142: 186 | D142: 25624000
B143: 東京女子医科大学 | C143: 185 | D143: 2817000
B144: 宇都宮大学 | C144: 179 | D144: 1976000
B145: 中央大学 | C145: 170 | D145: 3131000
B146: 上智大学 | C146: 167 | D146: 0
B147: 高知工科大学 | C147: 167 | D147: 45000
B148: 茨城大学 | C148: 155 | D148: 1545000
B149: 金沢工業大学 | C149: 149 | D149: 2786000
B150: 大分大学 | C150: 148 | D150: 4155000
B151: 千葉工業大学 | C151: 147 | D151: 2134000
B152: 浜松医科大学 | C152: 146 | D152: 1429000
B153: 順天堂大学 | C153: 142 | D153: 4289000
B154: 滋賀医科大学 | C154: 141 | D154: 5567000
B155: 中部大学 | C155: 135 | D155: 675000
B156: 島根大学 | C156: 134 | D156: 1585000
B157: 名古屋市立大学 | C157: 124 | D157: 17845000
B158: 豊田工業大学 | C158: 123 | D158: 50000
B159: 芝浦工業大学 | C159: 120 | D159: 441000
B160: 東京電機大学 | C160: 116 | D160: 5765000
B161: 琉球大学 | C161: 109 | D161: 955000
B162: 久留米大学 | C162: 107 | D162: 3189000
B163: 埼玉医科大学 | C163: 98 | D163: 9046000
B164: 富山県立大学 | C164: 94 | D164: 1681000
B165: 藤田医科大学 | C165: 94 | D165: 0
B166: 明治大学 | C166: 92 | D166: 4567000
B167: 北見工業大学 | C167: 89 | D167: 729000
B168: 静岡県立大学 | C168: 88 | D168: 0
B169: 和歌山大学 | C169: 88 | D169: 4976000
B170: 関東学院大学 | C170: 85 | D170: 10815000
B171: 神奈川工科大学 | C171: 77 | D171: 356000
B172: 帝京大学 | C172: 75 | D172: 3411000
B173: 昭和大学 | C173: 73 | D173: 36130000
B174: 奈良県立医科大学 | C174: 72 | D174: 643000
B175: 福岡工業大学 | C175: 70 | D175: 200000
B176: 法政大学 | C176: 68 | D176: 1375000
B177: 東亜大学 | C177: 67 | D177: 0
B178: 兵庫医科大学 | C178: 65 | D178: 909000
B179: 聖マリアンナ医科大学 | C179: 61 | D179: 9075000
B180: 室蘭工業大学 | C180: 60 | D180: 14000
B181: 秋田県立大学 | C181: 60 | D181: 1505000
B182: 福島大学 | C182: 60 | D182: 48000
B183: 日本医科大学 | C183: 60 | D183: 5693000
B184: 岡山理科大学 | C184: 58 | D184: 2541000
B185: 産業医科大学 | C185: 57 | D185: 2114000
B186: 東洋大学 | C186: 56 | D186: 1565000
B187: 帯広畜産大学 | C187: 55 | D187: 2369000
B188: 会津大学 | C188: 55 | D188: 220000
B189: 立教大学 | C189: 55 | D189: 18000
B190: 北九州市立大学 | C190: 55 | D190: 9601000
B191: 旭川医科大学 | C191: 53 | D191: 11185000
B192: お茶の水女子大学 | C192: 53 | D192: 0
B193: 工学院大学 | C193: 53 | D193: 1312000
B194: 大阪工業大学 | C194: 53 | D194: 0
B195: 玉川大学 | C195: 50 | D195: 335000
B196: 関西医科大学 | C196: 50 | D196: 3255000
B197: 熊本保健科学大学 | C197: 49 | D197: 7000
B198: 東京農業大学 | C198: 48 | D198: 0
B199: 甲南大学 | C199: 47 | D199: 1103000
B200: 東邦大学 | C200: 46 | D200: 1329000
B201: 龍谷大学 | C201: 44 | D201: 930000
B202: 広島市立大学 | C202: 44 | D202: 84000
B203: 大同大学 | C203: 42 | D203: 0
B204: 麻布大学 | C204: 39 | D204: 2179000
B205: 岩手県立大学 | C205: 37 | D205: 54000
B206: 東京薬科大学 | C206: 35 | D206: 2478000
B207: 青山学院大学 | C207: 34 | D207: 0
B208: 岩手医科大学 | C208: 33 | D208: 15000
... 643 more rows

Sheet お茶の水女子大学 (hidden)
A1: 国立 | C1: お茶の水女子大学 | X1: 大学全体の経営理念における産学官連携活動の取組方針 | CY1: 103 | CZ1: 104 | DA1: 105 | DB1: 106 | DC1: 107 | DD1: 108 | DE1: 109 | DF1: 110 | DG1: 111 | DH1: 112 | DI1: 113 | DJ1: 114 | DK1: 115 | DL1: 116 | DM1: 117 | DN1: 118 | DO1: 119 | DP1: 120 | DQ1: 121 | DR1: 122 | DS1: 123 | DT1: 124 | DU1: 125 | DV1: 126 | DW1: 127 | DX1: 128 | DY1: 129
X2: 委託研究・共同研究・技術移転等を通した企業等との連携、政府・地方自治体の政策形成への寄与、地域社会における市民活動との連携等の幅広い産学公連携の推進のための組織的取り組みを行う。
C3: (東京都) | BC3: ＵＲＡ | BO3: URA当たりの研究者数 | CB3: 戦略的産学官連携経費
BC4: 実務担当者数 | BI4: 3 | BN4: 名 | BO4: =IFERROR(K29/BI4,"") -> 131.6666667 | BX4: 名 | CB4: 戦略的産学官連携経費の設定 | CP4: 有 | CT4: 無 | CZ4: ある | DA4: 相談窓口
CB5: 戦略的産学官連携経費の費目 | CZ5: ない | DA5: 支援ファンド
A6: 基 礎 情 報 | BC6: 各種規程類の整備状況 | CB6: 戦略的産学官連携経費の直接経費に対する割合 | CZ6: ある | DA6: インキュベーション施設 | DI6: ◎ | DJ6: 産学官連携ポリシー
BC7: 産学官連携ポリシー | BN7: 職務発明規程（教職員のみ対象） | CZ7: ない | DA7: 知的財産戦略 | DI7: ◎ | DJ7: 知的財産ポリシー
B8: 大学の得意分野とその具体例 | BC8: 知的財産ポリシー | BN8: 職務発明規程（教職員、学生対象） | CB8: 人件費の企業負担 | DI8: ◎ | DJ8: 共同研究取扱規程
B9: ライフサイエンス、工学、情報科学を生活者の視点で横断する分野。歴史と実績を備えたジェンダー研究の分野。 | AA9: 科研費 （千円） | AL9: その他政府系資金 (千円) | AS9: その他団体からの資金 (千円) | BC9: 共同研究取扱規程 | BN9: 発明補償関係規程（教職員のみ対象） | CB9: 教員人件費の企業負担に関する規程や制度 | CP9: 有 | CT9: 無 | DI9: ◎ | DJ9: 受託研究取扱規程
BC10: 受託研究取扱規程 | BN10: 発明補償関係規程（教職員、学生対象） | CB10: 教員人件費の企業負担の費目 | DI10: ◎ | DJ10: 研究成果有体物取扱規程
AA11: 305285 | AL11: 20725 | AS11: 39159 | BC11: 研究成果有体物取扱規程 | BN11: 守秘義務に係る規程（教職員のみ対象） | CB11: 学生人件費の企業負担に関する規程や制度 | CP11: 有 | CT11: 無 | DI11: ◎ | DJ11: 営業秘密管理に関する規程
BC12: 営業秘密管理に関する規程 | BN12: 守秘義務に係る規程（教職員、学生対象） | CB12: 学生人件費の企業負担の費目 | CP12: 直接経費 | DI12: × | DJ12: 株式の取扱等規程、ポリシー
AA13: 共同研究における間接経費割合 | AN13: 株式の保有 | AT13: 新株予約権の保有 | BC13: 株式の取扱等規程、ポリシー | BN13: 学術指導に関する規程 | DA13: × | DB13: 株式 | DI13: × | DJ13: 職務発明規程（教職員のみ対象）
AA14: 0.3 | AN14: 有 | AQ14: 無 | AT14: 有 | AW14: 無 | BK14: ※各種規定類を整備している場合は、赤色で表示されます。 | CB14: 特別試験研究費税額控除制度 | DA14: × | DB14: 新株予約権 | DI14: ◎ | DJ14: 職務発明規程（教職員、学生対象）
B15: 産学官連携活動において今後重点化したい事項 | CB15: 特別試験研究費税額控除制度の活用 | CP15: 有 | CT15: 無 | DI15: × | DJ15: 発明補償関係規程（教職員のみ対象）
B16: 性差を基盤とした研究･教育を推進するイノベーション創出のハブ組織として、令和４年度より『ジェンダード・イノベーション研究所』を設立。従来のイノベーションに「セックス／ジェンダー差」の視点を入れることにより、多様性と包括性をもつ研究・技術開発を推進する。 | AA16: 共同研究 | AG16: 2021年度 | AO16: 2022年度 | AW16: 順位※ | BC16: クロスアポイントメントの実績 | BK16: 大学等 | BN16: 公的機関 | BQ16: 民間企業 | BU16: その他機関 | DI16: ◎ | DJ16: 発明補償関係規程（教職員、学生対象）
AG17: 受入額（千円） | AL17: 件数 | AO17: 受入額（千円） | AT17: 件数 | BH17: 受入数(名) | BK17: 3 | BN17: 0 | BQ17: 0 | BU17: 0 | DB17: 順位 | DI17: × | DJ17: 守秘義務に係る規程（教職員のみ対象）
AA18: 全体 | AG18: 79690 | AL18: 32 | AO18: 64829 | AT18: 33 | AW18: =IF(DB18<50,DB18,"") ->  | AY18: 位 | BH18: 派遣数(名) | BK18: 6 | BN18: 0 | BQ18: 1 | BU18: 0 | DB18: 126 | DI18: ◎ | DJ18: 守秘義務に係る規程（教職員、学生対象）
AB19: 民間企業 のみ | AG19: 27192 | AL19: 30 | AO19: 61435 | AT19: 30 | AW19: =IF(DB19<50,DB19,"") ->  | AY19: 位 | DB19: 121 | DI19: ◎ | DJ19: 学術指導に係る規定
AC20: 大企業 | AG20: 27192 | AL20: 30 | AO20: 61435 | AT20: 30 | AY20: 位 | BB20: ■組織的産学官連携活動の取組事例 | DB20: 107 | DI20: ない | DJ20: 戦略的産学官連携経費の設定
AC21: 中小企業 | AG21: 0 | AL21: 0 | AO21: 0 | AT21: 0 | AY21: 位 | DB21: 357 | DI21: ない | DJ21: 教員人件費の企業負担に関する規程や制度
AK22: ※順位は2022年度の受入額を比較したものです。 | DI22: ある | DJ22: 学生人件費の企業負担に関する規程や制度
AK23: ※順位は50位までを記載。51位以下の場合は空欄となります。 | DB23: 0 | DC23: 3 | DI23: ある | DJ23: 特別試験研究費税額控除制度の活用
DB24: ～100万 | DC24: 10
DB25: ～300万 | DC25: 15
DB26: ～500万
C27: 産学官連携本部等組織名 | K27: 研究・産学連携本部 | DB27: ～1000万 | DC27: 1
C28: 産学官連携本部等URL | K28: https://www.ocha.ac.jp/research/index.html | DB28: ～5000万 | DC28: 1
C29: 研究者数 | K29: 395 | O29: 名 | DB29: ～1億 | DJ29: 共同研究等の企画・提案
C30: 実務担当者数 | K30: 3 | O30: 名 | DB30: 1億以上 | DJ30: 契約書での成果目標、達成時の明記
C31: 実務者当たり研究者数 | K31: =IFERROR(K29/K30,"") -> 131.6666667 | O31: 名 | DJ31: 共同研究契約の締結/判断（契約権限の集中）
C32: 専門家の配置 | I32: 弁護士 | L32: 弁理士 | O32: 税理士 | R32: 公認会計士 | V32: その他 | DJ32: 共同研究の進捗管理とフィードバック
L33: ※専門家を配置している場合は、赤色で表示されます。 | DJ33: 企業ニーズに適応した技術移転・事業化提案
AA34: 受託研究 | AG34: 2021年度 | AO34: 2022年度 | AW34: 順位※ | DJ34: 共同研究等の企画・提案
AG35: 受入額（千円） | AL35: 件数 | AO35: 受入額（千円） | AT35: 件数 | DB35: 順位 | DJ35: 契約書での成果目標、達成時の明記
AA36: 全体 | AG36: 880434 | AL36: 46 | AO36: 790812 | AT36: 52 | AW36: =IF(DB36<50,DB36,"") ->  | AY36: 位 | DB36: 53 | DJ36: 共同研究契約の締結/判断（契約権限の集中）
AA37: 民間企業 のみ | AG37: 15979 | AL37: 4 | AO37: 27708 | AT37: 5 | AW37: =IF(DB37<50,DB37,"") ->  | AY37: 位 | DB37: 93 | DJ37: 共同研究の進捗管理とフィードバック
C38: 産学官連携本部が関与した共同研究 | P38: 1 | T38: 件 | AA38: 大企業 | AG38: 15516 | AL38: 3 | AO38: 27708 | AT38: 4 | AY38: 位 | DB38: 79 | DJ38: 企業ニーズに適応した技術移転・事業化提案
D39: 内、マッチングを行い、契約締結した件数 | P39: 1 | T39: 件 | AA39: 中小企業 | AG39: 463 | AL39: 1 | AO39: 0 | AT39: 1 | AY39: 位 | DB39: 311 | DJ39: 共同研究等の企画・提案
I40: ※1,000万円以上の共同研究 | AK40: ※順位は2022年度の受入額を比較したもの | DB40: 弁護士 | DG40: 0 | DH40: 1 | DJ40: 契約書での成果目標、達成時の明記
AK41: ※順位は50位までを記載。51位以下の場合は空欄となります。 | BB41: ■産学官連携活動の主な実用化事例 | DB41: 弁理士 | DG41: ～100万 | DJ41: 共同研究契約の締結/判断（契約権限の集中）
C42: 組織対組織による包括連携契約の締結数 | P42: 0 | T42: 件 | DB42: 税理士 | DG42: ～300万 | DH42: 2 | DJ42: 共同研究の進捗管理とフィードバック
D43: 内、1,000万円以上の実績がある相手方数 | P43: 0 | T43: 件 | DB43: 公認会計士 | DG43: ～500万 | DH43: 1 | DJ43: 企業ニーズに適応した技術移転・事業化提案
DA44: ○ | DB44: その他 | DG44: ～1000万
C45: 寄附講座・寄附研究部門の受入件数 | P45: 6 | V45: 件 | DG45: ～5000万 | DH45: 1
C46: 寄附講座・寄附研究部門の受入金額（千円） | P46: 35700 | DG46: ～1億
C47: 共同研究講座・共同研究部門の受入件数 | P47: 2 | V47: 件 | DG47: 1億以上
C48: 共同研究講座・共同研究部門の受入金額（千円） | P48: 35322
CZ51: 大学 | DA51: 大学・発明者・未設定
C52: 職務発明の帰属 | I52: 大学 | M52: 発明者 | Q52: 未設定 | DA52: 職務発明
AD53: 特許権実施等件数 | AL53: 4 | AQ53: 件 | AS53: 実施等件数当たり | DA53: 不実施
I54: 国内 | K54: 外国 | M54: PCT | O54: EPC | AD54: 特許権実施等収入（千円） | AL54: 0 | AS54: =IF(OR(AL53="",AL54=""),"",IFERROR(AL54/AL53,"")) -> 0 | CZ54: 0 | DA54: 特許権収入
C55: 特許出願件数（件） | I55: 7 | K55: 4 | M55: 0 | O55: 2
C56: 特許保有件数（件） | I56: 40 | K56: 13
C61: 大学発ベンチャー数 | J61: 0 | O61: 社
C62: Exit件数（IPO） | J62: 0 | O62: 社 | P62: Exit件数（M&A） | W62: 0 | Z62: 社
C63: 相談窓口 | K63: 支援ファンド | S63: インキュベーション施設
C64: 有 | G64: 無 | K64: 有 | O64: 無 | S64: 有 | W64: 無
C65: 知的財産戦略方針 | K65: 支援総額（千円） | S65: 面積 | W65: 0 | Z65: m2
C66: 有 | G66: 無 | K66: 0 | S66: 契約企業数 | W66: 0 | Z66: 社
CY69: 103 | CZ69: 104 | DA69: 105 | DB69: 106 | DC69: 107 | DD69: 108 | DE69: 109 | DF69: 110 | DG69: 111 | DH69: 112 | DI69: 113 | DJ69: 114 | DK69: 115 | DL69: 116 | DM69: 117 | DN69: 118 | DO69: 119 | DP69: 120 | DQ69: 121 | DR69: 122 | DS69: 123 | DT69: 124 | DU69: 125
B70: 東京大学 | C70: 4924 | D70: 613188710 | I70: 148
B71: 東京大学 | C71: 4924 | D71: 613188710 | K71: 53
B72: 東北大学 | C72: 3805 | D72: 208066000
B73: 大阪大学 | C73: 3557 | D73: 414288000
B74: 京都大学 | C74: 3026 | D74: 1119118168
B75: 東京工業大学 | C75: 2084 | D75: 99801000
B76: 九州大学 | C76: 1797 | D76: 164182000
B77: 名古屋大学 | C77: 1604 | D77: 90749000
B78: 北海道大学 | C78: 1314 | D78: 183435000
B79: 信州大学 | C79: 1038 | D79: 37096000
B80: 大阪公立大学 | C80: 975 | D80: 9345000
B81: 筑波大学 | C81: 967 | D81: 36213000
B82: 広島大学 | C82: 919 | D82: 34166000
B83: 千葉大学 | C83: 916 | D83: 16779000
B84: 慶應義塾大学 | C84: 869 | D84: 86996000
B85: 山口大学 | C85: 756 | D85: 29295000
B86: 東京理科大学 | C86: 698 | D86: 23087000
B87: 東京農工大学 | C87: 671 | D87: 60497000
B88: 早稲田大学 | C88: 671 | D88: 27622000
B89: 神戸大学 | C89: 668 | D89: 33659000
B90: 岡山大学 | C90: 624 | D90: 24747000
B91: 名古屋工業大学 | C91: 618 | D91: 32295000
B92: 九州工業大学 | C92: 591 | D92: 8115000
B93: 群馬大学 | C93: 563 | D93: 3087000
B94: 横浜国立大学 | C94: 553 | D94: 15639000
B95: 静岡大学 | C95: 543 | D95: 4244000
B96: 熊本大学 | C96: 539 | D96: 28442000
B97: 近畿大学 | C97: 507 | D97: 22970000
B98: 鹿児島大学 | C98: 475 | D98: 16446000
B99: 山梨大学 | C99: 473 | D99: 8206000
B100: 香川大学 | C100: 469 | D100: 19447000
B101: 長岡技術科学大学 | C101: 465 | D101: 3690000
B102: 東京医科歯科大学 | C102: 461 | D102: 28044000
B103: 東京都立大学 | C103: 447 | D103: 2416000
B104: 関西大学 | C104: 445 | D104: 3261000
B105: 三重大学 | C105: 443 | D105: 28808000
B106: 豊橋技術科学大学 | C106: 435 | D106: 6864000
B107: 電気通信大学 | C107: 421 | D107: 7030000
B108: 鳥取大学 | C108: 405 | D108: 137372000
B109: 金沢大学 | C109: 391 | D109: 18050000
B110: 徳島大学 | C110: 390 | D110: 20264000
B111: 奈良先端科学技術大学院大学 | C111: 382 | D111: 39711000
B112: 新潟大学 | C112: 373 | D112: 9369000
B113: 山形大学 | C113: 363 | D113: 2866000
B114: 北里大学 | C114: 346 | D114: 66133000
B115: 立命館大学 | C115: 330 | D115: 9311000
B116: 富山大学 | C116: 328 | D116: 10861000
B117: 埼玉大学 | C117: 320 | D117: 3578000
B118: 同志社大学 | C118: 317 | D118: 4884000
B119: 高知大学 | C119: 314 | D119: 20578000
B120: 弘前大学 | C120: 294 | D120: 8072000
B121: 日本大学 | C121: 283 | D121: 36278000
B122: 兵庫県立大学 | C122: 279 | D122: 1051000
B123: 名城大学 | C123: 276 | D123: 28093000
B124: 岐阜大学 | C124: 274 | D124: 10679000
B125: 横浜市立大学 | C125: 260 | D125: 37933000
B126: 札幌医科大学 | C126: 258 | D126: 19373000
B127: 京都府立医科大学 | C127: 258 | D127: 12241000
B128: 佐賀大学 | C128: 257 | D128: 8596000
B129: 京都工芸繊維大学 | C129: 252 | D129: 368000
B130: 福井大学 | C130: 245 | D130: 8596000
B131: 宮崎大学 | C131: 244 | D131: 1648000
B132: 神奈川大学 | C132: 243 | D132: 5675000
B133: 東海大学 | C133: 232 | D133: 1120000
B134: 岩手大学 | C134: 227 | D134: 6652000
B135: 秋田大学 | C135: 224 | D135: 1688000
B136: 愛媛大学 | C136: 203 | D136: 26470000
B137: 長崎大学 | C137: 203 | D137: 33702000
B138: 東京海洋大学 | C138: 199 | D138: 4576000
B139: 北陸先端科学技術大学院大学 | C139: 192 | D139: 1763000
B140: 沖縄科学技術大学院大学 | C140: 190 | D140: 1460000
B141: 福岡大学 | C141: 189 | D141: 875000
B142: 関西学院大学 | C142: 186 | D142: 25624000
B143: 東京女子医科大学 | C143: 185 | D143: 2817000
B144: 宇都宮大学 | C144: 179 | D144: 1976000
B145: 中央大学 | C145: 170 | D145: 3131000
B146: 上智大学 | C146: 167 | D146: 0
B147: 高知工科大学 | C147: 167 | D147: 45000
B148: 茨城大学 | C148: 155 | D148: 1545000
B149: 金沢工業大学 | C149: 149 | D149: 2786000
B150: 大分大学 | C150: 148 | D150: 4155000
B151: 千葉工業大学 | C151: 147 | D151: 2134000
B152: 浜松医科大学 | C152: 146 | D152: 1429000
B153: 順天堂大学 | C153: 142 | D153: 4289000
B154: 滋賀医科大学 | C154: 141 | D154: 5567000
B155: 中部大学 | C155: 135 | D155: 675000
B156: 島根大学 | C156: 134 | D156: 1585000
B157: 名古屋市立大学 | C157: 124 | D157: 17845000
B158: 豊田工業大学 | C158: 123 | D158: 50000
B159: 芝浦工業大学 | C159: 120 | D159: 441000
B160: 東京電機大学 | C160: 116 | D160: 5765000
B161: 琉球大学 | C161: 109 | D161: 955000
B162: 久留米大学 | C162: 107 | D162: 3189000
B163: 埼玉医科大学 | C163: 98 | D163: 9046000
B164: 富山県立大学 | C164: 94 | D164: 1681000
B165: 藤田医科大学 | C165: 94 | D165: 0
B166: 明治大学 | C166: 92 | D166: 4567000
B167: 北見工業大学 | C167: 89 | D167: 729000
B168: 静岡県立大学 | C168: 88 | D168: 0
B169: 和歌山大学 | C169: 88 | D169: 4976000
B170: 関東学院大学 | C170: 85 | D170: 10815000
B171: 神奈川工科大学 | C171: 77 | D171: 356000
B172: 帝京大学 | C172: 75 | D172: 3411000
B173: 昭和大学 | C173: 73 | D173: 36130000
B174: 奈良県立医科大学 | C174: 72 | D174: 643000
B175: 福岡工業大学 | C175: 70 | D175: 200000
B176: 法政大学 | C176: 68 | D176: 1375000
B177: 東亜大学 | C177: 67 | D177: 0
B178: 兵庫医科大学 | C178: 65 | D178: 909000
B179: 聖マリアンナ医科大学 | C179: 61 | D179: 9075000
B180: 室蘭工業大学 | C180: 60 | D180: 14000
B181: 秋田県立大学 | C181: 60 | D181: 1505000
B182: 福島大学 | C182: 60 | D182: 48000
B183: 日本医科大学 | C183: 60 | D183: 5693000
B184: 岡山理科大学 | C184: 58 | D184: 2541000
B185: 産業医科大学 | C185: 57 | D185: 2114000
B186: 東洋大学 | C186: 56 | D186: 1565000
B187: 帯広畜産大学 | C187: 55 | D187: 2369000
B188: 会津大学 | C188: 55 | D188: 220000
B189: 立教大学 | C189: 55 | D189: 18000
B190: 北九州市立大学 | C190: 55 | D190: 9601000
B191: 旭川医科大学 | C191: 53 | D191: 11185000
B192: お茶の水女子大学 | C192: 53 | D192: 0
B193: 工学院大学 | C193: 53 | D193: 1312000
B194: 大阪工業大学 | C194: 53 | D194: 0
B195: 玉川大学 | C195: 50 | D195: 335000
B196: 関西医科大学 | C196: 50 | D196: 3255000
B197: 熊本保健科学大学 | C197: 49 | D197: 7000
B198: 東京農業大学 | C198: 48 | D198: 0
B199: 甲南大学 | C199: 47 | D199: 1103000
B200: 東邦大学 | C200: 46 | D200: 1329000
B201: 龍谷大学 | C201: 44 | D201: 930000
B202: 広島市立大学 | C202: 44 | D202: 84000
B203: 大同大学 | C203: 42 | D203: 0
B204: 麻布大学 | C204: 39 | D204: 2179000
B205: 岩手県立大学 | C205: 37 | D205: 54000
B206: 東京薬科大学 | C206: 35 | D206: 2478000
B207: 青山学院大学 | C207: 34 | D207: 0
B208: 岩手医科大学 | C208: 33 | D208: 15000
... 643 more rows

Sheet 電気通信大学 (hidden)
A1: 国立 | C1: 電気通信大学 | X1: 大学全体の経営理念における産学官連携活動の取組方針 | CY1: 103 | CZ1: 104 | DA1: 105 | DB1: 106 | DC1: 107 | DD1: 108 | DE1: 109 | DF1: 110 | DG1: 111 | DH1: 112 | DI1: 113 | DJ1: 114 | DK1: 115 | DL1: 116 | DM1: 117 | DN1: 118 | DO1: 119 | DP1: 120 | DQ1: 121 | DR1: 122 | DS1: 123 | DT1: 124 | DU1: 125 | DV1: 126 | DW1: 127 | DX1: 128 | DY1: 129
X2: 本学は、新たな戦略目標「D.C.& I.」（多元的な多様性を尊重し、異なるものも含めた要素間の相互理解・相互触発を活性化させることにより、イノベーションの持続的創出を目指す）を通して「共創進化スマート社会」の実現を目指す上で、組織連携の拡大及び資金獲得の強化に焦点を置いた産学官連携活動を推進している。
C3: (東京都) | BC3: ＵＲＡ | BO3: URA当たりの研究者数 | CB3: 戦略的産学官連携経費
BC4: 実務担当者数 | BI4: 20 | BN4: 名 | BO4: =IFERROR(K29/BI4,"") -> 18.1 | BX4: 名 | CB4: 戦略的産学官連携経費の設定 | CP4: 有 | CT4: 無 | CZ4: ある | DA4: 相談窓口
CB5: 戦略的産学官連携経費の費目 | CP5: 間接経費 | CZ5: ない | DA5: 支援ファンド
A6: 基 礎 情 報 | BC6: 各種規程類の整備状況 | CB6: 戦略的産学官連携経費の直接経費に対する割合 | CZ6: ある | DA6: インキュベーション施設 | DI6: ◎ | DJ6: 産学官連携ポリシー
BC7: 産学官連携ポリシー | BN7: 職務発明規程（教職員のみ対象） | CZ7: ある | DA7: 知的財産戦略 | DI7: ◎ | DJ7: 知的財産ポリシー
B8: 大学の得意分野とその具体例 | BC8: 知的財産ポリシー | BN8: 職務発明規程（教職員、学生対象） | CB8: 人件費の企業負担 | DI8: ◎ | DJ8: 共同研究取扱規程
B9: 本学は、Society5.0の実現に必要な基盤技術の学問領域すべてをカバーし、かつ基礎研究から応用研究までをカバーしていることに強みを持っている。具体例として、Society5.0で出現が見込まれる人間自身を強化するサービス・機器に関する研究成果である「AI義手」を事業化する大学発ベンチャーがある。 | AA9: 科研費 （千円） | AL9: その他政府系資金 (千円) | AS9: その他団体からの資金 (千円) | BC9: 共同研究取扱規程 | BN9: 発明補償関係規程（教職員のみ対象） | CB9: 教員人件費の企業負担に関する規程や制度 | CP9: 有 | CT9: 無 | DI9: ◎ | DJ9: 受託研究取扱規程
BC10: 受託研究取扱規程 | BN10: 発明補償関係規程（教職員、学生対象） | CB10: 教員人件費の企業負担の費目 | CP10: 直接経費 | DI10: ◎ | DJ10: 研究成果有体物取扱規程
AA11: 805630 | AL11: 16934 | AS11: 35000 | BC11: 研究成果有体物取扱規程 | BN11: 守秘義務に係る規程（教職員のみ対象） | CB11: 学生人件費の企業負担に関する規程や制度 | CP11: 有 | CT11: 無 | DI11: △ | DJ11: 営業秘密管理に関する規程
BC12: 営業秘密管理に関する規程 | BN12: 守秘義務に係る規程（教職員、学生対象） | CB12: 学生人件費の企業負担の費目 | CP12: 直接経費 | DI12: △ | DJ12: 株式の取扱等規程、ポリシー
AA13: 共同研究における間接経費割合 | AN13: 株式の保有 | AT13: 新株予約権の保有 | BC13: 株式の取扱等規程、ポリシー | BN13: 学術指導に関する規程 | DA13: × | DB13: 株式 | DI13: × | DJ13: 職務発明規程（教職員のみ対象）
AA14: 0.3 | AN14: 有 | AQ14: 無 | AT14: 有 | AW14: 無 | BK14: ※各種規定類を整備している場合は、赤色で表示されます。 | CB14: 特別試験研究費税額控除制度 | DA14: × | DB14: 新株予約権 | DI14: ◎ | DJ14: 職務発明規程（教職員、学生対象）
B15: 産学官連携活動において今後重点化したい事項 | CB15: 特別試験研究費税額控除制度の活用 | CP15: 有 | CT15: 無 | DI15: × | DJ15: 発明補償関係規程（教職員のみ対象）
B16: 本学は、“お客様目線”に立ち、連携をスムーズに展開し、徹底した対話により相手の求める研究成果とプロジェクトサイクルを理解した上で、最適かつ戦略的なマッチングソリューションを提案することを重視している。 | AA16: 共同研究 | AG16: 2021年度 | AO16: 2022年度 | AW16: 順位※ | BC16: クロスアポイントメントの実績 | BK16: 大学等 | BN16: 公的機関 | BQ16: 民間企業 | BU16: その他機関 | DI16: ◎ | DJ16: 発明補償関係規程（教職員、学生対象）
AG17: 受入額（千円） | AL17: 件数 | AO17: 受入額（千円） | AT17: 件数 | BH17: 受入数(名) | BK17: 0 | BN17: 0 | BQ17: 0 | BU17: 1 | DB17: 順位 | DI17: ◎ | DJ17: 守秘義務に係る規程（教職員のみ対象）
AA18: 全体 | AG18: 382132 | AL18: 177 | AO18: 404285 | AT18: 170 | AW18: =IF(DB18<50,DB18,"") -> 42 | AY18: 位 | BH18: 派遣数(名) | BK18: 1 | BN18: 0 | BQ18: 0 | BU18: 0 | DB18: 42 | DI18: △ | DJ18: 守秘義務に係る規程（教職員、学生対象）
AB19: 民間企業 のみ | AG19: 335749 | AL19: 165 | AO19: 353009 | AT19: 160 | AW19: =IF(DB19<50,DB19,"") -> 43 | AY19: 位 | DB19: 43 | DI19: ◎ | DJ19: 学術指導に係る規定
AC20: 大企業 | AG20: 261697 | AL20: 113 | AO20: 288813 | AT20: 110 | AW20: 41 | AY20: 位 | BB20: ■組織的産学官連携活動の取組事例 | DB20: 41 | DI20: ある | DJ20: 戦略的産学官連携経費の設定
AC21: 中小企業 | AG21: 74052 | AL21: 52 | AO21: 64196 | AT21: 50 | AY21: 位 | DB21: 59 | DI21: ある | DJ21: 教員人件費の企業負担に関する規程や制度
AK22: ※順位は2022年度の受入額を比較したものです。 | DI22: ある | DJ22: 学生人件費の企業負担に関する規程や制度
AK23: ※順位は50位までを記載。51位以下の場合は空欄となります。 | DB23: 0 | DC23: 34 | DI23: ある | DJ23: 特別試験研究費税額控除制度の活用
DB24: ～100万 | DC24: 28
DB25: ～300万 | DC25: 68
DB26: ～500万 | DC26: 15
C27: 産学官連携本部等組織名 | K27: 産学官連携センター | DB27: ～1000万 | DC27: 8
C28: 産学官連携本部等URL | K28: http://www.sangaku.uec.ac.jp/ | DB28: ～5000万 | DC28: 7
C29: 研究者数 | K29: 362 | O29: 名 | DB29: ～1億 | DJ29: 共同研究等の企画・提案
C30: 実務担当者数 | K30: 19 | O30: 名 | DB30: 1億以上 | DJ30: 契約書での成果目標、達成時の明記
C31: 実務者当たり研究者数 | K31: =IFERROR(K29/K30,"") -> 19.05263158 | O31: 名 | DJ31: 共同研究契約の締結/判断（契約権限の集中）
C32: 専門家の配置 | I32: 弁護士 | L32: 弁理士 | O32: 税理士 | R32: 公認会計士 | V32: その他 | DJ32: 共同研究の進捗管理とフィードバック
L33: ※専門家を配置している場合は、赤色で表示されます。 | DJ33: 企業ニーズに適応した技術移転・事業化提案
AA34: 受託研究 | AG34: 2021年度 | AO34: 2022年度 | AW34: 順位※ | DJ34: 共同研究等の企画・提案
AG35: 受入額（千円） | AL35: 件数 | AO35: 受入額（千円） | AT35: 件数 | DB35: 順位 | DJ35: 契約書での成果目標、達成時の明記
AA36: 全体 | AG36: 970453 | AL36: 85 | AO36: 1280248 | AT36: 83 | AW36: =IF(DB36<50,DB36,"") -> 33 | AY36: 位 | DB36: 33 | DJ36: 共同研究契約の締結/判断（契約権限の集中）
AA37: 民間企業 のみ | AG37: 18235 | AL37: 9 | AO37: 19421 | AT37: 6 | AW37: =IF(DB37<50,DB37,"") ->  | AY37: 位 | DB37: 109 | DJ37: 共同研究の進捗管理とフィードバック
C38: 産学官連携本部が関与した共同研究 | P38: 4 | T38: 件 | AA38: 大企業 | AG38: 15870 | AL38: 6 | AO38: 19421 | AT38: 5 | AY38: 位 | DB38: 97 | DJ38: 企業ニーズに適応した技術移転・事業化提案
D39: 内、マッチングを行い、契約締結した件数 | P39: 3 | T39: 件 | AA39: 中小企業 | AG39: 2365 | AL39: 3 | AO39: 0 | AT39: 1 | AY39: 位 | DB39: 311 | DJ39: 共同研究等の企画・提案
I40: ※1,000万円以上の共同研究 | AK40: ※順位は2022年度の受入額を比較したもの | DB40: 弁護士 | DG40: 0 | DH40: 1 | DJ40: 契約書での成果目標、達成時の明記
AK41: ※順位は50位までを記載。51位以下の場合は空欄となります。 | BB41: ■産学官連携活動の主な実用化事例 | DB41: 弁理士 | DG41: ～100万 | DH41: 1 | DJ41: 共同研究契約の締結/判断（契約権限の集中）
C42: 組織対組織による包括連携契約の締結数 | P42: 8 | T42: 件 | DB42: 税理士 | DG42: ～300万 | DH42: 1 | DJ42: 共同研究の進捗管理とフィードバック
D43: 内、1,000万円以上の実績がある相手方数 | P43: 1 | T43: 件 | DB43: 公認会計士 | DG43: ～500万 | DH43: 1 | DJ43: 企業ニーズに適応した技術移転・事業化提案
DB44: その他 | DG44: ～1000万 | DH44: 2
C45: 寄附講座・寄附研究部門の受入件数 | P45: 3 | V45: 件 | DG45: ～5000万
C46: 寄附講座・寄附研究部門の受入金額（千円） | P46: 6230 | DG46: ～1億
C47: 共同研究講座・共同研究部門の受入件数 | P47: 0 | V47: 件 | DG47: 1億以上
C48: 共同研究講座・共同研究部門の受入金額（千円） | P48: 0
CZ51: 大学 | DA51: 大学・発明者・未設定
C52: 職務発明の帰属 | I52: 大学 | M52: 発明者 | Q52: 未設定 | DA52: 職務発明
AD53: 特許権実施等件数 | AL53: 99 | AQ53: 件 | AS53: 実施等件数当たり | DA53: 不実施
I54: 国内 | K54: 外国 | M54: PCT | O54: EPC | AD54: 特許権実施等収入（千円） | AL54: 7030 | AS54: =IF(OR(AL53="",AL54=""),"",IFERROR(AL54/AL53,"")) -> 71.01010101 | CZ54: 7030000 | DA54: 特許権収入
C55: 特許出願件数（件） | I55: 48 | K55: 10 | M55: 12 | O55: 2
C56: 特許保有件数（件） | I56: 339 | K56: 82
C61: 大学発ベンチャー数 | J61: 34 | O61: 社
C62: Exit件数（IPO） | J62: 0 | O62: 社 | P62: Exit件数（M&A） | W62: 0 | Z62: 社
C63: 相談窓口 | K63: 支援ファンド | S63: インキュベーション施設
C64: 有 | G64: 無 | K64: 有 | O64: 無 | S64: 有 | W64: 無
C65: 知的財産戦略方針 | K65: 支援総額（千円） | S65: 面積 | W65: 400 | Z65: m2
C66: 有 | G66: 無 | K66: 0 | S66: 契約企業数 | W66: 6 | Z66: 社
CY69: 103 | CZ69: 104 | DA69: 105 | DB69: 106 | DC69: 107 | DD69: 108 | DE69: 109 | DF69: 110 | DG69: 111 | DH69: 112 | DI69: 113 | DJ69: 114 | DK69: 115 | DL69: 116 | DM69: 117 | DN69: 118 | DO69: 119 | DP69: 120 | DQ69: 121 | DR69: 122 | DS69: 123 | DT69: 124 | DU69: 125
B70: 東京大学 | C70: 4924 | D70: 613188710 | I70: 148
B71: 東京大学 | C71: 4924 | D71: 613188710 | K71: 421
B72: 東北大学 | C72: 3805 | D72: 208066000
B73: 大阪大学 | C73: 3557 | D73: 414288000
B74: 京都大学 | C74: 3026 | D74: 1119118168
B75: 東京工業大学 | C75: 2084 | D75: 99801000
B76: 九州大学 | C76: 1797 | D76: 164182000
B77: 名古屋大学 | C77: 1604 | D77: 90749000
B78: 北海道大学 | C78: 1314 | D78: 183435000
B79: 信州大学 | C79: 1038 | D79: 37096000
B80: 大阪公立大学 | C80: 975 | D80: 9345000
B81: 筑波大学 | C81: 967 | D81: 36213000
B82: 広島大学 | C82: 919 | D82: 34166000
B83: 千葉大学 | C83: 916 | D83: 16779000
B84: 慶應義塾大学 | C84: 869 | D84: 86996000
B85: 山口大学 | C85: 756 | D85: 29295000
B86: 東京理科大学 | C86: 698 | D86: 23087000
B87: 東京農工大学 | C87: 671 | D87: 60497000
B88: 早稲田大学 | C88: 671 | D88: 27622000
B89: 神戸大学 | C89: 668 | D89: 33659000
B90: 岡山大学 | C90: 624 | D90: 24747000
B91: 名古屋工業大学 | C91: 618 | D91: 32295000
B92: 九州工業大学 | C92: 591 | D92: 8115000
B93: 群馬大学 | C93: 563 | D93: 3087000
B94: 横浜国立大学 | C94: 553 | D94: 15639000
B95: 静岡大学 | C95: 543 | D95: 4244000
B96: 熊本大学 | C96: 539 | D96: 28442000
B97: 近畿大学 | C97: 507 | D97: 22970000
B98: 鹿児島大学 | C98: 475 | D98: 16446000
B99: 山梨大学 | C99: 473 | D99: 8206000
B100: 香川大学 | C100: 469 | D100: 19447000
B101: 長岡技術科学大学 | C101: 465 | D101: 3690000
B102: 東京医科歯科大学 | C102: 461 | D102: 28044000
B103: 東京都立大学 | C103: 447 | D103: 2416000
B104: 関西大学 | C104: 445 | D104: 3261000
B105: 三重大学 | C105: 443 | D105: 28808000
B106: 豊橋技術科学大学 | C106: 435 | D106: 6864000
B107: 電気通信大学 | C107: 421 | D107: 7030000
B108: 鳥取大学 | C108: 405 | D108: 137372000
B109: 金沢大学 | C109: 391 | D109: 18050000
B110: 徳島大学 | C110: 390 | D110: 20264000
B111: 奈良先端科学技術大学院大学 | C111: 382 | D111: 39711000
B112: 新潟大学 | C112: 373 | D112: 9369000
B113: 山形大学 | C113: 363 | D113: 2866000
B114: 北里大学 | C114: 346 | D114: 66133000
B115: 立命館大学 | C115: 330 | D115: 9311000
B116: 富山大学 | C116: 328 | D116: 10861000
B117: 埼玉大学 | C117: 320 | D117: 3578000
B118: 同志社大学 | C118: 317 | D118: 4884000
B119: 高知大学 | C119: 314 | D119: 20578000
B120: 弘前大学 | C120: 294 | D120: 8072000
B121: 日本大学 | C121: 283 | D121: 36278000
B122: 兵庫県立大学 | C122: 279 | D122: 1051000
B123: 名城大学 | C123: 276 | D123: 28093000
B124: 岐阜大学 | C124: 274 | D124: 10679000
B125: 横浜市立大学 | C125: 260 | D125: 37933000
B126: 札幌医科大学 | C126: 258 | D126: 19373000
B127: 京都府立医科大学 | C127: 258 | D127: 12241000
B128: 佐賀大学 | C128: 257 | D128: 8596000
B129: 京都工芸繊維大学 | C129: 252 | D129: 368000
B130: 福井大学 | C130: 245 | D130: 8596000
B131: 宮崎大学 | C131: 244 | D131: 1648000
B132: 神奈川大学 | C132: 243 | D132: 5675000
B133: 東海大学 | C133: 232 | D133: 1120000
B134: 岩手大学 | C134: 227 | D134: 6652000
B135: 秋田大学 | C135: 224 | D135: 1688000
B136: 愛媛大学 | C136: 203 | D136: 26470000
B137: 長崎大学 | C137: 203 | D137: 33702000
B138: 東京海洋大学 | C138: 199 | D138: 4576000
B139: 北陸先端科学技術大学院大学 | C139: 192 | D139: 1763000
B140: 沖縄科学技術大学院大学 | C140: 190 | D140: 1460000
B141: 福岡大学 | C141: 189 | D141: 875000
B142: 関西学院大学 | C142: 186 | D142: 25624000
B143: 東京女子医科大学 | C143: 185 | D143: 2817000
B144: 宇都宮大学 | C144: 179 | D144: 1976000
B145: 中央大学 | C145: 170 | D145: 3131000
B146: 上智大学 | C146: 167 | D146: 0
B147: 高知工科大学 | C147: 167 | D147: 45000
B148: 茨城大学 | C148: 155 | D148: 1545000
B149: 金沢工業大学 | C149: 149 | D149: 2786000
B150: 大分大学 | C150: 148 | D150: 4155000
B151: 千葉工業大学 | C151: 147 | D151: 2134000
B152: 浜松医科大学 | C152: 146 | D152: 1429000
B153: 順天堂大学 | C153: 142 | D153: 4289000
B154: 滋賀医科大学 | C154: 141 | D154: 5567000
B155: 中部大学 | C155: 135 | D155: 675000
B156: 島根大学 | C156: 134 | D156: 1585000
B157: 名古屋市立大学 | C157: 124 | D157: 17845000
B158: 豊田工業大学 | C158: 123 | D158: 50000
B159: 芝浦工業大学 | C159: 120 | D159: 441000
B160: 東京電機大学 | C160: 116 | D160: 5765000
B161: 琉球大学 | C161: 109 | D161: 955000
B162: 久留米大学 | C162: 107 | D162: 3189000
B163: 埼玉医科大学 | C163: 98 | D163: 9046000
B164: 富山県立大学 | C164: 94 | D164: 1681000
B165: 藤田医科大学 | C165: 94 | D165: 0
B166: 明治大学 | C166: 92 | D166: 4567000
B167: 北見工業大学 | C167: 89 | D167: 729000
B168: 静岡県立大学 | C168: 88 | D168: 0
B169: 和歌山大学 | C169: 88 | D169: 4976000
B170: 関東学院大学 | C170: 85 | D170: 10815000
B171: 神奈川工科大学 | C171: 77 | D171: 356000
B172: 帝京大学 | C172: 75 | D172: 3411000
B173: 昭和大学 | C173: 73 | D173: 36130000
B174: 奈良県立医科大学 | C174: 72 | D174: 643000
B175: 福岡工業大学 | C175: 70 | D175: 200000
B176: 法政大学 | C176: 68 | D176: 1375000
B177: 東亜大学 | C177: 67 | D177: 0
B178: 兵庫医科大学 | C178: 65 | D178: 909000
B179: 聖マリアンナ医科大学 | C179: 61 | D179: 9075000
B180: 室蘭工業大学 | C180: 60 | D180: 14000
B181: 秋田県立大学 | C181: 60 | D181: 1505000
B182: 福島大学 | C182: 60 | D182: 48000
B183: 日本医科大学 | C183: 60 | D183: 5693000
B184: 岡山理科大学 | C184: 58 | D184: 2541000
B185: 産業医科大学 | C185: 57 | D185: 2114000
B186: 東洋大学 | C186: 56 | D186: 1565000
B187: 帯広畜産大学 | C187: 55 | D187: 2369000
B188: 会津大学 | C188: 55 | D188: 220000
B189: 立教大学 | C189: 55 | D189: 18000
B190: 北九州市立大学 | C190: 55 | D190: 9601000
B191: 旭川医科大学 | C191: 53 | D191: 11185000
B192: お茶の水女子大学 | C192: 53 | D192: 0
B193: 工学院大学 | C193: 53 | D193: 1312000
B194: 大阪工業大学 | C194: 53 | D194: 0
B195: 玉川大学 | C195: 50 | D195: 335000
B196: 関西医科大学 | C196: 50 | D196: 3255000
B197: 熊本保健科学大学 | C197: 49 | D197: 7000
B198: 東京農業大学 | C198: 48 | D198: 0
B199: 甲南大学 | C199: 47 | D199: 1103000
B200: 東邦大学 | C200: 46 | D200: 1329000
B201: 龍谷大学 | C201: 44 | D201: 930000
B202: 広島市立大学 | C202: 44 | D202: 84000
B203: 大同大学 | C203: 42 | D203: 0
B204: 麻布大学 | C204: 39 | D204: 2179000
B205: 岩手県立大学 | C205: 37 | D205: 54000
B206: 東京薬科大学 | C206: 35 | D206: 2478000
B207: 青山学院大学 | C207: 34 | D207: 0
B208: 岩手医科大学 | C208: 33 | D208: 15000
... 643 more rows

Sheet 政策研究大学院大学 (hidden)
A1: 国立 | C1: 政策研究大学院大学 | X1: 大学全体の経営理念における産学官連携活動の取組方針 | CY1: 103 | CZ1: 104 | DA1: 105 | DB1: 106 | DC1: 107 | DD1: 108 | DE1: 109 | DF1: 110 | DG1: 111 | DH1: 112 | DI1: 113 | DJ1: 114 | DK1: 115 | DL1: 116 | DM1: 117 | DN1: 118 | DO1: 119 | DP1: 120 | DQ1: 121 | DR1: 122 | DS1: 123 | DT1: 124 | DU1: 125 | DV1: 126 | DW1: 127 | DX1: 128 | DY1: 129
C3: (東京都) | BC3: ＵＲＡ | BO3: URA当たりの研究者数 | CB3: 戦略的産学官連携経費
BC4: 実務担当者数 | BI4: 1 | BN4: 名 | BO4: =IFERROR(K29/BI4,"") -> 139 | BX4: 名 | CB4: 戦略的産学官連携経費の設定 | CP4: 有 | CT4: 無 | CZ4: ない | DA4: 相談窓口
CB5: 戦略的産学官連携経費の費目 | CZ5: ない | DA5: 支援ファンド
A6: 基 礎 情 報 | BC6: 各種規程類の整備状況 | CB6: 戦略的産学官連携経費の直接経費に対する割合 | CZ6: ない | DA6: インキュベーション施設 | DI6: × | DJ6: 産学官連携ポリシー
BC7: 産学官連携ポリシー | BN7: 職務発明規程（教職員のみ対象） | CZ7: ない | DA7: 知的財産戦略 | DI7: × | DJ7: 知的財産ポリシー
B8: 大学の得意分野とその具体例 | BC8: 知的財産ポリシー | BN8: 職務発明規程（教職員、学生対象） | CB8: 人件費の企業負担 | DI8: ◎ | DJ8: 共同研究取扱規程
AA9: 科研費 （千円） | AL9: その他政府系資金 (千円) | AS9: その他団体からの資金 (千円) | BC9: 共同研究取扱規程 | BN9: 発明補償関係規程（教職員のみ対象） | CB9: 教員人件費の企業負担に関する規程や制度 | CP9: 有 | CT9: 無 | DI9: ◎ | DJ9: 受託研究取扱規程
BC10: 受託研究取扱規程 | BN10: 発明補償関係規程（教職員、学生対象） | CB10: 教員人件費の企業負担の費目 | CP10: 直接経費 | DI10: × | DJ10: 研究成果有体物取扱規程
AA11: 79508 | AL11: 5211 | AS11: 299 | BC11: 研究成果有体物取扱規程 | BN11: 守秘義務に係る規程（教職員のみ対象） | CB11: 学生人件費の企業負担に関する規程や制度 | CP11: 有 | CT11: 無 | DI11: × | DJ11: 営業秘密管理に関する規程
BC12: 営業秘密管理に関する規程 | BN12: 守秘義務に係る規程（教職員、学生対象） | CB12: 学生人件費の企業負担の費目 | DI12: × | DJ12: 株式の取扱等規程、ポリシー
AA13: 共同研究における間接経費割合 | AN13: 株式の保有 | AT13: 新株予約権の保有 | BC13: 株式の取扱等規程、ポリシー | BN13: 学術指導に関する規程 | DA13: × | DB13: 株式 | DI13: ◎ | DJ13: 職務発明規程（教職員のみ対象）
AA14: 0.2 | AN14: 有 | AQ14: 無 | AT14: 有 | AW14: 無 | BK14: ※各種規定類を整備している場合は、赤色で表示されます。 | CB14: 特別試験研究費税額控除制度 | DA14: × | DB14: 新株予約権 | DI14: × | DJ14: 職務発明規程（教職員、学生対象）
B15: 産学官連携活動において今後重点化したい事項 | CB15: 特別試験研究費税額控除制度の活用 | CP15: 有 | CT15: 無 | DI15: △ | DJ15: 発明補償関係規程（教職員のみ対象）
AA16: 共同研究 | AG16: 2021年度 | AO16: 2022年度 | AW16: 順位※ | BC16: クロスアポイントメントの実績 | BK16: 大学等 | BN16: 公的機関 | BQ16: 民間企業 | BU16: その他機関 | DI16: × | DJ16: 発明補償関係規程（教職員、学生対象）
AG17: 受入額（千円） | AL17: 件数 | AO17: 受入額（千円） | AT17: 件数 | BH17: 受入数(名) | BK17: 0 | BN17: 0 | BQ17: 0 | BU17: 0 | DB17: 順位 | DI17: ◎ | DJ17: 守秘義務に係る規程（教職員のみ対象）
AA18: 全体 | AG18: 1050 | AL18: 2 | AO18: 1550 | AT18: 4 | AW18: =IF(DB18<50,DB18,"") ->  | AY18: 位 | BH18: 派遣数(名) | BK18: 0 | BN18: 0 | BQ18: 0 | BU18: 0 | DB18: 384 | DI18: × | DJ18: 守秘義務に係る規程（教職員、学生対象）
AB19: 民間企業 のみ | AG19: 500 | AL19: 1 | AO19: 1000 | AT19: 1 | AW19: =IF(DB19<50,DB19,"") ->  | AY19: 位 | DB19: 382 | DI19: × | DJ19: 学術指導に係る規定
AC20: 大企業 | AG20: 500 | AL20: 1 | AO20: 1000 | AT20: 1 | AY20: 位 | BB20: ■組織的産学官連携活動の取組事例 | DB20: 350 | DI20: ない | DJ20: 戦略的産学官連携経費の設定
AC21: 中小企業 | AG21: 0 | AL21: 0 | AO21: 0 | AT21: 0 | AY21: 位 | DB21: 357 | DI21: ある | DJ21: 教員人件費の企業負担に関する規程や制度
AK22: ※順位は2022年度の受入額を比較したものです。 | DI22: ない | DJ22: 学生人件費の企業負担に関する規程や制度
AK23: ※順位は50位までを記載。51位以下の場合は空欄となります。 | DB23: 0 | DI23: ない | DJ23: 特別試験研究費税額控除制度の活用
DB24: ～100万 | DC24: 1
DB25: ～300万
DB26: ～500万
C27: 産学官連携本部等組織名 | DB27: ～1000万
C28: 産学官連携本部等URL | DB28: ～5000万
C29: 研究者数 | K29: 139 | O29: 名 | DB29: ～1億 | DJ29: 共同研究等の企画・提案
C30: 実務担当者数 | K30: 3 | O30: 名 | DB30: 1億以上 | DJ30: 契約書での成果目標、達成時の明記
C31: 実務者当たり研究者数 | K31: =IFERROR(K29/K30,"") -> 46.33333333 | O31: 名 | DJ31: 共同研究契約の締結/判断（契約権限の集中）
C32: 専門家の配置 | I32: 弁護士 | L32: 弁理士 | O32: 税理士 | R32: 公認会計士 | V32: その他 | DJ32: 共同研究の進捗管理とフィードバック
L33: ※専門家を配置している場合は、赤色で表示されます。 | DJ33: 企業ニーズに適応した技術移転・事業化提案
AA34: 受託研究 | AG34: 2021年度 | AO34: 2022年度 | AW34: 順位※ | DJ34: 共同研究等の企画・提案
AG35: 受入額（千円） | AL35: 件数 | AO35: 受入額（千円） | AT35: 件数 | DB35: 順位 | DJ35: 契約書での成果目標、達成時の明記
AA36: 全体 | AG36: 380888 | AL36: 15 | AO36: 441739 | AT36: 10 | AW36: =IF(DB36<50,DB36,"") ->  | AY36: 位 | DB36: 76 | DJ36: 共同研究契約の締結/判断（契約権限の集中）
AA37: 民間企業 のみ | AG37: 0 | AL37: 0 | AO37: 0 | AT37: 0 | AW37: =IF(DB37<50,DB37,"") ->  | AY37: 位 | DB37: 394 | DJ37: 共同研究の進捗管理とフィードバック
C38: 産学官連携本部が関与した共同研究 | P38: 0 | T38: 件 | AA38: 大企業 | AG38: 0 | AL38: 0 | AO38: 0 | AT38: 0 | AY38: 位 | DB38: 309 | DJ38: 企業ニーズに適応した技術移転・事業化提案
D39: 内、マッチングを行い、契約締結した件数 | P39: 0 | T39: 件 | AA39: 中小企業 | AG39: 0 | AL39: 0 | AO39: 0 | AT39: 0 | AY39: 位 | DB39: 311 | DJ39: 共同研究等の企画・提案
I40: ※1,000万円以上の共同研究 | AK40: ※順位は2022年度の受入額を比較したもの | DB40: 弁護士 | DG40: 0 | DJ40: 契約書での成果目標、達成時の明記
AK41: ※順位は50位までを記載。51位以下の場合は空欄となります。 | BB41: ■産学官連携活動の主な実用化事例 | DB41: 弁理士 | DG41: ～100万 | DJ41: 共同研究契約の締結/判断（契約権限の集中）
C42: 組織対組織による包括連携契約の締結数 | P42: 0 | T42: 件 | DB42: 税理士 | DG42: ～300万 | DJ42: 共同研究の進捗管理とフィードバック
D43: 内、1,000万円以上の実績がある相手方数 | P43: 0 | T43: 件 | DB43: 公認会計士 | DG43: ～500万 | DJ43: 企業ニーズに適応した技術移転・事業化提案
DB44: その他 | DG44: ～1000万
C45: 寄附講座・寄附研究部門の受入件数 | P45: 3 | V45: 件 | DG45: ～5000万
C46: 寄附講座・寄附研究部門の受入金額（千円） | P46: 69000 | DG46: ～1億
C47: 共同研究講座・共同研究部門の受入件数 | P47: 0 | V47: 件 | DG47: 1億以上
C48: 共同研究講座・共同研究部門の受入金額（千円） | P48: 0
CZ51: 大学 | DA51: 大学・発明者・未設定
C52: 職務発明の帰属 | I52: 大学 | M52: 発明者 | Q52: 未設定 | DA52: 職務発明
AD53: 特許権実施等件数 | AL53: 0 | AQ53: 件 | AS53: 実施等件数当たり | DA53: 不実施
I54: 国内 | K54: 外国 | M54: PCT | O54: EPC | AD54: 特許権実施等収入（千円） | AL54: 0 | AS54: =IF(OR(AL53="",AL54=""),"",IFERROR(AL54/AL53,"")) ->  | CZ54: 0 | DA54: 特許権収入
C55: 特許出願件数（件） | I55: 1 | K55: 0 | M55: 0 | O55: 0
C56: 特許保有件数（件） | I56: 0 | K56: 0
C61: 大学発ベンチャー数 | J61: 0 | O61: 社
C62: Exit件数（IPO） | J62: 0 | O62: 社 | P62: Exit件数（M&A） | W62: 0 | Z62: 社
C63: 相談窓口 | K63: 支援ファンド | S63: インキュベーション施設
C64: 有 | G64: 無 | K64: 有 | O64: 無 | S64: 有 | W64: 無
C65: 知的財産戦略方針 | K65: 支援総額（千円） | S65: 面積 | W65: 0 | Z65: m2
C66: 有 | G66: 無 | K66: 0 | S66: 契約企業数 | W66: 0 | Z66: 社
CY69: 103 | CZ69: 104 | DA69: 105 | DB69: 106 | DC69: 107 | DD69: 108 | DE69: 109 | DF69: 110 | DG69: 111 | DH69: 112 | DI69: 113 | DJ69: 114 | DK69: 115 | DL69: 116 | DM69: 117 | DN69: 118 | DO69: 119 | DP69: 120 | DQ69: 121 | DR69: 122 | DS69: 123 | DT69: 124 | DU69: 125
B70: 東京大学 | C70: 4924 | D70: 613188710 | I70: 148
B71: 東京大学 | C71: 4924 | D71: 613188710 | K71: 0
B72: 東北大学 | C72: 3805 | D72: 208066000
B73: 大阪大学 | C73: 3557 | D73: 414288000
B74: 京都大学 | C74: 3026 | D74: 1119118168
B75: 東京工業大学 | C75: 2084 | D75: 99801000
B76: 九州大学 | C76: 1797 | D76: 164182000
B77: 名古屋大学 | C77: 1604 | D77: 90749000
B78: 北海道大学 | C78: 1314 | D78: 183435000
B79: 信州大学 | C79: 1038 | D79: 37096000
B80: 大阪公立大学 | C80: 975 | D80: 9345000
B81: 筑波大学 | C81: 967 | D81: 36213000
B82: 広島大学 | C82: 919 | D82: 34166000
B83: 千葉大学 | C83: 916 | D83: 16779000
B84: 慶應義塾大学 | C84: 869 | D84: 86996000
B85: 山口大学 | C85: 756 | D85: 29295000
B86: 東京理科大学 | C86: 698 | D86: 23087000
B87: 東京農工大学 | C87: 671 | D87: 60497000
B88: 早稲田大学 | C88: 671 | D88: 27622000
B89: 神戸大学 | C89: 668 | D89: 33659000
B90: 岡山大学 | C90: 624 | D90: 24747000
B91: 名古屋工業大学 | C91: 618 | D91: 32295000
B92: 九州工業大学 | C92: 591 | D92: 8115000
B93: 群馬大学 | C93: 563 | D93: 3087000
B94: 横浜国立大学 | C94: 553 | D94: 15639000
B95: 静岡大学 | C95: 543 | D95: 4244000
B96: 熊本大学 | C96: 539 | D96: 28442000
B97: 近畿大学 | C97: 507 | D97: 22970000
B98: 鹿児島大学 | C98: 475 | D98: 16446000
B99: 山梨大学 | C99: 473 | D99: 8206000
B100: 香川大学 | C100: 469 | D100: 19447000
B101: 長岡技術科学大学 | C101: 465 | D101: 3690000
B102: 東京医科歯科大学 | C102: 461 | D102: 28044000
B103: 東京都立大学 | C103: 447 | D103: 2416000
B104: 関西大学 | C104: 445 | D104: 3261000
B105: 三重大学 | C105: 443 | D105: 28808000
B106: 豊橋技術科学大学 | C106: 435 | D106: 6864000
B107: 電気通信大学 | C107: 421 | D107: 7030000
B108: 鳥取大学 | C108: 405 | D108: 137372000
B109: 金沢大学 | C109: 391 | D109: 18050000
B110: 徳島大学 | C110: 390 | D110: 20264000
B111: 奈良先端科学技術大学院大学 | C111: 382 | D111: 39711000
B112: 新潟大学 | C112: 373 | D112: 9369000
B113: 山形大学 | C113: 363 | D113: 2866000
B114: 北里大学 | C114: 346 | D114: 66133000
B115: 立命館大学 | C115: 330 | D115: 9311000
B116: 富山大学 | C116: 328 | D116: 10861000
B117: 埼玉大学 | C117: 320 | D117: 3578000
B118: 同志社大学 | C118: 317 | D118: 4884000
B119: 高知大学 | C119: 314 | D119: 20578000
B120: 弘前大学 | C120: 294 | D120: 8072000
B121: 日本大学 | C121: 283 | D121: 36278000
B122: 兵庫県立大学 | C122: 279 | D122: 1051000
B123: 名城大学 | C123: 276 | D123: 28093000
B124: 岐阜大学 | C124: 274 | D124: 10679000
B125: 横浜市立大学 | C125: 260 | D125: 37933000
B126: 札幌医科大学 | C126: 258 | D126: 19373000
B127: 京都府立医科大学 | C127: 258 | D127: 12241000
B128: 佐賀大学 | C128: 257 | D128: 8596000
B129: 京都工芸繊維大学 | C129: 252 | D129: 368000
B130: 福井大学 | C130: 245 | D130: 8596000
B131: 宮崎大学 | C131: 244 | D131: 1648000
B132: 神奈川大学 | C132: 243 | D132: 5675000
B133: 東海大学 | C133: 232 | D133: 1120000
B134: 岩手大学 | C134: 227 | D134: 6652000
B135: 秋田大学 | C135: 224 | D135: 1688000
B136: 愛媛大学 | C136: 203 | D136: 26470000
B137: 長崎大学 | C137: 203 | D137: 33702000
B138: 東京海洋大学 | C138: 199 | D138: 4576000
B139: 北陸先端科学技術大学院大学 | C139: 192 | D139: 1763000
B140: 沖縄科学技術大学院大学 | C140: 190 | D140: 1460000
B141: 福岡大学 | C141: 189 | D141: 875000
B142: 関西学院大学 | C142: 186 | D142: 25624000
B143: 東京女子医科大学 | C143: 185 | D143: 2817000
B144: 宇都宮大学 | C144: 179 | D144: 1976000
B145: 中央大学 | C145: 170 | D145: 3131000
B146: 上智大学 | C146: 167 | D146: 0
B147: 高知工科大学 | C147: 167 | D147: 45000
B148: 茨城大学 | C148: 155 | D148: 1545000
B149: 金沢工業大学 | C149: 149 | D149: 2786000
B150: 大分大学 | C150: 148 | D150: 4155000
B151: 千葉工業大学 | C151: 147 | D151: 2134000
B152: 浜松医科大学 | C152: 146 | D152: 1429000
B153: 順天堂大学 | C153: 142 | D153: 4289000
B154: 滋賀医科大学 | C154: 141 | D154: 5567000
B155: 中部大学 | C155: 135 | D155: 675000
B156: 島根大学 | C156: 134 | D156: 1585000
B157: 名古屋市立大学 | C157: 124 | D157: 17845000
B158: 豊田工業大学 | C158: 123 | D158: 50000
B159: 芝浦工業大学 | C159: 120 | D159: 441000
B160: 東京電機大学 | C160: 116 | D160: 5765000
B161: 琉球大学 | C161: 109 | D161: 955000
B162: 久留米大学 | C162: 107 | D162: 3189000
B163: 埼玉医科大学 | C163: 98 | D163: 9046000
B164: 富山県立大学 | C164: 94 | D164: 1681000
B165: 藤田医科大学 | C165: 94 | D165: 0
B166: 明治大学 | C166: 92 | D166: 4567000
B167: 北見工業大学 | C167: 89 | D167: 729000
B168: 静岡県立大学 | C168: 88 | D168: 0
B169: 和歌山大学 | C169: 88 | D169: 4976000
B170: 関東学院大学 | C170: 85 | D170: 10815000
B171: 神奈川工科大学 | C171: 77 | D171: 356000
B172: 帝京大学 | C172: 75 | D172: 3411000
B173: 昭和大学 | C173: 73 | D173: 36130000
B174: 奈良県立医科大学 | C174: 72 | D174: 643000
B175: 福岡工業大学 | C175: 70 | D175: 200000
B176: 法政大学 | C176: 68 | D176: 1375000
B177: 東亜大学 | C177: 67 | D177: 0
B178: 兵庫医科大学 | C178: 65 | D178: 909000
B179: 聖マリアンナ医科大学 | C179: 61 | D179: 9075000
B180: 室蘭工業大学 | C180: 60 | D180: 14000
B181: 秋田県立大学 | C181: 60 | D181: 1505000
B182: 福島大学 | C182: 60 | D182: 48000
B183: 日本医科大学 | C183: 60 | D183: 5693000
B184: 岡山理科大学 | C184: 58 | D184: 2541000
B185: 産業医科大学 | C185: 57 | D185: 2114000
B186: 東洋大学 | C186: 56 | D186: 1565000
B187: 帯広畜産大学 | C187: 55 | D187: 2369000
B188: 会津大学 | C188: 55 | D188: 220000
B189: 立教大学 | C189: 55 | D189: 18000
B190: 北九州市立大学 | C190: 55 | D190: 9601000
B191: 旭川医科大学 | C191: 53 | D191: 11185000
B192: お茶の水女子大学 | C192: 53 | D192: 0
B193: 工学院大学 | C193: 53 | D193: 1312000
B194: 大阪工業大学 | C194: 53 | D194: 0
B195: 玉川大学 | C195: 50 | D195: 335000
B196: 関西医科大学 | C196: 50 | D196: 3255000
B197: 熊本保健科学大学 | C197: 49 | D197: 7000
B198: 東京農業大学 | C198: 48 | D198: 0
B199: 甲南大学 | C199: 47 | D199: 1103000
B200: 東邦大学 | C200: 46 | D200: 1329000
B201: 龍谷大学 | C201: 44 | D201: 930000
B202: 広島市立大学 | C202: 44 | D202: 84000
B203: 大同大学 | C203: 42 | D203: 0
B204: 麻布大学 | C204: 39 | D204: 2179000
B205: 岩手県立大学 | C205: 37 | D205: 54000
B206: 東京薬科大学 | C206: 35 | D206: 2478000
B207: 青山学院大学 | C207: 34 | D207: 0
B208: 岩手医科大学 | C208: 33 | D208: 15000
B209: 愛知工業大学 | C209: 32 | D209: 165000
... 642 more rows

Sheet 総合研究大学院大学 (hidden)
A1: 国立 | C1: 総合研究大学院大学 | X1: 大学全体の経営理念における産学官連携活動の取組方針 | CY1: 103 | CZ1: 104 | DA1: 105 | DB1: 106 | DC1: 107 | DD1: 108 | DE1: 109 | DF1: 110 | DG1: 111 | DH1: 112 | DI1: 113 | DJ1: 114 | DK1: 115 | DL1: 116 | DM1: 117 | DN1: 118 | DO1: 119 | DP1: 120 | DQ1: 121 | DR1: 122 | DS1: 123 | DT1: 124 | DU1: 125 | DV1: 126 | DW1: 127 | DX1: 128 | DY1: 129
C3: (神奈川県) | BC3: ＵＲＡ | BO3: URA当たりの研究者数 | CB3: 戦略的産学官連携経費
BC4: 実務担当者数 | BI4: 2 | BN4: 名 | BO4: =IFERROR(K29/BI4,"") -> 24 | BX4: 名 | CB4: 戦略的産学官連携経費の設定 | CP4: 有 | CT4: 無 | CZ4: ない | DA4: 相談窓口
CB5: 戦略的産学官連携経費の費目 | CZ5: ない | DA5: 支援ファンド
A6: 基 礎 情 報 | BC6: 各種規程類の整備状況 | CB6: 戦略的産学官連携経費の直接経費に対する割合 | CZ6: ない | DA6: インキュベーション施設 | DI6: × | DJ6: 産学官連携ポリシー
BC7: 産学官連携ポリシー | BN7: 職務発明規程（教職員のみ対象） | CZ7: ない | DA7: 知的財産戦略 | DI7: ◎ | DJ7: 知的財産ポリシー
B8: 大学の得意分野とその具体例 | BC8: 知的財産ポリシー | BN8: 職務発明規程（教職員、学生対象） | CB8: 人件費の企業負担 | DI8: ◎ | DJ8: 共同研究取扱規程
AA9: 科研費 （千円） | AL9: その他政府系資金 (千円) | AS9: その他団体からの資金 (千円) | BC9: 共同研究取扱規程 | BN9: 発明補償関係規程（教職員のみ対象） | CB9: 教員人件費の企業負担に関する規程や制度 | CP9: 有 | CT9: 無 | DI9: ◎ | DJ9: 受託研究取扱規程
BC10: 受託研究取扱規程 | BN10: 発明補償関係規程（教職員、学生対象） | CB10: 教員人件費の企業負担の費目 | DI10: ◎ | DJ10: 研究成果有体物取扱規程
AA11: 68900 | AL11: 0 | AS11: 3025 | BC11: 研究成果有体物取扱規程 | BN11: 守秘義務に係る規程（教職員のみ対象） | CB11: 学生人件費の企業負担に関する規程や制度 | CP11: 有 | CT11: 無 | DI11: × | DJ11: 営業秘密管理に関する規程
BC12: 営業秘密管理に関する規程 | BN12: 守秘義務に係る規程（教職員、学生対象） | CB12: 学生人件費の企業負担の費目 | DI12: × | DJ12: 株式の取扱等規程、ポリシー
AA13: 共同研究における間接経費割合 | AN13: 株式の保有 | AT13: 新株予約権の保有 | BC13: 株式の取扱等規程、ポリシー | BN13: 学術指導に関する規程 | DA13: × | DB13: 株式 | DI13: ◎ | DJ13: 職務発明規程（教職員のみ対象）
AA14: 0.3 | AN14: 有 | AQ14: 無 | AT14: 有 | AW14: 無 | BK14: ※各種規定類を整備している場合は、赤色で表示されます。 | CB14: 特別試験研究費税額控除制度 | DA14: × | DB14: 新株予約権 | DI14: × | DJ14: 職務発明規程（教職員、学生対象）
B15: 産学官連携活動において今後重点化したい事項 | CB15: 特別試験研究費税額控除制度の活用 | CP15: 有 | CT15: 無 | DI15: × | DJ15: 発明補償関係規程（教職員のみ対象）
AA16: 共同研究 | AG16: 2021年度 | AO16: 2022年度 | AW16: 順位※ | BC16: クロスアポイントメントの実績 | BK16: 大学等 | BN16: 公的機関 | BQ16: 民間企業 | BU16: その他機関 | DI16: × | DJ16: 発明補償関係規程（教職員、学生対象）
AG17: 受入額（千円） | AL17: 件数 | AO17: 受入額（千円） | AT17: 件数 | BH17: 受入数(名) | BK17: 0 | BN17: 0 | BQ17: 0 | BU17: 0 | DB17: 順位 | DI17: ◎ | DJ17: 守秘義務に係る規程（教職員のみ対象）
AA18: 全体 | AG18: 200 | AL18: 2 | AO18: 0 | AT18: 3 | AW18: =IF(DB18<50,DB18,"") ->  | AY18: 位 | BH18: 派遣数(名) | BK18: 1 | BN18: 0 | BQ18: 0 | BU18: 0 | DB18: 491 | DI18: × | DJ18: 守秘義務に係る規程（教職員、学生対象）
AB19: 民間企業 のみ | AG19: 200 | AL19: 2 | AO19: 0 | AT19: 1 | AW19: =IF(DB19<50,DB19,"") ->  | AY19: 位 | DB19: 455 | DI19: × | DJ19: 学術指導に係る規定
AC20: 大企業 | AG20: 200 | AL20: 2 | AO20: 0 | AT20: 1 | AY20: 位 | BB20: ■組織的産学官連携活動の取組事例 | DB20: 405 | DI20: ない | DJ20: 戦略的産学官連携経費の設定
AC21: 中小企業 | AG21: 0 | AL21: 0 | AO21: 0 | AT21: 0 | AY21: 位 | DB21: 357 | DI21: ない | DJ21: 教員人件費の企業負担に関する規程や制度
AK22: ※順位は2022年度の受入額を比較したものです。 | DI22: ない | DJ22: 学生人件費の企業負担に関する規程や制度
AK23: ※順位は50位までを記載。51位以下の場合は空欄となります。 | DB23: 0 | DC23: 1 | DI23: ない | DJ23: 特別試験研究費税額控除制度の活用
DB24: ～100万
DB25: ～300万
DB26: ～500万
C27: 産学官連携本部等組織名 | DB27: ～1000万
C28: 産学官連携本部等URL | DB28: ～5000万
C29: 研究者数 | K29: 48 | O29: 名 | DB29: ～1億 | DJ29: 共同研究等の企画・提案
C30: 実務担当者数 | K30: 2 | O30: 名 | DB30: 1億以上 | DJ30: 契約書での成果目標、達成時の明記
C31: 実務者当たり研究者数 | K31: =IFERROR(K29/K30,"") -> 24 | O31: 名 | DJ31: 共同研究契約の締結/判断（契約権限の集中）
C32: 専門家の配置 | I32: 弁護士 | L32: 弁理士 | O32: 税理士 | R32: 公認会計士 | V32: その他 | DJ32: 共同研究の進捗管理とフィードバック
L33: ※専門家を配置している場合は、赤色で表示されます。 | DJ33: 企業ニーズに適応した技術移転・事業化提案
AA34: 受託研究 | AG34: 2021年度 | AO34: 2022年度 | AW34: 順位※ | DJ34: 共同研究等の企画・提案
AG35: 受入額（千円） | AL35: 件数 | AO35: 受入額（千円） | AT35: 件数 | DB35: 順位 | DJ35: 契約書での成果目標、達成時の明記
AA36: 全体 | AG36: 24971 | AL36: 5 | AO36: 5200 | AT36: 2 | AW36: =IF(DB36<50,DB36,"") ->  | AY36: 位 | DB36: 347 | DJ36: 共同研究契約の締結/判断（契約権限の集中）
AA37: 民間企業 のみ | AG37: 0 | AL37: 0 | AO37: 0 | AT37: 0 | AW37: =IF(DB37<50,DB37,"") ->  | AY37: 位 | DB37: 394 | DJ37: 共同研究の進捗管理とフィードバック
C38: 産学官連携本部が関与した共同研究 | P38: 0 | T38: 件 | AA38: 大企業 | AG38: 0 | AL38: 0 | AO38: 0 | AT38: 0 | AY38: 位 | DB38: 309 | DJ38: 企業ニーズに適応した技術移転・事業化提案
D39: 内、マッチングを行い、契約締結した件数 | P39: 0 | T39: 件 | AA39: 中小企業 | AG39: 0 | AL39: 0 | AO39: 0 | AT39: 0 | AY39: 位 | DB39: 311 | DJ39: 共同研究等の企画・提案
I40: ※1,000万円以上の共同研究 | AK40: ※順位は2022年度の受入額を比較したもの | DB40: 弁護士 | DG40: 0 | DJ40: 契約書での成果目標、達成時の明記
AK41: ※順位は50位までを記載。51位以下の場合は空欄となります。 | BB41: ■産学官連携活動の主な実用化事例 | DB41: 弁理士 | DG41: ～100万 | DJ41: 共同研究契約の締結/判断（契約権限の集中）
C42: 組織対組織による包括連携契約の締結数 | P42: 0 | T42: 件 | DB42: 税理士 | DG42: ～300万 | DJ42: 共同研究の進捗管理とフィードバック
D43: 内、1,000万円以上の実績がある相手方数 | P43: 0 | T43: 件 | DB43: 公認会計士 | DG43: ～500万 | DJ43: 企業ニーズに適応した技術移転・事業化提案
DB44: その他 | DG44: ～1000万
C45: 寄附講座・寄附研究部門の受入件数 | P45: 0 | V45: 件 | DG45: ～5000万
C46: 寄附講座・寄附研究部門の受入金額（千円） | P46: 0 | DG46: ～1億
C47: 共同研究講座・共同研究部門の受入件数 | P47: 0 | V47: 件 | DG47: 1億以上
C48: 共同研究講座・共同研究部門の受入金額（千円） | P48: 0
CZ51: 大学 | DA51: 大学・発明者・未設定
C52: 職務発明の帰属 | I52: 大学 | M52: 発明者 | Q52: 未設定 | DA52: 職務発明
AD53: 特許権実施等件数 | AL53: 0 | AQ53: 件 | AS53: 実施等件数当たり | DA53: 不実施
I54: 国内 | K54: 外国 | M54: PCT | O54: EPC | AD54: 特許権実施等収入（千円） | AL54: 0 | AS54: =IF(OR(AL53="",AL54=""),"",IFERROR(AL54/AL53,"")) ->  | CZ54: 0 | DA54: 特許権収入
C55: 特許出願件数（件） | I55: 0 | K55: 0 | M55: 0 | O55: 0
C56: 特許保有件数（件） | I56: 0 | K56: 0
C61: 大学発ベンチャー数 | J61: 0 | O61: 社
C62: Exit件数（IPO） | J62: 0 | O62: 社 | P62: Exit件数（M&A） | W62: 0 | Z62: 社
C63: 相談窓口 | K63: 支援ファンド | S63: インキュベーション施設
C64: 有 | G64: 無 | K64: 有 | O64: 無 | S64: 有 | W64: 無
C65: 知的財産戦略方針 | K65: 支援総額（千円） | S65: 面積 | W65: 0 | Z65: m2
C66: 有 | G66: 無 | K66: 0 | S66: 契約企業数 | W66: 0 | Z66: 社
CY69: 103 | CZ69: 104 | DA69: 105 | DB69: 106 | DC69: 107 | DD69: 108 | DE69: 109 | DF69: 110 | DG69: 111 | DH69: 112 | DI69: 113 | DJ69: 114 | DK69: 115 | DL69: 116 | DM69: 117 | DN69: 118 | DO69: 119 | DP69: 120 | DQ69: 121 | DR69: 122 | DS69: 123 | DT69: 124 | DU69: 125
B70: 東京大学 | C70: 4924 | D70: 613188710 | I70: 148
B71: 東京大学 | C71: 4924 | D71: 613188710 | K71: 0
B72: 東北大学 | C72: 3805 | D72: 208066000
B73: 大阪大学 | C73: 3557 | D73: 414288000
B74: 京都大学 | C74: 3026 | D74: 1119118168
B75: 東京工業大学 | C75: 2084 | D75: 99801000
B76: 九州大学 | C76: 1797 | D76: 164182000
B77: 名古屋大学 | C77: 1604 | D77: 90749000
B78: 北海道大学 | C78: 1314 | D78: 183435000
B79: 信州大学 | C79: 1038 | D79: 37096000
B80: 大阪公立大学 | C80: 975 | D80: 9345000
B81: 筑波大学 | C81: 967 | D81: 36213000
B82: 広島大学 | C82: 919 | D82: 34166000
B83: 千葉大学 | C83: 916 | D83: 16779000
B84: 慶應義塾大学 | C84: 869 | D84: 86996000
B85: 山口大学 | C85: 756 | D85: 29295000
B86: 東京理科大学 | C86: 698 | D86: 23087000
B87: 東京農工大学 | C87: 671 | D87: 60497000
B88: 早稲田大学 | C88: 671 | D88: 27622000
B89: 神戸大学 | C89: 668 | D89: 33659000
B90: 岡山大学 | C90: 624 | D90: 24747000
B91: 名古屋工業大学 | C91: 618 | D91: 32295000
B92: 九州工業大学 | C92: 591 | D92: 8115000
B93: 群馬大学 | C93: 563 | D93: 3087000
B94: 横浜国立大学 | C94: 553 | D94: 15639000
B95: 静岡大学 | C95: 543 | D95: 4244000
B96: 熊本大学 | C96: 539 | D96: 28442000
B97: 近畿大学 | C97: 507 | D97: 22970000
B98: 鹿児島大学 | C98: 475 | D98: 16446000
B99: 山梨大学 | C99: 473 | D99: 8206000
B100: 香川大学 | C100: 469 | D100: 19447000
B101: 長岡技術科学大学 | C101: 465 | D101: 3690000
B102: 東京医科歯科大学 | C102: 461 | D102: 28044000
B103: 東京都立大学 | C103: 447 | D103: 2416000
B104: 関西大学 | C104: 445 | D104: 3261000
B105: 三重大学 | C105: 443 | D105: 28808000
B106: 豊橋技術科学大学 | C106: 435 | D106: 6864000
B107: 電気通信大学 | C107: 421 | D107: 7030000
B108: 鳥取大学 | C108: 405 | D108: 137372000
B109: 金沢大学 | C109: 391 | D109: 18050000
B110: 徳島大学 | C110: 390 | D110: 20264000
B111: 奈良先端科学技術大学院大学 | C111: 382 | D111: 39711000
B112: 新潟大学 | C112: 373 | D112: 9369000
B113: 山形大学 | C113: 363 | D113: 2866000
B114: 北里大学 | C114: 346 | D114: 66133000
B115: 立命館大学 | C115: 330 | D115: 9311000
B116: 富山大学 | C116: 328 | D116: 10861000
B117: 埼玉大学 | C117: 320 | D117: 3578000
B118: 同志社大学 | C118: 317 | D118: 4884000
B119: 高知大学 | C119: 314 | D119: 20578000
B120: 弘前大学 | C120: 294 | D120: 8072000
B121: 日本大学 | C121: 283 | D121: 36278000
B122: 兵庫県立大学 | C122: 279 | D122: 1051000
B123: 名城大学 | C123: 276 | D123: 28093000
B124: 岐阜大学 | C124: 274 | D124: 10679000
B125: 横浜市立大学 | C125: 260 | D125: 37933000
B126: 札幌医科大学 | C126: 258 | D126: 19373000
B127: 京都府立医科大学 | C127: 258 | D127: 12241000
B128: 佐賀大学 | C128: 257 | D128: 8596000
B129: 京都工芸繊維大学 | C129: 252 | D129: 368000
B130: 福井大学 | C130: 245 | D130: 8596000
B131: 宮崎大学 | C131: 244 | D131: 1648000
B132: 神奈川大学 | C132: 243 | D132: 5675000
B133: 東海大学 | C133: 232 | D133: 1120000
B134: 岩手大学 | C134: 227 | D134: 6652000
B135: 秋田大学 | C135: 224 | D135: 1688000
B136: 愛媛大学 | C136: 203 | D136: 26470000
B137: 長崎大学 | C137: 203 | D137: 33702000
B138: 東京海洋大学 | C138: 199 | D138: 4576000
B139: 北陸先端科学技術大学院大学 | C139: 192 | D139: 1763000
B140: 沖縄科学技術大学院大学 | C140: 190 | D140: 1460000
B141: 福岡大学 | C141: 189 | D141: 875000
B142: 関西学院大学 | C142: 186 | D142: 25624000
B143: 東京女子医科大学 | C143: 185 | D143: 2817000
B144: 宇都宮大学 | C144: 179 | D144: 1976000
B145: 中央大学 | C145: 170 | D145: 3131000
B146: 上智大学 | C146: 167 | D146: 0
B147: 高知工科大学 | C147: 167 | D147: 45000
B148: 茨城大学 | C148: 155 | D148: 1545000
B149: 金沢工業大学 | C149: 149 | D149: 2786000
B150: 大分大学 | C150: 148 | D150: 4155000
B151: 千葉工業大学 | C151: 147 | D151: 2134000
B152: 浜松医科大学 | C152: 146 | D152: 1429000
B153: 順天堂大学 | C153: 142 | D153: 4289000
B154: 滋賀医科大学 | C154: 141 | D154: 5567000
B155: 中部大学 | C155: 135 | D155: 675000
B156: 島根大学 | C156: 134 | D156: 1585000
B157: 名古屋市立大学 | C157: 124 | D157: 17845000
B158: 豊田工業大学 | C158: 123 | D158: 50000
B159: 芝浦工業大学 | C159: 120 | D159: 441000
B160: 東京電機大学 | C160: 116 | D160: 5765000
B161: 琉球大学 | C161: 109 | D161: 955000
B162: 久留米大学 | C162: 107 | D162: 3189000
B163: 埼玉医科大学 | C163: 98 | D163: 9046000
B164: 富山県立大学 | C164: 94 | D164: 1681000
B165: 藤田医科大学 | C165: 94 | D165: 0
B166: 明治大学 | C166: 92 | D166: 4567000
B167: 北見工業大学 | C167: 89 | D167: 729000
B168: 静岡県立大学 | C168: 88 | D168: 0
B169: 和歌山大学 | C169: 88 | D169: 4976000
B170: 関東学院大学 | C170: 85 | D170: 10815000
B171: 神奈川工科大学 | C171: 77 | D171: 356000
B172: 帝京大学 | C172: 75 | D172: 3411000
B173: 昭和大学 | C173: 73 | D173: 36130000
B174: 奈良県立医科大学 | C174: 72 | D174: 643000
B175: 福岡工業大学 | C175: 70 | D175: 200000
B176: 法政大学 | C176: 68 | D176: 1375000
B177: 東亜大学 | C177: 67 | D177: 0
B178: 兵庫医科大学 | C178: 65 | D178: 909000
B179: 聖マリアンナ医科大学 | C179: 61 | D179: 9075000
B180: 室蘭工業大学 | C180: 60 | D180: 14000
B181: 秋田県立大学 | C181: 60 | D181: 1505000
B182: 福島大学 | C182: 60 | D182: 48000
B183: 日本医科大学 | C183: 60 | D183: 5693000
B184: 岡山理科大学 | C184: 58 | D184: 2541000
B185: 産業医科大学 | C185: 57 | D185: 2114000
B186: 東洋大学 | C186: 56 | D186: 1565000
B187: 帯広畜産大学 | C187: 55 | D187: 2369000
B188: 会津大学 | C188: 55 | D188: 220000
B189: 立教大学 | C189: 55 | D189: 18000
B190: 北九州市立大学 | C190: 55 | D190: 9601000
B191: 旭川医科大学 | C191: 53 | D191: 11185000
B192: お茶の水女子大学 | C192: 53 | D192: 0
B193: 工学院大学 | C193: 53 | D193: 1312000
B194: 大阪工業大学 | C194: 53 | D194: 0
B195: 玉川大学 | C195: 50 | D195: 335000
B196: 関西医科大学 | C196: 50 | D196: 3255000
B197: 熊本保健科学大学 | C197: 49 | D197: 7000
B198: 東京農業大学 | C198: 48 | D198: 0
B199: 甲南大学 | C199: 47 | D199: 1103000
B200: 東邦大学 | C200: 46 | D200: 1329000
B201: 龍谷大学 | C201: 44 | D201: 930000
B202: 広島市立大学 | C202: 44 | D202: 84000
B203: 大同大学 | C203: 42 | D203: 0
B204: 麻布大学 | C204: 39 | D204: 2179000
B205: 岩手県立大学 | C205: 37 | D205: 54000
B206: 東京薬科大学 | C206: 35 | D206: 2478000
B207: 青山学院大学 | C207: 34 | D207: 0
B208: 岩手医科大学 | C208: 33 | D208: 15000
B209: 愛知工業大学 | C209: 32 | D209: 165000
... 642 more rows

Sheet 上越教育大学 (hidden)
A1: 国立 | C1: 上越教育大学 | X1: 大学全体の経営理念における産学官連携活動の取組方針 | CY1: 103 | CZ1: 104 | DA1: 105 | DB1: 106 | DC1: 107 | DD1: 108 | DE1: 109 | DF1: 110 | DG1: 111 | DH1: 112 | DI1: 113 | DJ1: 114 | DK1: 115 | DL1: 116 | DM1: 117 | DN1: 118 | DO1: 119 | DP1: 120 | DQ1: 121 | DR1: 122 | DS1: 123 | DT1: 124 | DU1: 125 | DV1: 126 | DW1: 127 | DX1: 128 | DY1: 129
C3: (新潟県) | BC3: ＵＲＡ | BO3: URA当たりの研究者数 | CB3: 戦略的産学官連携経費
BC4: 実務担当者数 | BI4: 0 | BN4: 名 | BO4: =IFERROR(K29/BI4,"") ->  | BX4: 名 | CB4: 戦略的産学官連携経費の設定 | CP4: 有 | CT4: 無 | CZ4: ない | DA4: 相談窓口
CB5: 戦略的産学官連携経費の費目 | CZ5: ない | DA5: 支援ファンド
A6: 基 礎 情 報 | BC6: 各種規程類の整備状況 | CB6: 戦略的産学官連携経費の直接経費に対する割合 | CZ6: ない | DA6: インキュベーション施設 | DI6: × | DJ6: 産学官連携ポリシー
BC7: 産学官連携ポリシー | BN7: 職務発明規程（教職員のみ対象） | CZ7: ない | DA7: 知的財産戦略 | DI7: ◎ | DJ7: 知的財産ポリシー
B8: 大学の得意分野とその具体例 | BC8: 知的財産ポリシー | BN8: 職務発明規程（教職員、学生対象） | CB8: 人件費の企業負担 | DI8: ◎ | DJ8: 共同研究取扱規程
AA9: 科研費 （千円） | AL9: その他政府系資金 (千円) | AS9: その他団体からの資金 (千円) | BC9: 共同研究取扱規程 | BN9: 発明補償関係規程（教職員のみ対象） | CB9: 教員人件費の企業負担に関する規程や制度 | CP9: 有 | CT9: 無 | DI9: ◎ | DJ9: 受託研究取扱規程
BC10: 受託研究取扱規程 | BN10: 発明補償関係規程（教職員、学生対象） | CB10: 教員人件費の企業負担の費目 | DI10: ◎ | DJ10: 研究成果有体物取扱規程
AA11: 89700 | AL11: 0 | AS11: 0 | BC11: 研究成果有体物取扱規程 | BN11: 守秘義務に係る規程（教職員のみ対象） | CB11: 学生人件費の企業負担に関する規程や制度 | CP11: 有 | CT11: 無 | DI11: × | DJ11: 営業秘密管理に関する規程
BC12: 営業秘密管理に関する規程 | BN12: 守秘義務に係る規程（教職員、学生対象） | CB12: 学生人件費の企業負担の費目 | DI12: × | DJ12: 株式の取扱等規程、ポリシー
AA13: 共同研究における間接経費割合 | AN13: 株式の保有 | AT13: 新株予約権の保有 | BC13: 株式の取扱等規程、ポリシー | BN13: 学術指導に関する規程 | DA13: × | DB13: 株式 | DI13: ◎ | DJ13: 職務発明規程（教職員のみ対象）
AA14: 0.3 | AN14: 有 | AQ14: 無 | AT14: 有 | AW14: 無 | BK14: ※各種規定類を整備している場合は、赤色で表示されます。 | CB14: 特別試験研究費税額控除制度 | DA14: × | DB14: 新株予約権 | DI14: × | DJ14: 職務発明規程（教職員、学生対象）
B15: 産学官連携活動において今後重点化したい事項 | CB15: 特別試験研究費税額控除制度の活用 | CP15: 有 | CT15: 無 | DI15: ◎ | DJ15: 発明補償関係規程（教職員のみ対象）
AA16: 共同研究 | AG16: 2021年度 | AO16: 2022年度 | AW16: 順位※ | BC16: クロスアポイントメントの実績 | BK16: 大学等 | BN16: 公的機関 | BQ16: 民間企業 | BU16: その他機関 | DI16: × | DJ16: 発明補償関係規程（教職員、学生対象）
AG17: 受入額（千円） | AL17: 件数 | AO17: 受入額（千円） | AT17: 件数 | BH17: 受入数(名) | BK17: 0 | BN17: 0 | BQ17: 0 | BU17: 0 | DB17: 順位 | DI17: ◎ | DJ17: 守秘義務に係る規程（教職員のみ対象）
AA18: 全体 | AG18: 1220 | AL18: 3 | AO18: 1498 | AT18: 3 | AW18: =IF(DB18<50,DB18,"") ->  | AY18: 位 | BH18: 派遣数(名) | BK18: 0 | BN18: 0 | BQ18: 0 | BU18: 0 | DB18: 387 | DI18: × | DJ18: 守秘義務に係る規程（教職員、学生対象）
AB19: 民間企業 のみ | AG19: 0 | AL19: 0 | AO19: 0 | AT19: 0 | AW19: =IF(DB19<50,DB19,"") ->  | AY19: 位 | DB19: 455 | DI19: × | DJ19: 学術指導に係る規定
AC20: 大企業 | AG20: 0 | AL20: 0 | AO20: 0 | AT20: 0 | AY20: 位 | BB20: ■組織的産学官連携活動の取組事例 | DB20: 405 | DI20: ない | DJ20: 戦略的産学官連携経費の設定
AC21: 中小企業 | AG21: 0 | AL21: 0 | AO21: 0 | AT21: 0 | AY21: 位 | DB21: 357 | DI21: ない | DJ21: 教員人件費の企業負担に関する規程や制度
AK22: ※順位は2022年度の受入額を比較したものです。 | DI22: ない | DJ22: 学生人件費の企業負担に関する規程や制度
AK23: ※順位は50位までを記載。51位以下の場合は空欄となります。 | DB23: 0 | DI23: ない | DJ23: 特別試験研究費税額控除制度の活用
DB24: ～100万
DB25: ～300万
DB26: ～500万
C27: 産学官連携本部等組織名 | K27: 知的財産本部 | DB27: ～1000万
C28: 産学官連携本部等URL | K28: https://www.juen.ac.jp/050about/055kenkyu/040property/ | DB28: ～5000万
C29: 研究者数 | K29: 152 | O29: 名 | DB29: ～1億 | DJ29: 共同研究等の企画・提案
C30: 実務担当者数 | K30: 2 | O30: 名 | DB30: 1億以上 | DJ30: 契約書での成果目標、達成時の明記
C31: 実務者当たり研究者数 | K31: =IFERROR(K29/K30,"") -> 76 | O31: 名 | DJ31: 共同研究契約の締結/判断（契約権限の集中）
C32: 専門家の配置 | I32: 弁護士 | L32: 弁理士 | O32: 税理士 | R32: 公認会計士 | V32: その他 | DJ32: 共同研究の進捗管理とフィードバック
L33: ※専門家を配置している場合は、赤色で表示されます。 | DJ33: 企業ニーズに適応した技術移転・事業化提案
AA34: 受託研究 | AG34: 2021年度 | AO34: 2022年度 | AW34: 順位※ | DJ34: 共同研究等の企画・提案
AG35: 受入額（千円） | AL35: 件数 | AO35: 受入額（千円） | AT35: 件数 | DB35: 順位 | DJ35: 契約書での成果目標、達成時の明記
AA36: 全体 | AG36: 650 | AL36: 1 | AO36: 1300 | AT36: 1 | AW36: =IF(DB36<50,DB36,"") ->  | AY36: 位 | DB36: 459 | DJ36: 共同研究契約の締結/判断（契約権限の集中）
AA37: 民間企業 のみ | AG37: 0 | AL37: 0 | AO37: 0 | AT37: 0 | AW37: =IF(DB37<50,DB37,"") ->  | AY37: 位 | DB37: 394 | DJ37: 共同研究の進捗管理とフィードバック
C38: 産学官連携本部が関与した共同研究 | P38: 0 | T38: 件 | AA38: 大企業 | AG38: 0 | AL38: 0 | AO38: 0 | AT38: 0 | AY38: 位 | DB38: 309 | DJ38: 企業ニーズに適応した技術移転・事業化提案
D39: 内、マッチングを行い、契約締結した件数 | P39: 0 | T39: 件 | AA39: 中小企業 | AG39: 0 | AL39: 0 | AO39: 0 | AT39: 0 | AY39: 位 | DB39: 311 | DJ39: 共同研究等の企画・提案
I40: ※1,000万円以上の共同研究 | AK40: ※順位は2022年度の受入額を比較したもの | DB40: 弁護士 | DG40: 0 | DJ40: 契約書での成果目標、達成時の明記
AK41: ※順位は50位までを記載。51位以下の場合は空欄となります。 | BB41: ■産学官連携活動の主な実用化事例 | DB41: 弁理士 | DG41: ～100万 | DJ41: 共同研究契約の締結/判断（契約権限の集中）
C42: 組織対組織による包括連携契約の締結数 | P42: 0 | T42: 件 | DB42: 税理士 | DG42: ～300万 | DJ42: 共同研究の進捗管理とフィードバック
D43: 内、1,000万円以上の実績がある相手方数 | P43: 0 | T43: 件 | DB43: 公認会計士 | DG43: ～500万 | DJ43: 企業ニーズに適応した技術移転・事業化提案
DB44: その他 | DG44: ～1000万
C45: 寄附講座・寄附研究部門の受入件数 | P45: 1 | V45: 件 | DG45: ～5000万
C46: 寄附講座・寄附研究部門の受入金額（千円） | P46: 24000 | DG46: ～1億
C47: 共同研究講座・共同研究部門の受入件数 | P47: 0 | V47: 件 | DG47: 1億以上
C48: 共同研究講座・共同研究部門の受入金額（千円） | P48: 0
CZ51: 大学 | DA51: 大学・発明者・未設定
C52: 職務発明の帰属 | I52: 大学 | M52: 発明者 | Q52: 未設定 | DA52: 職務発明
AD53: 特許権実施等件数 | AL53: 0 | AQ53: 件 | AS53: 実施等件数当たり | DA53: 不実施
I54: 国内 | K54: 外国 | M54: PCT | O54: EPC | AD54: 特許権実施等収入（千円） | AL54: 0 | AS54: =IF(OR(AL53="",AL54=""),"",IFERROR(AL54/AL53,"")) ->  | CZ54: 0 | DA54: 特許権収入
C55: 特許出願件数（件） | I55: 0 | K55: 0 | M55: 0 | O55: 0
C56: 特許保有件数（件） | I56: 0 | K56: 0
C61: 大学発ベンチャー数 | J61: 0 | O61: 社
C62: Exit件数（IPO） | J62: 0 | O62: 社 | P62: Exit件数（M&A） | W62: 0 | Z62: 社
C63: 相談窓口 | K63: 支援ファンド | S63: インキュベーション施設
C64: 有 | G64: 無 | K64: 有 | O64: 無 | S64: 有 | W64: 無
C65: 知的財産戦略方針 | K65: 支援総額（千円） | S65: 面積 | W65: 0 | Z65: m2
C66: 有 | G66: 無 | K66: 0 | S66: 契約企業数 | W66: 0 | Z66: 社
CY69: 103 | CZ69: 104 | DA69: 105 | DB69: 106 | DC69: 107 | DD69: 108 | DE69: 109 | DF69: 110 | DG69: 111 | DH69: 112 | DI69: 113 | DJ69: 114 | DK69: 115 | DL69: 116 | DM69: 117 | DN69: 118 | DO69: 119 | DP69: 120 | DQ69: 121 | DR69: 122 | DS69: 123 | DT69: 124 | DU69: 125
B70: 東京大学 | C70: 4924 | D70: 613188710 | I70: 148
B71: 東京大学 | C71: 4924 | D71: 613188710 | K71: 0
B72: 東北大学 | C72: 3805 | D72: 208066000
B73: 大阪大学 | C73: 3557 | D73: 414288000
B74: 京都大学 | C74: 3026 | D74: 1119118168
B75: 東京工業大学 | C75: 2084 | D75: 99801000
B76: 九州大学 | C76: 1797 | D76: 164182000
B77: 名古屋大学 | C77: 1604 | D77: 90749000
B78: 北海道大学 | C78: 1314 | D78: 183435000
B79: 信州大学 | C79: 1038 | D79: 37096000
B80: 大阪公立大学 | C80: 975 | D80: 9345000
B81: 筑波大学 | C81: 967 | D81: 36213000
B82: 広島大学 | C82: 919 | D82: 34166000
B83: 千葉大学 | C83: 916 | D83: 16779000
B84: 慶應義塾大学 | C84: 869 | D84: 86996000
B85: 山口大学 | C85: 756 | D85: 29295000
B86: 東京理科大学 | C86: 698 | D86: 23087000
B87: 東京農工大学 | C87: 671 | D87: 60497000
B88: 早稲田大学 | C88: 671 | D88: 27622000
B89: 神戸大学 | C89: 668 | D89: 33659000
B90: 岡山大学 | C90: 624 | D90: 24747000
B91: 名古屋工業大学 | C91: 618 | D91: 32295000
B92: 九州工業大学 | C92: 591 | D92: 8115000
B93: 群馬大学 | C93: 563 | D93: 3087000
B94: 横浜国立大学 | C94: 553 | D94: 15639000
B95: 静岡大学 | C95: 543 | D95: 4244000
B96: 熊本大学 | C96: 539 | D96: 28442000
B97: 近畿大学 | C97: 507 | D97: 22970000
B98: 鹿児島大学 | C98: 475 | D98: 16446000
B99: 山梨大学 | C99: 473 | D99: 8206000
B100: 香川大学 | C100: 469 | D100: 19447000
B101: 長岡技術科学大学 | C101: 465 | D101: 3690000
B102: 東京医科歯科大学 | C102: 461 | D102: 28044000
B103: 東京都立大学 | C103: 447 | D103: 2416000
B104: 関西大学 | C104: 445 | D104: 3261000
B105: 三重大学 | C105: 443 | D105: 28808000
B106: 豊橋技術科学大学 | C106: 435 | D106: 6864000
B107: 電気通信大学 | C107: 421 | D107: 7030000
B108: 鳥取大学 | C108: 405 | D108: 137372000
B109: 金沢大学 | C109: 391 | D109: 18050000
B110: 徳島大学 | C110: 390 | D110: 20264000
B111: 奈良先端科学技術大学院大学 | C111: 382 | D111: 39711000
B112: 新潟大学 | C112: 373 | D112: 9369000
B113: 山形大学 | C113: 363 | D113: 2866000
B114: 北里大学 | C114: 346 | D114: 66133000
B115: 立命館大学 | C115: 330 | D115: 9311000
B116: 富山大学 | C116: 328 | D116: 10861000
B117: 埼玉大学 | C117: 320 | D117: 3578000
B118: 同志社大学 | C118: 317 | D118: 4884000
B119: 高知大学 | C119: 314 | D119: 20578000
B120: 弘前大学 | C120: 294 | D120: 8072000
B121: 日本大学 | C121: 283 | D121: 36278000
B122: 兵庫県立大学 | C122: 279 | D122: 1051000
B123: 名城大学 | C123: 276 | D123: 28093000
B124: 岐阜大学 | C124: 274 | D124: 10679000
B125: 横浜市立大学 | C125: 260 | D125: 37933000
B126: 札幌医科大学 | C126: 258 | D126: 19373000
B127: 京都府立医科大学 | C127: 258 | D127: 12241000
B128: 佐賀大学 | C128: 257 | D128: 8596000
B129: 京都工芸繊維大学 | C129: 252 | D129: 368000
B130: 福井大学 | C130: 245 | D130: 8596000
B131: 宮崎大学 | C131: 244 | D131: 1648000
B132: 神奈川大学 | C132: 243 | D132: 5675000
B133: 東海大学 | C133: 232 | D133: 1120000
B134: 岩手大学 | C134: 227 | D134: 6652000
B135: 秋田大学 | C135: 224 | D135: 1688000
B136: 愛媛大学 | C136: 203 | D136: 26470000
B137: 長崎大学 | C137: 203 | D137: 33702000
B138: 東京海洋大学 | C138: 199 | D138: 4576000
B139: 北陸先端科学技術大学院大学 | C139: 192 | D139: 1763000
B140: 沖縄科学技術大学院大学 | C140: 190 | D140: 1460000
B141: 福岡大学 | C141: 189 | D141: 875000
B142: 関西学院大学 | C142: 186 | D142: 25624000
B143: 東京女子医科大学 | C143: 185 | D143: 2817000
B144: 宇都宮大学 | C144: 179 | D144: 1976000
B145: 中央大学 | C145: 170 | D145: 3131000
B146: 上智大学 | C146: 167 | D146: 0
B147: 高知工科大学 | C147: 167 | D147: 45000
B148: 茨城大学 | C148: 155 | D148: 1545000
B149: 金沢工業大学 | C149: 149 | D149: 2786000
B150: 大分大学 | C150: 148 | D150: 4155000
B151: 千葉工業大学 | C151: 147 | D151: 2134000
B152: 浜松医科大学 | C152: 146 | D152: 1429000
B153: 順天堂大学 | C153: 142 | D153: 4289000
B154: 滋賀医科大学 | C154: 141 | D154: 5567000
B155: 中部大学 | C155: 135 | D155: 675000
B156: 島根大学 | C156: 134 | D156: 1585000
B157: 名古屋市立大学 | C157: 124 | D157: 17845000
B158: 豊田工業大学 | C158: 123 | D158: 50000
B159: 芝浦工業大学 | C159: 120 | D159: 441000
B160: 東京電機大学 | C160: 116 | D160: 5765000
B161: 琉球大学 | C161: 109 | D161: 955000
B162: 久留米大学 | C162: 107 | D162: 3189000
B163: 埼玉医科大学 | C163: 98 | D163: 9046000
B164: 富山県立大学 | C164: 94 | D164: 1681000
B165: 藤田医科大学 | C165: 94 | D165: 0
B166: 明治大学 | C166: 92 | D166: 4567000
B167: 北見工業大学 | C167: 89 | D167: 729000
B168: 静岡県立大学 | C168: 88 | D168: 0
B169: 和歌山大学 | C169: 88 | D169: 4976000
B170: 関東学院大学 | C170: 85 | D170: 10815000
B171: 神奈川工科大学 | C171: 77 | D171: 356000
B172: 帝京大学 | C172: 75 | D172: 3411000
B173: 昭和大学 | C173: 73 | D173: 36130000
B174: 奈良県立医科大学 | C174: 72 | D174: 643000
B175: 福岡工業大学 | C175: 70 | D175: 200000
B176: 法政大学 | C176: 68 | D176: 1375000
B177: 東亜大学 | C177: 67 | D177: 0
B178: 兵庫医科大学 | C178: 65 | D178: 909000
B179: 聖マリアンナ医科大学 | C179: 61 | D179: 9075000
B180: 室蘭工業大学 | C180: 60 | D180: 14000
B181: 秋田県立大学 | C181: 60 | D181: 1505000
B182: 福島大学 | C182: 60 | D182: 48000
B183: 日本医科大学 | C183: 60 | D183: 5693000
B184: 岡山理科大学 | C184: 58 | D184: 2541000
B185: 産業医科大学 | C185: 57 | D185: 2114000
B186: 東洋大学 | C186: 56 | D186: 1565000
B187: 帯広畜産大学 | C187: 55 | D187: 2369000
B188: 会津大学 | C188: 55 | D188: 220000
B189: 立教大学 | C189: 55 | D189: 18000
B190: 北九州市立大学 | C190: 55 | D190: 9601000
B191: 旭川医科大学 | C191: 53 | D191: 11185000
B192: お茶の水女子大学 | C192: 53 | D192: 0
B193: 工学院大学 | C193: 53 | D193: 1312000
B194: 大阪工業大学 | C194: 53 | D194: 0
B195: 玉川大学 | C195: 50 | D195: 335000
B196: 関西医科大学 | C196: 50 | D196: 3255000
B197: 熊本保健科学大学 | C197: 49 | D197: 7000
B198: 東京農業大学 | C198: 48 | D198: 0
B199: 甲南大学 | C199: 47 | D199: 1103000
B200: 東邦大学 | C200: 46 | D200: 1329000
B201: 龍谷大学 | C201: 44 | D201: 930000
B202: 広島市立大学 | C202: 44 | D202: 84000
B203: 大同大学 | C203: 42 | D203: 0
B204: 麻布大学 | C204: 39 | D204: 2179000
B205: 岩手県立大学 | C205: 37 | D205: 54000
B206: 東京薬科大学 | C206: 35 | D206: 2478000
B207: 青山学院大学 | C207: 34 | D207: 0
B208: 岩手医科大学 | C208: 33 | D208: 15000
B209: 愛知工業大学 | C209: 32 | D209: 165000
... 642 more rows

Sheet 金沢大学 (hidden)
A1: 国立 | C1: 金沢大学 | X1: 大学全体の経営理念における産学官連携活動の取組方針 | CY1: 103 | CZ1: 104 | DA1: 105 | DB1: 106 | DC1: 107 | DD1: 108 | DE1: 109 | DF1: 110 | DG1: 111 | DH1: 112 | DI1: 113 | DJ1: 114 | DK1: 115 | DL1: 116 | DM1: 117 | DN1: 118 | DO1: 119 | DP1: 120 | DQ1: 121 | DR1: 122 | DS1: 123 | DT1: 124 | DU1: 125 | DV1: 126 | DW1: 127 | DX1: 128 | DY1: 129
X2: 金沢大学は，真理の探究に関わる基礎研究から技術に直結する実践研究までの卓越した知の創造に努め，それらにより新たな学術分野を開拓し，技術移転や産業の創出等を図ることで積極的に社会に還元する。
C3: (石川県) | BC3: ＵＲＡ | BO3: URA当たりの研究者数 | CB3: 戦略的産学官連携経費
BC4: 実務担当者数 | BI4: 19 | BN4: 名 | BO4: =IFERROR(K29/BI4,"") -> 85.73684211 | BX4: 名 | CB4: 戦略的産学官連携経費の設定 | CP4: 有 | CT4: 無 | CZ4: ある | DA4: 相談窓口
CB5: 戦略的産学官連携経費の費目 | CP5: 間接経費 | CZ5: ない | DA5: 支援ファンド
A6: 基 礎 情 報 | BC6: 各種規程類の整備状況 | CB6: 戦略的産学官連携経費の直接経費に対する割合 | CP6: 0.1 | CZ6: ある | DA6: インキュベーション施設 | DI6: ◎ | DJ6: 産学官連携ポリシー
BC7: 産学官連携ポリシー | BN7: 職務発明規程（教職員のみ対象） | CZ7: ある | DA7: 知的財産戦略 | DI7: ◎ | DJ7: 知的財産ポリシー
B8: 大学の得意分野とその具体例 | BC8: 知的財産ポリシー | BN8: 職務発明規程（教職員、学生対象） | CB8: 人件費の企業負担 | DI8: ◎ | DJ8: 共同研究取扱規程
B9: ①原子間力顕微鏡（AFM）を駆使したナノ計測分野，②自動運転技術（レベル3，4）に必要な認識技術等に関する研究，③スマート設計や複合材料等の生産技術に立脚した機械加工分野，④遺伝・ゲノム動態、神経精神医学に至るライフサイエンス分野。 | AA9: 科研費 （千円） | AL9: その他政府系資金 (千円) | AS9: その他団体からの資金 (千円) | BC9: 共同研究取扱規程 | BN9: 発明補償関係規程（教職員のみ対象） | CB9: 教員人件費の企業負担に関する規程や制度 | CP9: 有 | CT9: 無 | DI9: ◎ | DJ9: 受託研究取扱規程
BC10: 受託研究取扱規程 | BN10: 発明補償関係規程（教職員、学生対象） | CB10: 教員人件費の企業負担の費目 | CP10: 直接経費 | DI10: ◎ | DJ10: 研究成果有体物取扱規程
AA11: 2538775 | AL11: 113847 | AS11: 0 | BC11: 研究成果有体物取扱規程 | BN11: 守秘義務に係る規程（教職員のみ対象） | CB11: 学生人件費の企業負担に関する規程や制度 | CP11: 有 | CT11: 無 | DI11: ◎ | DJ11: 営業秘密管理に関する規程
BC12: 営業秘密管理に関する規程 | BN12: 守秘義務に係る規程（教職員、学生対象） | CB12: 学生人件費の企業負担の費目 | DI12: ◎ | DJ12: 株式の取扱等規程、ポリシー
AA13: 共同研究における間接経費割合 | AN13: 株式の保有 | AT13: 新株予約権の保有 | BC13: 株式の取扱等規程、ポリシー | BN13: 学術指導に関する規程 | DA13: × | DB13: 株式 | DI13: × | DJ13: 職務発明規程（教職員のみ対象）
AA14: 0.2 | AN14: 有 | AQ14: 無 | AT14: 有 | AW14: 無 | BK14: ※各種規定類を整備している場合は、赤色で表示されます。 | CB14: 特別試験研究費税額控除制度 | DA14: × | DB14: 新株予約権 | DI14: ◎ | DJ14: 職務発明規程（教職員、学生対象）
B15: 産学官連携活動において今後重点化したい事項 | CB15: 特別試験研究費税額控除制度の活用 | CP15: 有 | CT15: 無 | DI15: × | DJ15: 発明補償関係規程（教職員のみ対象）
B16: 教員個々が個別に対応する共同研究体制を刷新し，産学官連携活動を組織対組織による研究推進体制に改める。さらに，共同研究など民間からの研究開発資金導入を拡充するため，あらゆる可能性を模索し，企業群等との新しい関係構築に専念する。 | AA16: 共同研究 | AG16: 2021年度 | AO16: 2022年度 | AW16: 順位※ | BC16: クロスアポイントメントの実績 | BK16: 大学等 | BN16: 公的機関 | BQ16: 民間企業 | BU16: その他機関 | DI16: ◎ | DJ16: 発明補償関係規程（教職員、学生対象）
AG17: 受入額（千円） | AL17: 件数 | AO17: 受入額（千円） | AT17: 件数 | BH17: 受入数(名) | BK17: 3 | BN17: 1 | BQ17: 7 | BU17: 0 | DB17: 順位 | DI17: × | DJ17: 守秘義務に係る規程（教職員のみ対象）
AA18: 全体 | AG18: 776072 | AL18: 353 | AO18: 602219 | AT18: 348 | AW18: =IF(DB18<50,DB18,"") -> 32 | AY18: 位 | BH18: 派遣数(名) | BK18: 0 | BN18: 3 | BQ18: 0 | BU18: 0 | DB18: 32 | DI18: ◎ | DJ18: 守秘義務に係る規程（教職員、学生対象）
AB19: 民間企業 のみ | AG19: 720007 | AL19: 314 | AO19: 554578 | AT19: 314 | AW19: =IF(DB19<50,DB19,"") -> 31 | AY19: 位 | DB19: 31 | DI19: ◎ | DJ19: 学術指導に係る規定
AC20: 大企業 | AG20: 528268 | AL20: 224 | AO20: 430723 | AT20: 223 | AW20: 29 | AY20: 位 | BB20: ■組織的産学官連携活動の取組事例 | DB20: 29 | DI20: ある | DJ20: 戦略的産学官連携経費の設定
AC21: 中小企業 | AG21: 191739 | AL21: 90 | AO21: 123855 | AT21: 91 | AW21: 29 | AY21: 位 | DB21: 29 | DI21: ある | DJ21: 教員人件費の企業負担に関する規程や制度
AK22: ※順位は2022年度の受入額を比較したものです。 | DI22: ない | DJ22: 学生人件費の企業負担に関する規程や制度
AK23: ※順位は50位までを記載。51位以下の場合は空欄となります。 | DB23: 0 | DC23: 104 | DI23: ある | DJ23: 特別試験研究費税額控除制度の活用
DB24: ～100万 | DC24: 54
DB25: ～300万 | DC25: 111
DB26: ～500万 | DC26: 25
C27: 産学官連携本部等組織名 | K27: 先端科学・社会共創推進機構 | DB27: ～1000万 | DC27: 13
C28: 産学官連携本部等URL | K28: https://fssi-ura.w3.kanazawa-u.ac.jp/ | DB28: ～5000万 | DC28: 6
C29: 研究者数 | K29: 1629 | O29: 名 | DB29: ～1億 | DC29: 1 | DJ29: 共同研究等の企画・提案
C30: 実務担当者数 | K30: 25 | O30: 名 | DB30: 1億以上 | DJ30: 契約書での成果目標、達成時の明記
C31: 実務者当たり研究者数 | K31: =IFERROR(K29/K30,"") -> 65.16 | O31: 名 | DJ31: 共同研究契約の締結/判断（契約権限の集中）
C32: 専門家の配置 | I32: 弁護士 | L32: 弁理士 | O32: 税理士 | R32: 公認会計士 | V32: その他 | DJ32: 共同研究の進捗管理とフィードバック
L33: ※専門家を配置している場合は、赤色で表示されます。 | DJ33: 企業ニーズに適応した技術移転・事業化提案
AA34: 受託研究 | AG34: 2021年度 | AO34: 2022年度 | AW34: 順位※ | DJ34: 共同研究等の企画・提案
AG35: 受入額（千円） | AL35: 件数 | AO35: 受入額（千円） | AT35: 件数 | DB35: 順位 | DJ35: 契約書での成果目標、達成時の明記
AA36: 全体 | AG36: 2548464 | AL36: 305 | AO36: 2553676 | AT36: 287 | AW36: =IF(DB36<50,DB36,"") -> 19 | AY36: 位 | DB36: 19 | DJ36: 共同研究契約の締結/判断（契約権限の集中）
AA37: 民間企業 のみ | AG37: 64125 | AL37: 58 | AO37: 82397 | AT37: 61 | AW37: =IF(DB37<50,DB37,"") -> 41 | AY37: 位 | DB37: 41 | DJ37: 共同研究の進捗管理とフィードバック
C38: 産学官連携本部が関与した共同研究 | P38: 4 | T38: 件 | AA38: 大企業 | AG38: 55028 | AL38: 38 | AO38: 67376 | AT38: 43 | AW38: 39 | AY38: 位 | DB38: 39 | DJ38: 企業ニーズに適応した技術移転・事業化提案
D39: 内、マッチングを行い、契約締結した件数 | P39: 2 | T39: 件 | AA39: 中小企業 | AG39: 9097 | AL39: 20 | AO39: 15021 | AT39: 18 | AW39: 48 | AY39: 位 | DB39: 48 | DJ39: 共同研究等の企画・提案
I40: ※1,000万円以上の共同研究 | AK40: ※順位は2022年度の受入額を比較したもの | DB40: 弁護士 | DG40: 0 | DH40: 30 | DJ40: 契約書での成果目標、達成時の明記
AK41: ※順位は50位までを記載。51位以下の場合は空欄となります。 | BB41: ■産学官連携活動の主な実用化事例 | DA41: ○ | DB41: 弁理士 | DG41: ～100万 | DH41: 15 | DJ41: 共同研究契約の締結/判断（契約権限の集中）
C42: 組織対組織による包括連携契約の締結数 | P42: 0 | T42: 件 | DB42: 税理士 | DG42: ～300万 | DH42: 9 | DJ42: 共同研究の進捗管理とフィードバック
D43: 内、1,000万円以上の実績がある相手方数 | P43: 0 | T43: 件 | DB43: 公認会計士 | DG43: ～500万 | DH43: 2 | DJ43: 企業ニーズに適応した技術移転・事業化提案
DB44: その他 | DG44: ～1000万 | DH44: 3
C45: 寄附講座・寄附研究部門の受入件数 | P45: 10 | V45: 件 | DG45: ～5000万 | DH45: 2
C46: 寄附講座・寄附研究部門の受入金額（千円） | P46: 288200 | DG46: ～1億
C47: 共同研究講座・共同研究部門の受入件数 | P47: 3 | V47: 件 | DG47: 1億以上
C48: 共同研究講座・共同研究部門の受入金額（千円） | P48: 59000
CZ51: 大学 | DA51: 大学・発明者・未設定
C52: 職務発明の帰属 | I52: 大学 | M52: 発明者 | Q52: 未設定 | DA52: 職務発明
AD53: 特許権実施等件数 | AL53: 236 | AQ53: 件 | AS53: 実施等件数当たり | DA53: 不実施
I54: 国内 | K54: 外国 | M54: PCT | O54: EPC | AD54: 特許権実施等収入（千円） | AL54: 18050 | AS54: =IF(OR(AL53="",AL54=""),"",IFERROR(AL54/AL53,"")) -> 76.48305085 | CZ54: 18050000 | DA54: 特許権収入
C55: 特許出願件数（件） | I55: 72 | K55: 48 | M55: 14 | O55: 10
C56: 特許保有件数（件） | I56: 269 | K56: 122
C61: 大学発ベンチャー数 | J61: 9 | O61: 社
C62: Exit件数（IPO） | J62: 0 | O62: 社 | P62: Exit件数（M&A） | W62: 0 | Z62: 社
C63: 相談窓口 | K63: 支援ファンド | S63: インキュベーション施設
C64: 有 | G64: 無 | K64: 有 | O64: 無 | S64: 有 | W64: 無
C65: 知的財産戦略方針 | K65: 支援総額（千円） | S65: 面積 | W65: 630 | Z65: m2
C66: 有 | G66: 無 | K66: 0 | S66: 契約企業数 | W66: 2 | Z66: 社
CY69: 103 | CZ69: 104 | DA69: 105 | DB69: 106 | DC69: 107 | DD69: 108 | DE69: 109 | DF69: 110 | DG69: 111 | DH69: 112 | DI69: 113 | DJ69: 114 | DK69: 115 | DL69: 116 | DM69: 117 | DN69: 118 | DO69: 119 | DP69: 120 | DQ69: 121 | DR69: 122 | DS69: 123 | DT69: 124 | DU69: 125
B70: 東京大学 | C70: 4924 | D70: 613188710 | I70: 148
B71: 東京大学 | C71: 4924 | D71: 613188710 | K71: 391
B72: 東北大学 | C72: 3805 | D72: 208066000
B73: 大阪大学 | C73: 3557 | D73: 414288000
B74: 京都大学 | C74: 3026 | D74: 1119118168
B75: 東京工業大学 | C75: 2084 | D75: 99801000
B76: 九州大学 | C76: 1797 | D76: 164182000
B77: 名古屋大学 | C77: 1604 | D77: 90749000
B78: 北海道大学 | C78: 1314 | D78: 183435000
B79: 信州大学 | C79: 1038 | D79: 37096000
B80: 大阪公立大学 | C80: 975 | D80: 9345000
B81: 筑波大学 | C81: 967 | D81: 36213000
B82: 広島大学 | C82: 919 | D82: 34166000
B83: 千葉大学 | C83: 916 | D83: 16779000
B84: 慶應義塾大学 | C84: 869 | D84: 86996000
B85: 山口大学 | C85: 756 | D85: 29295000
B86: 東京理科大学 | C86: 698 | D86: 23087000
B87: 東京農工大学 | C87: 671 | D87: 60497000
B88: 早稲田大学 | C88: 671 | D88: 27622000
B89: 神戸大学 | C89: 668 | D89: 33659000
B90: 岡山大学 | C90: 624 | D90: 24747000
B91: 名古屋工業大学 | C91: 618 | D91: 32295000
B92: 九州工業大学 | C92: 591 | D92: 8115000
B93: 群馬大学 | C93: 563 | D93: 3087000
B94: 横浜国立大学 | C94: 553 | D94: 15639000
B95: 静岡大学 | C95: 543 | D95: 4244000
B96: 熊本大学 | C96: 539 | D96: 28442000
B97: 近畿大学 | C97: 507 | D97: 22970000
B98: 鹿児島大学 | C98: 475 | D98: 16446000
B99: 山梨大学 | C99: 473 | D99: 8206000
B100: 香川大学 | C100: 469 | D100: 19447000
B101: 長岡技術科学大学 | C101: 465 | D101: 3690000
B102: 東京医科歯科大学 | C102: 461 | D102: 28044000
B103: 東京都立大学 | C103: 447 | D103: 2416000
B104: 関西大学 | C104: 445 | D104: 3261000
B105: 三重大学 | C105: 443 | D105: 28808000
B106: 豊橋技術科学大学 | C106: 435 | D106: 6864000
B107: 電気通信大学 | C107: 421 | D107: 7030000
B108: 鳥取大学 | C108: 405 | D108: 137372000
B109: 金沢大学 | C109: 391 | D109: 18050000
B110: 徳島大学 | C110: 390 | D110: 20264000
B111: 奈良先端科学技術大学院大学 | C111: 382 | D111: 39711000
B112: 新潟大学 | C112: 373 | D112: 9369000
B113: 山形大学 | C113: 363 | D113: 2866000
B114: 北里大学 | C114: 346 | D114: 66133000
B115: 立命館大学 | C115: 330 | D115: 9311000
B116: 富山大学 | C116: 328 | D116: 10861000
B117: 埼玉大学 | C117: 320 | D117: 3578000
B118: 同志社大学 | C118: 317 | D118: 4884000
B119: 高知大学 | C119: 314 | D119: 20578000
B120: 弘前大学 | C120: 294 | D120: 8072000
B121: 日本大学 | C121: 283 | D121: 36278000
B122: 兵庫県立大学 | C122: 279 | D122: 1051000
B123: 名城大学 | C123: 276 | D123: 28093000
B124: 岐阜大学 | C124: 274 | D124: 10679000
B125: 横浜市立大学 | C125: 260 | D125: 37933000
B126: 札幌医科大学 | C126: 258 | D126: 19373000
B127: 京都府立医科大学 | C127: 258 | D127: 12241000
B128: 佐賀大学 | C128: 257 | D128: 8596000
B129: 京都工芸繊維大学 | C129: 252 | D129: 368000
B130: 福井大学 | C130: 245 | D130: 8596000
B131: 宮崎大学 | C131: 244 | D131: 1648000
B132: 神奈川大学 | C132: 243 | D132: 5675000
B133: 東海大学 | C133: 232 | D133: 1120000
B134: 岩手大学 | C134: 227 | D134: 6652000
B135: 秋田大学 | C135: 224 | D135: 1688000
B136: 愛媛大学 | C136: 203 | D136: 26470000
B137: 長崎大学 | C137: 203 | D137: 33702000
B138: 東京海洋大学 | C138: 199 | D138: 4576000
B139: 北陸先端科学技術大学院大学 | C139: 192 | D139: 1763000
B140: 沖縄科学技術大学院大学 | C140: 190 | D140: 1460000
B141: 福岡大学 | C141: 189 | D141: 875000
B142: 関西学院大学 | C142: 186 | D142: 25624000
B143: 東京女子医科大学 | C143: 185 | D143: 2817000
B144: 宇都宮大学 | C144: 179 | D144: 1976000
B145: 中央大学 | C145: 170 | D145: 3131000
B146: 上智大学 | C146: 167 | D146: 0
B147: 高知工科大学 | C147: 167 | D147: 45000
B148: 茨城大学 | C148: 155 | D148: 1545000
B149: 金沢工業大学 | C149: 149 | D149: 2786000
B150: 大分大学 | C150: 148 | D150: 4155000
B151: 千葉工業大学 | C151: 147 | D151: 2134000
B152: 浜松医科大学 | C152: 146 | D152: 1429000
B153: 順天堂大学 | C153: 142 | D153: 4289000
B154: 滋賀医科大学 | C154: 141 | D154: 5567000
B155: 中部大学 | C155: 135 | D155: 675000
B156: 島根大学 | C156: 134 | D156: 1585000
B157: 名古屋市立大学 | C157: 124 | D157: 17845000
B158: 豊田工業大学 | C158: 123 | D158: 50000
B159: 芝浦工業大学 | C159: 120 | D159: 441000
B160: 東京電機大学 | C160: 116 | D160: 5765000
B161: 琉球大学 | C161: 109 | D161: 955000
B162: 久留米大学 | C162: 107 | D162: 3189000
B163: 埼玉医科大学 | C163: 98 | D163: 9046000
B164: 富山県立大学 | C164: 94 | D164: 1681000
B165: 藤田医科大学 | C165: 94 | D165: 0
B166: 明治大学 | C166: 92 | D166: 4567000
B167: 北見工業大学 | C167: 89 | D167: 729000
B168: 静岡県立大学 | C168: 88 | D168: 0
B169: 和歌山大学 | C169: 88 | D169: 4976000
B170: 関東学院大学 | C170: 85 | D170: 10815000
B171: 神奈川工科大学 | C171: 77 | D171: 356000
B172: 帝京大学 | C172: 75 | D172: 3411000
B173: 昭和大学 | C173: 73 | D173: 36130000
B174: 奈良県立医科大学 | C174: 72 | D174: 643000
B175: 福岡工業大学 | C175: 70 | D175: 200000
B176: 法政大学 | C176: 68 | D176: 1375000
B177: 東亜大学 | C177: 67 | D177: 0
B178: 兵庫医科大学 | C178: 65 | D178: 909000
B179: 聖マリアンナ医科大学 | C179: 61 | D179: 9075000
B180: 室蘭工業大学 | C180: 60 | D180: 14000
B181: 秋田県立大学 | C181: 60 | D181: 1505000
B182: 福島大学 | C182: 60 | D182: 48000
B183: 日本医科大学 | C183: 60 | D183: 5693000
B184: 岡山理科大学 | C184: 58 | D184: 2541000
B185: 産業医科大学 | C185: 57 | D185: 2114000
B186: 東洋大学 | C186: 56 | D186: 1565000
B187: 帯広畜産大学 | C187: 55 | D187: 2369000
B188: 会津大学 | C188: 55 | D188: 220000
B189: 立教大学 | C189: 55 | D189: 18000
B190: 北九州市立大学 | C190: 55 | D190: 9601000
B191: 旭川医科大学 | C191: 53 | D191: 11185000
B192: お茶の水女子大学 | C192: 53 | D192: 0
B193: 工学院大学 | C193: 53 | D193: 1312000
B194: 大阪工業大学 | C194: 53 | D194: 0
B195: 玉川大学 | C195: 50 | D195: 335000
B196: 関西医科大学 | C196: 50 | D196: 3255000
B197: 熊本保健科学大学 | C197: 49 | D197: 7000
B198: 東京農業大学 | C198: 48 | D198: 0
B199: 甲南大学 | C199: 47 | D199: 1103000
B200: 東邦大学 | C200: 46 | D200: 1329000
B201: 龍谷大学 | C201: 44 | D201: 930000
B202: 広島市立大学 | C202: 44 | D202: 84000
B203: 大同大学 | C203: 42 | D203: 0
B204: 麻布大学 | C204: 39 | D204: 2179000
B205: 岩手県立大学 | C205: 37 | D205: 54000
B206: 東京薬科大学 | C206: 35 | D206: 2478000
B207: 青山学院大学 | C207: 34 | D207: 0
B208: 岩手医科大学 | C208: 33 | D208: 15000
... 643 more rows

Sheet 信州大学 (hidden)
A1: 国立 | C1: 信州大学 | X1: 大学全体の経営理念における産学官連携活動の取組方針 | CY1: 103 | CZ1: 104 | DA1: 105 | DB1: 106 | DC1: 107 | DD1: 108 | DE1: 109 | DF1: 110 | DG1: 111 | DH1: 112 | DI1: 113 | DJ1: 114 | DK1: 115 | DL1: 116 | DM1: 117 | DN1: 118 | DO1: 119 | DP1: 120 | DQ1: 121 | DR1: 122 | DS1: 123 | DT1: 124 | DU1: 125 | DV1: 126 | DW1: 127 | DX1: 128 | DY1: 129
X2: 地域の発展や課題解決には地域を主体として知を創出・集約するとともに、地域の大学を核にした新たなイノベーションエコシステムの構築が必要である。信州大学はその根幹として「研究力強化」「産学官連携による社会実装」「外部資金による経営基盤強化」の鼎立を成し、地域の未来やSDGｓに貢献する。
C3: (長野県) | BC3: ＵＲＡ | BO3: URA当たりの研究者数 | CB3: 戦略的産学官連携経費
BC4: 実務担当者数 | BI4: 30 | BN4: 名 | BO4: =IFERROR(K29/BI4,"") -> 47.6 | BX4: 名 | CB4: 戦略的産学官連携経費の設定 | CP4: 有 | CT4: 無 | CZ4: ある | DA4: 相談窓口
CB5: 戦略的産学官連携経費の費目 | CP5: 間接経費 | CZ5: ない | DA5: 支援ファンド
A6: 基 礎 情 報 | BC6: 各種規程類の整備状況 | CB6: 戦略的産学官連携経費の直接経費に対する割合 | CP6: 0.1 | CZ6: ある | DA6: インキュベーション施設 | DI6: ◎ | DJ6: 産学官連携ポリシー
BC7: 産学官連携ポリシー | BN7: 職務発明規程（教職員のみ対象） | CZ7: ある | DA7: 知的財産戦略 | DI7: ◎ | DJ7: 知的財産ポリシー
B8: 大学の得意分野とその具体例 | BC8: 知的財産ポリシー | BN8: 職務発明規程（教職員、学生対象） | CB8: 人件費の企業負担 | DI8: ◎ | DJ8: 共同研究取扱規程
B9: ファイバー、ナノカーボン、無機結晶（信大クリスタルⓇ）を始めとする材料研究シーズは、学術論文ベースで国内トップクラスの質を保持しており、特許や共同研究数も多い。さらに近年は、細胞治療技術や医療機器開発、スマート林業技術等でも注目されており、多様な産学官連携を支えるシーズが各研究分野で創出されている。 | AA9: 科研費 （千円） | AL9: その他政府系資金 (千円) | AS9: その他団体からの資金 (千円) | BC9: 共同研究取扱規程 | BN9: 発明補償関係規程（教職員のみ対象） | CB9: 教員人件費の企業負担に関する規程や制度 | CP9: 有 | CT9: 無 | DI9: ◎ | DJ9: 受託研究取扱規程
BC10: 受託研究取扱規程 | BN10: 発明補償関係規程（教職員、学生対象） | CB10: 教員人件費の企業負担の費目 | CP10: 直接経費 | DI10: ◎ | DJ10: 研究成果有体物取扱規程
AA11: 1185521 | AL11: 123931 | AS11: 22649 | BC11: 研究成果有体物取扱規程 | BN11: 守秘義務に係る規程（教職員のみ対象） | CB11: 学生人件費の企業負担に関する規程や制度 | CP11: 有 | CT11: 無 | DI11: ◎ | DJ11: 営業秘密管理に関する規程
BC12: 営業秘密管理に関する規程 | BN12: 守秘義務に係る規程（教職員、学生対象） | CB12: 学生人件費の企業負担の費目 | CP12: 間接経費 | DI12: ◎ | DJ12: 株式の取扱等規程、ポリシー
AA13: 共同研究における間接経費割合 | AN13: 株式の保有 | AT13: 新株予約権の保有 | BC13: 株式の取扱等規程、ポリシー | BN13: 学術指導に関する規程 | DA13: × | DB13: 株式 | DI13: × | DJ13: 職務発明規程（教職員のみ対象）
AA14: 0.4 | AN14: 有 | AQ14: 無 | AT14: 有 | AW14: 無 | BK14: ※各種規定類を整備している場合は、赤色で表示されます。 | CB14: 特別試験研究費税額控除制度 | DA14: × | DB14: 新株予約権 | DI14: ◎ | DJ14: 職務発明規程（教職員、学生対象）
B15: 産学官連携活動において今後重点化したい事項 | CB15: 特別試験研究費税額控除制度の活用 | CP15: 有 | CT15: 無 | DI15: × | DJ15: 発明補償関係規程（教職員のみ対象）
B16: 「研究力強化」「産学官連携による社会実装」「外部資金による経営基盤強化」の鼎立を前提に、企業、自治体、市民等の多様なステークホルダーとの共創コミュニケーションにより、多彩な知、人材、リソースを結集して、地域の未来発展とSDGs達成に取り組む。地域貢献度全国トップクラスの活動をさらに高度化・拡大する。 | AA16: 共同研究 | AG16: 2021年度 | AO16: 2022年度 | AW16: 順位※ | BC16: クロスアポイントメントの実績 | BK16: 大学等 | BN16: 公的機関 | BQ16: 民間企業 | BU16: その他機関 | DI16: ◎ | DJ16: 発明補償関係規程（教職員、学生対象）
AG17: 受入額（千円） | AL17: 件数 | AO17: 受入額（千円） | AT17: 件数 | BH17: 受入数(名) | BK17: 4 | BN17: 0 | BQ17: 8 | BU17: 1 | DB17: 順位 | DI17: × | DJ17: 守秘義務に係る規程（教職員のみ対象）
AA18: 全体 | AG18: 995649 | AL18: 538 | AO18: 1176335 | AT18: 545 | AW18: =IF(DB18<50,DB18,"") -> 16 | AY18: 位 | BH18: 派遣数(名) | BK18: 1 | BN18: 0 | BQ18: 0 | BU18: 1 | DB18: 16 | DI18: ◎ | DJ18: 守秘義務に係る規程（教職員、学生対象）
AB19: 民間企業 のみ | AG19: 664184 | AL19: 482 | AO19: 809215 | AT19: 487 | AW19: =IF(DB19<50,DB19,"") -> 19 | AY19: 位 | DB19: 19 | DI19: ◎ | DJ19: 学術指導に係る規定
AC20: 大企業 | AG20: 425961 | AL20: 283 | AO20: 574912 | AT20: 293 | AW20: 22 | AY20: 位 | BB20: ■組織的産学官連携活動の取組事例 | DB20: 22 | DI20: ある | DJ20: 戦略的産学官連携経費の設定
AC21: 中小企業 | AG21: 238223 | AL21: 199 | AO21: 234303 | AT21: 194 | AW21: 17 | AY21: 位 | DB21: 17 | DI21: ある | DJ21: 教員人件費の企業負担に関する規程や制度
AK22: ※順位は2022年度の受入額を比較したものです。 | DI22: ある | DJ22: 学生人件費の企業負担に関する規程や制度
AK23: ※順位は50位までを記載。51位以下の場合は空欄となります。 | DB23: 0 | DC23: 119 | DI23: ある | DJ23: 特別試験研究費税額控除制度の活用
DB24: ～100万 | DC24: 125
DB25: ～300万 | DC25: 175
DB26: ～500万 | DC26: 30
C27: 産学官連携本部等組織名 | K27: 学術研究・産学官連携推進機構 | DB27: ～1000万 | DC27: 25
C28: 産学官連携本部等URL | K28: https://www.shinshu-u.ac.jp/institution/suirlo/about/ | DB28: ～5000万 | DC28: 12
C29: 研究者数 | K29: 1428 | O29: 名 | DB29: ～1億 | DC29: 1 | DJ29: 共同研究等の企画・提案
C30: 実務担当者数 | K30: 84 | O30: 名 | DB30: 1億以上 | DJ30: 契約書での成果目標、達成時の明記
C31: 実務者当たり研究者数 | K31: =IFERROR(K29/K30,"") -> 17 | O31: 名 | DJ31: 共同研究契約の締結/判断（契約権限の集中）
C32: 専門家の配置 | I32: 弁護士 | L32: 弁理士 | O32: 税理士 | R32: 公認会計士 | V32: その他 | DJ32: 共同研究の進捗管理とフィードバック
L33: ※専門家を配置している場合は、赤色で表示されます。 | DJ33: 企業ニーズに適応した技術移転・事業化提案
AA34: 受託研究 | AG34: 2021年度 | AO34: 2022年度 | AW34: 順位※ | DJ34: 共同研究等の企画・提案
AG35: 受入額（千円） | AL35: 件数 | AO35: 受入額（千円） | AT35: 件数 | DB35: 順位 | DJ35: 契約書での成果目標、達成時の明記
AA36: 全体 | AG36: 2898556 | AL36: 234 | AO36: 2527439 | AT36: 253 | AW36: =IF(DB36<50,DB36,"") -> 20 | AY36: 位 | DB36: 20 | DJ36: 共同研究契約の締結/判断（契約権限の集中）
AA37: 民間企業 のみ | AG37: 26791 | AL37: 33 | AO37: 22196 | AT37: 34 | AW37: =IF(DB37<50,DB37,"") ->  | AY37: 位 | DB37: 105 | DJ37: 共同研究の進捗管理とフィードバック
C38: 産学官連携本部が関与した共同研究 | P38: 1 | T38: 件 | AA38: 大企業 | AG38: 20521 | AL38: 16 | AO38: 17114 | AT38: 18 | AY38: 位 | DB38: 99 | DJ38: 企業ニーズに適応した技術移転・事業化提案
D39: 内、マッチングを行い、契約締結した件数 | P39: 1 | T39: 件 | AA39: 中小企業 | AG39: 6270 | AL39: 17 | AO39: 5082 | AT39: 16 | AY39: 位 | DB39: 93 | DJ39: 共同研究等の企画・提案
I40: ※1,000万円以上の共同研究 | AK40: ※順位は2022年度の受入額を比較したもの | DB40: 弁護士 | DG40: 0 | DH40: 14 | DJ40: 契約書での成果目標、達成時の明記
AK41: ※順位は50位までを記載。51位以下の場合は空欄となります。 | BB41: ■産学官連携活動の主な実用化事例 | DA41: ○ | DB41: 弁理士 | DG41: ～100万 | DH41: 16 | DJ41: 共同研究契約の締結/判断（契約権限の集中）
C42: 組織対組織による包括連携契約の締結数 | P42: 7 | T42: 件 | DB42: 税理士 | DG42: ～300万 | DH42: 1 | DJ42: 共同研究の進捗管理とフィードバック
D43: 内、1,000万円以上の実績がある相手方数 | P43: 1 | T43: 件 | DB43: 公認会計士 | DG43: ～500万 | DH43: 2 | DJ43: 企業ニーズに適応した技術移転・事業化提案
DA44: ○ | DB44: その他 | DG44: ～1000万 | DH44: 1
C45: 寄附講座・寄附研究部門の受入件数 | P45: 13 | V45: 件 | DG45: ～5000万
C46: 寄附講座・寄附研究部門の受入金額（千円） | P46: 285832 | DG46: ～1億
C47: 共同研究講座・共同研究部門の受入件数 | P47: 8 | V47: 件 | DG47: 1億以上
C48: 共同研究講座・共同研究部門の受入金額（千円） | P48: 128410
CZ51: 大学 | DA51: 大学・発明者・未設定
C52: 職務発明の帰属 | I52: 大学 | M52: 発明者 | Q52: 未設定 | DA52: 職務発明
AD53: 特許権実施等件数 | AL53: 337 | AQ53: 件 | AS53: 実施等件数当たり | DA53: 不実施
I54: 国内 | K54: 外国 | M54: PCT | O54: EPC | AD54: 特許権実施等収入（千円） | AL54: 37096 | AS54: =IF(OR(AL53="",AL54=""),"",IFERROR(AL54/AL53,"")) -> 110.0771513 | CZ54: 37096000 | DA54: 特許権収入
C55: 特許出願件数（件） | I55: 111 | K55: 51 | M55: 20 | O55: 8
C56: 特許保有件数（件） | I56: 746 | K56: 292
C61: 大学発ベンチャー数 | J61: 20 | O61: 社
C62: Exit件数（IPO） | J62: 0 | O62: 社 | P62: Exit件数（M&A） | W62: 0 | Z62: 社
C63: 相談窓口 | K63: 支援ファンド | S63: インキュベーション施設
C64: 有 | G64: 無 | K64: 有 | O64: 無 | S64: 有 | W64: 無
C65: 知的財産戦略方針 | K65: 支援総額（千円） | S65: 面積 | W65: 7510 | Z65: m2
C66: 有 | G66: 無 | K66: 0 | S66: 契約企業数 | W66: 10 | Z66: 社
CY69: 103 | CZ69: 104 | DA69: 105 | DB69: 106 | DC69: 107 | DD69: 108 | DE69: 109 | DF69: 110 | DG69: 111 | DH69: 112 | DI69: 113 | DJ69: 114 | DK69: 115 | DL69: 116 | DM69: 117 | DN69: 118 | DO69: 119 | DP69: 120 | DQ69: 121 | DR69: 122 | DS69: 123 | DT69: 124 | DU69: 125
B70: 東京大学 | C70: 4924 | D70: 613188710 | I70: 148
B71: 東京大学 | C71: 4924 | D71: 613188710 | K71: 1038
B72: 東北大学 | C72: 3805 | D72: 208066000
B73: 大阪大学 | C73: 3557 | D73: 414288000
B74: 京都大学 | C74: 3026 | D74: 1119118168
B75: 東京工業大学 | C75: 2084 | D75: 99801000
B76: 九州大学 | C76: 1797 | D76: 164182000
B77: 名古屋大学 | C77: 1604 | D77: 90749000
B78: 北海道大学 | C78: 1314 | D78: 183435000
B79: 信州大学 | C79: 1038 | D79: 37096000
B80: 大阪公立大学 | C80: 975 | D80: 9345000
B81: 筑波大学 | C81: 967 | D81: 36213000
B82: 広島大学 | C82: 919 | D82: 34166000
B83: 千葉大学 | C83: 916 | D83: 16779000
B84: 慶應義塾大学 | C84: 869 | D84: 86996000
B85: 山口大学 | C85: 756 | D85: 29295000
B86: 東京理科大学 | C86: 698 | D86: 23087000
B87: 東京農工大学 | C87: 671 | D87: 60497000
B88: 早稲田大学 | C88: 671 | D88: 27622000
B89: 神戸大学 | C89: 668 | D89: 33659000
B90: 岡山大学 | C90: 624 | D90: 24747000
B91: 名古屋工業大学 | C91: 618 | D91: 32295000
B92: 九州工業大学 | C92: 591 | D92: 8115000
B93: 群馬大学 | C93: 563 | D93: 3087000
B94: 横浜国立大学 | C94: 553 | D94: 15639000
B95: 静岡大学 | C95: 543 | D95: 4244000
B96: 熊本大学 | C96: 539 | D96: 28442000
B97: 近畿大学 | C97: 507 | D97: 22970000
B98: 鹿児島大学 | C98: 475 | D98: 16446000
B99: 山梨大学 | C99: 473 | D99: 8206000
B100: 香川大学 | C100: 469 | D100: 19447000
B101: 長岡技術科学大学 | C101: 465 | D101: 3690000
B102: 東京医科歯科大学 | C102: 461 | D102: 28044000
B103: 東京都立大学 | C103: 447 | D103: 2416000
B104: 関西大学 | C104: 445 | D104: 3261000
B105: 三重大学 | C105: 443 | D105: 28808000
B106: 豊橋技術科学大学 | C106: 435 | D106: 6864000
B107: 電気通信大学 | C107: 421 | D107: 7030000
B108: 鳥取大学 | C108: 405 | D108: 137372000
B109: 金沢大学 | C109: 391 | D109: 18050000
B110: 徳島大学 | C110: 390 | D110: 20264000
B111: 奈良先端科学技術大学院大学 | C111: 382 | D111: 39711000
B112: 新潟大学 | C112: 373 | D112: 9369000
B113: 山形大学 | C113: 363 | D113: 2866000
B114: 北里大学 | C114: 346 | D114: 66133000
B115: 立命館大学 | C115: 330 | D115: 9311000
B116: 富山大学 | C116: 328 | D116: 10861000
B117: 埼玉大学 | C117: 320 | D117: 3578000
B118: 同志社大学 | C118: 317 | D118: 4884000
B119: 高知大学 | C119: 314 | D119: 20578000
B120: 弘前大学 | C120: 294 | D120: 8072000
B121: 日本大学 | C121: 283 | D121: 36278000
B122: 兵庫県立大学 | C122: 279 | D122: 1051000
B123: 名城大学 | C123: 276 | D123: 28093000
B124: 岐阜大学 | C124: 274 | D124: 10679000
B125: 横浜市立大学 | C125: 260 | D125: 37933000
B126: 札幌医科大学 | C126: 258 | D126: 19373000
B127: 京都府立医科大学 | C127: 258 | D127: 12241000
B128: 佐賀大学 | C128: 257 | D128: 8596000
B129: 京都工芸繊維大学 | C129: 252 | D129: 368000
B130: 福井大学 | C130: 245 | D130: 8596000
B131: 宮崎大学 | C131: 244 | D131: 1648000
B132: 神奈川大学 | C132: 243 | D132: 5675000
B133: 東海大学 | C133: 232 | D133: 1120000
B134: 岩手大学 | C134: 227 | D134: 6652000
B135: 秋田大学 | C135: 224 | D135: 1688000
B136: 愛媛大学 | C136: 203 | D136: 26470000
B137: 長崎大学 | C137: 203 | D137: 33702000
B138: 東京海洋大学 | C138: 199 | D138: 4576000
B139: 北陸先端科学技術大学院大学 | C139: 192 | D139: 1763000
B140: 沖縄科学技術大学院大学 | C140: 190 | D140: 1460000
B141: 福岡大学 | C141: 189 | D141: 875000
B142: 関西学院大学 | C142: 186 | D142: 25624000
B143: 東京女子医科大学 | C143: 185 | D143: 2817000
B144: 宇都宮大学 | C144: 179 | D144: 1976000
B145: 中央大学 | C145: 170 | D145: 3131000
B146: 上智大学 | C146: 167 | D146: 0
B147: 高知工科大学 | C147: 167 | D147: 45000
B148: 茨城大学 | C148: 155 | D148: 1545000
B149: 金沢工業大学 | C149: 149 | D149: 2786000
B150: 大分大学 | C150: 148 | D150: 4155000
B151: 千葉工業大学 | C151: 147 | D151: 2134000
B152: 浜松医科大学 | C152: 146 | D152: 1429000
B153: 順天堂大学 | C153: 142 | D153: 4289000
B154: 滋賀医科大学 | C154: 141 | D154: 5567000
B155: 中部大学 | C155: 135 | D155: 675000
B156: 島根大学 | C156: 134 | D156: 1585000
B157: 名古屋市立大学 | C157: 124 | D157: 17845000
B158: 豊田工業大学 | C158: 123 | D158: 50000
B159: 芝浦工業大学 | C159: 120 | D159: 441000
B160: 東京電機大学 | C160: 116 | D160: 5765000
B161: 琉球大学 | C161: 109 | D161: 955000
B162: 久留米大学 | C162: 107 | D162: 3189000
B163: 埼玉医科大学 | C163: 98 | D163: 9046000
B164: 富山県立大学 | C164: 94 | D164: 1681000
B165: 藤田医科大学 | C165: 94 | D165: 0
B166: 明治大学 | C166: 92 | D166: 4567000
B167: 北見工業大学 | C167: 89 | D167: 729000
B168: 静岡県立大学 | C168: 88 | D168: 0
B169: 和歌山大学 | C169: 88 | D169: 4976000
B170: 関東学院大学 | C170: 85 | D170: 10815000
B171: 神奈川工科大学 | C171: 77 | D171: 356000
B172: 帝京大学 | C172: 75 | D172: 3411000
B173: 昭和大学 | C173: 73 | D173: 36130000
B174: 奈良県立医科大学 | C174: 72 | D174: 643000
B175: 福岡工業大学 | C175: 70 | D175: 200000
B176: 法政大学 | C176: 68 | D176: 1375000
B177: 東亜大学 | C177: 67 | D177: 0
B178: 兵庫医科大学 | C178: 65 | D178: 909000
B179: 聖マリアンナ医科大学 | C179: 61 | D179: 9075000
B180: 室蘭工業大学 | C180: 60 | D180: 14000
B181: 秋田県立大学 | C181: 60 | D181: 1505000
B182: 福島大学 | C182: 60 | D182: 48000
B183: 日本医科大学 | C183: 60 | D183: 5693000
B184: 岡山理科大学 | C184: 58 | D184: 2541000
B185: 産業医科大学 | C185: 57 | D185: 2114000
B186: 東洋大学 | C186: 56 | D186: 1565000
B187: 帯広畜産大学 | C187: 55 | D187: 2369000
B188: 会津大学 | C188: 55 | D188: 220000
B189: 立教大学 | C189: 55 | D189: 18000
B190: 北九州市立大学 | C190: 55 | D190: 9601000
B191: 旭川医科大学 | C191: 53 | D191: 11185000
B192: お茶の水女子大学 | C192: 53 | D192: 0
B193: 工学院大学 | C193: 53 | D193: 1312000
B194: 大阪工業大学 | C194: 53 | D194: 0
B195: 玉川大学 | C195: 50 | D195: 335000
B196: 関西医科大学 | C196: 50 | D196: 3255000
B197: 熊本保健科学大学 | C197: 49 | D197: 7000
B198: 東京農業大学 | C198: 48 | D198: 0
B199: 甲南大学 | C199: 47 | D199: 1103000
B200: 東邦大学 | C200: 46 | D200: 1329000
B201: 龍谷大学 | C201: 44 | D201: 930000
B202: 広島市立大学 | C202: 44 | D202: 84000
B203: 大同大学 | C203: 42 | D203: 0
B204: 麻布大学 | C204: 39 | D204: 2179000
B205: 岩手県立大学 | C205: 37 | D205: 54000
B206: 東京薬科大学 | C206: 35 | D206: 2478000
B207: 青山学院大学 | C207: 34 | D207: 0
B208: 岩手医科大学 | C208: 33 | D208: 15000
... 643 more rows

Sheet 岐阜大学 (hidden)
A1: 国立 | C1: 岐阜大学 | X1: 大学全体の経営理念における産学官連携活動の取組方針 | CY1: 103 | CZ1: 104 | DA1: 105 | DB1: 106 | DC1: 107 | DD1: 108 | DE1: 109 | DF1: 110 | DG1: 111 | DH1: 112 | DI1: 113 | DJ1: 114 | DK1: 115 | DL1: 116 | DM1: 117 | DN1: 118 | DO1: 119 | DP1: 120 | DQ1: 121 | DR1: 122 | DS1: 123 | DT1: 124 | DU1: 125 | DV1: 126 | DW1: 127 | DX1: 128 | DY1: 129
X2: 個々の研究者の知的探求心に基づく学術研究の卓越性を幅広い分野において高めることにより、被引用度の高いジャーナル論文の増加を目指すとともに、特定の研究分野において、世界トップレベルの研究成果を得ることが期待できる研究センター群を形成し、人類や地域社会の直面する諸課題を解決する。また、名古屋大学との協働により、糖鎖生命コア研究拠点、航空宇宙研究教育拠点及びOne Medicine創薬シーズ開発・育成研究教育拠点の機能を強化する。
C3: (岐阜県) | BC3: ＵＲＡ | BO3: URA当たりの研究者数 | CB3: 戦略的産学官連携経費
BC4: 実務担当者数 | BI4: 16 | BN4: 名 | BO4: =IFERROR(K29/BI4,"") -> 66.875 | BX4: 名 | CB4: 戦略的産学官連携経費の設定 | CP4: 有 | CT4: 無 | CZ4: ある | DA4: 相談窓口
CB5: 戦略的産学官連携経費の費目 | CZ5: ある | DA5: 支援ファンド
A6: 基 礎 情 報 | BC6: 各種規程類の整備状況 | CB6: 戦略的産学官連携経費の直接経費に対する割合 | CZ6: ある | DA6: インキュベーション施設 | DI6: × | DJ6: 産学官連携ポリシー
BC7: 産学官連携ポリシー | BN7: 職務発明規程（教職員のみ対象） | CZ7: ある | DA7: 知的財産戦略 | DI7: ◎ | DJ7: 知的財産ポリシー
B8: 大学の得意分野とその具体例 | BC8: 知的財産ポリシー | BN8: 職務発明規程（教職員、学生対象） | CB8: 人件費の企業負担 | DI8: ◎ | DJ8: 共同研究取扱規程
B9: 岐阜大学の強み分野である生命科学、環境科学、ものづくり分野について、それぞれ研究センターを組織し、知識・人材の有効活用により大きな研究プロジェクトに共同で取り組む環境を整備。具体的には、新たに設置したOne Medicineトランスレーショナルリサーチセンターへの拠点独自のURAの配置、本学コーディネーターの岐阜県庁への配置、ファンドレーザーの採用、産学官連携コーディネーターの増員を実施。 | AA9: 科研費 （千円） | AL9: その他政府系資金 (千円) | AS9: その他団体からの資金 (千円) | BC9: 共同研究取扱規程 | BN9: 発明補償関係規程（教職員のみ対象） | CB9: 教員人件費の企業負担に関する規程や制度 | CP9: 有 | CT9: 無 | DI9: ◎ | DJ9: 受託研究取扱規程
BC10: 受託研究取扱規程 | BN10: 発明補償関係規程（教職員、学生対象） | CB10: 教員人件費の企業負担の費目 | CP10: 直接経費 | DI10: ◎ | DJ10: 研究成果有体物取扱規程
AA11: 852130 | AL11: 25757 | AS11: 0 | BC11: 研究成果有体物取扱規程 | BN11: 守秘義務に係る規程（教職員のみ対象） | CB11: 学生人件費の企業負担に関する規程や制度 | CP11: 有 | CT11: 無 | DI11: ◎ | DJ11: 営業秘密管理に関する規程
BC12: 営業秘密管理に関する規程 | BN12: 守秘義務に係る規程（教職員、学生対象） | CB12: 学生人件費の企業負担の費目 | DI12: ◎ | DJ12: 株式の取扱等規程、ポリシー
AA13: 共同研究における間接経費割合 | AN13: 株式の保有 | AT13: 新株予約権の保有 | BC13: 株式の取扱等規程、ポリシー | BN13: 学術指導に関する規程 | DA13: ○ | DB13: 株式 | DI13: × | DJ13: 職務発明規程（教職員のみ対象）
AA14: 0.3 | AN14: 有 | AQ14: 無 | AT14: 有 | AW14: 無 | BK14: ※各種規定類を整備している場合は、赤色で表示されます。 | CB14: 特別試験研究費税額控除制度 | DA14: × | DB14: 新株予約権 | DI14: ◎ | DJ14: 職務発明規程（教職員、学生対象）
B15: 産学官連携活動において今後重点化したい事項 | CB15: 特別試験研究費税額控除制度の活用 | CP15: 有 | CT15: 無 | DI15: × | DJ15: 発明補償関係規程（教職員のみ対象）
B16: 地域から地球規模に至る社会課題を解決し、より良い社会の実現に寄与するため、研究により得られた科学的理論や基礎的知見の現実社会での実践に向けた研究開発を進め、社会変革につながるイノベーションの創出を目指す。また、若手、女性、外国人など研究者の多様性を高めることで、知の集積拠点として、持続的に新たな価値を創出し、発展し続けるための基盤を構築する。 | AA16: 共同研究 | AG16: 2021年度 | AO16: 2022年度 | AW16: 順位※ | BC16: クロスアポイントメントの実績 | BK16: 大学等 | BN16: 公的機関 | BQ16: 民間企業 | BU16: その他機関 | DI16: ◎ | DJ16: 発明補償関係規程（教職員、学生対象）
AG17: 受入額（千円） | AL17: 件数 | AO17: 受入額（千円） | AT17: 件数 | BH17: 受入数(名) | BK17: 0 | BN17: 0 | BQ17: 2 | BU17: 0 | DB17: 順位 | DI17: × | DJ17: 守秘義務に係る規程（教職員のみ対象）
AA18: 全体 | AG18: 754691 | AL18: 374 | AO18: 731569 | AT18: 370 | AW18: =IF(DB18<50,DB18,"") -> 25 | AY18: 位 | BH18: 派遣数(名) | BK18: 2 | BN18: 1 | BQ18: 1 | BU18: 0 | DB18: 25 | DI18: ◎ | DJ18: 守秘義務に係る規程（教職員、学生対象）
AB19: 民間企業 のみ | AG19: 655884 | AL19: 345 | AO19: 631581 | AT19: 334 | AW19: =IF(DB19<50,DB19,"") -> 25 | AY19: 位 | DB19: 25 | DI19: ◎ | DJ19: 学術指導に係る規定
AC20: 大企業 | AG20: 359118 | AL20: 186 | AO20: 436849 | AT20: 175 | AW20: 28 | AY20: 位 | BB20: ■組織的産学官連携活動の取組事例 | DB20: 28 | DI20: ない | DJ20: 戦略的産学官連携経費の設定
AC21: 中小企業 | AG21: 296766 | AL21: 159 | AO21: 194732 | AT21: 159 | AW21: 21 | AY21: 位 | DB21: 21 | DI21: ある | DJ21: 教員人件費の企業負担に関する規程や制度
AK22: ※順位は2022年度の受入額を比較したものです。 | DI22: ない | DJ22: 学生人件費の企業負担に関する規程や制度
AK23: ※順位は50位までを記載。51位以下の場合は空欄となります。 | DB23: 0 | DC23: 81 | DI23: ある | DJ23: 特別試験研究費税額控除制度の活用
DB24: ～100万 | DC24: 85
DB25: ～300万 | DC25: 119
DB26: ～500万 | DC26: 25
C27: 産学官連携本部等組織名 | K27: 学術研究・産学官連携推進本部 | DB27: ～1000万 | DC27: 15
C28: 産学官連携本部等URL | K28: https://ari.gifu-u.ac.jp/ | DB28: ～5000万 | DC28: 8
C29: 研究者数 | K29: 1070 | O29: 名 | DB29: ～1億 | DC29: 1 | DJ29: 共同研究等の企画・提案
C30: 実務担当者数 | K30: 22 | O30: 名 | DB30: 1億以上 | DJ30: 契約書での成果目標、達成時の明記
C31: 実務者当たり研究者数 | K31: =IFERROR(K29/K30,"") -> 48.63636364 | O31: 名 | DJ31: 共同研究契約の締結/判断（契約権限の集中）
C32: 専門家の配置 | I32: 弁護士 | L32: 弁理士 | O32: 税理士 | R32: 公認会計士 | V32: その他 | DJ32: 共同研究の進捗管理とフィードバック
L33: ※専門家を配置している場合は、赤色で表示されます。 | DJ33: 企業ニーズに適応した技術移転・事業化提案
AA34: 受託研究 | AG34: 2021年度 | AO34: 2022年度 | AW34: 順位※ | DJ34: 共同研究等の企画・提案
AG35: 受入額（千円） | AL35: 件数 | AO35: 受入額（千円） | AT35: 件数 | DB35: 順位 | DJ35: 契約書での成果目標、達成時の明記
AA36: 全体 | AG36: 763504 | AL36: 227 | AO36: 1251601 | AT36: 230 | AW36: =IF(DB36<50,DB36,"") -> 35 | AY36: 位 | DB36: 35 | DJ36: 共同研究契約の締結/判断（契約権限の集中）
AA37: 民間企業 のみ | AG37: 46660 | AL37: 44 | AO37: 34249 | AT37: 39 | AW37: =IF(DB37<50,DB37,"") ->  | AY37: 位 | DB37: 83 | DJ37: 共同研究の進捗管理とフィードバック
C38: 産学官連携本部が関与した共同研究 | P38: 1 | T38: 件 | AA38: 大企業 | AG38: 30966 | AL38: 25 | AO38: 21778 | AT38: 20 | AY38: 位 | DB38: 91 | DJ38: 企業ニーズに適応した技術移転・事業化提案
D39: 内、マッチングを行い、契約締結した件数 | P39: 0 | T39: 件 | AA39: 中小企業 | AG39: 15694 | AL39: 19 | AO39: 12471 | AT39: 19 | AY39: 位 | DB39: 57 | DJ39: 共同研究等の企画・提案
I40: ※1,000万円以上の共同研究 | AK40: ※順位は2022年度の受入額を比較したもの | DB40: 弁護士 | DG40: 0 | DH40: 13 | DJ40: 契約書での成果目標、達成時の明記
AK41: ※順位は50位までを記載。51位以下の場合は空欄となります。 | BB41: ■産学官連携活動の主な実用化事例 | DA41: ○ | DB41: 弁理士 | DG41: ～100万 | DH41: 13 | DJ41: 共同研究契約の締結/判断（契約権限の集中）
C42: 組織対組織による包括連携契約の締結数 | P42: 0 | T42: 件 | DB42: 税理士 | DG42: ～300万 | DH42: 11 | DJ42: 共同研究の進捗管理とフィードバック
D43: 内、1,000万円以上の実績がある相手方数 | P43: 0 | T43: 件 | DB43: 公認会計士 | DG43: ～500万 | DH43: 1 | DJ43: 企業ニーズに適応した技術移転・事業化提案
DB44: その他 | DG44: ～1000万 | DH44: 1
C45: 寄附講座・寄附研究部門の受入件数 | P45: 14 | V45: 件 | DG45: ～5000万
C46: 寄附講座・寄附研究部門の受入金額（千円） | P46: 370000 | DG46: ～1億
C47: 共同研究講座・共同研究部門の受入件数 | P47: 17 | V47: 件 | DG47: 1億以上
C48: 共同研究講座・共同研究部門の受入金額（千円） | P48: 238600
CZ51: 大学 | DA51: 大学・発明者・未設定
C52: 職務発明の帰属 | I52: 大学 | M52: 発明者 | Q52: 未設定 | DA52: 職務発明
AD53: 特許権実施等件数 | AL53: 46 | AQ53: 件 | AS53: 実施等件数当たり | DA53: 不実施
I54: 国内 | K54: 外国 | M54: PCT | O54: EPC | AD54: 特許権実施等収入（千円） | AL54: 10679 | AS54: =IF(OR(AL53="",AL54=""),"",IFERROR(AL54/AL53,"")) -> 232.1521739 | CZ54: 10679000 | DA54: 特許権収入
C55: 特許出願件数（件） | I55: 46 | K55: 33 | M55: 8 | O55: 6
C56: 特許保有件数（件） | I56: 199 | K56: 75
C61: 大学発ベンチャー数 | J61: 32 | O61: 社
C62: Exit件数（IPO） | J62: 0 | O62: 社 | P62: Exit件数（M&A） | W62: 0 | Z62: 社
C63: 相談窓口 | K63: 支援ファンド | S63: インキュベーション施設
C64: 有 | G64: 無 | K64: 有 | O64: 無 | S64: 有 | W64: 無
C65: 知的財産戦略方針 | K65: 支援総額（千円） | S65: 面積 | W65: 117 | Z65: m2
C66: 有 | G66: 無 | K66: 2000000 | S66: 契約企業数 | W66: 2 | Z66: 社
CY69: 103 | CZ69: 104 | DA69: 105 | DB69: 106 | DC69: 107 | DD69: 108 | DE69: 109 | DF69: 110 | DG69: 111 | DH69: 112 | DI69: 113 | DJ69: 114 | DK69: 115 | DL69: 116 | DM69: 117 | DN69: 118 | DO69: 119 | DP69: 120 | DQ69: 121 | DR69: 122 | DS69: 123 | DT69: 124 | DU69: 125
B70: 東京大学 | C70: 4924 | D70: 613188710 | I70: 148
B71: 東京大学 | C71: 4924 | D71: 613188710 | K71: 274
B72: 東北大学 | C72: 3805 | D72: 208066000
B73: 大阪大学 | C73: 3557 | D73: 414288000
B74: 京都大学 | C74: 3026 | D74: 1119118168
B75: 東京工業大学 | C75: 2084 | D75: 99801000
B76: 九州大学 | C76: 1797 | D76: 164182000
B77: 名古屋大学 | C77: 1604 | D77: 90749000
B78: 北海道大学 | C78: 1314 | D78: 183435000
B79: 信州大学 | C79: 1038 | D79: 37096000
B80: 大阪公立大学 | C80: 975 | D80: 9345000
B81: 筑波大学 | C81: 967 | D81: 36213000
B82: 広島大学 | C82: 919 | D82: 34166000
B83: 千葉大学 | C83: 916 | D83: 16779000
B84: 慶應義塾大学 | C84: 869 | D84: 86996000
B85: 山口大学 | C85: 756 | D85: 29295000
B86: 東京理科大学 | C86: 698 | D86: 23087000
B87: 東京農工大学 | C87: 671 | D87: 60497000
B88: 早稲田大学 | C88: 671 | D88: 27622000
B89: 神戸大学 | C89: 668 | D89: 33659000
B90: 岡山大学 | C90: 624 | D90: 24747000
B91: 名古屋工業大学 | C91: 618 | D91: 32295000
B92: 九州工業大学 | C92: 591 | D92: 8115000
B93: 群馬大学 | C93: 563 | D93: 3087000
B94: 横浜国立大学 | C94: 553 | D94: 15639000
B95: 静岡大学 | C95: 543 | D95: 4244000
B96: 熊本大学 | C96: 539 | D96: 28442000
B97: 近畿大学 | C97: 507 | D97: 22970000
B98: 鹿児島大学 | C98: 475 | D98: 16446000
B99: 山梨大学 | C99: 473 | D99: 8206000
B100: 香川大学 | C100: 469 | D100: 19447000
B101: 長岡技術科学大学 | C101: 465 | D101: 3690000
B102: 東京医科歯科大学 | C102: 461 | D102: 28044000
B103: 東京都立大学 | C103: 447 | D103: 2416000
B104: 関西大学 | C104: 445 | D104: 3261000
B105: 三重大学 | C105: 443 | D105: 28808000
B106: 豊橋技術科学大学 | C106: 435 | D106: 6864000
B107: 電気通信大学 | C107: 421 | D107: 7030000
B108: 鳥取大学 | C108: 405 | D108: 137372000
B109: 金沢大学 | C109: 391 | D109: 18050000
B110: 徳島大学 | C110: 390 | D110: 20264000
B111: 奈良先端科学技術大学院大学 | C111: 382 | D111: 39711000
B112: 新潟大学 | C112: 373 | D112: 9369000
B113: 山形大学 | C113: 363 | D113: 2866000
B114: 北里大学 | C114: 346 | D114: 66133000
B115: 立命館大学 | C115: 330 | D115: 9311000
B116: 富山大学 | C116: 328 | D116: 10861000
B117: 埼玉大学 | C117: 320 | D117: 3578000
B118: 同志社大学 | C118: 317 | D118: 4884000
B119: 高知大学 | C119: 314 | D119: 20578000
B120: 弘前大学 | C120: 294 | D120: 8072000
B121: 日本大学 | C121: 283 | D121: 36278000
B122: 兵庫県立大学 | C122: 279 | D122: 1051000
B123: 名城大学 | C123: 276 | D123: 28093000
B124: 岐阜大学 | C124: 274 | D124: 10679000
B125: 横浜市立大学 | C125: 260 | D125: 37933000
B126: 札幌医科大学 | C126: 258 | D126: 19373000
B127: 京都府立医科大学 | C127: 258 | D127: 12241000
B128: 佐賀大学 | C128: 257 | D128: 8596000
B129: 京都工芸繊維大学 | C129: 252 | D129: 368000
B130: 福井大学 | C130: 245 | D130: 8596000
B131: 宮崎大学 | C131: 244 | D131: 1648000
B132: 神奈川大学 | C132: 243 | D132: 5675000
B133: 東海大学 | C133: 232 | D133: 1120000
B134: 岩手大学 | C134: 227 | D134: 6652000
B135: 秋田大学 | C135: 224 | D135: 1688000
B136: 愛媛大学 | C136: 203 | D136: 26470000
B137: 長崎大学 | C137: 203 | D137: 33702000
B138: 東京海洋大学 | C138: 199 | D138: 4576000
B139: 北陸先端科学技術大学院大学 | C139: 192 | D139: 1763000
B140: 沖縄科学技術大学院大学 | C140: 190 | D140: 1460000
B141: 福岡大学 | C141: 189 | D141: 875000
B142: 関西学院大学 | C142: 186 | D142: 25624000
B143: 東京女子医科大学 | C143: 185 | D143: 2817000
B144: 宇都宮大学 | C144: 179 | D144: 1976000
B145: 中央大学 | C145: 170 | D145: 3131000
B146: 上智大学 | C146: 167 | D146: 0
B147: 高知工科大学 | C147: 167 | D147: 45000
B148: 茨城大学 | C148: 155 | D148: 1545000
B149: 金沢工業大学 | C149: 149 | D149: 2786000
B150: 大分大学 | C150: 148 | D150: 4155000
B151: 千葉工業大学 | C151: 147 | D151: 2134000
B152: 浜松医科大学 | C152: 146 | D152: 1429000
B153: 順天堂大学 | C153: 142 | D153: 4289000
B154: 滋賀医科大学 | C154: 141 | D154: 5567000
B155: 中部大学 | C155: 135 | D155: 675000
B156: 島根大学 | C156: 134 | D156: 1585000
B157: 名古屋市立大学 | C157: 124 | D157: 17845000
B158: 豊田工業大学 | C158: 123 | D158: 50000
B159: 芝浦工業大学 | C159: 120 | D159: 441000
B160: 東京電機大学 | C160: 116 | D160: 5765000
B161: 琉球大学 | C161: 109 | D161: 955000
B162: 久留米大学 | C162: 107 | D162: 3189000
B163: 埼玉医科大学 | C163: 98 | D163: 9046000
B164: 富山県立大学 | C164: 94 | D164: 1681000
B165: 藤田医科大学 | C165: 94 | D165: 0
B166: 明治大学 | C166: 92 | D166: 4567000
B167: 北見工業大学 | C167: 89 | D167: 729000
B168: 静岡県立大学 | C168: 88 | D168: 0
B169: 和歌山大学 | C169: 88 | D169: 4976000
B170: 関東学院大学 | C170: 85 | D170: 10815000
B171: 神奈川工科大学 | C171: 77 | D171: 356000
B172: 帝京大学 | C172: 75 | D172: 3411000
B173: 昭和大学 | C173: 73 | D173: 36130000
B174: 奈良県立医科大学 | C174: 72 | D174: 643000
B175: 福岡工業大学 | C175: 70 | D175: 200000
B176: 法政大学 | C176: 68 | D176: 1375000
B177: 東亜大学 | C177: 67 | D177: 0
B178: 兵庫医科大学 | C178: 65 | D178: 909000
B179: 聖マリアンナ医科大学 | C179: 61 | D179: 9075000
B180: 室蘭工業大学 | C180: 60 | D180: 14000
B181: 秋田県立大学 | C181: 60 | D181: 1505000
B182: 福島大学 | C182: 60 | D182: 48000
B183: 日本医科大学 | C183: 60 | D183: 5693000
B184: 岡山理科大学 | C184: 58 | D184: 2541000
B185: 産業医科大学 | C185: 57 | D185: 2114000
B186: 東洋大学 | C186: 56 | D186: 1565000
B187: 帯広畜産大学 | C187: 55 | D187: 2369000
B188: 会津大学 | C188: 55 | D188: 220000
B189: 立教大学 | C189: 55 | D189: 18000
B190: 北九州市立大学 | C190: 55 | D190: 9601000
B191: 旭川医科大学 | C191: 53 | D191: 11185000
B192: お茶の水女子大学 | C192: 53 | D192: 0
B193: 工学院大学 | C193: 53 | D193: 1312000
B194: 大阪工業大学 | C194: 53 | D194: 0
B195: 玉川大学 | C195: 50 | D195: 335000
B196: 関西医科大学 | C196: 50 | D196: 3255000
B197: 熊本保健科学大学 | C197: 49 | D197: 7000
B198: 東京農業大学 | C198: 48 | D198: 0
B199: 甲南大学 | C199: 47 | D199: 1103000
B200: 東邦大学 | C200: 46 | D200: 1329000
B201: 龍谷大学 | C201: 44 | D201: 930000
B202: 広島市立大学 | C202: 44 | D202: 84000
B203: 大同大学 | C203: 42 | D203: 0
B204: 麻布大学 | C204: 39 | D204: 2179000
B205: 岩手県立大学 | C205: 37 | D205: 54000
B206: 東京薬科大学 | C206: 35 | D206: 2478000
B207: 青山学院大学 | C207: 34 | D207: 0
B208: 岩手医科大学 | C208: 33 | D208: 15000
... 643 more rows

Sheet 静岡大学 (hidden)
A1: 国立 | C1: 静岡大学 | X1: 大学全体の経営理念における産学官連携活動の取組方針 | CY1: 103 | CZ1: 104 | DA1: 105 | DB1: 106 | DC1: 107 | DD1: 108 | DE1: 109 | DF1: 110 | DG1: 111 | DH1: 112 | DI1: 113 | DJ1: 114 | DK1: 115 | DL1: 116 | DM1: 117 | DN1: 118 | DO1: 119 | DP1: 120 | DQ1: 121 | DR1: 122 | DS1: 123 | DT1: 124 | DU1: 125 | DV1: 126 | DW1: 127 | DX1: 128 | DY1: 129
X2: ・地域社会の科学技術の発展と産業の振興に寄与するとともに、大学における教育研究活動にも活力を与え、相互に発展するために、民間企業と大学との共同研究及び学術交流を推進する。
C3: (静岡県) | BC3: ＵＲＡ | BO3: URA当たりの研究者数 | CB3: 戦略的産学官連携経費
BC4: 実務担当者数 | BI4: 16 | BN4: 名 | BO4: =IFERROR(K29/BI4,"") -> 45.6875 | BX4: 名 | CB4: 戦略的産学官連携経費の設定 | CP4: 有 | CT4: 無 | CZ4: ある | DA4: 相談窓口
CB5: 戦略的産学官連携経費の費目 | CP5: 間接経費 | CZ5: ない | DA5: 支援ファンド
A6: 基 礎 情 報 | BC6: 各種規程類の整備状況 | CB6: 戦略的産学官連携経費の直接経費に対する割合 | CP6: 0.1 | CZ6: ある | DA6: インキュベーション施設 | DI6: ◎ | DJ6: 産学官連携ポリシー
BC7: 産学官連携ポリシー | BN7: 職務発明規程（教職員のみ対象） | CZ7: ある | DA7: 知的財産戦略 | DI7: ◎ | DJ7: 知的財産ポリシー
B8: 大学の得意分野とその具体例 | BC8: 知的財産ポリシー | BN8: 職務発明規程（教職員、学生対象） | CB8: 人件費の企業負担 | DI8: ◎ | DJ8: 共同研究取扱規程
B9: ・光医工分野での世界最先端の研究を行っている。世界初スーパーハイビジョンのフルスペック規格に対応したCMOSイメージセンサを開発し、東京オリンピック・パラリンピックでの競技撮影に活用された。今後は、医療・セキュリティ・工業製品検査など幅広い応用が期待される。 | AA9: 科研費 （千円） | AL9: その他政府系資金 (千円) | AS9: その他団体からの資金 (千円) | BC9: 共同研究取扱規程 | BN9: 発明補償関係規程（教職員のみ対象） | CB9: 教員人件費の企業負担に関する規程や制度 | CP9: 有 | CT9: 無 | DI9: ◎ | DJ9: 受託研究取扱規程
BC10: 受託研究取扱規程 | BN10: 発明補償関係規程（教職員、学生対象） | CB10: 教員人件費の企業負担の費目 | DI10: ◎ | DJ10: 研究成果有体物取扱規程
AA11: 1075817 | AL11: 12923 | AS11: 0 | BC11: 研究成果有体物取扱規程 | BN11: 守秘義務に係る規程（教職員のみ対象） | CB11: 学生人件費の企業負担に関する規程や制度 | CP11: 有 | CT11: 無 | DI11: ◎ | DJ11: 営業秘密管理に関する規程
BC12: 営業秘密管理に関する規程 | BN12: 守秘義務に係る規程（教職員、学生対象） | CB12: 学生人件費の企業負担の費目 | DI12: ◎ | DJ12: 株式の取扱等規程、ポリシー
AA13: 共同研究における間接経費割合 | AN13: 株式の保有 | AT13: 新株予約権の保有 | BC13: 株式の取扱等規程、ポリシー | BN13: 学術指導に関する規程 | DA13: × | DB13: 株式 | DI13: × | DJ13: 職務発明規程（教職員のみ対象）
AA14: 0.3 | AN14: 有 | AQ14: 無 | AT14: 有 | AW14: 無 | BK14: ※各種規定類を整備している場合は、赤色で表示されます。 | CB14: 特別試験研究費税額控除制度 | DA14: ○ | DB14: 新株予約権 | DI14: ◎ | DJ14: 職務発明規程（教職員、学生対象）
B15: 産学官連携活動において今後重点化したい事項 | CB15: 特別試験研究費税額控除制度の活用 | CP15: 有 | CT15: 無 | DI15: × | DJ15: 発明補償関係規程（教職員のみ対象）
B16: ・地域社会との産学連携によるイノベーションの創出 ・組織対組織による大型共同研究の実施 ・ベンチャー支援と適正対価の確保 | AA16: 共同研究 | AG16: 2021年度 | AO16: 2022年度 | AW16: 順位※ | BC16: クロスアポイントメントの実績 | BK16: 大学等 | BN16: 公的機関 | BQ16: 民間企業 | BU16: その他機関 | DI16: ◎ | DJ16: 発明補償関係規程（教職員、学生対象）
AG17: 受入額（千円） | AL17: 件数 | AO17: 受入額（千円） | AT17: 件数 | BH17: 受入数(名) | BK17: 1 | BN17: 0 | BQ17: 0 | BU17: 0 | DB17: 順位 | DI17: × | DJ17: 守秘義務に係る規程（教職員のみ対象）
AA18: 全体 | AG18: 463450 | AL18: 244 | AO18: 458875 | AT18: 269 | AW18: =IF(DB18<50,DB18,"") -> 37 | AY18: 位 | BH18: 派遣数(名) | BK18: 2 | BN18: 0 | BQ18: 0 | BU18: 1 | DB18: 37 | DI18: ◎ | DJ18: 守秘義務に係る規程（教職員、学生対象）
AB19: 民間企業 のみ | AG19: 425281 | AL19: 228 | AO19: 419714 | AT19: 245 | AW19: =IF(DB19<50,DB19,"") -> 38 | AY19: 位 | DB19: 38 | DI19: ◎ | DJ19: 学術指導に係る規定
AC20: 大企業 | AG20: 286598 | AL20: 148 | AO20: 318445 | AT20: 150 | AW20: 39 | AY20: 位 | BB20: ■組織的産学官連携活動の取組事例 | DB20: 39 | DI20: ある | DJ20: 戦略的産学官連携経費の設定
AC21: 中小企業 | AG21: 138683 | AL21: 80 | AO21: 101269 | AT21: 95 | AW21: 36 | AY21: 位 | DB21: 36 | DI21: ない | DJ21: 教員人件費の企業負担に関する規程や制度
AK22: ※順位は2022年度の受入額を比較したものです。 | DI22: ない | DJ22: 学生人件費の企業負担に関する規程や制度
AK23: ※順位は50位までを記載。51位以下の場合は空欄となります。 | DB23: 0 | DC23: 54 | DI23: ある | DJ23: 特別試験研究費税額控除制度の活用
DB24: ～100万 | DC24: 58
DB25: ～300万 | DC25: 99
DB26: ～500万 | DC26: 16
C27: 産学官連携本部等組織名 | K27: イノベーション社会連携推進機構 | DB27: ～1000万 | DC27: 15
C28: 産学官連携本部等URL | K28: https://www.oisc.shizuoka.ac.jp/ | DB28: ～5000万 | DC28: 3
C29: 研究者数 | K29: 731 | O29: 名 | DB29: ～1億 | DJ29: 共同研究等の企画・提案
C30: 実務担当者数 | K30: 22 | O30: 名 | DB30: 1億以上 | DJ30: 契約書での成果目標、達成時の明記
C31: 実務者当たり研究者数 | K31: =IFERROR(K29/K30,"") -> 33.22727273 | O31: 名 | DJ31: 共同研究契約の締結/判断（契約権限の集中）
C32: 専門家の配置 | I32: 弁護士 | L32: 弁理士 | O32: 税理士 | R32: 公認会計士 | V32: その他 | DJ32: 共同研究の進捗管理とフィードバック
L33: ※専門家を配置している場合は、赤色で表示されます。 | DJ33: 企業ニーズに適応した技術移転・事業化提案
AA34: 受託研究 | AG34: 2021年度 | AO34: 2022年度 | AW34: 順位※ | DJ34: 共同研究等の企画・提案
AG35: 受入額（千円） | AL35: 件数 | AO35: 受入額（千円） | AT35: 件数 | DB35: 順位 | DJ35: 契約書での成果目標、達成時の明記
AA36: 全体 | AG36: 685398 | AL36: 94 | AO36: 907423 | AT36: 95 | AW36: =IF(DB36<50,DB36,"") -> 45 | AY36: 位 | DB36: 45 | DJ36: 共同研究契約の締結/判断（契約権限の集中）
AA37: 民間企業 のみ | AG37: 4584 | AL37: 8 | AO37: 11451 | AT37: 8 | AW37: =IF(DB37<50,DB37,"") ->  | AY37: 位 | DB37: 142 | DJ37: 共同研究の進捗管理とフィードバック
C38: 産学官連携本部が関与した共同研究 | P38: 2 | T38: 件 | AA38: 大企業 | AG38: 4384 | AL38: 5 | AO38: 2851 | AT38: 4 | AY38: 位 | DB38: 198 | DJ38: 企業ニーズに適応した技術移転・事業化提案
D39: 内、マッチングを行い、契約締結した件数 | P39: 0 | T39: 件 | AA39: 中小企業 | AG39: 200 | AL39: 3 | AO39: 8600 | AT39: 4 | AY39: 位 | DB39: 74 | DJ39: 共同研究等の企画・提案
I40: ※1,000万円以上の共同研究 | AK40: ※順位は2022年度の受入額を比較したもの | DB40: 弁護士 | DG40: 0 | DJ40: 契約書での成果目標、達成時の明記
AK41: ※順位は50位までを記載。51位以下の場合は空欄となります。 | BB41: ■産学官連携活動の主な実用化事例 | DA41: ○ | DB41: 弁理士 | DG41: ～100万 | DH41: 6 | DJ41: 共同研究契約の締結/判断（契約権限の集中）
C42: 組織対組織による包括連携契約の締結数 | P42: 2 | T42: 件 | DB42: 税理士 | DG42: ～300万 | DH42: 1 | DJ42: 共同研究の進捗管理とフィードバック
D43: 内、1,000万円以上の実績がある相手方数 | P43: 0 | T43: 件 | DB43: 公認会計士 | DG43: ～500万 | DJ43: 企業ニーズに適応した技術移転・事業化提案
DA44: ○ | DB44: その他 | DG44: ～1000万 | DH44: 1
C45: 寄附講座・寄附研究部門の受入件数 | P45: 2 | V45: 件 | DG45: ～5000万
C46: 寄附講座・寄附研究部門の受入金額（千円） | P46: 48000 | DG46: ～1億
C47: 共同研究講座・共同研究部門の受入件数 | P47: 7 | V47: 件 | DG47: 1億以上
C48: 共同研究講座・共同研究部門の受入金額（千円） | P48: 41384
CZ51: 大学 | DA51: 大学・発明者・未設定
C52: 職務発明の帰属 | I52: 大学 | M52: 発明者 | Q52: 未設定 | DA52: 職務発明
AD53: 特許権実施等件数 | AL53: 154 | AQ53: 件 | AS53: 実施等件数当たり | DA53: 不実施
I54: 国内 | K54: 外国 | M54: PCT | O54: EPC | AD54: 特許権実施等収入（千円） | AL54: 4244 | AS54: =IF(OR(AL53="",AL54=""),"",IFERROR(AL54/AL53,"")) -> 27.55844156 | CZ54: 4244000 | DA54: 特許権収入
C55: 特許出願件数（件） | I55: 48 | K55: 31 | M55: 13 | O55: 8
C56: 特許保有件数（件） | I56: 395 | K56: 148
C61: 大学発ベンチャー数 | J61: 45 | O61: 社
C62: Exit件数（IPO） | J62: 1 | O62: 社 | P62: Exit件数（M&A） | W62: 1 | Z62: 社
C63: 相談窓口 | K63: 支援ファンド | S63: インキュベーション施設
C64: 有 | G64: 無 | K64: 有 | O64: 無 | S64: 有 | W64: 無
C65: 知的財産戦略方針 | K65: 支援総額（千円） | S65: 面積 | W65: 473 | Z65: m2
C66: 有 | G66: 無 | K66: 0 | S66: 契約企業数 | W66: 8 | Z66: 社
CY69: 103 | CZ69: 104 | DA69: 105 | DB69: 106 | DC69: 107 | DD69: 108 | DE69: 109 | DF69: 110 | DG69: 111 | DH69: 112 | DI69: 113 | DJ69: 114 | DK69: 115 | DL69: 116 | DM69: 117 | DN69: 118 | DO69: 119 | DP69: 120 | DQ69: 121 | DR69: 122 | DS69: 123 | DT69: 124 | DU69: 125
B70: 東京大学 | C70: 4924 | D70: 613188710 | I70: 148
B71: 東京大学 | C71: 4924 | D71: 613188710 | K71: 543
B72: 東北大学 | C72: 3805 | D72: 208066000
B73: 大阪大学 | C73: 3557 | D73: 414288000
B74: 京都大学 | C74: 3026 | D74: 1119118168
B75: 東京工業大学 | C75: 2084 | D75: 99801000
B76: 九州大学 | C76: 1797 | D76: 164182000
B77: 名古屋大学 | C77: 1604 | D77: 90749000
B78: 北海道大学 | C78: 1314 | D78: 183435000
B79: 信州大学 | C79: 1038 | D79: 37096000
B80: 大阪公立大学 | C80: 975 | D80: 9345000
B81: 筑波大学 | C81: 967 | D81: 36213000
B82: 広島大学 | C82: 919 | D82: 34166000
B83: 千葉大学 | C83: 916 | D83: 16779000
B84: 慶應義塾大学 | C84: 869 | D84: 86996000
B85: 山口大学 | C85: 756 | D85: 29295000
B86: 東京理科大学 | C86: 698 | D86: 23087000
B87: 東京農工大学 | C87: 671 | D87: 60497000
B88: 早稲田大学 | C88: 671 | D88: 27622000
B89: 神戸大学 | C89: 668 | D89: 33659000
B90: 岡山大学 | C90: 624 | D90: 24747000
B91: 名古屋工業大学 | C91: 618 | D91: 32295000
B92: 九州工業大学 | C92: 591 | D92: 8115000
B93: 群馬大学 | C93: 563 | D93: 3087000
B94: 横浜国立大学 | C94: 553 | D94: 15639000
B95: 静岡大学 | C95: 543 | D95: 4244000
B96: 熊本大学 | C96: 539 | D96: 28442000
B97: 近畿大学 | C97: 507 | D97: 22970000
B98: 鹿児島大学 | C98: 475 | D98: 16446000
B99: 山梨大学 | C99: 473 | D99: 8206000
B100: 香川大学 | C100: 469 | D100: 19447000
B101: 長岡技術科学大学 | C101: 465 | D101: 3690000
B102: 東京医科歯科大学 | C102: 461 | D102: 28044000
B103: 東京都立大学 | C103: 447 | D103: 2416000
B104: 関西大学 | C104: 445 | D104: 3261000
B105: 三重大学 | C105: 443 | D105: 28808000
B106: 豊橋技術科学大学 | C106: 435 | D106: 6864000
B107: 電気通信大学 | C107: 421 | D107: 7030000
B108: 鳥取大学 | C108: 405 | D108: 137372000
B109: 金沢大学 | C109: 391 | D109: 18050000
B110: 徳島大学 | C110: 390 | D110: 20264000
B111: 奈良先端科学技術大学院大学 | C111: 382 | D111: 39711000
B112: 新潟大学 | C112: 373 | D112: 9369000
B113: 山形大学 | C113: 363 | D113: 2866000
B114: 北里大学 | C114: 346 | D114: 66133000
B115: 立命館大学 | C115: 330 | D115: 9311000
B116: 富山大学 | C116: 328 | D116: 10861000
B117: 埼玉大学 | C117: 320 | D117: 3578000
B118: 同志社大学 | C118: 317 | D118: 4884000
B119: 高知大学 | C119: 314 | D119: 20578000
B120: 弘前大学 | C120: 294 | D120: 8072000
B121: 日本大学 | C121: 283 | D121: 36278000
B122: 兵庫県立大学 | C122: 279 | D122: 1051000
B123: 名城大学 | C123: 276 | D123: 28093000
B124: 岐阜大学 | C124: 274 | D124: 10679000
B125: 横浜市立大学 | C125: 260 | D125: 37933000
B126: 札幌医科大学 | C126: 258 | D126: 19373000
B127: 京都府立医科大学 | C127: 258 | D127: 12241000
B128: 佐賀大学 | C128: 257 | D128: 8596000
B129: 京都工芸繊維大学 | C129: 252 | D129: 368000
B130: 福井大学 | C130: 245 | D130: 8596000
B131: 宮崎大学 | C131: 244 | D131: 1648000
B132: 神奈川大学 | C132: 243 | D132: 5675000
B133: 東海大学 | C133: 232 | D133: 1120000
B134: 岩手大学 | C134: 227 | D134: 6652000
B135: 秋田大学 | C135: 224 | D135: 1688000
B136: 愛媛大学 | C136: 203 | D136: 26470000
B137: 長崎大学 | C137: 203 | D137: 33702000
B138: 東京海洋大学 | C138: 199 | D138: 4576000
B139: 北陸先端科学技術大学院大学 | C139: 192 | D139: 1763000
B140: 沖縄科学技術大学院大学 | C140: 190 | D140: 1460000
B141: 福岡大学 | C141: 189 | D141: 875000
B142: 関西学院大学 | C142: 186 | D142: 25624000
B143: 東京女子医科大学 | C143: 185 | D143: 2817000
B144: 宇都宮大学 | C144: 179 | D144: 1976000
B145: 中央大学 | C145: 170 | D145: 3131000
B146: 上智大学 | C146: 167 | D146: 0
B147: 高知工科大学 | C147: 167 | D147: 45000
B148: 茨城大学 | C148: 155 | D148: 1545000
B149: 金沢工業大学 | C149: 149 | D149: 2786000
B150: 大分大学 | C150: 148 | D150: 4155000
B151: 千葉工業大学 | C151: 147 | D151: 2134000
B152: 浜松医科大学 | C152: 146 | D152: 1429000
B153: 順天堂大学 | C153: 142 | D153: 4289000
B154: 滋賀医科大学 | C154: 141 | D154: 5567000
B155: 中部大学 | C155: 135 | D155: 675000
B156: 島根大学 | C156: 134 | D156: 1585000
B157: 名古屋市立大学 | C157: 124 | D157: 17845000
B158: 豊田工業大学 | C158: 123 | D158: 50000
B159: 芝浦工業大学 | C159: 120 | D159: 441000
B160: 東京電機大学 | C160: 116 | D160: 5765000
B161: 琉球大学 | C161: 109 | D161: 955000
B162: 久留米大学 | C162: 107 | D162: 3189000
B163: 埼玉医科大学 | C163: 98 | D163: 9046000
B164: 富山県立大学 | C164: 94 | D164: 1681000
B165: 藤田医科大学 | C165: 94 | D165: 0
B166: 明治大学 | C166: 92 | D166: 4567000
B167: 北見工業大学 | C167: 89 | D167: 729000
B168: 静岡県立大学 | C168: 88 | D168: 0
B169: 和歌山大学 | C169: 88 | D169: 4976000
B170: 関東学院大学 | C170: 85 | D170: 10815000
B171: 神奈川工科大学 | C171: 77 | D171: 356000
B172: 帝京大学 | C172: 75 | D172: 3411000
B173: 昭和大学 | C173: 73 | D173: 36130000
B174: 奈良県立医科大学 | C174: 72 | D174: 643000
B175: 福岡工業大学 | C175: 70 | D175: 200000
B176: 法政大学 | C176: 68 | D176: 1375000
B177: 東亜大学 | C177: 67 | D177: 0
B178: 兵庫医科大学 | C178: 65 | D178: 909000
B179: 聖マリアンナ医科大学 | C179: 61 | D179: 9075000
B180: 室蘭工業大学 | C180: 60 | D180: 14000
B181: 秋田県立大学 | C181: 60 | D181: 1505000
B182: 福島大学 | C182: 60 | D182: 48000
B183: 日本医科大学 | C183: 60 | D183: 5693000
B184: 岡山理科大学 | C184: 58 | D184: 2541000
B185: 産業医科大学 | C185: 57 | D185: 2114000
B186: 東洋大学 | C186: 56 | D186: 1565000
B187: 帯広畜産大学 | C187: 55 | D187: 2369000
B188: 会津大学 | C188: 55 | D188: 220000
B189: 立教大学 | C189: 55 | D189: 18000
B190: 北九州市立大学 | C190: 55 | D190: 9601000
B191: 旭川医科大学 | C191: 53 | D191: 11185000
B192: お茶の水女子大学 | C192: 53 | D192: 0
B193: 工学院大学 | C193: 53 | D193: 1312000
B194: 大阪工業大学 | C194: 53 | D194: 0
B195: 玉川大学 | C195: 50 | D195: 335000
B196: 関西医科大学 | C196: 50 | D196: 3255000
B197: 熊本保健科学大学 | C197: 49 | D197: 7000
B198: 東京農業大学 | C198: 48 | D198: 0
B199: 甲南大学 | C199: 47 | D199: 1103000
B200: 東邦大学 | C200: 46 | D200: 1329000
B201: 龍谷大学 | C201: 44 | D201: 930000
B202: 広島市立大学 | C202: 44 | D202: 84000
B203: 大同大学 | C203: 42 | D203: 0
B204: 麻布大学 | C204: 39 | D204: 2179000
B205: 岩手県立大学 | C205: 37 | D205: 54000
B206: 東京薬科大学 | C206: 35 | D206: 2478000
B207: 青山学院大学 | C207: 34 | D207: 0
B208: 岩手医科大学 | C208: 33 | D208: 15000
... 643 more rows

Sheet 愛知教育大学 (hidden)
A1: 国立 | C1: 愛知教育大学 | X1: 大学全体の経営理念における産学官連携活動の取組方針 | CY1: 103 | CZ1: 104 | DA1: 105 | DB1: 106 | DC1: 107 | DD1: 108 | DE1: 109 | DF1: 110 | DG1: 111 | DH1: 112 | DI1: 113 | DJ1: 114 | DK1: 115 | DL1: 116 | DM1: 117 | DN1: 118 | DO1: 119 | DP1: 120 | DQ1: 121 | DR1: 122 | DS1: 123 | DT1: 124 | DU1: 125 | DV1: 126 | DW1: 127 | DX1: 128 | DY1: 129
C3: (愛知県) | BC3: ＵＲＡ | BO3: URA当たりの研究者数 | CB3: 戦略的産学官連携経費
BC4: 実務担当者数 | BI4: 0 | BN4: 名 | BO4: =IFERROR(K29/BI4,"") ->  | BX4: 名 | CB4: 戦略的産学官連携経費の設定 | CP4: 有 | CT4: 無 | CZ4: ない | DA4: 相談窓口
CB5: 戦略的産学官連携経費の費目 | CZ5: ない | DA5: 支援ファンド
A6: 基 礎 情 報 | BC6: 各種規程類の整備状況 | CB6: 戦略的産学官連携経費の直接経費に対する割合 | CZ6: ない | DA6: インキュベーション施設 | DI6: × | DJ6: 産学官連携ポリシー
BC7: 産学官連携ポリシー | BN7: 職務発明規程（教職員のみ対象） | CZ7: ない | DA7: 知的財産戦略 | DI7: × | DJ7: 知的財産ポリシー
B8: 大学の得意分野とその具体例 | BC8: 知的財産ポリシー | BN8: 職務発明規程（教職員、学生対象） | CB8: 人件費の企業負担 | DI8: ◎ | DJ8: 共同研究取扱規程
AA9: 科研費 （千円） | AL9: その他政府系資金 (千円) | AS9: その他団体からの資金 (千円) | BC9: 共同研究取扱規程 | BN9: 発明補償関係規程（教職員のみ対象） | CB9: 教員人件費の企業負担に関する規程や制度 | CP9: 有 | CT9: 無 | DI9: ◎ | DJ9: 受託研究取扱規程
BC10: 受託研究取扱規程 | BN10: 発明補償関係規程（教職員、学生対象） | CB10: 教員人件費の企業負担の費目 | DI10: × | DJ10: 研究成果有体物取扱規程
AA11: 70020 | AL11: 0 | AS11: 0 | BC11: 研究成果有体物取扱規程 | BN11: 守秘義務に係る規程（教職員のみ対象） | CB11: 学生人件費の企業負担に関する規程や制度 | CP11: 有 | CT11: 無 | DI11: × | DJ11: 営業秘密管理に関する規程
BC12: 営業秘密管理に関する規程 | BN12: 守秘義務に係る規程（教職員、学生対象） | CB12: 学生人件費の企業負担の費目 | DI12: × | DJ12: 株式の取扱等規程、ポリシー
AA13: 共同研究における間接経費割合 | AN13: 株式の保有 | AT13: 新株予約権の保有 | BC13: 株式の取扱等規程、ポリシー | BN13: 学術指導に関する規程 | DA13: × | DB13: 株式 | DI13: ◎ | DJ13: 職務発明規程（教職員のみ対象）
AA14: 0.3 | AN14: 有 | AQ14: 無 | AT14: 有 | AW14: 無 | BK14: ※各種規定類を整備している場合は、赤色で表示されます。 | CB14: 特別試験研究費税額控除制度 | DA14: × | DB14: 新株予約権 | DI14: × | DJ14: 職務発明規程（教職員、学生対象）
B15: 産学官連携活動において今後重点化したい事項 | CB15: 特別試験研究費税額控除制度の活用 | CP15: 有 | CT15: 無 | DI15: ◎ | DJ15: 発明補償関係規程（教職員のみ対象）
AA16: 共同研究 | AG16: 2021年度 | AO16: 2022年度 | AW16: 順位※ | BC16: クロスアポイントメントの実績 | BK16: 大学等 | BN16: 公的機関 | BQ16: 民間企業 | BU16: その他機関 | DI16: × | DJ16: 発明補償関係規程（教職員、学生対象）
AG17: 受入額（千円） | AL17: 件数 | AO17: 受入額（千円） | AT17: 件数 | BH17: 受入数(名) | BK17: 1 | BN17: 0 | BQ17: 2 | BU17: 0 | DB17: 順位 | DI17: ◎ | DJ17: 守秘義務に係る規程（教職員のみ対象）
AA18: 全体 | AG18: 0 | AL18: 0 | AO18: 0 | AT18: 0 | AW18: =IF(DB18<50,DB18,"") ->  | AY18: 位 | BH18: 派遣数(名) | BK18: 0 | BN18: 0 | BQ18: 0 | BU18: 0 | DB18: 491 | DI18: × | DJ18: 守秘義務に係る規程（教職員、学生対象）
AB19: 民間企業 のみ | AG19: 0 | AL19: 0 | AO19: 0 | AT19: 0 | AW19: =IF(DB19<50,DB19,"") ->  | AY19: 位 | DB19: 455 | DI19: × | DJ19: 学術指導に係る規定
AC20: 大企業 | AG20: 0 | AL20: 0 | AO20: 0 | AT20: 0 | AY20: 位 | BB20: ■組織的産学官連携活動の取組事例 | DB20: 405 | DI20: ない | DJ20: 戦略的産学官連携経費の設定
AC21: 中小企業 | AG21: 0 | AL21: 0 | AO21: 0 | AT21: 0 | AY21: 位 | DB21: 357 | DI21: ない | DJ21: 教員人件費の企業負担に関する規程や制度
AK22: ※順位は2022年度の受入額を比較したものです。 | DI22: ない | DJ22: 学生人件費の企業負担に関する規程や制度
AK23: ※順位は50位までを記載。51位以下の場合は空欄となります。 | DB23: 0 | DI23: ない | DJ23: 特別試験研究費税額控除制度の活用
DB24: ～100万
DB25: ～300万
DB26: ～500万
C27: 産学官連携本部等組織名 | DB27: ～1000万
C28: 産学官連携本部等URL | DB28: ～5000万
C29: 研究者数 | K29: 200 | O29: 名 | DB29: ～1億 | DJ29: 共同研究等の企画・提案
C30: 実務担当者数 | K30: 3 | O30: 名 | DB30: 1億以上 | DJ30: 契約書での成果目標、達成時の明記
C31: 実務者当たり研究者数 | K31: =IFERROR(K29/K30,"") -> 66.66666667 | O31: 名 | DJ31: 共同研究契約の締結/判断（契約権限の集中）
C32: 専門家の配置 | I32: 弁護士 | L32: 弁理士 | O32: 税理士 | R32: 公認会計士 | V32: その他 | DJ32: 共同研究の進捗管理とフィードバック
L33: ※専門家を配置している場合は、赤色で表示されます。 | DJ33: 企業ニーズに適応した技術移転・事業化提案
AA34: 受託研究 | AG34: 2021年度 | AO34: 2022年度 | AW34: 順位※ | DJ34: 共同研究等の企画・提案
AG35: 受入額（千円） | AL35: 件数 | AO35: 受入額（千円） | AT35: 件数 | DB35: 順位 | DJ35: 契約書での成果目標、達成時の明記
AA36: 全体 | AG36: 660 | AL36: 3 | AO36: 1548 | AT36: 4 | AW36: =IF(DB36<50,DB36,"") ->  | AY36: 位 | DB36: 445 | DJ36: 共同研究契約の締結/判断（契約権限の集中）
AA37: 民間企業 のみ | AG37: 0 | AL37: 0 | AO37: 0 | AT37: 0 | AW37: =IF(DB37<50,DB37,"") ->  | AY37: 位 | DB37: 394 | DJ37: 共同研究の進捗管理とフィードバック
C38: 産学官連携本部が関与した共同研究 | P38: 0 | T38: 件 | AA38: 大企業 | AG38: 0 | AL38: 0 | AO38: 0 | AT38: 0 | AY38: 位 | DB38: 309 | DJ38: 企業ニーズに適応した技術移転・事業化提案
D39: 内、マッチングを行い、契約締結した件数 | P39: 0 | T39: 件 | AA39: 中小企業 | AG39: 0 | AL39: 0 | AO39: 0 | AT39: 0 | AY39: 位 | DB39: 311 | DJ39: 共同研究等の企画・提案
I40: ※1,000万円以上の共同研究 | AK40: ※順位は2022年度の受入額を比較したもの | DB40: 弁護士 | DG40: 0 | DJ40: 契約書での成果目標、達成時の明記
AK41: ※順位は50位までを記載。51位以下の場合は空欄となります。 | BB41: ■産学官連携活動の主な実用化事例 | DB41: 弁理士 | DG41: ～100万 | DJ41: 共同研究契約の締結/判断（契約権限の集中）
C42: 組織対組織による包括連携契約の締結数 | P42: 0 | T42: 件 | DB42: 税理士 | DG42: ～300万 | DJ42: 共同研究の進捗管理とフィードバック
D43: 内、1,000万円以上の実績がある相手方数 | P43: 0 | T43: 件 | DB43: 公認会計士 | DG43: ～500万 | DJ43: 企業ニーズに適応した技術移転・事業化提案
DB44: その他 | DG44: ～1000万
C45: 寄附講座・寄附研究部門の受入件数 | P45: 0 | V45: 件 | DG45: ～5000万
C46: 寄附講座・寄附研究部門の受入金額（千円） | P46: 0 | DG46: ～1億
C47: 共同研究講座・共同研究部門の受入件数 | P47: 0 | V47: 件 | DG47: 1億以上
C48: 共同研究講座・共同研究部門の受入金額（千円） | P48: 0
CZ51: 大学 | DA51: 大学・発明者・未設定
C52: 職務発明の帰属 | I52: 大学 | M52: 発明者 | Q52: 未設定 | DA52: 職務発明
AD53: 特許権実施等件数 | AL53: 0 | AQ53: 件 | AS53: 実施等件数当たり | DA53: 不実施
I54: 国内 | K54: 外国 | M54: PCT | O54: EPC | AD54: 特許権実施等収入（千円） | AL54: 0 | AS54: =IF(OR(AL53="",AL54=""),"",IFERROR(AL54/AL53,"")) ->  | CZ54: 0 | DA54: 特許権収入
C55: 特許出願件数（件） | I55: 0 | K55: 0 | M55: 0 | O55: 0
C56: 特許保有件数（件） | I56: 1 | K56: 0
C61: 大学発ベンチャー数 | J61: 0 | O61: 社
C62: Exit件数（IPO） | J62: 0 | O62: 社 | P62: Exit件数（M&A） | W62: 0 | Z62: 社
C63: 相談窓口 | K63: 支援ファンド | S63: インキュベーション施設
C64: 有 | G64: 無 | K64: 有 | O64: 無 | S64: 有 | W64: 無
C65: 知的財産戦略方針 | K65: 支援総額（千円） | S65: 面積 | W65: 0 | Z65: m2
C66: 有 | G66: 無 | K66: 0 | S66: 契約企業数 | W66: 0 | Z66: 社
CY69: 103 | CZ69: 104 | DA69: 105 | DB69: 106 | DC69: 107 | DD69: 108 | DE69: 109 | DF69: 110 | DG69: 111 | DH69: 112 | DI69: 113 | DJ69: 114 | DK69: 115 | DL69: 116 | DM69: 117 | DN69: 118 | DO69: 119 | DP69: 120 | DQ69: 121 | DR69: 122 | DS69: 123 | DT69: 124 | DU69: 125
B70: 東京大学 | C70: 4924 | D70: 613188710 | I70: 148
B71: 東京大学 | C71: 4924 | D71: 613188710 | K71: 1
B72: 東北大学 | C72: 3805 | D72: 208066000
B73: 大阪大学 | C73: 3557 | D73: 414288000
B74: 京都大学 | C74: 3026 | D74: 1119118168
B75: 東京工業大学 | C75: 2084 | D75: 99801000
B76: 九州大学 | C76: 1797 | D76: 164182000
B77: 名古屋大学 | C77: 1604 | D77: 90749000
B78: 北海道大学 | C78: 1314 | D78: 183435000
B79: 信州大学 | C79: 1038 | D79: 37096000
B80: 大阪公立大学 | C80: 975 | D80: 9345000
B81: 筑波大学 | C81: 967 | D81: 36213000
B82: 広島大学 | C82: 919 | D82: 34166000
B83: 千葉大学 | C83: 916 | D83: 16779000
B84: 慶應義塾大学 | C84: 869 | D84: 86996000
B85: 山口大学 | C85: 756 | D85: 29295000
B86: 東京理科大学 | C86: 698 | D86: 23087000
B87: 東京農工大学 | C87: 671 | D87: 60497000
B88: 早稲田大学 | C88: 671 | D88: 27622000
B89: 神戸大学 | C89: 668 | D89: 33659000
B90: 岡山大学 | C90: 624 | D90: 24747000
B91: 名古屋工業大学 | C91: 618 | D91: 32295000
B92: 九州工業大学 | C92: 591 | D92: 8115000
B93: 群馬大学 | C93: 563 | D93: 3087000
B94: 横浜国立大学 | C94: 553 | D94: 15639000
B95: 静岡大学 | C95: 543 | D95: 4244000
B96: 熊本大学 | C96: 539 | D96: 28442000
B97: 近畿大学 | C97: 507 | D97: 22970000
B98: 鹿児島大学 | C98: 475 | D98: 16446000
B99: 山梨大学 | C99: 473 | D99: 8206000
B100: 香川大学 | C100: 469 | D100: 19447000
B101: 長岡技術科学大学 | C101: 465 | D101: 3690000
B102: 東京医科歯科大学 | C102: 461 | D102: 28044000
B103: 東京都立大学 | C103: 447 | D103: 2416000
B104: 関西大学 | C104: 445 | D104: 3261000
B105: 三重大学 | C105: 443 | D105: 28808000
B106: 豊橋技術科学大学 | C106: 435 | D106: 6864000
B107: 電気通信大学 | C107: 421 | D107: 7030000
B108: 鳥取大学 | C108: 405 | D108: 137372000
B109: 金沢大学 | C109: 391 | D109: 18050000
B110: 徳島大学 | C110: 390 | D110: 20264000
B111: 奈良先端科学技術大学院大学 | C111: 382 | D111: 39711000
B112: 新潟大学 | C112: 373 | D112: 9369000
B113: 山形大学 | C113: 363 | D113: 2866000
B114: 北里大学 | C114: 346 | D114: 66133000
B115: 立命館大学 | C115: 330 | D115: 9311000
B116: 富山大学 | C116: 328 | D116: 10861000
B117: 埼玉大学 | C117: 320 | D117: 3578000
B118: 同志社大学 | C118: 317 | D118: 4884000
B119: 高知大学 | C119: 314 | D119: 20578000
B120: 弘前大学 | C120: 294 | D120: 8072000
B121: 日本大学 | C121: 283 | D121: 36278000
B122: 兵庫県立大学 | C122: 279 | D122: 1051000
B123: 名城大学 | C123: 276 | D123: 28093000
B124: 岐阜大学 | C124: 274 | D124: 10679000
B125: 横浜市立大学 | C125: 260 | D125: 37933000
B126: 札幌医科大学 | C126: 258 | D126: 19373000
B127: 京都府立医科大学 | C127: 258 | D127: 12241000
B128: 佐賀大学 | C128: 257 | D128: 8596000
B129: 京都工芸繊維大学 | C129: 252 | D129: 368000
B130: 福井大学 | C130: 245 | D130: 8596000
B131: 宮崎大学 | C131: 244 | D131: 1648000
B132: 神奈川大学 | C132: 243 | D132: 5675000
B133: 東海大学 | C133: 232 | D133: 1120000
B134: 岩手大学 | C134: 227 | D134: 6652000
B135: 秋田大学 | C135: 224 | D135: 1688000
B136: 愛媛大学 | C136: 203 | D136: 26470000
B137: 長崎大学 | C137: 203 | D137: 33702000
B138: 東京海洋大学 | C138: 199 | D138: 4576000
B139: 北陸先端科学技術大学院大学 | C139: 192 | D139: 1763000
B140: 沖縄科学技術大学院大学 | C140: 190 | D140: 1460000
B141: 福岡大学 | C141: 189 | D141: 875000
B142: 関西学院大学 | C142: 186 | D142: 25624000
B143: 東京女子医科大学 | C143: 185 | D143: 2817000
B144: 宇都宮大学 | C144: 179 | D144: 1976000
B145: 中央大学 | C145: 170 | D145: 3131000
B146: 上智大学 | C146: 167 | D146: 0
B147: 高知工科大学 | C147: 167 | D147: 45000
B148: 茨城大学 | C148: 155 | D148: 1545000
B149: 金沢工業大学 | C149: 149 | D149: 2786000
B150: 大分大学 | C150: 148 | D150: 4155000
B151: 千葉工業大学 | C151: 147 | D151: 2134000
B152: 浜松医科大学 | C152: 146 | D152: 1429000
B153: 順天堂大学 | C153: 142 | D153: 4289000
B154: 滋賀医科大学 | C154: 141 | D154: 5567000
B155: 中部大学 | C155: 135 | D155: 675000
B156: 島根大学 | C156: 134 | D156: 1585000
B157: 名古屋市立大学 | C157: 124 | D157: 17845000
B158: 豊田工業大学 | C158: 123 | D158: 50000
B159: 芝浦工業大学 | C159: 120 | D159: 441000
B160: 東京電機大学 | C160: 116 | D160: 5765000
B161: 琉球大学 | C161: 109 | D161: 955000
B162: 久留米大学 | C162: 107 | D162: 3189000
B163: 埼玉医科大学 | C163: 98 | D163: 9046000
B164: 富山県立大学 | C164: 94 | D164: 1681000
B165: 藤田医科大学 | C165: 94 | D165: 0
B166: 明治大学 | C166: 92 | D166: 4567000
B167: 北見工業大学 | C167: 89 | D167: 729000
B168: 静岡県立大学 | C168: 88 | D168: 0
B169: 和歌山大学 | C169: 88 | D169: 4976000
B170: 関東学院大学 | C170: 85 | D170: 10815000
B171: 神奈川工科大学 | C171: 77 | D171: 356000
B172: 帝京大学 | C172: 75 | D172: 3411000
B173: 昭和大学 | C173: 73 | D173: 36130000
B174: 奈良県立医科大学 | C174: 72 | D174: 643000
B175: 福岡工業大学 | C175: 70 | D175: 200000
B176: 法政大学 | C176: 68 | D176: 1375000
B177: 東亜大学 | C177: 67 | D177: 0
B178: 兵庫医科大学 | C178: 65 | D178: 909000
B179: 聖マリアンナ医科大学 | C179: 61 | D179: 9075000
B180: 室蘭工業大学 | C180: 60 | D180: 14000
B181: 秋田県立大学 | C181: 60 | D181: 1505000
B182: 福島大学 | C182: 60 | D182: 48000
B183: 日本医科大学 | C183: 60 | D183: 5693000
B184: 岡山理科大学 | C184: 58 | D184: 2541000
B185: 産業医科大学 | C185: 57 | D185: 2114000
B186: 東洋大学 | C186: 56 | D186: 1565000
B187: 帯広畜産大学 | C187: 55 | D187: 2369000
B188: 会津大学 | C188: 55 | D188: 220000
B189: 立教大学 | C189: 55 | D189: 18000
B190: 北九州市立大学 | C190: 55 | D190: 9601000
B191: 旭川医科大学 | C191: 53 | D191: 11185000
B192: お茶の水女子大学 | C192: 53 | D192: 0
B193: 工学院大学 | C193: 53 | D193: 1312000
B194: 大阪工業大学 | C194: 53 | D194: 0
B195: 玉川大学 | C195: 50 | D195: 335000
B196: 関西医科大学 | C196: 50 | D196: 3255000
B197: 熊本保健科学大学 | C197: 49 | D197: 7000
B198: 東京農業大学 | C198: 48 | D198: 0
B199: 甲南大学 | C199: 47 | D199: 1103000
B200: 東邦大学 | C200: 46 | D200: 1329000
B201: 龍谷大学 | C201: 44 | D201: 930000
B202: 広島市立大学 | C202: 44 | D202: 84000
B203: 大同大学 | C203: 42 | D203: 0
B204: 麻布大学 | C204: 39 | D204: 2179000
B205: 岩手県立大学 | C205: 37 | D205: 54000
B206: 東京薬科大学 | C206: 35 | D206: 2478000
B207: 青山学院大学 | C207: 34 | D207: 0
B208: 岩手医科大学 | C208: 33 | D208: 15000
B209: 愛知工業大学 | C209: 32 | D209: 165000
... 642 more rows

Sheet 滋賀大学 (hidden)
A1: 国立 | C1: 滋賀大学 | X1: 大学全体の経営理念における産学官連携活動の取組方針 | CY1: 103 | CZ1: 104 | DA1: 105 | DB1: 106 | DC1: 107 | DD1: 108 | DE1: 109 | DF1: 110 | DG1: 111 | DH1: 112 | DI1: 113 | DJ1: 114 | DK1: 115 | DL1: 116 | DM1: 117 | DN1: 118 | DO1: 119 | DP1: 120 | DQ1: 121 | DR1: 122 | DS1: 123 | DT1: 124 | DU1: 125 | DV1: 126 | DW1: 127 | DX1: 128 | DY1: 129
X2: 滋賀大学は、教育と研究の成果及び大学が有する知的資源を還元することにより、地域社会との多様な連携を積極的に構築し、開かれた大学として、地域社会の発展に寄与する。
C3: (滋賀県) | BC3: ＵＲＡ | BO3: URA当たりの研究者数 | CB3: 戦略的産学官連携経費
BC4: 実務担当者数 | BI4: 2 | BN4: 名 | BO4: =IFERROR(K29/BI4,"") -> 126.5 | BX4: 名 | CB4: 戦略的産学官連携経費の設定 | CP4: 有 | CT4: 無 | CZ4: ある | DA4: 相談窓口
CB5: 戦略的産学官連携経費の費目 | CZ5: ない | DA5: 支援ファンド
A6: 基 礎 情 報 | BC6: 各種規程類の整備状況 | CB6: 戦略的産学官連携経費の直接経費に対する割合 | CZ6: ない | DA6: インキュベーション施設 | DI6: ◎ | DJ6: 産学官連携ポリシー
BC7: 産学官連携ポリシー | BN7: 職務発明規程（教職員のみ対象） | CZ7: ない | DA7: 知的財産戦略 | DI7: ◎ | DJ7: 知的財産ポリシー
B8: 大学の得意分野とその具体例 | BC8: 知的財産ポリシー | BN8: 職務発明規程（教職員、学生対象） | CB8: 人件費の企業負担 | DI8: ◎ | DJ8: 共同研究取扱規程
B9: 2017年のデータサイエンス（DS）学部開設を契機に、我が国最高水準のDS教育研究拠点として、AI・DSの社会実装への高いニーズと緊要性に対応する産学公連携。 ○国内初・最大規模の本格的DS研究者コミュニティの形成 ○「教育」「研究」「コンサル」の融合による質の高い実践的なDS教育の実現 ○130件以上の企業・自治体等との組織的連携 | AA9: 科研費 （千円） | AL9: その他政府系資金 (千円) | AS9: その他団体からの資金 (千円) | BC9: 共同研究取扱規程 | BN9: 発明補償関係規程（教職員のみ対象） | CB9: 教員人件費の企業負担に関する規程や制度 | CP9: 有 | CT9: 無 | DI9: ◎ | DJ9: 受託研究取扱規程
BC10: 受託研究取扱規程 | BN10: 発明補償関係規程（教職員、学生対象） | CB10: 教員人件費の企業負担の費目 | CP10: 直接経費 | DI10: × | DJ10: 研究成果有体物取扱規程
AA11: 134475 | AL11: 0 | AS11: 0 | BC11: 研究成果有体物取扱規程 | BN11: 守秘義務に係る規程（教職員のみ対象） | CB11: 学生人件費の企業負担に関する規程や制度 | CP11: 有 | CT11: 無 | DI11: × | DJ11: 営業秘密管理に関する規程
BC12: 営業秘密管理に関する規程 | BN12: 守秘義務に係る規程（教職員、学生対象） | CB12: 学生人件費の企業負担の費目 | DI12: × | DJ12: 株式の取扱等規程、ポリシー
AA13: 共同研究における間接経費割合 | AN13: 株式の保有 | AT13: 新株予約権の保有 | BC13: 株式の取扱等規程、ポリシー | BN13: 学術指導に関する規程 | DA13: × | DB13: 株式 | DI13: ◎ | DJ13: 職務発明規程（教職員のみ対象）
AA14: 0.3 | AN14: 有 | AQ14: 無 | AT14: 有 | AW14: 無 | BK14: ※各種規定類を整備している場合は、赤色で表示されます。 | CB14: 特別試験研究費税額控除制度 | DA14: × | DB14: 新株予約権 | DI14: × | DJ14: 職務発明規程（教職員、学生対象）
B15: 産学官連携活動において今後重点化したい事項 | CB15: 特別試験研究費税額控除制度の活用 | CP15: 有 | CT15: 無 | DI15: ◎ | DJ15: 発明補償関係規程（教職員のみ対象）
B16: ○企業等と連携した共同研究、先端研究の展開及び高度人材の育成 ○AIを含むデータサイエンスの社会実装 〇地域資源の持続的活用と地域社会の価値創造への貢献 ○大学の知的資源を社会実装するSDGs推進活動 | AA16: 共同研究 | AG16: 2021年度 | AO16: 2022年度 | AW16: 順位※ | BC16: クロスアポイントメントの実績 | BK16: 大学等 | BN16: 公的機関 | BQ16: 民間企業 | BU16: その他機関 | DI16: × | DJ16: 発明補償関係規程（教職員、学生対象）
AG17: 受入額（千円） | AL17: 件数 | AO17: 受入額（千円） | AT17: 件数 | BH17: 受入数(名) | BK17: 0 | BN17: 0 | BQ17: 0 | BU17: 0 | DB17: 順位 | DI17: ◎ | DJ17: 守秘義務に係る規程（教職員のみ対象）
AA18: 全体 | AG18: 151850 | AL18: 40 | AO18: 142568 | AT18: 39 | AW18: =IF(DB18<50,DB18,"") ->  | AY18: 位 | BH18: 派遣数(名) | BK18: 1 | BN18: 0 | BQ18: 0 | BU18: 0 | DB18: 93 | DI18: × | DJ18: 守秘義務に係る規程（教職員、学生対象）
AB19: 民間企業 のみ | AG19: 150050 | AL19: 36 | AO19: 139055 | AT19: 34 | AW19: =IF(DB19<50,DB19,"") ->  | AY19: 位 | DB19: 90 | DI19: × | DJ19: 学術指導に係る規定
AC20: 大企業 | AG20: 145512 | AL20: 31 | AO20: 137640 | AT20: 29 | AY20: 位 | BB20: ■組織的産学官連携活動の取組事例 | DB20: 74 | DI20: ない | DJ20: 戦略的産学官連携経費の設定
AC21: 中小企業 | AG21: 4538 | AL21: 5 | AO21: 1415 | AT21: 5 | AY21: 位 | DB21: 269 | DI21: ある | DJ21: 教員人件費の企業負担に関する規程や制度
AK22: ※順位は2022年度の受入額を比較したものです。 | DI22: ない | DJ22: 学生人件費の企業負担に関する規程や制度
AK23: ※順位は50位までを記載。51位以下の場合は空欄となります。 | DB23: 0 | DC23: 11 | DI23: ある | DJ23: 特別試験研究費税額控除制度の活用
DB24: ～100万 | DC24: 5
DB25: ～300万 | DC25: 4
DB26: ～500万 | DC26: 4
C27: 産学官連携本部等組織名 | K27: 産学公連携推進機構 | DB27: ～1000万 | DC27: 7
C28: 産学官連携本部等URL | K28: https://shiga-u.ac.jp/icr/ | DB28: ～5000万 | DC28: 2
C29: 研究者数 | K29: 253 | O29: 名 | DB29: ～1億 | DC29: 1 | DJ29: 共同研究等の企画・提案
C30: 実務担当者数 | K30: 4 | O30: 名 | DB30: 1億以上 | DJ30: 契約書での成果目標、達成時の明記
C31: 実務者当たり研究者数 | K31: =IFERROR(K29/K30,"") -> 63.25 | O31: 名 | DJ31: 共同研究契約の締結/判断（契約権限の集中）
C32: 専門家の配置 | I32: 弁護士 | L32: 弁理士 | O32: 税理士 | R32: 公認会計士 | V32: その他 | DJ32: 共同研究の進捗管理とフィードバック
L33: ※専門家を配置している場合は、赤色で表示されます。 | DJ33: 企業ニーズに適応した技術移転・事業化提案
AA34: 受託研究 | AG34: 2021年度 | AO34: 2022年度 | AW34: 順位※ | DJ34: 共同研究等の企画・提案
AG35: 受入額（千円） | AL35: 件数 | AO35: 受入額（千円） | AT35: 件数 | DB35: 順位 | DJ35: 契約書での成果目標、達成時の明記
AA36: 全体 | AG36: 7538 | AL36: 4 | AO36: 15649 | AT36: 6 | AW36: =IF(DB36<50,DB36,"") ->  | AY36: 位 | DB36: 259 | DJ36: 共同研究契約の締結/判断（契約権限の集中）
AA37: 民間企業 のみ | AG37: 0 | AL37: 0 | AO37: 0 | AT37: 0 | AW37: =IF(DB37<50,DB37,"") ->  | AY37: 位 | DB37: 394 | DJ37: 共同研究の進捗管理とフィードバック
C38: 産学官連携本部が関与した共同研究 | P38: 0 | T38: 件 | AA38: 大企業 | AG38: 0 | AL38: 0 | AO38: 0 | AT38: 0 | AY38: 位 | DB38: 309 | DJ38: 企業ニーズに適応した技術移転・事業化提案
D39: 内、マッチングを行い、契約締結した件数 | P39: 0 | T39: 件 | AA39: 中小企業 | AG39: 0 | AL39: 0 | AO39: 0 | AT39: 0 | AY39: 位 | DB39: 311 | DJ39: 共同研究等の企画・提案
I40: ※1,000万円以上の共同研究 | AK40: ※順位は2022年度の受入額を比較したもの | DB40: 弁護士 | DG40: 0 | DJ40: 契約書での成果目標、達成時の明記
AK41: ※順位は50位までを記載。51位以下の場合は空欄となります。 | BB41: ■産学官連携活動の主な実用化事例 | DB41: 弁理士 | DG41: ～100万 | DJ41: 共同研究契約の締結/判断（契約権限の集中）
C42: 組織対組織による包括連携契約の締結数 | P42: 3 | T42: 件 | DB42: 税理士 | DG42: ～300万 | DJ42: 共同研究の進捗管理とフィードバック
D43: 内、1,000万円以上の実績がある相手方数 | P43: 0 | T43: 件 | DB43: 公認会計士 | DG43: ～500万 | DJ43: 企業ニーズに適応した技術移転・事業化提案
DB44: その他 | DG44: ～1000万
C45: 寄附講座・寄附研究部門の受入件数 | P45: 1 | V45: 件 | DG45: ～5000万
C46: 寄附講座・寄附研究部門の受入金額（千円） | P46: 1000 | DG46: ～1億
C47: 共同研究講座・共同研究部門の受入件数 | P47: 0 | V47: 件 | DG47: 1億以上
C48: 共同研究講座・共同研究部門の受入金額（千円） | P48: 0
CZ51: 大学 | DA51: 大学・発明者・未設定
C52: 職務発明の帰属 | I52: 大学 | M52: 発明者 | Q52: 未設定 | DA52: 職務発明
AD53: 特許権実施等件数 | AL53: 0 | AQ53: 件 | AS53: 実施等件数当たり | DA53: 不実施
I54: 国内 | K54: 外国 | M54: PCT | O54: EPC | AD54: 特許権実施等収入（千円） | AL54: 0 | AS54: =IF(OR(AL53="",AL54=""),"",IFERROR(AL54/AL53,"")) ->  | CZ54: 0 | DA54: 特許権収入
C55: 特許出願件数（件） | I55: 0 | K55: 0 | M55: 0 | O55: 0
C56: 特許保有件数（件） | I56: 5 | K56: 0
C61: 大学発ベンチャー数 | J61: 3 | O61: 社
C62: Exit件数（IPO） | J62: 0 | O62: 社 | P62: Exit件数（M&A） | W62: 0 | Z62: 社
C63: 相談窓口 | K63: 支援ファンド | S63: インキュベーション施設
C64: 有 | G64: 無 | K64: 有 | O64: 無 | S64: 有 | W64: 無
C65: 知的財産戦略方針 | K65: 支援総額（千円） | S65: 面積 | W65: 0 | Z65: m2
C66: 有 | G66: 無 | K66: 0 | S66: 契約企業数 | W66: 0 | Z66: 社
CY69: 103 | CZ69: 104 | DA69: 105 | DB69: 106 | DC69: 107 | DD69: 108 | DE69: 109 | DF69: 110 | DG69: 111 | DH69: 112 | DI69: 113 | DJ69: 114 | DK69: 115 | DL69: 116 | DM69: 117 | DN69: 118 | DO69: 119 | DP69: 120 | DQ69: 121 | DR69: 122 | DS69: 123 | DT69: 124 | DU69: 125
B70: 東京大学 | C70: 4924 | D70: 613188710 | I70: 148
B71: 東京大学 | C71: 4924 | D71: 613188710 | K71: 5
B72: 東北大学 | C72: 3805 | D72: 208066000
B73: 大阪大学 | C73: 3557 | D73: 414288000
B74: 京都大学 | C74: 3026 | D74: 1119118168
B75: 東京工業大学 | C75: 2084 | D75: 99801000
B76: 九州大学 | C76: 1797 | D76: 164182000
B77: 名古屋大学 | C77: 1604 | D77: 90749000
B78: 北海道大学 | C78: 1314 | D78: 183435000
B79: 信州大学 | C79: 1038 | D79: 37096000
B80: 大阪公立大学 | C80: 975 | D80: 9345000
B81: 筑波大学 | C81: 967 | D81: 36213000
B82: 広島大学 | C82: 919 | D82: 34166000
B83: 千葉大学 | C83: 916 | D83: 16779000
B84: 慶應義塾大学 | C84: 869 | D84: 86996000
B85: 山口大学 | C85: 756 | D85: 29295000
B86: 東京理科大学 | C86: 698 | D86: 23087000
B87: 東京農工大学 | C87: 671 | D87: 60497000
B88: 早稲田大学 | C88: 671 | D88: 27622000
B89: 神戸大学 | C89: 668 | D89: 33659000
B90: 岡山大学 | C90: 624 | D90: 24747000
B91: 名古屋工業大学 | C91: 618 | D91: 32295000
B92: 九州工業大学 | C92: 591 | D92: 8115000
B93: 群馬大学 | C93: 563 | D93: 3087000
B94: 横浜国立大学 | C94: 553 | D94: 15639000
B95: 静岡大学 | C95: 543 | D95: 4244000
B96: 熊本大学 | C96: 539 | D96: 28442000
B97: 近畿大学 | C97: 507 | D97: 22970000
B98: 鹿児島大学 | C98: 475 | D98: 16446000
B99: 山梨大学 | C99: 473 | D99: 8206000
B100: 香川大学 | C100: 469 | D100: 19447000
B101: 長岡技術科学大学 | C101: 465 | D101: 3690000
B102: 東京医科歯科大学 | C102: 461 | D102: 28044000
B103: 東京都立大学 | C103: 447 | D103: 2416000
B104: 関西大学 | C104: 445 | D104: 3261000
B105: 三重大学 | C105: 443 | D105: 28808000
B106: 豊橋技術科学大学 | C106: 435 | D106: 6864000
B107: 電気通信大学 | C107: 421 | D107: 7030000
B108: 鳥取大学 | C108: 405 | D108: 137372000
B109: 金沢大学 | C109: 391 | D109: 18050000
B110: 徳島大学 | C110: 390 | D110: 20264000
B111: 奈良先端科学技術大学院大学 | C111: 382 | D111: 39711000
B112: 新潟大学 | C112: 373 | D112: 9369000
B113: 山形大学 | C113: 363 | D113: 2866000
B114: 北里大学 | C114: 346 | D114: 66133000
B115: 立命館大学 | C115: 330 | D115: 9311000
B116: 富山大学 | C116: 328 | D116: 10861000
B117: 埼玉大学 | C117: 320 | D117: 3578000
B118: 同志社大学 | C118: 317 | D118: 4884000
B119: 高知大学 | C119: 314 | D119: 20578000
B120: 弘前大学 | C120: 294 | D120: 8072000
B121: 日本大学 | C121: 283 | D121: 36278000
B122: 兵庫県立大学 | C122: 279 | D122: 1051000
B123: 名城大学 | C123: 276 | D123: 28093000
B124: 岐阜大学 | C124: 274 | D124: 10679000
B125: 横浜市立大学 | C125: 260 | D125: 37933000
B126: 札幌医科大学 | C126: 258 | D126: 19373000
B127: 京都府立医科大学 | C127: 258 | D127: 12241000
B128: 佐賀大学 | C128: 257 | D128: 8596000
B129: 京都工芸繊維大学 | C129: 252 | D129: 368000
B130: 福井大学 | C130: 245 | D130: 8596000
B131: 宮崎大学 | C131: 244 | D131: 1648000
B132: 神奈川大学 | C132: 243 | D132: 5675000
B133: 東海大学 | C133: 232 | D133: 1120000
B134: 岩手大学 | C134: 227 | D134: 6652000
B135: 秋田大学 | C135: 224 | D135: 1688000
B136: 愛媛大学 | C136: 203 | D136: 26470000
B137: 長崎大学 | C137: 203 | D137: 33702000
B138: 東京海洋大学 | C138: 199 | D138: 4576000
B139: 北陸先端科学技術大学院大学 | C139: 192 | D139: 1763000
B140: 沖縄科学技術大学院大学 | C140: 190 | D140: 1460000
B141: 福岡大学 | C141: 189 | D141: 875000
B142: 関西学院大学 | C142: 186 | D142: 25624000
B143: 東京女子医科大学 | C143: 185 | D143: 2817000
B144: 宇都宮大学 | C144: 179 | D144: 1976000
B145: 中央大学 | C145: 170 | D145: 3131000
B146: 上智大学 | C146: 167 | D146: 0
B147: 高知工科大学 | C147: 167 | D147: 45000
B148: 茨城大学 | C148: 155 | D148: 1545000
B149: 金沢工業大学 | C149: 149 | D149: 2786000
B150: 大分大学 | C150: 148 | D150: 4155000
B151: 千葉工業大学 | C151: 147 | D151: 2134000
B152: 浜松医科大学 | C152: 146 | D152: 1429000
B153: 順天堂大学 | C153: 142 | D153: 4289000
B154: 滋賀医科大学 | C154: 141 | D154: 5567000
B155: 中部大学 | C155: 135 | D155: 675000
B156: 島根大学 | C156: 134 | D156: 1585000
B157: 名古屋市立大学 | C157: 124 | D157: 17845000
B158: 豊田工業大学 | C158: 123 | D158: 50000
B159: 芝浦工業大学 | C159: 120 | D159: 441000
B160: 東京電機大学 | C160: 116 | D160: 5765000
B161: 琉球大学 | C161: 109 | D161: 955000
B162: 久留米大学 | C162: 107 | D162: 3189000
B163: 埼玉医科大学 | C163: 98 | D163: 9046000
B164: 富山県立大学 | C164: 94 | D164: 1681000
B165: 藤田医科大学 | C165: 94 | D165: 0
B166: 明治大学 | C166: 92 | D166: 4567000
B167: 北見工業大学 | C167: 89 | D167: 729000
B168: 静岡県立大学 | C168: 88 | D168: 0
B169: 和歌山大学 | C169: 88 | D169: 4976000
B170: 関東学院大学 | C170: 85 | D170: 10815000
B171: 神奈川工科大学 | C171: 77 | D171: 356000
B172: 帝京大学 | C172: 75 | D172: 3411000
B173: 昭和大学 | C173: 73 | D173: 36130000
B174: 奈良県立医科大学 | C174: 72 | D174: 643000
B175: 福岡工業大学 | C175: 70 | D175: 200000
B176: 法政大学 | C176: 68 | D176: 1375000
B177: 東亜大学 | C177: 67 | D177: 0
B178: 兵庫医科大学 | C178: 65 | D178: 909000
B179: 聖マリアンナ医科大学 | C179: 61 | D179: 9075000
B180: 室蘭工業大学 | C180: 60 | D180: 14000
B181: 秋田県立大学 | C181: 60 | D181: 1505000
B182: 福島大学 | C182: 60 | D182: 48000
B183: 日本医科大学 | C183: 60 | D183: 5693000
B184: 岡山理科大学 | C184: 58 | D184: 2541000
B185: 産業医科大学 | C185: 57 | D185: 2114000
B186: 東洋大学 | C186: 56 | D186: 1565000
B187: 帯広畜産大学 | C187: 55 | D187: 2369000
B188: 会津大学 | C188: 55 | D188: 220000
B189: 立教大学 | C189: 55 | D189: 18000
B190: 北九州市立大学 | C190: 55 | D190: 9601000
B191: 旭川医科大学 | C191: 53 | D191: 11185000
B192: お茶の水女子大学 | C192: 53 | D192: 0
B193: 工学院大学 | C193: 53 | D193: 1312000
B194: 大阪工業大学 | C194: 53 | D194: 0
B195: 玉川大学 | C195: 50 | D195: 335000
B196: 関西医科大学 | C196: 50 | D196: 3255000
B197: 熊本保健科学大学 | C197: 49 | D197: 7000
B198: 東京農業大学 | C198: 48 | D198: 0
B199: 甲南大学 | C199: 47 | D199: 1103000
B200: 東邦大学 | C200: 46 | D200: 1329000
B201: 龍谷大学 | C201: 44 | D201: 930000
B202: 広島市立大学 | C202: 44 | D202: 84000
B203: 大同大学 | C203: 42 | D203: 0
B204: 麻布大学 | C204: 39 | D204: 2179000
B205: 岩手県立大学 | C205: 37 | D205: 54000
B206: 東京薬科大学 | C206: 35 | D206: 2478000
B207: 青山学院大学 | C207: 34 | D207: 0
B208: 岩手医科大学 | C208: 33 | D208: 15000
... 643 more rows

Sheet 滋賀医科大学 (hidden)
A1: 国立 | C1: 滋賀医科大学 | X1: 大学全体の経営理念における産学官連携活動の取組方針 | CY1: 103 | CZ1: 104 | DA1: 105 | DB1: 106 | DC1: 107 | DD1: 108 | DE1: 109 | DF1: 110 | DG1: 111 | DH1: 112 | DI1: 113 | DJ1: 114 | DK1: 115 | DL1: 116 | DM1: 117 | DN1: 118 | DO1: 119 | DP1: 120 | DQ1: 121 | DR1: 122 | DS1: 123 | DT1: 124 | DU1: 125 | DV1: 126 | DW1: 127 | DX1: 128 | DY1: 129
X2: 医療分野を中心に、産（企業）、学（大学）、官（行政）、金（金融機関）が目標・目的を共有して、夫々の強みを最大限に発揮できるようコーディネートし、社会に新しい価値を提供（イノベーションを創出）し、結果として外部資金を獲得する。
C3: (滋賀県) | BC3: ＵＲＡ | BO3: URA当たりの研究者数 | CB3: 戦略的産学官連携経費
BC4: 実務担当者数 | BI4: 1 | BN4: 名 | BO4: =IFERROR(K29/BI4,"") -> 881 | BX4: 名 | CB4: 戦略的産学官連携経費の設定 | CP4: 有 | CT4: 無 | CZ4: ある | DA4: 相談窓口
CB5: 戦略的産学官連携経費の費目 | CZ5: ない | DA5: 支援ファンド
A6: 基 礎 情 報 | BC6: 各種規程類の整備状況 | CB6: 戦略的産学官連携経費の直接経費に対する割合 | CZ6: ある | DA6: インキュベーション施設 | DI6: △ | DJ6: 産学官連携ポリシー
BC7: 産学官連携ポリシー | BN7: 職務発明規程（教職員のみ対象） | CZ7: ない | DA7: 知的財産戦略 | DI7: ◎ | DJ7: 知的財産ポリシー
B8: 大学の得意分野とその具体例 | BC8: 知的財産ポリシー | BN8: 職務発明規程（教職員、学生対象） | CB8: 人件費の企業負担 | DI8: ◎ | DJ8: 共同研究取扱規程
B9: 重点研究領域（生活習慣病疫学研究、認知症やALSを中心とする神経難病研究、疾患モデルサルの作出による創薬研究支援など）の研究シーズ、附属病院の現場の医療ニーズを活かした産学連携を推進する。 | AA9: 科研費 （千円） | AL9: その他政府系資金 (千円) | AS9: その他団体からの資金 (千円) | BC9: 共同研究取扱規程 | BN9: 発明補償関係規程（教職員のみ対象） | CB9: 教員人件費の企業負担に関する規程や制度 | CP9: 有 | CT9: 無 | DI9: ◎ | DJ9: 受託研究取扱規程
BC10: 受託研究取扱規程 | BN10: 発明補償関係規程（教職員、学生対象） | CB10: 教員人件費の企業負担の費目 | CP10: 間接経費 | DI10: ◎ | DJ10: 研究成果有体物取扱規程
AA11: 417300 | AL11: 29062 | AS11: 0 | BC11: 研究成果有体物取扱規程 | BN11: 守秘義務に係る規程（教職員のみ対象） | CB11: 学生人件費の企業負担に関する規程や制度 | CP11: 有 | CT11: 無 | DI11: × | DJ11: 営業秘密管理に関する規程
BC12: 営業秘密管理に関する規程 | BN12: 守秘義務に係る規程（教職員、学生対象） | CB12: 学生人件費の企業負担の費目 | DI12: × | DJ12: 株式の取扱等規程、ポリシー
AA13: 共同研究における間接経費割合 | AN13: 株式の保有 | AT13: 新株予約権の保有 | BC13: 株式の取扱等規程、ポリシー | BN13: 学術指導に関する規程 | DA13: × | DB13: 株式 | DI13: × | DJ13: 職務発明規程（教職員のみ対象）
AA14: 0.3 | AN14: 有 | AQ14: 無 | AT14: 有 | AW14: 無 | BK14: ※各種規定類を整備している場合は、赤色で表示されます。 | CB14: 特別試験研究費税額控除制度 | DA14: × | DB14: 新株予約権 | DI14: ◎ | DJ14: 職務発明規程（教職員、学生対象）
B15: 産学官連携活動において今後重点化したい事項 | CB15: 特別試験研究費税額控除制度の活用 | CP15: 有 | CT15: 無 | DI15: × | DJ15: 発明補償関係規程（教職員のみ対象）
B16: 医療ニーズを更に充実し、地域の金融機関との連携や助成金の共同申請により主に中小企業との共同研究を推進し、社会実装を加速する。研究シーズについては権利化を進め、BioMedical Business Devlopment Unit（BBDU）を中心に実用化をはかる。オープンラボスペースを確保し、企業との共同研究講座の誘致を図る。 | AA16: 共同研究 | AG16: 2021年度 | AO16: 2022年度 | AW16: 順位※ | BC16: クロスアポイントメントの実績 | BK16: 大学等 | BN16: 公的機関 | BQ16: 民間企業 | BU16: その他機関 | DI16: ◎ | DJ16: 発明補償関係規程（教職員、学生対象）
AG17: 受入額（千円） | AL17: 件数 | AO17: 受入額（千円） | AT17: 件数 | BH17: 受入数(名) | BK17: 1 | BN17: 0 | BQ17: 1 | BU17: 0 | DB17: 順位 | DI17: ◎ | DJ17: 守秘義務に係る規程（教職員のみ対象）
AA18: 全体 | AG18: 70978 | AL18: 68 | AO18: 696213 | AT18: 69 | AW18: =IF(DB18<50,DB18,"") -> 26 | AY18: 位 | BH18: 派遣数(名) | BK18: 0 | BN18: 0 | BQ18: 1 | BU18: 1 | DB18: 26 | DI18: × | DJ18: 守秘義務に係る規程（教職員、学生対象）
AB19: 民間企業 のみ | AG19: 31879 | AL19: 56 | AO19: 683713 | AT19: 60 | AW19: =IF(DB19<50,DB19,"") -> 22 | AY19: 位 | DB19: 22 | DI19: ◎ | DJ19: 学術指導に係る規定
AC20: 大企業 | AG20: 23138 | AL20: 35 | AO20: 609540 | AT20: 39 | AW20: 20 | AY20: 位 | BB20: ■組織的産学官連携活動の取組事例 | DB20: 20 | DI20: ない | DJ20: 戦略的産学官連携経費の設定
AC21: 中小企業 | AG21: 8741 | AL21: 21 | AO21: 74173 | AT21: 21 | AW21: 49 | AY21: 位 | DB21: 49 | DI21: ある | DJ21: 教員人件費の企業負担に関する規程や制度
AK22: ※順位は2022年度の受入額を比較したものです。 | DI22: ない | DJ22: 学生人件費の企業負担に関する規程や制度
AK23: ※順位は50位までを記載。51位以下の場合は空欄となります。 | DB23: 0 | DC23: 29 | DI23: ある | DJ23: 特別試験研究費税額控除制度の活用
DB24: ～100万 | DC24: 6
DB25: ～300万 | DC25: 13
DB26: ～500万 | DC26: 3
C27: 産学官連携本部等組織名 | K27: 研究活動統括本部 | DB27: ～1000万 | DC27: 2
C28: 産学官連携本部等URL | K28: https://www.shiga-med.ac.jp/research-and-collaboration/support/system | DB28: ～5000万 | DC28: 5
C29: 研究者数 | K29: 881 | O29: 名 | DB29: ～1億 | DC29: 2 | DJ29: 共同研究等の企画・提案
C30: 実務担当者数 | K30: 11 | O30: 名 | DB30: 1億以上 | DJ30: 契約書での成果目標、達成時の明記
C31: 実務者当たり研究者数 | K31: =IFERROR(K29/K30,"") -> 80.09090909 | O31: 名 | DJ31: 共同研究契約の締結/判断（契約権限の集中）
C32: 専門家の配置 | I32: 弁護士 | L32: 弁理士 | O32: 税理士 | R32: 公認会計士 | V32: その他 | DJ32: 共同研究の進捗管理とフィードバック
L33: ※専門家を配置している場合は、赤色で表示されます。 | DJ33: 企業ニーズに適応した技術移転・事業化提案
AA34: 受託研究 | AG34: 2021年度 | AO34: 2022年度 | AW34: 順位※ | DJ34: 共同研究等の企画・提案
AG35: 受入額（千円） | AL35: 件数 | AO35: 受入額（千円） | AT35: 件数 | DB35: 順位 | DJ35: 契約書での成果目標、達成時の明記
AA36: 全体 | AG36: 490742 | AL36: 162 | AO36: 679418 | AT36: 96 | AW36: =IF(DB36<50,DB36,"") ->  | AY36: 位 | DB36: 59 | DJ36: 共同研究契約の締結/判断（契約権限の集中）
AA37: 民間企業 のみ | AG37: 42278 | AL37: 51 | AO37: 13820 | AT37: 21 | AW37: =IF(DB37<50,DB37,"") ->  | AY37: 位 | DB37: 128 | DJ37: 共同研究の進捗管理とフィードバック
C38: 産学官連携本部が関与した共同研究 | P38: 0 | T38: 件 | AA38: 大企業 | AG38: 26991 | AL38: 31 | AO38: 10485 | AT38: 15 | AY38: 位 | DB38: 123 | DJ38: 企業ニーズに適応した技術移転・事業化提案
D39: 内、マッチングを行い、契約締結した件数 | P39: 0 | T39: 件 | AA39: 中小企業 | AG39: 15287 | AL39: 20 | AO39: 3335 | AT39: 6 | AY39: 位 | DB39: 124 | DJ39: 共同研究等の企画・提案
I40: ※1,000万円以上の共同研究 | AK40: ※順位は2022年度の受入額を比較したもの | DB40: 弁護士 | DG40: 0 | DH40: 10 | DJ40: 契約書での成果目標、達成時の明記
AK41: ※順位は50位までを記載。51位以下の場合は空欄となります。 | BB41: ■産学官連携活動の主な実用化事例 | DB41: 弁理士 | DG41: ～100万 | DH41: 4 | DJ41: 共同研究契約の締結/判断（契約権限の集中）
C42: 組織対組織による包括連携契約の締結数 | P42: 0 | T42: 件 | DB42: 税理士 | DG42: ～300万 | DH42: 7 | DJ42: 共同研究の進捗管理とフィードバック
D43: 内、1,000万円以上の実績がある相手方数 | P43: 0 | T43: 件 | DB43: 公認会計士 | DG43: ～500万 | DJ43: 企業ニーズに適応した技術移転・事業化提案
DA44: ○ | DB44: その他 | DG44: ～1000万
C45: 寄附講座・寄附研究部門の受入件数 | P45: 1 | V45: 件 | DG45: ～5000万
C46: 寄附講座・寄附研究部門の受入金額（千円） | P46: 800 | DG46: ～1億
C47: 共同研究講座・共同研究部門の受入件数 | P47: 6 | V47: 件 | DG47: 1億以上
C48: 共同研究講座・共同研究部門の受入金額（千円） | P48: 208920
CZ51: 大学 | DA51: 大学・発明者・未設定
C52: 職務発明の帰属 | I52: 大学 | M52: 発明者 | Q52: 未設定 | DA52: 職務発明
AD53: 特許権実施等件数 | AL53: 118 | AQ53: 件 | AS53: 実施等件数当たり | DA53: 不実施
I54: 国内 | K54: 外国 | M54: PCT | O54: EPC | AD54: 特許権実施等収入（千円） | AL54: 5567 | AS54: =IF(OR(AL53="",AL54=""),"",IFERROR(AL54/AL53,"")) -> 47.1779661 | CZ54: 5567000 | DA54: 特許権収入
C55: 特許出願件数（件） | I55: 12 | K55: 23 | M55: 6 | O55: 2
C56: 特許保有件数（件） | I56: 91 | K56: 50
C61: 大学発ベンチャー数 | J61: 5 | O61: 社
C62: Exit件数（IPO） | J62: 0 | O62: 社 | P62: Exit件数（M&A） | W62: 0 | Z62: 社
C63: 相談窓口 | K63: 支援ファンド | S63: インキュベーション施設
C64: 有 | G64: 無 | K64: 有 | O64: 無 | S64: 有 | W64: 無
C65: 知的財産戦略方針 | K65: 支援総額（千円） | S65: 面積 | W65: 57 | Z65: m2
C66: 有 | G66: 無 | K66: 0 | S66: 契約企業数 | W66: 2 | Z66: 社
CY69: 103 | CZ69: 104 | DA69: 105 | DB69: 106 | DC69: 107 | DD69: 108 | DE69: 109 | DF69: 110 | DG69: 111 | DH69: 112 | DI69: 113 | DJ69: 114 | DK69: 115 | DL69: 116 | DM69: 117 | DN69: 118 | DO69: 119 | DP69: 120 | DQ69: 121 | DR69: 122 | DS69: 123 | DT69: 124 | DU69: 125
B70: 東京大学 | C70: 4924 | D70: 613188710 | I70: 148
B71: 東京大学 | C71: 4924 | D71: 613188710 | K71: 141
B72: 東北大学 | C72: 3805 | D72: 208066000
B73: 大阪大学 | C73: 3557 | D73: 414288000
B74: 京都大学 | C74: 3026 | D74: 1119118168
B75: 東京工業大学 | C75: 2084 | D75: 99801000
B76: 九州大学 | C76: 1797 | D76: 164182000
B77: 名古屋大学 | C77: 1604 | D77: 90749000
B78: 北海道大学 | C78: 1314 | D78: 183435000
B79: 信州大学 | C79: 1038 | D79: 37096000
B80: 大阪公立大学 | C80: 975 | D80: 9345000
B81: 筑波大学 | C81: 967 | D81: 36213000
B82: 広島大学 | C82: 919 | D82: 34166000
B83: 千葉大学 | C83: 916 | D83: 16779000
B84: 慶應義塾大学 | C84: 869 | D84: 86996000
B85: 山口大学 | C85: 756 | D85: 29295000
B86: 東京理科大学 | C86: 698 | D86: 23087000
B87: 東京農工大学 | C87: 671 | D87: 60497000
B88: 早稲田大学 | C88: 671 | D88: 27622000
B89: 神戸大学 | C89: 668 | D89: 33659000
B90: 岡山大学 | C90: 624 | D90: 24747000
B91: 名古屋工業大学 | C91: 618 | D91: 32295000
B92: 九州工業大学 | C92: 591 | D92: 8115000
B93: 群馬大学 | C93: 563 | D93: 3087000
B94: 横浜国立大学 | C94: 553 | D94: 15639000
B95: 静岡大学 | C95: 543 | D95: 4244000
B96: 熊本大学 | C96: 539 | D96: 28442000
B97: 近畿大学 | C97: 507 | D97: 22970000
B98: 鹿児島大学 | C98: 475 | D98: 16446000
B99: 山梨大学 | C99: 473 | D99: 8206000
B100: 香川大学 | C100: 469 | D100: 19447000
B101: 長岡技術科学大学 | C101: 465 | D101: 3690000
B102: 東京医科歯科大学 | C102: 461 | D102: 28044000
B103: 東京都立大学 | C103: 447 | D103: 2416000
B104: 関西大学 | C104: 445 | D104: 3261000
B105: 三重大学 | C105: 443 | D105: 28808000
B106: 豊橋技術科学大学 | C106: 435 | D106: 6864000
B107: 電気通信大学 | C107: 421 | D107: 7030000
B108: 鳥取大学 | C108: 405 | D108: 137372000
B109: 金沢大学 | C109: 391 | D109: 18050000
B110: 徳島大学 | C110: 390 | D110: 20264000
B111: 奈良先端科学技術大学院大学 | C111: 382 | D111: 39711000
B112: 新潟大学 | C112: 373 | D112: 9369000
B113: 山形大学 | C113: 363 | D113: 2866000
B114: 北里大学 | C114: 346 | D114: 66133000
B115: 立命館大学 | C115: 330 | D115: 9311000
B116: 富山大学 | C116: 328 | D116: 10861000
B117: 埼玉大学 | C117: 320 | D117: 3578000
B118: 同志社大学 | C118: 317 | D118: 4884000
B119: 高知大学 | C119: 314 | D119: 20578000
B120: 弘前大学 | C120: 294 | D120: 8072000
B121: 日本大学 | C121: 283 | D121: 36278000
B122: 兵庫県立大学 | C122: 279 | D122: 1051000
B123: 名城大学 | C123: 276 | D123: 28093000
B124: 岐阜大学 | C124: 274 | D124: 10679000
B125: 横浜市立大学 | C125: 260 | D125: 37933000
B126: 札幌医科大学 | C126: 258 | D126: 19373000
B127: 京都府立医科大学 | C127: 258 | D127: 12241000
B128: 佐賀大学 | C128: 257 | D128: 8596000
B129: 京都工芸繊維大学 | C129: 252 | D129: 368000
B130: 福井大学 | C130: 245 | D130: 8596000
B131: 宮崎大学 | C131: 244 | D131: 1648000
B132: 神奈川大学 | C132: 243 | D132: 5675000
B133: 東海大学 | C133: 232 | D133: 1120000
B134: 岩手大学 | C134: 227 | D134: 6652000
B135: 秋田大学 | C135: 224 | D135: 1688000
B136: 愛媛大学 | C136: 203 | D136: 26470000
B137: 長崎大学 | C137: 203 | D137: 33702000
B138: 東京海洋大学 | C138: 199 | D138: 4576000
B139: 北陸先端科学技術大学院大学 | C139: 192 | D139: 1763000
B140: 沖縄科学技術大学院大学 | C140: 190 | D140: 1460000
B141: 福岡大学 | C141: 189 | D141: 875000
B142: 関西学院大学 | C142: 186 | D142: 25624000
B143: 東京女子医科大学 | C143: 185 | D143: 2817000
B144: 宇都宮大学 | C144: 179 | D144: 1976000
B145: 中央大学 | C145: 170 | D145: 3131000
B146: 上智大学 | C146: 167 | D146: 0
B147: 高知工科大学 | C147: 167 | D147: 45000
B148: 茨城大学 | C148: 155 | D148: 1545000
B149: 金沢工業大学 | C149: 149 | D149: 2786000
B150: 大分大学 | C150: 148 | D150: 4155000
B151: 千葉工業大学 | C151: 147 | D151: 2134000
B152: 浜松医科大学 | C152: 146 | D152: 1429000
B153: 順天堂大学 | C153: 142 | D153: 4289000
B154: 滋賀医科大学 | C154: 141 | D154: 5567000
B155: 中部大学 | C155: 135 | D155: 675000
B156: 島根大学 | C156: 134 | D156: 1585000
B157: 名古屋市立大学 | C157: 124 | D157: 17845000
B158: 豊田工業大学 | C158: 123 | D158: 50000
B159: 芝浦工業大学 | C159: 120 | D159: 441000
B160: 東京電機大学 | C160: 116 | D160: 5765000
B161: 琉球大学 | C161: 109 | D161: 955000
B162: 久留米大学 | C162: 107 | D162: 3189000
B163: 埼玉医科大学 | C163: 98 | D163: 9046000
B164: 富山県立大学 | C164: 94 | D164: 1681000
B165: 藤田医科大学 | C165: 94 | D165: 0
B166: 明治大学 | C166: 92 | D166: 4567000
B167: 北見工業大学 | C167: 89 | D167: 729000
B168: 静岡県立大学 | C168: 88 | D168: 0
B169: 和歌山大学 | C169: 88 | D169: 4976000
B170: 関東学院大学 | C170: 85 | D170: 10815000
B171: 神奈川工科大学 | C171: 77 | D171: 356000
B172: 帝京大学 | C172: 75 | D172: 3411000
B173: 昭和大学 | C173: 73 | D173: 36130000
B174: 奈良県立医科大学 | C174: 72 | D174: 643000
B175: 福岡工業大学 | C175: 70 | D175: 200000
B176: 法政大学 | C176: 68 | D176: 1375000
B177: 東亜大学 | C177: 67 | D177: 0
B178: 兵庫医科大学 | C178: 65 | D178: 909000
B179: 聖マリアンナ医科大学 | C179: 61 | D179: 9075000
B180: 室蘭工業大学 | C180: 60 | D180: 14000
B181: 秋田県立大学 | C181: 60 | D181: 1505000
B182: 福島大学 | C182: 60 | D182: 48000
B183: 日本医科大学 | C183: 60 | D183: 5693000
B184: 岡山理科大学 | C184: 58 | D184: 2541000
B185: 産業医科大学 | C185: 57 | D185: 2114000
B186: 東洋大学 | C186: 56 | D186: 1565000
B187: 帯広畜産大学 | C187: 55 | D187: 2369000
B188: 会津大学 | C188: 55 | D188: 220000
B189: 立教大学 | C189: 55 | D189: 18000
B190: 北九州市立大学 | C190: 55 | D190: 9601000
B191: 旭川医科大学 | C191: 53 | D191: 11185000
B192: お茶の水女子大学 | C192: 53 | D192: 0
B193: 工学院大学 | C193: 53 | D193: 1312000
B194: 大阪工業大学 | C194: 53 | D194: 0
B195: 玉川大学 | C195: 50 | D195: 335000
B196: 関西医科大学 | C196: 50 | D196: 3255000
B197: 熊本保健科学大学 | C197: 49 | D197: 7000
B198: 東京農業大学 | C198: 48 | D198: 0
B199: 甲南大学 | C199: 47 | D199: 1103000
B200: 東邦大学 | C200: 46 | D200: 1329000
B201: 龍谷大学 | C201: 44 | D201: 930000
B202: 広島市立大学 | C202: 44 | D202: 84000
B203: 大同大学 | C203: 42 | D203: 0
B204: 麻布大学 | C204: 39 | D204: 2179000
B205: 岩手県立大学 | C205: 37 | D205: 54000
B206: 東京薬科大学 | C206: 35 | D206: 2478000
B207: 青山学院大学 | C207: 34 | D207: 0
B208: 岩手医科大学 | C208: 33 | D208: 15000
... 643 more rows

Sheet 京都大学 (hidden)
A1: 国立 | C1: 京都大学 | X1: 大学全体の経営理念における産学官連携活動の取組方針 | CY1: 103 | CZ1: 104 | DA1: 105 | DB1: 106 | DC1: 107 | DD1: 108 | DE1: 109 | DF1: 110 | DG1: 111 | DH1: 112 | DI1: 113 | DJ1: 114 | DK1: 115 | DL1: 116 | DM1: 117 | DN1: 118 | DO1: 119 | DP1: 120 | DQ1: 121 | DR1: 122 | DS1: 123 | DT1: 124 | DU1: 125 | DV1: 126 | DW1: 127 | DX1: 128 | DY1: 129
X2: 京都大学は、「研究の自由と自主を基礎に、高い倫理性を備えた研究活動により、世界的に卓越した知の創造を行う」とともに、「世界に開かれた大学として、地域との連携・国際交流を深め、自由と調和に基づく知を社会に伝え、地球社会の調和ある共存に貢献する」ことを基本理念として掲げ、知の創出と知的資産の社会還元を大学の大きな役割と位置づけている。他方、国立大学の第三の責務として「研究の成果を普及し、及びその活用を促進する」あらたな社会貢献が求められている。 京都大学は、基本理念を継承・発展させるとともに、大学の社会貢献の一環として産官学連携活動を推進し、大学で創出された研究成果を知的財産としても普及・活用を促進する。この産官学連携活動を通じて、我が国及び地球社会に貢献するとともに、本学における教育・研究活動の一層の発展と国際的な人材育成に資することをミッションとしている。
C3: (京都府) | BC3: ＵＲＡ | BO3: URA当たりの研究者数 | CB3: 戦略的産学官連携経費
BC4: 実務担当者数 | BI4: 48 | BN4: 名 | BO4: =IFERROR(K29/BI4,"") -> 120.625 | BX4: 名 | CB4: 戦略的産学官連携経費の設定 | CP4: 有 | CT4: 無 | CZ4: ある | DA4: 相談窓口
CB5: 戦略的産学官連携経費の費目 | CZ5: ある | DA5: 支援ファンド
A6: 基 礎 情 報 | BC6: 各種規程類の整備状況 | CB6: 戦略的産学官連携経費の直接経費に対する割合 | CZ6: ある | DA6: インキュベーション施設 | DI6: ◎ | DJ6: 産学官連携ポリシー
BC7: 産学官連携ポリシー | BN7: 職務発明規程（教職員のみ対象） | CZ7: ある | DA7: 知的財産戦略 | DI7: ◎ | DJ7: 知的財産ポリシー
B8: 大学の得意分野とその具体例 | BC8: 知的財産ポリシー | BN8: 職務発明規程（教職員、学生対象） | CB8: 人件費の企業負担 | DI8: ◎ | DJ8: 共同研究取扱規程
B9: 京都大学では、産官学連携本部の総合的マネジメントの下、本学グループ会社４社が本学のリソースを最大限に活用した事業活動を展開している。 京大オリジナル㈱が、学術研究の成果（研究シーズ）に対し、プレインキュベーション（ＧＡＰファンド、個別マッチング等）によるブラッシュアップ活動やコンサルティング（プレマーケティング）を実施している。 知財に関わる案件は、㈱ＴＬＯ京都が権利強化・特許出願を実施、さらに特許とライセンスに関する情報と管理の一元化を行うとともに、iPSアカデミアジャパン㈱がiPS細胞関連特許の管理・活用及び実用化を促進し、大学発ベンチャーや既存企業へのライセンシング、共同研究へのスピンオフ、また、大型案件についてはオープンイノベーション機構によるコーディネート等へ展開していく。 更には、ベンチャーに関わる案件は京都大学イノベーションキャピタル㈱によるファンディング、ハンズオンによる起業支援へつなげていく。 この過程において、オープンイノベーション機構によって、集約・分析された研究シーズと企業ニーズのマッチングによる大型共同研究の企画・コーディネート及びプロジェクト管理が行われる等、有機的な連携を推進している。 | AA9: 科研費 （千円） | AL9: その他政府系資金 (千円) | AS9: その他団体からの資金 (千円) | BC9: 共同研究取扱規程 | BN9: 発明補償関係規程（教職員のみ対象） | CB9: 教員人件費の企業負担に関する規程や制度 | CP9: 有 | CT9: 無 | DI9: ◎ | DJ9: 受託研究取扱規程
BC10: 受託研究取扱規程 | BN10: 発明補償関係規程（教職員、学生対象） | CB10: 教員人件費の企業負担の費目 | CP10: 直接経費 | DI10: ◎ | DJ10: 研究成果有体物取扱規程
AA11: 16519460 | AL11: 1258325 | AS11: 6615433 | BC11: 研究成果有体物取扱規程 | BN11: 守秘義務に係る規程（教職員のみ対象） | CB11: 学生人件費の企業負担に関する規程や制度 | CP11: 有 | CT11: 無 | DI11: × | DJ11: 営業秘密管理に関する規程
BC12: 営業秘密管理に関する規程 | BN12: 守秘義務に係る規程（教職員、学生対象） | CB12: 学生人件費の企業負担の費目 | CP12: 直接経費 | DI12: ◎ | DJ12: 株式の取扱等規程、ポリシー
AA13: 共同研究における間接経費割合 | AN13: 株式の保有 | AT13: 新株予約権の保有 | BC13: 株式の取扱等規程、ポリシー | BN13: 学術指導に関する規程 | DA13: ○ | DB13: 株式 | DI13: × | DJ13: 職務発明規程（教職員のみ対象）
AA14: 0.3 | AN14: 有 | AQ14: 無 | AT14: 有 | AW14: 無 | BK14: ※各種規定類を整備している場合は、赤色で表示されます。 | CB14: 特別試験研究費税額控除制度 | DA14: ○ | DB14: 新株予約権 | DI14: ◎ | DJ14: 職務発明規程（教職員、学生対象）
B15: 産学官連携活動において今後重点化したい事項 | CB15: 特別試験研究費税額控除制度の活用 | CP15: 有 | CT15: 無 | DI15: × | DJ15: 発明補償関係規程（教職員のみ対象）
